Workbook

Sheet Resultados
C2: Versão definitiva aprovada com alterações efetuadas pelo Conselho Diretor
C3: Base de Remuneração Regulatória Líquida na data de início do Ciclo Tarifário | D3: BRRL0 | F3: =BRRL!J6 -> 981307.6825 | H3: mil R$
C4: Base de Remuneração Regulatória Líquida ao final do Ciclo Tarifário | D4: BRRLT | F4: =BRRL!O6 -> 1265860.371 | H4: mil R$
C5: Weighted Average Cost of Capital - WACC | D5: rWACC | F5: =ROUND(rWACC!D3,4) -> 0.0871
C7: Descrição | D7: Variável | I7: Ciclo Tarifário - 2024/2029
H8: 0 | I8: 1 | J8: 2 | K8: 3 | L8: 4 | M8: 5
C9: Base de Remuneração Regulatória Líquida ao longo do Ciclo Tarifário | D9: BRRLi | F9: mil R$ | H9: =F3 -> 981307.6825 | I9: =BRRL!K6 -> 1091702.659 | J9: =BRRL!L6 -> 1197334.973 | K9: =BRRL!M6 -> 1220373.245 | L9: =BRRL!N6 -> 1226412.175 | M9: =BRRL!O6 -> 1265860.371
C10: Variação anual da Base de Remuneração Regulatória Líquida | D10: BRRL (t+1 - t) | F10: mil R$ | H10: - | I10: =BRRL!K16 -> 110394.9768 | J10: =BRRL!L16 -> 105632.3135 | K10: =BRRL!M16 -> 23038.27258 | L10: =BRRL!N16 -> 6038.929936 | M10: =BRRL!O16 -> 39448.19566
C11: Amortização anual projetada da Base de Remuneração Regulatória Líquida | D11: Amortização projetada | F11: mil R$ | H11: - | I11: =BRRL!K15 -> 35514.55281 | J11: =BRRL!L15 -> 41137.48407 | K11: =BRRL!M15 -> 45470.40106 | L11: =BRRL!N15 -> 48262.17314 | M11: =BRRL!O15 -> 51426.71585
C12: Custos operacionais e outras despesas/gastos operacionais e receitas irrecuperáveis | D12: Opex&Odesp | F12: mil R$ | H12: - | I12: =DRIVER_OPEX!G451 -> 35157.34273 | J12: =DRIVER_OPEX!H451 -> 40887.79988 | K12: =DRIVER_OPEX!I451 -> 48005.34901 | L12: =DRIVER_OPEX!J451 -> 50780.1189 | M12: =DRIVER_OPEX!K451 -> 52443.73884
C13: Investimentos | D13: Capex | F13: mil R$ | H13: - | I13: =CAPEX!D8 -> 145909.5296 | J13: =CAPEX!E8 -> 146769.7976 | K13: =CAPEX!F8 -> 68508.67364 | L13: =CAPEX!G8 -> 54301.10308 | M13: =CAPEX!H8 -> 90874.91151
C14: Variação do capital de giro | D14: VCG | F14: mil R$ | H14: - | I14: =VCG!E28/1000 -> 1517.336614 | J14: =VCG!E29/1000 -> 1426.896977 | K14: =VCG!E30/1000 -> 650.8031698 | L14: =VCG!E31/1000 -> 798.6196484 | M14: =VCG!E32/1000 -> -21979.96492
C15: Outras receitas consideradas na modicidade tarifária | D15: OR | F15: mil R$ | H15: - | I15: =OR!E9 -> 258.017827 | J15: =OR!F9 -> 300.1016156 | K15: =OR!G9 -> 314.7259434 | L15: =OR!H9 -> 344.7825784 | M15: =OR!I9 -> 371.3309833
C16: Valor do imposto de renda projetado | D16: IR | F16: mil R$ | H16: - | I16: =IR!D12 -> 40227.55904 | J16: =IR!E12 -> 49377.32807 | K16: =IR!F12 -> 50272.76017 | L16: =IR!G12 -> 58094.47408 | M16: =IR!H12 -> 65030.50958
C17: Atividades de Comercialização (mercado cativo) | D17: Encargos de Comercialização - mercado cativo | F17: mil R$ | H17: - | I17: =DRIVER_OPEX!G453 -> 10939.52899 | J17: =DRIVER_OPEX!H453 -> 11375.17369 | K17: =DRIVER_OPEX!I453 -> 11776.38357 | L17: =DRIVER_OPEX!J453 -> 12053.46784 | M17: =DRIVER_OPEX!K453 -> 12391.19941
C18: Atividades de Gestão | D18: Encargos de Gestão - cativo + livre | F18: mil R$ | H18: - | I18: =DRIVER_OPEX!G452 -> 36242.2311 | J18: =DRIVER_OPEX!H452 -> 37437.79534 | K18: =DRIVER_OPEX!I452 -> 37899.88689 | L18: =DRIVER_OPEX!J452 -> 38023.13004 | M18: =DRIVER_OPEX!K452 -> 38185.67527
C19: Volume distribuído do mercado cativo | D19: Volume: mercado cativo | F19: mil m³ | H19: - | I19: =VOLUME!E21/1000 -> 297937.4619 | J19: =VOLUME!F21/1000 -> 321383.391 | K19: =VOLUME!G21/1000 -> 345323.9427 | L19: =VOLUME!H21/1000 -> 355227.4525 | M19: =VOLUME!I21/1000 -> 363451.6454
C20: Volume distribuído do mercado livre | D20: Volume: mercado livre | F20: mil m³ | H20: - | I20: =SUM(VOLUME!E22:E23)/1000 -> 171990 | J20: =SUM(VOLUME!F22:F23)/1000 -> 229950 | K20: =SUM(VOLUME!G22:G23)/1000 -> 231310 | L20: =SUM(VOLUME!H22:H23)/1000 -> 280842 | M20: =SUM(VOLUME!I22:I23)/1000 -> 325215
C21: Volume distribuído total (mercado cativo + mercado livre) | D21: Volume total | F21: mil m³ | H21: - | I21: =SUM(VOLUME!E21:E23)/1000 -> 469927.4619 | J21: =SUM(VOLUME!F21:F23)/1000 -> 551333.391 | K21: =SUM(VOLUME!G21:G23)/1000 -> 576633.9427 | L21: =SUM(VOLUME!H21:H23)/1000 -> 636069.4525 | M21: =SUM(VOLUME!I21:I23)/1000 -> 688666.6454
C22: Receita Direta (tarifária) | D22: Receita | F22: mil R$ | H22: - | I22: =(I19*$M$36+I20*$M$37) -> 234562.7978 | J22: =(J19*$M$36+J20*$M$37) -> 272821.9123 | K22: 286116.5566 | L22: 313441.8292 | M22: 337577.6976
C24: Fluxo de caixa | D24: - | F24: mil R$ | H24: =-F3 -> -981307.6825 | I24: =(I19*$M$36+I20*$M$37)-I12-I13-I14+I15-I16-I17-I18 -> -35172.71243 | J24: =(J19*$M$36+J20*$M$37)-J12-J13-J14+J15-J16-J17-J18 -> -14152.7777 | K24: 69317.42614 | L24: =(L19*$M$36+L20*$M$37)-L12-L13-L14+L15-L16-L17-L18 -> 99735.69822 | M24: =(M19*$M$36+M20*$M$37)-M12-M13-M14+M15-M16-M17-M18+M9 -> 1366863.33
C25: Fluxo de caixa descontado | D25: =SUM(H25:M25) -> 9.485137668 | F25: mil R$ | H25: =-F3/(1+$F$5)^H8 -> -981307.6825 | I25: =I24/(1+$F$5)^I8 -> -32354.62462 | J25: =J24/(1+$F$5)^J8 -> -11975.74924 | K25: =K24/(1+$F$5)^K8 -> 53955.27882 | L25: =L24/(1+$F$5)^L8 -> 71412.23893 | M25: =M24/(1+$F$5)^M8 -> 900280.0238
C27: (+) | D27: =$F$3 -> 981307.6825 | F27: mil R$ | H27: Receita Mercado Cativo e Livre sem Encargos | I27: =$D$37*I21 -> 207615.5585 | J27: =$D$37*J21 -> 243580.9762 | K27: =$D$37*K21 -> 254758.8464 | L27: =$D$37*L21 -> 281017.6577 | M27: =$D$37*M21 -> 304255.2773
C28: (-) | D28: =$F$4/(1+$F$5)^M8 -> 833754.7581 | F28: mil R$ | H28: Receita Encargos Mercado Cativo | I28: =$K$36*I19 -> 26279.93725 | J28: =$K$36*J19 -> 28348.01402 | K28: =$K$36*K19 -> 30459.71959 | L28: =$K$36*L19 -> 31333.27075 | M28: =$K$36*M19 -> 32058.69572
C29: (+) | D29: =NPV($F$5,I12:M12)+NPV(F5,I18:M18)*DRIVER_OPEX!G457 -> 248653.3573 | F29: mil R$ | H29: Receita Encargos Mercado Livre | I29: =$K$37*I20 -> 666.1651413 | J29: =$K$37*J20 -> 890.6603538 | K29: =$K$37*K20 -> 895.9280123 | L29: =$K$37*L20 -> 1087.779235 | M29: =$K$37*M20 -> 1259.648215
C30: (+) | D30: =NPV($F$5,I13:M13) -> 410472.8359 | F30: mil R$ | H30: Outras Receitas | I30: =I15 -> 258.017827 | J30: =J15 -> 300.1016156 | K30: =K15 -> 314.7259434 | L30: =L15 -> 344.7825784 | M30: =M15 -> 371.3309833
C31: (+) | D31: =NPV($F$5,I14:M14) -> -10795.46363 | F31: mil R$ | H31: Receita Total | I31: =I27+I28+I29+I30 -> 234819.6787 | J31: =J27+J28+J29+J30 -> 273119.7522 | K31: 286429.2199 | L31: 313783.4902 | M31: 337944.9522
C32: (-) | D32: =NPV($F$5,I15:M15) -> 1227.705693 | F32: mil R$ | H32: VPL Receita | I32: =NPV($F$5,I31:M31) -> 1117323.79 | K32: MBR (R$) Margem Bruta Requerida | M32: =SUM(I19:M19)*1000*M36+SUM(I20:M20)*1000*M37 -> 1444520794
C33: (+) | D33: =NPV($F$5,I16:M16) -> 202346.3417 | F33: mil R$ | H33: VPL Gastos | I33: =D27-D28+D30+D31+D33+NPV(F5,I12:M12)+NPV(F5,I17:M17)+NPV($F$5,I18:M18) -> 1117323.79 | K33: TUSD média global* (R$/m³) (TUSDc+TUSDL) | M33: =I32/D34 -> 0.4951216998
C34: (+) | D34: =NPV($F$5,I21:M21) -> 2256664.958 | F34: mil m³ | H34: VPL Receita - Gastos | I34: =(I32-I33) -> 8.405651897e-06 | K34: *Valor MÉDIO Global apenas a título de informação, não faz parte do modelo. A estrutura tarifária a ser proposta pela concessionária deve convergir para essa média.
C36: Tarifa de Uso do Sistema de Distribuição [calculado] - TUSD (R$/m³) | D36: =(D27-D28+D29+D30+D31-D32+D33)/D34 -> 0.4418034172 | J36: Encargos (cativo) Ec (R$/m³) | K36: =(NPV(F5,I17:M17)/NPV(F5,I19:M19))+(NPV(F5,I18:M18)/NPV(F5,I19:M19)*DRIVER_OPEX!G458) -> 0.08820621978 | L36: TUSDC (R$/m³) | M36: =ROUND($D$37,4)+ROUND(K36,4) -> 0.53
C37: Tarifa de Uso do Sistema de Distribuição [atingir meta] - TUSD (R$/m³) | D37: 0.4418034172 | J37: Encargos (livre) El (R$/m³) | K37: =NPV(F5,I18:M18)/NPV(F5,I20:M20)*DRIVER_OPEX!G459 -> 0.003873278338 | L37: TUSDL(R$/m³) | M37: =ROUND($D$37,4)+ROUND(K37,4) -> 0.4457
J38: Versão definitiva aprovada com alterações efetuadas pelo Conselho Diretor

Sheet BRRL
C3: Base de Remuneração Regulatória Líquida | I3: Movimentação da Base de Ativos durante o Ciclo Tarifário
C4: Resumo da Base de Remuneração Regulatória Líquida | K4: 1° Ciclo Tarifário (ano)
C5: Descrição | D5: Observação | E5: R$ | I5: Descrição | J5: 0 | K5: 1 | L5: 2 | M5: 3 | N5: 4 | O5: 5
C6: (a) Base de Remuneração Regulatória Líquida | I6: (a) BRRL0-t* (mil R$) | J6: =E31/1000 -> 981307.6825 | K6: =J6+K8-K15 -> 1091702.659 | L6: =K6+L8-L15 -> 1197334.973 | M6: =L6+M8-M15 -> 1220373.245 | N6: 1226412.175 | O6: =N6+O8-O15 -> 1265860.371
C7: (a.1) Outorga = (a.2) + (a.3) | D7: Valor contabilizado no "Anexo 7 - BRRL Inicial" do Contrato de Concessão | E7: 508000000 | I7: (b) Amortização da BRRL0 (mil R$) | J7: 0 | K7: =$J$6/30 -> 32710.25608 | L7: =$J$6/30 -> 32710.25608 | M7: 32710.25608 | N7: 32710.25608 | O7: 32710.25608
C8: (a.2) Compensação de créditos | D8: Compensação de créditos em favor da Concessionária referente ao contrato anterior (item 1.3 do Contrato) | E8: 98000000 | I8: (c) Imobilizações (mil R$) | J8: 0 | K8: =CAPEX!D8 -> 145909.5296 | L8: =CAPEX!E8 -> 146769.7976 | M8: =CAPEX!F8 -> 68508.67364 | N8: =CAPEX!G8 -> 54301.10308 | O8: =CAPEX!H8 -> 90874.91151
C9: (a.3) Valor da Outorga pago | D9: Valor efetivamente pago em 28/12/2022. | E9: =E7-E8 -> 410000000 | I9: (d) Amortização de (c) (mil R$) | J9: 0 | K9: =SUM(K10:K14) -> 2804.296728 | L9: =SUM(L10:L14) -> 8427.227985 | M9: =SUM(M10:M14) -> 12760.14497 | N9: =SUM(N10:N14) -> 15551.91706 | O9: =SUM(O10:O14) -> 18716.45977
C10: (a.4) Passivo Regulatório | D10: Valor constante no item 10.12 do Contrato e referenciado no "Anexo 07 - BRRL Inicial"** | E10: 93106400.97 | I10: (d.1) Ano 1 (mil R$) | J10: 0 | K10: =(SUM(CAPEX!L48:L49)/1000)/2 -> 2804.296728 | L10: =K10*2 -> 5608.593456 | M10: =L10 -> 5608.593456 | N10: 5608.593456 | O10: 5608.593456
C11: (a.5) Outorga subtraído o Passivo Regulatório = (a.1) - (a.4) | D11: - | E11: =E7-E10 -> 414893599 | I11: (d.2) Ano 2 (mil R$) | J11: 0 | K11: 0 | L11: =(SUM(CAPEX!M48:M49)/1000)/2 -> 2818.634528 | M11: =L11*2 -> 5637.269056 | N11: =M11 -> 5637.269056 | O11: 5637.269056
C12: (a.6) Bens não amortizados até assinatura do Contrato* | D12: Valor contabilizado no "Anexo 7 - BRRL Inicial" do Contrato de Concessão, líquida das baixas identificadas | E12: 232239109.4 | I12: (d.3) Ano 3 (mil R$) | J12: 0 | K12: 0 | L12: 0 | M12: =(SUM(CAPEX!N48:N49)/1000)/2 -> 1514.282462 | N12: =M12*2 -> 3028.564924 | O12: =N12 -> 3028.564924
C13: (a.7) BRRL Inicial = (a.5) + (a.6) | D13: - | E13: =E11+E12 -> 647132708.4 | I13: (d.4) Ano 4 (mil R$) | J13: 0 | K13: 0 | L13: 0 | M13: 0 | N13: =(SUM(CAPEX!O48:O49)/1000)/2 -> 1277.489619 | O13: =N13*2 -> 2554.979239
C14: (b) Investimentos realizados entre 01/01/2022 e 06/07/2024 | I14: (d.5) Ano 5 (mil R$) | J14: 0 | K14: 0 | L14: 0 | M14: 0 | N14: 0 | O14: =(SUM(CAPEX!P48:P49)/1000)/2 -> 1887.053093
C15: (b.1) Investimentos realizados entre 01/01/2022 e 31/12/2023 | D15: Ativos imobilizados no período de 1/1/2022 a 31/12/2023, líquidas das baixas identificadas | E15: 23500670.56 | I15: (e) Amortização total (mil R$) = (b) + (d) | J15: 0 | K15: =K7+K9 -> 35514.55281 | L15: =L7+L9 -> 41137.48407 | M15: =M7+M9 -> 45470.40106 | N15: =N7+N9 -> 48262.17314 | O15: =O7+O9 -> 51426.71585
C16: (b.2) Amortização de (b.1) | D16: Amortização desde a data de entrada em serviço até 6/7/2024 | E16: =2190696.66 -> 2190696.66 | I16: Variação anual da BRRL (mil R$) | J16: 0 | K16: =K6-J6 -> 110394.9768 | L16: =L6-K6 -> 105632.3135 | M16: =M6-L6 -> 23038.27258 | N16: =N6-M6 -> 6038.929936 | O16: =O6-N6 -> 39448.19566
C17: (b.3) = (b.1) - (b.2) | D17: - | E17: =E15-E16 -> 21309973.9 | I17: *Ativos ainda não laudados.
C18: (b.4) Investimentos "em formação" entre 01/01/2022 e 31/12/2023 | D18: Ativos "em formação" no período de 1/1/2022 a 31/12/2023 | E18: 12535074.95
C19: (b.5) Investimentos projetados para no período de 01/01/2024 a 06/07/2024 | D19: Investimentos projetados no período de 01/01/2024 a 06/07/2024 | E19: 26948804.16 | K19: 2014 | L19: 2015 | M19: 2016 | N19: 2017 | O19: 2018
C20: (b.6) = (b.4) + (b.5) | D20: - | E20: =SUM(E18,E19) -> 39483879.11
C21: (c) Atualização monetária pelo IPCA do período
C22: (c.1) = (a.5) x (1+ΔIPCA) | D22: Atualização pelo IPCA desde 1/1/2022 até jul/2024 | E22: =ROUND(E11*(1+ ROUND(('Série - IPCA'!C444-'Série - IPCA'!C411)/'Série - IPCA'!C411,6)),2) -> 471428245.5
C23: (c.2) = (a.6) x (1+ΔIPCA) | D23: Atualização pelo IPCA desde 1/1/2022 até jul/2024 | E23: =ROUND(E12*(1+ ROUND(('Série - IPCA'!C444-'Série - IPCA'!C411)/'Série - IPCA'!C411,6)),2) -> 263884707.1
C24: (c.3) = (b.3) x (1+ΔIPCA) | D24: Atualização pelo IPCA desde a data de entrada em serviço até jul/2024 | E24: =ROUND(22506504.08*(1+ ROUND(('Série - IPCA'!C444-'Série - IPCA'!C441)/'Série - IPCA'!C441,6)),2) -> 22784459.41
C25: (c.4) = (b.6) | D25: - | E25: =E20 -> 39483879.11
C26: (d) Remuneração pela taxa WACC de 9,125%a.a. pro rata tempore do período
C27: (d.1) = (c.1) x (1+WACC)^(Δdias/365) | D27: Capitalização de 1/1/2022 até 6/7/2024 | E27: =ROUND(E22*(1+9.125%)^(_xlfn.DAYS("6/7/2024","1/1/2022")/365),2) -> 587075289.2
C28: (d.2) = (c.2) x (1+WACC)^(Δdias/365) | D28: Capitalização de 1/1/2022 até 6/7/2024 | E28: =ROUND(E23*(1+9.125%)^(_xlfn.DAYS("6/7/2024","1/1/2022")/365),2) -> 328618813.6
C29: (d.3) = (c.3) x (1+WACC)^(Δdias/365) | D29: Capitalização desde a data de entrada em serviço até 6/7/2024 | E29: =ROUND(25810935.5192*(1+ ROUND(('Série - IPCA'!C444-'Série - IPCA'!C441)/'Série - IPCA'!C441,6)),2) -> 26129700.57
C30: (d.4) = (b.6) | D30: - | E30: =E20 -> 39483879.11
C31: BRRL0 = Ʃ(e) | D31: - | E31: =SUM(E27:E30) -> 981307682.5
C32: Ativos ainda em análise e não fiscalizados pela Agepar.
C33: Constatou-se uma diferença de R$ 539,44 entre o constante no item 10.12 do Contrato e o referenciado no "Anexo 07 - BRRL Inicial". Nesse caso, deu-se preferência ao valor constante no corpo do Contrato.

Sheet CAPEX
K2: Informações encaminhadas pela COMPAGAS | R2: Informações encaminhadas pela COMPAGAS (adaptado)
C3: Plano de Investimentos considerado* | K3: Fluxo de Investimentos | L3: 1º Ciclo Tarifário - R$ | R3: JOA | S3: 1º Ciclo Tarifário - R$
D4: 1° Ciclo Tarifário (ano) | L4: 2024/2025 | M4: 2025/2026 | N4: 2026/2027 | O4: 2027/2028 | P4: 2028/2029 | S4: 2024/2025 | T4: 2025/2026 | U4: 2026/2027 | V4: 2027/2028 | W4: 2028/2029
C5: Descrição | D5: 1 | E5: 2 | F5: 3 | G5: 4 | H5: 5 | K5: Expansão e Saturação | L5: =SUM(L6:L11) -> 121400990.9 | M5: =SUM(M6:M11) -> 121545314.9 | N5: 46408739.36 | O5: 36106744.02 | P5: 70371499.89 | R5: Expansão e Saturação | S5: =SUM(S6:S11) -> 1956272.257 | T5: =SUM(T6:T11) -> 1642928.495 | U5: 515281.0671 | V5: 439730.4615 | W5: 1154441.041
C6: CAPEX total proposto pela Concessionária (mil R$) | D6: =L29/1000 -> 145909.5296 | E6: =M29/1000 -> 146769.7976 | F6: 68508.67364 | G6: 54301.10308 | H6: 90874.91151 | K6: Expansão Londrina-Maringá | L6: 14850475.57 | M6: 9570323.429 | N6: 13546089.64 | O6: 13290557.47 | P6: 46975782.27 | R6: Expansão Londrina-Maringá | S6: =L6*((1+rWACC!$D$3)^(63/252)-1) -> 313303.2294 | T6: =M6*((1+rWACC!$D$3)^(63/252)-1) -> 201906.8832 | U6: =N6*((1+rWACC!$D$3)^(63/252)-1) -> 285784.3581 | V6: =O6*((1+rWACC!$D$3)^(63/252)-1) -> 280393.3487 | W6: =P6*((1+rWACC!$D$3)^(63/252)-1) -> 991056.7657
C7: Glosas adotadas pela Agepar (mil R$) | D7: =SUM(L40:L41)/1000 -> 0 | E7: =SUM(M40:M41)/1000 -> 0 | F7: =SUM(N40:N41)/1000 -> 0 | G7: =SUM(O40:O41)/1000 -> 0 | H7: =SUM(P40:P41)/1000 -> 0 | K7: Expansão Lapa | L7: 63688044.18 | M7: 46695351.22 | N7: 0 | O7: 0 | P7: 0 | R7: Expansão Lapa | S7: =L7*((1+rWACC!$D$3)^(63/252)-1) -> 1343638.446 | T7: =M7*((1+rWACC!$D$3)^(63/252)-1) -> 985140.46 | U7: 0 | V7: 0 | W7: 0
C8: Total de investimentos considerados* (mil R$) | D8: =D6-D7 -> 145909.5296 | E8: =E6-E7 -> 146769.7976 | F8: 68508.67364 | G8: 54301.10308 | H8: 90874.91151 | K8: Corredores Sustentáveis | L8: 8436223.316 | M8: 0 | N8: 0 | O8: 0 | P8: 0 | R8: Corredores Sustentáveis | S8: =L8*((1+rWACC!$D$3)^(21/252)-1) -> 58914.46683 | T8: 0 | U8: 0 | V8: 0 | W8: 0
C9: *Mediante análise realizada pela Agepar. | K9: Programa de Desenvolvimento do Biometano | L9: 6885997.4 | M9: 35672331.93 | N9: 8541789.149 | O9: 0 | P9: 0 | R9: Programa de Desenvolvimento do Biometano | S9: =L9*((1+rWACC!$D$3)^(21/252)-1) -> 48088.44553 | T9: =M9*((1+rWACC!$D$3)^(21/252)-1) -> 249118.1584 | U9: =N9*((1+rWACC!$D$3)^(21/252)-1) -> 59651.6871 | V9: 0 | W9: 0
K10: Expansão RMC | L10: 5844806.055 | M10: 7140015.381 | N10: 140394.3319 | O10: 140394.3319 | P10: 140394.3319 | R10: Expansão RMC | S10: =L10*((1+rWACC!$D$3)^(21/252)-1) -> 40817.27327 | T10: =M10*((1+rWACC!$D$3)^(21/252)-1) -> 49862.38316 | U10: =N10*((1+rWACC!$D$3)^(21/252)-1) -> 980.4455026 | V10: =O10*((1+rWACC!$D$3)^(21/252)-1) -> 980.4455026 | W10: =P10*((1+rWACC!$D$3)^(21/252)-1) -> 980.4455026
K11: Programa de Saturação | L11: 21695444.43 | M11: 22467292.92 | N11: 24180466.24 | O11: 22675792.22 | P11: 23255323.28 | R11: Programa de Saturação | S11: =L11*((1+rWACC!$D$3)^(21/252)-1) -> 151510.3967 | T11: =M11*((1+rWACC!$D$3)^(21/252)-1) -> 156900.6099 | U11: =N11*((1+rWACC!$D$3)^(21/252)-1) -> 168864.5764 | V11: =O11*((1+rWACC!$D$3)^(21/252)-1) -> 158356.6673 | W11: =P11*((1+rWACC!$D$3)^(21/252)-1) -> 162403.8294
K12: Suporte Operacional | L12: =SUM(L13:L17) -> 8277438.663 | M12: =SUM(M13:M17) -> 8900862.102 | N12: 9225372.773 | O12: 5921488.749 | P12: 5817265.514 | R12: Suporte Operacional | S12: =SUM(S13:S17) -> 33499.99761 | T12: =SUM(T13:T17) -> 42020.17531 | U12: =SUM(U13:U17) -> 49805.61515 | V12: 28537.41279 | W12: 24092.22227
K13: INTEGRIDADE DE REDE | L13: 2524777.208 | M13: 2611017.21 | N13: 2611017.21 | O13: 2611017.21 | P13: 2611017.21 | R13: INTEGRIDADE DE REDE | S13: =L13*((1+rWACC!$D$3)^(21/252)-1) -> 17631.81195 | T13: =M13*((1+rWACC!$D$3)^(21/252)-1) -> 18234.07004 | U13: =N13*((1+rWACC!$D$3)^(21/252)-1) -> 18234.07004 | V13: =O13*((1+rWACC!$D$3)^(21/252)-1) -> 18234.07004 | W13: =P13*((1+rWACC!$D$3)^(21/252)-1) -> 18234.07004
K14: Redes de Distribuição - Ambiental | L14: 2272235.752 | M14: 2996942.548 | N14: 4520869.31 | O14: 1270833.678 | P14: 838854.7513 | R14: Redes de Distribuição - Ambiental | S14: =L14*((1+rWACC!$D$3)^(21/252)-1) -> 15868.18566 | T14: =M14*((1+rWACC!$D$3)^(21/252)-1) -> 20929.18427 | U14: =N14*((1+rWACC!$D$3)^(21/252)-1) -> 31571.54512 | V14: =O14*((1+rWACC!$D$3)^(21/252)-1) -> 8874.882252 | W14: =P14*((1+rWACC!$D$3)^(21/252)-1) -> 5858.152229
K15: Tachões e Equipamentos de GNC para atendimento a emergência | L15: 0 | M15: 409095.1659 | N15: 0 | O15: 204547.5829 | P15: 0 | R15: Tachões e Equipamentos de GNC para atendimento a emergência | S15: 0 | T15: =M15*((1+rWACC!$D$3)^(21/252)-1) -> 2856.921004 | U15: 0 | V15: =O15*((1+rWACC!$D$3)^(21/252)-1) -> 1428.460502 | W15: 0
K16: Troca de Medidores | L16: 2164775.65 | M16: 1568157.125 | N16: 777836.2 | O16: 519440.225 | P16: 1051743.5 | R16: Troca de Medidores | S16: 0 | T16: 0 | U16: 0 | V16: 0 | W16: 0
K17: Máquinas, Aparelhos e Equipamentos | L17: 1315650.053 | M17: 1315650.053 | N17: 1315650.053 | O17: 1315650.053 | P17: 1315650.053 | R17: Máquinas, Aparelhos e Equipamentos | S17: 0 | T17: 0 | U17: 0 | V17: 0 | W17: 0
K18: Suporte Outros | L18: =SUM(L19:L23) -> 9858486.991 | M18: =SUM(M19:M23) -> 9858486.991 | N18: 9858486.991 | O18: 9858486.991 | P18: 9858486.991 | R18: Suporte Administrativo | S18: =SUM(S19:S23) -> 0 | T18: =SUM(T19:T23) -> 0 | U18: 0 | V18: 0 | W18: 0
K19: Benfeitorias em Bens de Terceiros | L19: 200000 | M19: 200000 | N19: 200000 | O19: 200000 | P19: 200000 | R19: Benfeitorias em Bens de Terceiros | S19: 0 | T19: 0 | U19: 0 | V19: 0 | W19: 0
K20: Equipamentos de Processamento de Dados | L20: 5726178.674 | M20: 5726178.674 | N20: 5726178.674 | O20: 5726178.674 | P20: 5726178.674 | R20: Equipamentos de Processamento de Dados | S20: 0 | T20: 0 | U20: 0 | V20: 0 | W20: 0
K21: Softwares | L21: 3738107.078 | M21: 3738107.078 | N21: 3738107.078 | O21: 3738107.078 | P21: 3738107.078 | R21: Softwares | S21: 0 | T21: 0 | U21: 0 | V21: 0 | W21: 0
K22: Supervisório | L22: 133973.86 | M22: 133973.86 | N22: 133973.86 | O22: 133973.86 | P22: 133973.86 | R22: Supervisório | S22: 0 | T22: 0 | U22: 0 | V22: 0 | W22: 0
K23: Móveis e Utensílios | L23: 60227.37915 | M23: 60227.37915 | N23: 60227.37915 | O23: 60227.37915 | P23: 60227.37915 | R23: Móveis e Utensílios | S23: 0 | T23: 0 | U23: 0 | V23: 0 | W23: 0
K24: Total | L24: =SUM(L5,L12,L18) -> 139536916.6 | M24: =SUM(M5,M12,M18) -> 140304664 | N24: 65492599.13 | O24: 51886719.76 | P24: =SUM(P5,P12,P18) -> 86047252.39 | R24: Total | S24: =SUM(S5,S12,S18) -> 1989772.255 | T24: =SUM(T5,T12,T18) -> 1684948.67 | U24: 565086.6823 | V24: 468267.8743 | W24: 1178533.263
R25: Informações encaminhadas pela COMPAGAS (adaptado)
K26: JOA | L26: =S24 -> 1989772.255 | M26: =T24 -> 1684948.67 | N26: 565086.6823 | O26: 468267.8743 | P26: 1178533.263 | R26: MANPOWER (5%) | S26: 1º Ciclo Tarifário - R$
K27: Manpower estimado no CAPEX | L27: =S47*S49 -> 4382840.748 | M27: =T47*T49 -> 4780184.947 | N27: =U47*U49 -> 2450987.829 | O27: 1946115.441 | P27: 3649125.855 | S27: 2024/2025 | T27: 2025/2026 | U27: 2026/2027 | V27: 2027/2028 | W27: 2028/2029
R28: Expansão e Saturação | S28: =SUM(S29:S34) -> 6070049.547 | T28: =SUM(T29:T34) -> 6077265.744 | U28: 2320436.968 | V28: 1805337.201 | W28: 3518574.994
K29: CAPEX Total | L29: =L24+L26+L27 -> 145909529.6 | M29: =M24+M26+M27 -> 146769797.6 | N29: 68508673.64 | O29: 54301103.08 | P29: 90874911.51 | R29: Expansão Londrina-Maringá | S29: =5%*L6 -> 742523.7787 | T29: =5%*M6 -> 478516.1715 | U29: 677304.4819 | V29: 664527.8735 | W29: 2348789.114
R30: Expansão Lapa | S30: =5%*L7 -> 3184402.209 | T30: 2334767.561 | U30: 0 | V30: 0 | W30: 0
K31: Glosas | L31: 1º Ciclo Tarifário - R$ | R31: Corredores Sustentáveis | S31: 421811.1658 | T31: 0 | U31: 0 | V31: 0 | W31: 0
L32: 2024/2025 | M32: 2025/2026 | N32: 2026/2027 | O32: 2027/2028 | P32: 2028/2029 | R32: Programa de Desenvolvimento do Biometano | S32: 344299.87 | T32: =5%*M9 -> 1783616.597 | U32: =5%*N9 -> 427089.4575 | V32: 0 | W32: 0
K33: Equipamentos de Processamento de Dados | L33: =L20 -> 5726178.674 | M33: =M20 -> 5726178.674 | N33: 5726178.674 | O33: 5726178.674 | P33: 5726178.674 | R33: Expansão RMC | S33: 292240.3027 | T33: 357000.7691 | U33: 7019.716594 | V33: =5%*O10 -> 7019.716594 | W33: =5%*P10 -> 7019.716594
K34: Aquisição de monitores | L34: 173865.43 | M34: 173865.43 | N34: 173865.43 | O34: 173865.43 | P34: 173865.43 | R34: Programa de Saturação | S34: 1084772.221 | T34: 1123364.646 | U34: 1209023.312 | V34: 1133789.611 | W34: 1162766.164
K35: Aquisição de notebooks | L35: 2086385.35 | M35: 2086385.35 | N35: 2086385.35 | O35: 2086385.35 | P35: 2086385.35 | R35: Suporte Operacional | S35: =SUM(S36:S40) -> 126238.8604 | T35: =SUM(T36:T40) -> 151005.6188 | U35: 130550.8605 | V35: 140778.2396 | W35: 130550.8605
K36: Considerações Agepar | R36: INTEGRIDADE DE REDE | S36: 126238.8604 | T36: =5%*M13 -> 130550.8605 | U36: =5%*N13 -> 130550.8605 | V36: =5%*O13 -> 130550.8605 | W36: =5%*P13 -> 130550.8605
K37: Valor considerado Agepar - aquisição de monitores | L37: =L34 -> 173865.43 | M37: =M34 -> 173865.43 | N37: 173865.43 | O37: 173865.43 | P37: 173865.43 | R37: Redes de Distribuição - Ambiental | S37: 0 | T37: 0 | U37: 0 | V37: 0 | W37: 0
K38: Valor considerado Agepar - aquisição de notebooks | L38: =L35 -> 2086385.35 | M38: =M35 -> 2086385.35 | N38: 2086385.35 | O38: 2086385.35 | P38: 2086385.35 | R38: Tachões e Equipamentos de GNC para atendimento a emergência | S38: 0 | T38: 20454.75829 | U38: 0 | V38: 10227.37915 | W38: 0
K39: Valor final das glosas Agepar | R39: Troca de Medidores | S39: 0 | T39: 0 | U39: 0 | V39: 0 | W39: 0
K40: Glosa Agepar - aquisição de monitores | L40: Glosas não computadas conforme alteração efetuada pelo Conselho Diretor da Agepar na Reunião Extraordinária n° 18 e 19 de 2024. | R40: Máquinas, Aparelhos e Equipamentos | S40: 0 | T40: 0 | U40: 0 | V40: 0 | W40: 0
K41: Glosa Agepar - aquisição de notebooks | R41: Suporte Administrativo | S41: =SUM(S42:S46) -> 0 | T41: =SUM(T42:T46) -> 0 | U41: 0 | V41: 0 | W41: 0
K42: Equipamentos de Processamento de Dados (pós glosas) | L42: =L20-SUM(L40:L41) -> 5726178.674 | M42: =M20-SUM(M40:M41) -> 5726178.674 | N42: =N20-SUM(N40:N41) -> 5726178.674 | O42: =O20-SUM(O40:O41) -> 5726178.674 | P42: =P20-SUM(P40:P41) -> 5726178.674 | R42: Benfeitorias em Bens de Terceiros | S42: 0 | T42: 0 | U42: 0 | V42: 0 | W42: 0
R43: Equipamentos de Processamento de Dados | S43: 0 | T43: 0 | U43: 0 | V43: 0 | W43: 0
K44: Amortização | L44: 1º Ciclo Tarifário - R$ | R44: Softwares | S44: 0 | T44: 0 | U44: 0 | V44: 0 | W44: 0
L45: 2024/2025 | M45: 2025/2026 | N45: 2026/2027 | O45: 2027/2028 | P45: 2028/2029 | R45: Supervisório | S45: 0 | T45: 0 | U45: 0 | V45: 0 | W45: 0
K46: Amortizável em 30 anos | L46: =SUM(S53,S61,S62,S63,S64) -> 134735392.6 | M46: =SUM(T53,T61,T62,T63,T64) -> 135595660.6 | N46: =SUM(U53,U61,U62,U63,U64) -> 57334536.59 | O46: =SUM(V53,V61,V62,V63,V64) -> 43126966.03 | P46: =SUM(W53,W61,W62,W63,W64) -> 79700774.47 | R46: Móveis e Utensílios | S46: 0 | T46: 0 | U46: 0 | V46: 0 | W46: 0
K47: Amortízável em 10 anos | L47: =SUM(S65,S66)-SUM(L40:L41) -> 11174137.04 | M47: =SUM(T65,T66)-SUM(M40:M41) -> 11174137.04 | N47: =SUM(U65,U66)-SUM(N40:N41) -> 11174137.04 | O47: =SUM(V65,V66)-SUM(O40:O41) -> 11174137.04 | P47: =SUM(W65,W66)-SUM(P40:P41) -> 11174137.04 | R47: Total | S47: =SUM(S28,S35,S41) -> 6196288.408 | T47: =SUM(T28,T35,T41) -> 6228271.363 | U47: 2450987.829 | V47: 1946115.441 | W47: 3649125.855
K48: Amortização anual para 30 anos | L48: =L46/30 -> 4491179.752 | M48: =M46/30 -> 4519855.352 | N48: =N46/30 -> 1911151.22 | O48: =O46/30 -> 1437565.534 | P48: =P46/30 -> 2656692.482
K49: Amortização anual para 10 anos | L49: =L47/10 -> 1117413.704 | M49: =M47/10 -> 1117413.704 | N49: =N47/10 -> 1117413.704 | O49: =O47/10 -> 1117413.704 | P49: =P47/10 -> 1117413.704 | R49: Fator | S49: =IF(S47>DRIVER_OPEX!G279,DRIVER_OPEX!G279,S47)/S47 -> 0.7073332387 | T49: =IF(T47>DRIVER_OPEX!H279,DRIVER_OPEX!H279,T47)/T47 -> 0.7674978607 | U49: =IF(U47>DRIVER_OPEX!I279,DRIVER_OPEX!I279,U47)/U47 -> 1 | V49: =IF(V47>DRIVER_OPEX!J279,DRIVER_OPEX!J279,V47)/V47 -> 1 | W49: =IF(W47>DRIVER_OPEX!K279,DRIVER_OPEX!K279,W47)/W47 -> 1
K50: Total | L50: =SUM(L48:L49) -> 5608593.456 | M50: =SUM(M48:M49) -> 5637269.056 | N50: =SUM(N48:N49) -> 3028564.924 | O50: =SUM(O48:O49) -> 2554979.239 | P50: =SUM(P48:P49) -> 3774106.187
R51: CAPEX total | S51: 1º Ciclo Tarifário - R$
S52: 2024/2025 | T52: 2025/2026 | U52: 2026/2027 | V52: 2027/2028 | W52: 2028/2029
R53: Expansão e Saturação | S53: =SUM(S54:S59) -> 127650811 | T53: =SUM(T54:T59) -> 127852531.8 | U53: 49244457.4 | V53: 38351811.68 | W53: 75044515.92
R54: Expansão Londrina-Maringá | S54: =L6+S6+S29*$S$49 -> 15688990.55 | T54: =M6+T6+T29*$T$49 -> 10139490.45 | U54: =N6+U6+U29*$U$49 -> 14509178.48 | V54: =O6+V6+V29*$V$49 -> 14235478.69 | W54: =P6+W6+W29*$W$49 -> 50315628.15
R55: Expansão Lapa | S55: =L7+S7+S30*$S$49 -> 67284116.15 | T55: =M7+T7+T30*$T$49 -> 49472420.79 | U55: =N7+U7+U30*$U$49 -> 0 | V55: =O7+V7+V30*$V$49 -> 0 | W55: =P7+W7+W30*$W$49 -> 0
R56: Corredores Sustentáveis | S56: =L8+S8+S31*$S$49 -> 8793498.841 | T56: 0 | U56: 0 | V56: 0 | W56: 0
R57: Programa de Desenvolvimento do Biometano | S57: 7177620.587 | T57: 37290372.01 | U57: 9028530.294 | V57: 0 | W57: 0
R58: Expansão RMC | S58: =L10+S10+S33*$S$49 -> 6092334.608 | T58: 7463875.091 | U58: 148394.494 | V58: 148394.494 | W58: 148394.494
R59: Programa de Saturação | S59: 22614250.27 | T59: 23486373.49 | U59: 25558354.13 | V59: 23967938.5 | W59: 24580493.28
R60: Suporte Operacional | S60: =SUM(S61:S65) -> 8400231.602 | T60: =SUM(T61:T65) -> 9058778.767 | U60: 9405729.249 | V60: 6090804.401 | W60: 5971908.597
R61: INTEGRIDADE DE REDE | S61: =L13+S13+S36*$S$49 -> 2631701.962 | T61: 2729448.786 | U61: 2759802.14 | V61: 2759802.14 | W61: 2759802.14
R62: Redes de Distribuição - Ambiental | S62: 2288103.937 | T62: 3017871.732 | U62: 4552440.855 | V62: 1279708.56 | W62: 844712.9036
R63: Tachões e Equipamentos de GNC para atendimento a emergência | S63: 0 | T63: 427651.0701 | U63: 0 | V63: 216203.4226 | W63: 0
R64: Troca de Medidores | S64: =L16+S16+S39*$S$49 -> 2164775.65 | T64: =M16+T16+T39*$T$49 -> 1568157.125 | U64: =N16+U16+U39*$U$49 -> 777836.2 | V64: =O16+V16+V39*$V$49 -> 519440.225 | W64: =P16+W16+W39*$W$49 -> 1051743.5
R65: Máquinas, Aparelhos e Equipamentos | S65: 1315650.053 | T65: 1315650.053 | U65: 1315650.053 | V65: 1315650.053 | W65: 1315650.053
R66: Suporte Administrativo | S66: =SUM(S67:S71) -> 9858486.991 | T66: =SUM(T67:T71) -> 9858486.991 | U66: 9858486.991 | V66: 9858486.991 | W66: 9858486.991
R67: Benfeitorias em Bens de Terceiros | S67: 200000 | T67: 200000 | U67: 200000 | V67: 200000 | W67: 200000
R68: Equipamentos de Processamento de Dados | S68: =L20+S20+S43*$S$49 -> 5726178.674 | T68: 5726178.674 | U68: 5726178.674 | V68: 5726178.674 | W68: 5726178.674
R69: Softwares | S69: 3738107.078 | T69: 3738107.078 | U69: 3738107.078 | V69: 3738107.078 | W69: 3738107.078
R70: Supervisório | S70: 133973.86 | T70: 133973.86 | U70: 133973.86 | V70: 133973.86 | W70: 133973.86
R71: Móveis e Utensílios | S71: =L23+S23+S46*$S$49 -> 60227.37915 | T71: 60227.37915 | U71: 60227.37915 | V71: 60227.37915 | W71: 60227.37915
R72: Total | S72: =SUM(S53,S60,S66) -> 145909529.6 | T72: =SUM(T53,T60,T66) -> 146769797.6 | U72: =SUM(U53,U60,U66) -> 68508673.64 | V72: 54301103.08 | W72: 90874911.51

Sheet VCG
I2: VOLUME PROJETADO m³/ano | J2: 2023 | K2: 2024/2025 | L2: 2025/2026 | M2: 2026/2027 | N2: 2027/2028 | O2: 2028/2029
C3: Variação do Capital de Giro projetado* | I3: Total | J3: =J4+J5 -> 299535490.2 | K3: =K4+K5 -> 469927461.9 | L3: =L4+L5 -> 551333391 | M3: 575273942.7 | N3: 630579452.5 | O3: 683191645.4
C4: ITEM | D4: VARIÁVEL | E4: VALOR | F4: FONTE - Relatório da Administração 2023 (Compagas) | I4: Cativo | J4: 299535490.2 | K4: =VOLUME!E21 -> 297937461.9 | L4: =VOLUME!F21 -> 321383391 | M4: =VOLUME!G21 -> 345323942.7 | N4: =VOLUME!H21 -> 355227452.5 | O4: =VOLUME!I21 -> 363451645.4
C5: CICLO OPERACIONAL E FINANCEIRO | I5: Livre | J5: 0 | K5: =VOLUME!E22 -> 171990000 | L5: =VOLUME!F22 -> 229950000 | M5: =VOLUME!G22 -> 229950000 | N5: =VOLUME!H22 -> 275352000 | O5: =VOLUME!I22 -> 319740000
C6: 1 | D6: Estoque Inicial de Gás (molécula sem tributos) | E6: =5694+42474.02414*0 -> 5694 | F6: Balanço patrimonial - Exercícios findos em 31 de dezembro 2022
C7: =C6+1 -> 2 | D7: Estoque Final de Gás (molécula sem tributos) | E7: =5383+12835.00199*0 -> 5383 | F7: Balanço patrimonial - Exercícios findos em 31 de dezembro 2023 | I7: VARIAÇÃO DO VOLUME PROJETADO m³/ano | J7: 2023 | K7: 2024/2025 | L7: 2025/2026 | M7: 2026/2027 | N7: 2027/2028 | O7: 2028/2029
C8: 3 | D8: Estoque Médio Anual do Gás | E8: =(E6+E7)/2 -> 5538.5 | F8: =(1)+(2)/2 | I8: Variação do volume projetado - Total | J8: n.a. | K8: =K3-J3 -> 170391971.8 | L8: =L3-K3 -> 81405929.1 | M8: 23940551.69 | N8: 55305509.76 | O8: 52612192.94
C9: 4 | D9: Estoque Final de Gás pago e não retirado (QPNR s/trib.) | E9: 12835.00199 | F9: Balanço patrimonial - Exercícios findos em 31 de dezembro 2023 | I9: Variação do volume projetado - Cativo | J9: n.a. | K9: =K4-J4 -> -1598028.229 | L9: 23445929.1 | M9: 23940551.69 | N9: 9903509.759 | O9: 8224192.938
C10: 5 | D10: Estoque Médio Anual do Gás considerado | E10: =(E8+E9) -> 18373.50199 | F10: =(3)+(4) | I10: Variação do volume projetado - Livre | J10: n.a. | K10: =K5-J5 -> 171990000 | L10: 57960000 | M10: 0 | N10: 45402000 | O10: 44388000
C11: 6 | D11: Custo Anual de Aquisição do Gás sem Tributos | E11: =702662 -> 702662 | F11: Relatório da Administração - Exercício 2023, nota 18
C12: 7 | D12: PMRE | E12: =E10/E11*360 -> 9.413431659 | F12: =(3)/(4)*360 | I12: VOLUME PROJETADO médio por dia m³/dia | J12: 2023 | K12: 2024/2025 | L12: 2025/2026 | M12: 2026/2027 | N12: 2027/2028 | O12: 2028/2029
C13: 8 | D13: Contas a Receber Clientes Inicial | E13: 128579 | F13: Balanço patrimonial - Exercícios findos em 31 de dezembro | I13: Total | J13: =J3/365 -> 820645.1785 | K13: =K3/365 -> 1287472.498 | L13: 1510502.441 | M13: 1576092.994 | N13: 1727614.938 | O13: 1871757.933
C14: 9 | D14: Contas a Receber Clientes Final | E14: 82981 | F14: Balanço patrimonial - Exercícios findos em 31 de dezembro | I14: Cativo | J14: =J4/365 -> 820645.1785 | K14: 816267.019 | L14: 880502.4412 | M14: 946092.9938 | N14: 973225.8972 | O14: 995757.9327
C15: =C14+1 -> 10 | D15: Contas a Receber Clientes Médio | E15: =(E13+E14)/2 -> 105780 | F15: =(8)+(9)/2 | I15: Livre | J15: =J5/365 -> 0 | K15: 471205.4795 | L15: 630000 | M15: 630000 | N15: 754389.0411 | O15: 876000
C16: 11 | D16: Total de Vendas - Receita Operacional Bruta (DRE) | E16: 1306678 | F16: Relatório da Administração - Exercício 2023, nota 17
C17: 12 | D17: PMR | E17: =((E15/E16)*360) -> 29.14321661 | F17: =(10)/(11)*360 | I17: VARIAÇÃO DO VOLUME PROJETADO m³/dia | J17: 2023 | K17: 2024/2025 | L17: 2025/2026 | M17: 2026/2027 | N17: 2027/2028 | O17: 2028/2029
C18: 13 | D18: Compras Anuais sem tributos | E18: =E6+E11-E7-E9 -> 690137.998 | F18: =(6)+(1)-(2) | I18: Variação do volume projetado - Total | J18: n.a. | K18: =K13-J13 -> 466827.3199 | L18: =L13-K13 -> 223029.9427 | M18: 65590.55257 | N18: 151521.9445 | O18: 144142.9944
C19: 14 | D19: Compras Anuais + Pis/Cofins/ICMS | E19: =(E18+E6-E7)/(1-9.25%)/(1-12%) -> 864574.2525 | F19: =(13)/(1-9,25%)/(1-12%) | I19: Variação do volume projetado - Cativo | J19: n.a. | K19: =K14-J14 -> -4378.15953 | L19: 64235.4222 | M19: 65590.55257 | N19: 27132.90345 | O19: 22532.03545
C20: 15 | D20: Fornecedores Inicial | E20: 97758 | F20: Balanço patrimonial - Exercícios findos em 31 de dezembro | I20: Variação do volume projetado - Livre | J20: n.a. | K20: =K15-J15 -> 471205.4795 | L20: 158794.5205 | M20: 0 | N20: 124389.0411 | O20: 121610.9589
C21: 16 | D21: Fornecedores Final | E21: 58010 | F21: Balanço patrimonial - Exercícios findos em 31 de dezembro
C22: 17 | D22: Fornecedores Médio | E22: =(E20+E21)/2 -> 77884 | F22: =(15)+(16)/2 | I22: Capital de Giro Atual fechamento ciclo 2023/2024
C23: 18 | D23: PMP | E23: =E22/E19*360 -> 32.43011219 | F23: =(17)/(14)*360 | I23: Capital de Giro - Preço do Gás | J23: =J14*E25*K32/(1-9.25%)/(1-12%) -> 14249609.89 | K23: R$
C24: 19 | D24: Ciclo Operacional estimado (dias) | E24: =E17+E12 -> 38.55664827 | F24: =(7)+(12) PMRE + PMR | I24: Capital de Giro - TUSD | J24: =J14*K33*E25/(1-9.25%)/(1-12%) -> 3336698.623 | K24: R$
C25: 20 | D25: Ciclo Financeiro estimado (dias) | E25: =E12+E17-E23 -> 6.126536088 | F25: =(7)+(12)-(18) PMRE + PMR-PMP | I25: Capital de Giro Total | J25: =J23+J24 -> 17586308.51 | K25: R$
C27: VARIAÇÃO NO CAPITAL DE GIRO | I27: Receita Total Estimada | J27: 2023 | K27: 2024/2025 | L27: 2025/2026 | M27: 2026/2027 | N27: 2027/2028 | O27: 2028/2029
C28: 21 | D28: VCG - 2024/2025 | E28: =K37 -> 1517336.614 | F28: Aquisição Cap Giro 24/25 - Devolução Cap Giro 23/34 | J28: n.a | K28: =((K32+K33)*K4+(K34*K5))/(1-9.25%)/(1-12%) -> 1138135868 | L28: =((L32+L33)*L4+(L34*L5))/(1-9.25%)/(1-12%) -> 1223145960 | M28: 1261918793 | N28: 1309498072 | O28: 1362301096
C29: 22 | D29: VCG - 2025/2026 | E29: =L37 -> 1426896.977 | F29: Quant Cap Giro 25/26 - Quant Cap Giro 24/25
C30: 23 | D30: VCG - 2026/2027 | E30: =M37 -> 650803.1698 | F30: Quant Cap Giro 26/27 - Quant Cap Giro 25/26
C31: 24 | D31: VCG - 2027/2028 | E31: =N37 -> 798619.6484 | F31: Quant Cap Giro 27/28 - Quant Cap Giro 26/27 | I31: Variação Anual do Capital de Giro R$ | J31: 2023/2024 | K31: 2024/2025 | L31: 2025/2026 | M31: 2026/2027 | N31: 2027/2028 | O31: 2028/2029
C32: 25 | D32: VCG - 2028/2029 | E32: =O37 -> -21979964.92 | F32: Quant Cap Giro 28/29 - Quant Cap Giro 27/28 - Devolução 28/29 | I32: Custo do Gás estimado pela Compagas R$/m³ | J32: n.a | K32: 2.26340287 | L32: 2.190475523 | M32: 2.091537405 | N32: 2.06845 | O32: 2.071241594
C33: *Valores projetados com base nas Demonstrações Financeiras divulgadas pela Concessionária e no Plano de Negócios entregue. | I33: TUSDC R$/m³ | J33: n.a | K33: =Resultados!M36 -> 0.53 | L33: =K33 -> 0.53 | M33: =L33 -> 0.53 | N33: =M33 -> 0.53 | O33: =N33 -> 0.53
I34: TUSDL R$/m³ | J34: n.a | K34: =Resultados!M37 -> 0.4457 | L34: =K34 -> 0.4457 | M34: =L34 -> 0.4457 | N34: =M34 -> 0.4457 | O34: =N34 -> 0.4457
I35: Devolução de capital de Giro no final do ciclo R$ | J35: =J25 -> 17586308.51 | K35: 0 | L35: 0 | M35: 0 | N35: 0 | O35: =O36 -> 22866265.29
I36: Aquisição de Capital de Giro no início do ciclo R$ | J36: n.a. | K36: =((K14*(K32+K33)*$E$25)+((K15*K34)*$E$25))/(1-9.25%)/(1-12%) -> 19103645.12 | L36: =((L14*(L32+L33)*$E$25)+((L15*L34)*$E$25))/(1-9.25%)/(1-12%) -> 20530542.1 | M36: =((M14*(M32+M33)*$E$25)+((M15*M34)*$E$25))/(1-9.25%)/(1-12%) -> 21181345.27 | N36: =((N14*(N32+N33)*$E$25)+((N15*N34)*$E$25))/(1-9.25%)/(1-12%) -> 21979964.92 | O36: =((O14*(O32+O33)*$E$25)+((O15*O34)*$E$25))/(1-9.25%)/(1-12%) -> 22866265.29
D37: Ciclo Financeiro Estimado | E37: =E25 -> 6.126536088 | I37: Variação de Capital de Giro R$ | J37: n.a. | K37: =K36-J35 -> 1517336.614 | L37: =L36-L35-K36 -> 1426896.977 | M37: =M36-M35-L36 -> 650803.1698 | N37: =N36-N35-M36 -> 798619.6484 | O37: =O36-O35-N36 -> -21979964.92
D38: Ciclo Operacional Estimado | E38: =E37+E23 -> 38.55664827 | I38: com base no ciclo financeiro

Sheet OR
C3: Outras Receitas projetado*
E4: 1° Ciclo Tarifário (ano)
C5: Descrição | D5: Percentual de compartilhamento | E5: 1 | F5: 2 | G5: 3 | H5: 4 | I5: 5
C6: Receitas acessórias (mil R$) | D6: 0.2 | E6: =SUM(Resultados!I27:I29)*0.05%*$D$6 -> 23.45616609 | F6: =SUM(Resultados!J27:J29)*0.05%*$D$6 -> 27.28196506 | G6: =SUM(Resultados!K27:K29)*0.05%*$D$6 -> 28.6114494 | H6: =SUM(Resultados!L27:L29)*0.05%*$D$6 -> 31.34387077 | I6: =SUM(Resultados!M27:M29)*0.05%*$D$6 -> 33.75736212
C7: Receitas correlatas (mil R$) | D7: 0.1 | E7: =SUM(Resultados!I27:I29)*1%*$D$7 -> 234.5616609 | F7: =SUM(Resultados!J27:J29)*1%*$D$7 -> 272.8196506 | G7: =SUM(Resultados!K27:K29)*1%*$D$7 -> 286.114494 | H7: =SUM(Resultados!L27:L29)*1%*$D$7 -> 313.4387077 | I7: =SUM(Resultados!M27:M29)*1%*$D$7 -> 337.5736212
C8: Receitas extraordinárias (mil R$) | D8: 0.5 | E8: 0 | F8: 0 | G8: 0 | H8: 0 | I8: 0
C9: Outras Receitas projetado (mil R$) | D9: - | E9: =SUM(E6:E8) -> 258.017827 | F9: =SUM(F6:F8) -> 300.1016156 | G9: 314.7259434 | H9: 344.7825784 | I9: 371.3309833
C10: *Valores projetados com base na TUSDC e TUSDL calculada.

Sheet IR
K2: Referência: Histórico de 2019 a 2023.
C3: Imposto de Renda projetado* | D3: Alíquota= | E3: 0.34 | K3: CONTA DETALHADA | L3: DESCRIÇÃO | M3: ANO DE 2019 | N3: ANO DE 2020 | O3: ANO DE 2021 | P3: ANO DE 2022 | Q3: ANO DE 2023 | R3: MÉDIA 5 ANOS
D4: 1° Ciclo Tarifário (ano) | K4: 01.002.412208001.5100.00.00000.000000.000000 | L4: Custo com Amortização | M4: 47471.4 | N4: 21113.67 | O4: 2691.94 | P4: 2691.94 | Q4: 3216.69 | R4: 15437.128
C5: Descrição | D5: 1 | E5: 2 | F5: 3 | G5: 4 | H5: 5 | K5: 01.002.412208001.5200.00.00000.000000.000000 | L5: Custo com Amortização | M5: 25536845.82 | N5: 28098186.46 | O5: 28142776.17 | P5: 30437686.47 | Q5: 27452997.9 | R5: 27933698.56
C6: (+) Receita tarifária direta (mil R$) | D6: =SUM(Resultados!I27:I29) -> 234561.6609 | E6: =SUM(Resultados!J27:J29) -> 272819.6506 | F6: =SUM(Resultados!K27:K29) -> 286114.494 | G6: =SUM(Resultados!L27:L29) -> 313438.7077 | H6: =SUM(Resultados!M27:M29) -> 337573.6212 | K6: 01.002.421208002.4100.00.00000.000000.000000 | L6: AMORT DIR USO-IMOVEI | M6: 1661582.16 | N6: 0 | O6: 0 | P6: 0 | Q6: 0 | R6: 332316.432
C7: (+) Outras receitas (mil R$) | D7: =OR!E9 -> 258.017827 | E7: =OR!F9 -> 300.1016156 | F7: =OR!G9 -> 314.7259434 | G7: =OR!H9 -> 344.7825784 | H7: =OR!I9 -> 371.3309833 | K7: 01.002.421208002.4100.00.00000.000000.000000 | L7: AMORT DIR USO-VEICUL | M7: 364849.65 | N7: 0 | O7: 0 | P7: 0 | Q7: 0 | R7: 72969.93
C8: (-) Despesas operacionais (mil R$) | D8: =DRIVER_OPEX!G454 -> 82339.10282 | E8: =DRIVER_OPEX!H454 -> 89700.76891 | F8: =DRIVER_OPEX!I454 -> 97681.61947 | G8: =DRIVER_OPEX!J454 -> 100856.7168 | H8: =DRIVER_OPEX!K454 -> 103020.6135 | K8: 01.002.422208001.5300.00.00000.000000.000000 | L8: Despesas com Amortização | M8: 0 | N8: 1522.71 | O8: 1783.42 | P8: 1630.58 | Q8: 1630.56 | R8: 1313.454
C9: (-) Despesas financeiras e Ben. Fiscais (mil R$) | D9: será acompanhado durante o ciclo tarifário | K9: 01.002.422208001.5400.00.00000.000000.000000 | L9: Despesas com Amortização | M9: 3289.31 | N9: 0 | O9: 0 | P9: 0 | Q9: 0 | R9: 657.862
C10: (-) Depreciação/Amortização (mil R$) | D10: =L51/1000 -> 34164.2258 | E10: =M51/1000 -> 38191.54775 | F10: 40886.54111 | G10: 42060.67324 | H10: 43658.13402 | K10: 01.002.422208001.5500.00.00000.000000.000000 | L10: Despesas com Amortização | M10: 549.05 | N10: 204.95 | O10: 0 | P10: 0 | Q10: 0 | R10: 150.8
C11: Base de cálculo do IRPJ/CSLL projetado | D11: =SUM(D6:D7)-SUM(D8:D10) -> 118316.3501 | E11: =IF(D11<0,SUM(E6:E7)-SUM(E8:E10)+D11,SUM(E6:E7)-SUM(E8:E10)) -> 145227.4355 | F11: =IF(E11<0,SUM(F6:F7)-SUM(F8:F10)+E11,SUM(F6:F7)-SUM(F8:F10)) -> 147861.0593 | G11: =IF(F11<0,SUM(G6:G7)-SUM(G8:G10)+F11,SUM(G6:G7)-SUM(G8:G10)) -> 170866.1002 | H11: =IF(G11<0,SUM(H6:H7)-SUM(H8:H10)+G11,SUM(H6:H7)-SUM(H8:H10)) -> 191266.2046 | K11: 01.002.421208001.2200.00.00000.000000.000000 | L11: Despesas com Amortização | M11: 9200 | N11: 9200.04 | O11: 9200 | P11: 4600.02 | Q11: 0 | R11: 6440.012
C12: IRPJ/CSLL projetado (mil R$) | D12: =IF(D11<0,0,D11*$E$3) -> 40227.55904 | E12: =IF(E11<0,0,E11*$E$3) -> 49377.32807 | F12: =IF(F11<0,0,F11*$E$3) -> 50272.76017 | G12: 58094.47408 | H12: 65030.50958 | K12: 01.002.421208001.2300.00.00000.000000.000000 | L12: Despesas com Amortização | M12: 9200 | N12: 9200.04 | O12: 9200 | P12: 4600.02 | Q12: 0 | R12: 6440.012
C13: *Valores projetados com base na TUSDC e TUSDL calculada. | K13: 01.002.421208001.2400.00.00000.000000.000000 | L13: Despesas com Amortização | M13: 9200 | N13: 9200.04 | O13: 9200 | P13: 4736.6 | Q13: 204.84 | R13: 6508.296
K14: 01.002.421208001.3100.00.00000.000000.000000 | L14: Despesas com Amortização | M14: 0 | N14: 8958.85 | O14: 19119.79 | P14: 14815.94 | Q14: 11392.25 | R14: 10857.366
K15: 01.002.421208001.3200.00.00000.000000.000000 | L15: Despesas com Amortização | M15: 0 | N15: 11389.8 | O15: 0 | P15: 0 | Q15: 0 | R15: 2277.96
K16: 01.002.421208001.3400.00.00000.000000.000000 | L16: Despesas com Amortização | M16: 388.8 | N16: 0 | O16: 0 | P16: 0 | Q16: 0 | R16: 77.76
K17: 01.002.421208001.4100.00.00000.000000.000000 | L17: Despesas com Amortização | M17: 317.71 | N17: 309692.31 | O17: 310890.14 | P17: 327227.88 | Q17: 286804.37 | R17: 246986.482
K18: 01.002.421208001.4200.00.00000.000000.000000 | L18: Despesas com Amortização | M18: 0 | N18: 0 | O18: 0 | P18: 0 | Q18: 140900.64 | R18: 28180.128
K19: 01.002.421208001.4300.00.00000.000000.000000 | L19: Despesas com Amortização | M19: 215386.61 | N19: 963091.67 | O19: 1417540.65 | P19: 1592388.81 | Q19: 1563559.57 | R19: 1150393.462
K20: 01.002.421208002001.4100.00.00000.000000.000000 | L20: Desp com Amort - Imoveis | M20: 0 | N20: 1709971.5 | O20: 2359093.58 | P20: 2659731.17 | Q20: 2106243.09 | R20: 1767007.868
K21: 01.002.421208002002.4100.00.00000.000000.000000 | L21: Desp com Amort - Veículos | M21: 0 | N21: 500081.06 | O21: 597441.09 | P21: 766432.2 | Q21: 832064.59 | R21: 539203.788
K22: 01.002.421208002003.4300.00.00000.000000.000000 | L22: Desp com Amort - Comput e Impress | M22: 0 | N22: 0 | O22: 0 | P22: 74295.04 | Q22: 449599.66 | R22: 104778.94
K23: 01.002.412208001.5100.00.00000.000000.000000 | L23: DEPREC. MOV UTENS MÁQUINAS ESC | M23: 27.8 | N23: 0 | O23: 0 | P23: 0 | Q23: 0 | R23: 5.56
K24: 01.002.412208001.5200.00.00000.000000.000000. | L24: DEPREC. EQUIP. OPERAÇÃO GASODU | M24: 2353554.54 | N24: 0 | O24: 0 | P24: 0 | Q24: 0 | R24: 470710.908
K25: 01.002.412208001.5200.00.00000.000000.000000.. | L25: DEPREC. MOV UTENS MÁQUINAS ESC | M25: 268.36 | N25: 0 | O25: 0 | P25: 0 | Q25: 0 | R25: 53.672
K26: 01.002.421208001.3100.00.00000.000000.000000. | L26: DEPREC. EQUIP. OPERAÇÃO GASODU | M26: 15185.67 | N26: 0 | O26: 0 | P26: 0 | Q26: 0 | R26: 3037.134
K27: 01.002.421208001.4100.00.00000.000000.000000. | L27: DEPREC. MOV UTENS MÁQUINAS ESC | M27: 159711.76 | N27: 0 | O27: 0 | P27: 0 | Q27: 0 | R27: 31942.352
K28: 01.002.421208001.4100.00.00000.000000.000000. | L28: DEPREC. VEÍCULOS | M28: 192655.03 | N28: 0 | O28: 0 | P28: 0 | Q28: 0 | R28: 38531.006
K29: 01.002.421208001.4100.00.00000.000000.000000.. | L29: DEPREC. BENFEITORIAS PROP. TER | M29: 5018.77 | N29: 0 | O29: 0 | P29: 0 | Q29: 0 | R29: 1003.754
K30: 01.002.421208001.4300.00.00000.000000.000000. | L30: DEPREC. MOV UTENS MÁQUINAS ESC | M30: 390.74 | N30: 0 | O30: 0 | P30: 0 | Q30: 0 | R30: 78.148
K31: 01.002.421208001.4300.00.00000.000000.000000.. | L31: DEPREC. SISTEMAS E PROGRAMAS-A | M31: 294688.71 | N31: 0 | O31: 0 | P31: 0 | Q31: 0 | R31: 58937.742
K32: TOTAL | M32: =SUM(M4:M31) -> 30879781.89 | N32: =SUM(N4:N31) -> 31651813.1 | O32: 32878936.78 | P32: 35890836.67 | Q32: 32848614.16 | R32: 32829996.52
K34: Informações encaminhadas pela COMPAGAS
L35: 0.03952458973 | M35: 0.03898728932 | N35: 0.03747336519 | O35: 0.03715927974 | P35: 0.03484601781
K36: Projeção IPCA - Tendências | L36: 2024/2025 | M36: 2025/2026 | N36: 2026/2027 | O36: 2027/2028 | P36: 2028/2029
K37: 2025 | L37: 1.03952459 | M37: 1.080052836 | N37: 1.12052605 | O37: 1.162163991 | P37: 1.202660778
K38: 2026 | L38: 1 | M38: 1.038987289 | N38: 1.077921639 | O38: 1.117976431 | P38: 1.156933458
K39: 2027 | L39: 1 | M39: 1 | N39: 1.037473365 | O39: 1.076025128 | P39: 1.113520319
K40: 2028 | L40: 1 | M40: 1 | N40: 1 | O40: 1.03715928 | P40: 1.07330015
K41: 2029 | L41: 1 | M41: 1 | N41: 1 | O41: 1 | P41: 1.034846018
K44: Contábil - IR/CSLL | L44: 2024/2025 | M44: 2025/2026 | N44: 2026/2027 | O44: 2027/2028 | P44: 2028/2029
L45: =BRRL!K7*1000/L37 -> 31466553.47 | M45: =BRRL!L7*1000/M37 -> 30285792.51 | N45: =BRRL!M7*1000/N37 -> 29191874.73 | O45: =BRRL!N7*1000/O37 -> 28145990.01 | P45: =BRRL!O7*1000/P37 -> 27198239.67
K46: 2024/2025 | L46: =BRRL!K10*1000/IR!L37 -> 2697672.336 | M46: =BRRL!L10*1000/IR!M37 -> 5192888.043 | N46: =BRRL!M10*1000/IR!N37 -> 5005321.792 | O46: =BRRL!N10*1000/IR!O37 -> 4825991.426 | P46: =BRRL!O10*1000/IR!P37 -> 4663487.459
K47: 2025/2026 | L47: =BRRL!K11*1000/IR!L38 -> 0 | M47: =BRRL!L11*1000/IR!M38 -> 2712867.19 | N47: =BRRL!M11*1000/IR!N38 -> 5229757.758 | O47: =BRRL!N11*1000/IR!O38 -> 5042386.314 | P47: =BRRL!O11*1000/IR!P38 -> 4872595.756
K48: 2026/2027 | L48: =BRRL!K12*1000/IR!L39 -> 0 | M48: =BRRL!L12*1000/IR!M39 -> 0 | N48: =BRRL!M12*1000/IR!N39 -> 1459586.832 | O48: =BRRL!N12*1000/IR!O39 -> 2814585.687 | P48: =BRRL!O12*1000/IR!P39 -> 2719811.101
K49: 2027/2028 | L49: =BRRL!K13*1000/IR!L40 -> 0 | M49: =BRRL!L13*1000/IR!M40 -> 0 | N49: =BRRL!M13*1000/IR!N40 -> 0 | O49: =BRRL!N13*1000/IR!O40 -> 1231719.799 | P49: =BRRL!O13*1000/IR!P40 -> 2380489.034
K50: 2028/2029 | L50: =BRRL!K14*1000/IR!L41 -> 0 | M50: =BRRL!L14*1000/IR!M41 -> 0 | N50: =BRRL!M14*1000/IR!N41 -> 0 | O50: =BRRL!N14*1000/IR!O41 -> 0 | P50: =BRRL!O14*1000/IR!P41 -> 1823510.997
K51: Amortização Base | L51: =SUM(L45:L50) -> 34164225.8 | M51: =SUM(M45:M50) -> 38191547.75 | N51: =SUM(N45:N50) -> 40886541.11 | O51: 42060673.24 | P51: 43658134.02

Sheet VOLUME
C3: m³/ano | D3: Mercado | E3: 2024/2025 | F3: 2025/2026 | G3: 2026/2027 | H3: 2027/2028 | I3: 2028/2029
C4: TOTAL | D4: - | E4: =SUM(E5:E19) -> 469927461.9 | F4: =SUM(F5:F19) -> 551333391 | G4: =SUM(G5:G19) -> 576633942.7 | H4: =SUM(H5:H19) -> 636069452.5 | I4: =SUM(I5:I19) -> 688666645.4
C5: Ceramista | D5: Cativo | E5: 22841073.35 | F5: 24313073.35 | G5: 24313073.35 | H5: 24380184.94 | I5: 24313073.35
C6: Comercial | D6: Cativo | E6: 6587816.185 | F6: 6832067.703 | G6: 7094123.222 | H6: 7463353.196 | I6: 7836073.176
C7: Geração de Energia Elétrica Para Consumidor Final e Cogeração Usuários com Quantidade Diária Contratada (QDC) de até 16.000 m³/dia | D7: Cativo | E7: 57374.35 | F7: 57374.35 | G7: 57374.35 | H7: 57531.54 | I7: 57374.35
C8: GNC | D8: Cativo | E8: 4805955 | F8: 4805955 | G8: 4805955 | H8: 4819122 | I8: 4805955
C9: Industrial | D9: Cativo | E9: 126499577.1 | F9: 142695736.2 | G9: 157659015.3 | H9: 164483868.1 | I9: 165499974.2
C10: Interruptível | D10: Cativo | E10: 1131500 | F10: 1131500 | G10: 1131500 | H10: 1134600 | I10: 1131500
C11: Matéria Prima Quantidade Diária Contratada (QDC) de até 30.000 m³/dia | D11: Cativo | E11: 4259340 | F11: 4259340 | G11: 4259340 | H11: 4259340 | I11: 4259340
C12: Residencial - Medição INDIVIDUAL | D12: Cativo | E12: 10146858.28 | F12: 10870635.74 | G12: 11879016.02 | H12: 13326528.83 | I12: 15697913.63
C13: Residencial - Medição COLETIVA | D13: Cativo | E13: 3749617.691 | F13: 4161458.648 | G13: 4789670.436 | H13: 5731673.896 | I13: 6783066.664
C14: GNV | D14: Cativo | E14: 19128350 | F14: 20796250 | G14: 21014875 | H14: 21479250 | I14: 21562375
C15: Cogeração | D15: Cativo | E15: 14050000 | F15: 16780000 | G15: 25000000 | H15: 28670000 | I15: 32300000
C16: Unidades de Produção de Fertilizantes e Instalações de Refino de Petróleo Quantidade Diária Contratada (QDC) Acima de 500.000 m³/dia | D16: Livre | E16: 0 | F16: 0 | G16: 0 | H16: 44772000 | I16: 89790000
C17: Tabela Grandes Usuários Quantidade Diária Contratada (QDC) Acima de 100.000 m³/dia | D17: Livre
C18: Matéria Prima | D18: Cativo | E18: 84680000 | F18: 84680000 | G18: 84680000 | H18: 84912000 | I18: 84680000
C19: Termelétrico Quantidade Diária Contratada (QDC) Acima de 500.000 m³/dia | D19: Livre | E19: 171990000 | F19: 229950000 | G19: 229950000 | H19: 230580000 | I19: 229950000
C21: Cativo | D21: - | E21: =SUMIF($D$5:$D$20,$C21,E5:E19)-E23 -> 297937461.9 | F21: =SUMIF($D$5:$D$19,$C21,F5:F19)-F23 -> 321383391 | G21: =SUMIF($D$5:$D$19,$C21,G5:G19)-G23 -> 345323942.7 | H21: =SUMIF($D$5:$D$19,$C21,H5:H19)-H23 -> 355227452.5 | I21: =SUMIF($D$5:$D$19,$C21,I5:I19)-I23 -> 363451645.4
C22: Livre | D22: - | E22: =SUMIF($D$5:$D$19,$C22,E5:E19) -> 171990000 | F22: =SUMIF($D$5:$D$19,$C22,F5:F19) -> 229950000 | G22: =SUMIF($D$5:$D$19,$C22,G5:G19) -> 229950000 | H22: =SUMIF($D$5:$D$19,$C22,H5:H19) -> 275352000 | I22: =SUMIF($D$5:$D$19,$C22,I5:I19) -> 319740000
C23: Livre - INDUSTRIAL | D23: - | E23: 0 | F23: 0 | G23: 1360000 | H23: 5490000 | I23: 5475000

Sheet Série - IPCA
A2: SÉRIE HISTÓRICA DO IPCA
H3: (continua)
F4: VARIAÇÃO
A5: ANO | B5: MÊS | C5: NÚMERO ÍNDICE | D5: (%)
C6: (DEZ 93 = 100) | D6: NO | E6: 3 | F6: 6 | G6: NO | H6: 12
D7: MÊS | E7: MESES | F7: MESES | G7: ANO | H7: MESES
A9: 1994 | B9: JAN | C9: 141.31 | D9: 41.31 | E9: 162.13 | F9: 533.33 | G9: 41.31 | H9: 2693.84
B10: FEV | C10: 198.22 | D10: 40.27 | E10: 171.24 | F10: 568.17 | G10: 98.22 | H10: 3035.71
B11: MAR | C11: 282.96 | D11: 42.75 | E11: 182.96 | F11: 602.93 | G11: 182.96 | H11: 3417.39
B12: ABR | C12: 403.73 | D12: 42.68 | E12: 185.71 | F12: 648.92 | G12: 303.73 | H12: 3828.49
B13: MAI | C13: 581.49 | D13: 44.03 | E13: 193.36 | F13: 695.71 | G13: 481.49 | H13: 4331.19
B14: JUN | C14: 857.29 | D14: 47.43 | E14: 202.97 | F14: 757.29 | G14: 757.29 | H14: 4922.6
B15: JUL | C15: 915.93 | D15: 6.84 | E15: 126.87 | F15: 548.17 | G15: 815.93 | H15: 4005.08
B16: AGO | C16: 932.97 | D16: 1.86 | E16: 60.44 | F16: 370.67 | G16: 832.97 | H16: 3044.89
B17: SET | C17: 947.24 | D17: 1.53 | E17: 10.49 | F17: 234.76 | G17: 847.24 | H17: 2253.15
B18: OUT | C18: 972.06 | D18: 2.62 | E18: 6.13 | F18: 140.77 | G18: 872.06 | H18: 1703.17
B19: NOV | C19: 999.37 | D19: 2.81 | E19: 7.12 | F19: 71.86 | G19: 899.37 | H19: 1267.54
B20: DEZ | C20: 1016.46 | D20: 1.71 | E20: 7.31 | F20: 18.57 | G20: 916.46 | H20: 916.46
A22: 1995 | B22: JAN | C22: 1033.74 | D22: 1.7 | E22: 6.35 | F22: 12.86 | G22: 1.7 | H22: 631.54
B23: FEV | C23: 1044.28 | D23: 1.02 | E23: 4.49 | F23: 11.93 | G23: 2.74 | H23: 426.83
B24: MAR | C24: 1060.47 | D24: 1.55 | E24: 4.33 | F24: 11.95 | G24: 4.33 | H24: 274.78
B25: ABR | C25: 1086.24 | D25: 2.43 | E25: 5.08 | F25: 11.75 | G25: 6.87 | H25: 169.05
B26: MAI | C26: 1115.24 | D26: 2.67 | E26: 6.8 | F26: 11.59 | G26: 9.72 | H26: 91.79
B27: JUN | C27: 1140.44 | D27: 2.26 | E27: 7.54 | F27: 12.2 | G27: 12.2 | H27: 33.03
B28: JUL | C28: 1167.35 | D28: 2.36 | E28: 7.47 | F28: 12.92 | G28: 14.84 | H28: 27.45
B29: AGO | C29: 1178.91 | D29: 0.99 | E29: 5.71 | F29: 12.89 | G29: 15.98 | H29: 26.36
B30: SET | C30: 1190.58 | D30: 0.99 | E30: 4.4 | F30: 12.27 | G30: 17.13 | H30: 25.69
B31: OUT | C31: 1207.37 | D31: 1.41 | E31: 3.43 | F31: 11.15 | G31: 18.78 | H31: 24.21
B32: NOV | C32: 1225.12 | D32: 1.47 | E32: 3.92 | F32: 9.85 | G32: 20.53 | H32: 22.59
B33: DEZ | C33: 1244.23 | D33: 1.56 | E33: 4.51 | F33: 9.1 | G33: 22.41 | H33: 22.41
A35: 1996 | B35: JAN | C35: 1260.9 | D35: 1.34 | E35: 4.43 | F35: 8.01 | G35: 1.34 | H35: 21.97
B36: FEV | C36: 1273.89 | D36: 1.03 | E36: 3.98 | F36: 8.06 | G36: 2.38 | H36: 21.99
B37: MAR | C37: 1278.35 | D37: 0.35 | E37: 2.74 | F37: 7.37 | G37: 2.74 | H37: 20.55
B38: ABR | C38: 1294.46 | D38: 1.26 | E38: 2.66 | F38: 7.21 | G38: 4.04 | H38: 19.17
B39: MAI | C39: 1310.25 | D39: 1.22 | E39: 2.85 | F39: 6.95 | G39: 5.31 | H39: 17.49
B40: JUN | C40: 1325.84 | D40: 1.19 | E40: 3.71 | F40: 6.56 | G40: 6.56 | H40: 16.26
B41: JUL | C41: 1340.56 | D41: 1.11 | E41: 3.56 | F41: 6.32 | G41: 7.74 | H41: 14.84
B42: AGO | C42: 1346.46 | D42: 0.44 | E42: 2.76 | F42: 5.7 | G42: 8.22 | H42: 14.21
B43: SET | C43: 1348.48 | D43: 0.15 | E43: 1.71 | F43: 5.49 | G43: 8.38 | H43: 13.26
B44: OUT | C44: 1352.53 | D44: 0.3 | E44: 0.89 | F44: 4.49 | G44: 8.7 | H44: 12.02
B45: NOV | C45: 1356.86 | D45: 0.32 | E45: 0.77 | F45: 3.56 | G45: 9.05 | H45: 10.75
B46: DEZ | C46: 1363.24 | D46: 0.47 | E46: 1.09 | F46: 2.82 | G46: 9.56 | H46: 9.56
A48: 1997 | B48: JAN | C48: 1379.33 | D48: 1.18 | E48: 1.98 | F48: 2.89 | G48: 1.18 | H48: 9.39
B49: FEV | C49: 1386.23 | D49: 0.5 | E49: 2.16 | F49: 2.95 | G49: 1.69 | H49: 8.82
B50: MAR | C50: 1393.3 | D50: 0.51 | E50: 2.21 | F50: 3.32 | G50: 2.21 | H50: 8.99
B51: ABR | C51: 1405.56 | D51: 0.88 | E51: 1.9 | F51: 3.92 | G51: 3.1 | H51: 8.58
B52: MAI | C52: 1411.32 | D52: 0.41 | E52: 1.81 | F52: 4.01 | G52: 3.53 | H52: 7.71
B53: JUN | C53: 1418.94 | D53: 0.54 | E53: 1.84 | F53: 4.09 | G53: 4.09 | H53: 7.02
B54: JUL | C54: 1422.06 | D54: 0.22 | E54: 1.17 | F54: 3.1 | G54: 4.31 | H54: 6.08
B55: AGO | C55: 1421.78 | D55: -0.02 | E55: 0.74 | F55: 2.56 | G55: 4.29 | H55: 5.59
B56: SET | C56: 1422.63 | D56: 0.06 | E56: 0.26 | F56: 2.11 | G56: 4.36 | H56: 5.5
B57: OUT | C57: 1425.9 | D57: 0.23 | E57: 0.27 | F57: 1.45 | G57: 4.6 | H57: 5.42
B58: NOV | C58: 1428.32 | D58: 0.17 | E58: 0.46 | F58: 1.2 | G58: 4.77 | H58: 5.27
B59: DEZ | C59: 1434.46 | D59: 0.43 | E59: 0.83 | F59: 1.09 | G59: 5.22 | H59: 5.22
A61: 1998 | B61: JAN | C61: 1444.64 | D61: 0.71 | E61: 1.31 | F61: 1.59 | G61: 0.71 | H61: 4.73
B62: FEV | C62: 1451.29 | D62: 0.46 | E62: 1.61 | F62: 2.08 | G62: 1.17 | H62: 4.69
B63: MAR | C63: 1456.22 | D63: 0.34 | E63: 1.52 | F63: 2.36 | G63: 1.52 | H63: 4.52
B64: ABR | C64: 1459.71 | D64: 0.24 | E64: 1.04 | F64: 2.37 | G64: 1.76 | H64: 3.85
B65: MAI | C65: 1467.01 | D65: 0.5 | E65: 1.08 | F65: 2.71 | G65: 2.27 | H65: 3.95
B66: JUN | C66: 1467.3 | D66: 0.02 | E66: 0.76 | F66: 2.29 | G66: 2.29 | H66: 3.41
B67: JUL | C67: 1465.54 | D67: -0.12 | E67: 0.4 | F67: 1.45 | G67: 2.17 | H67: 3.06
B68: AGO | C68: 1458.07 | D68: -0.51 | E68: -0.61 | F68: 0.47 | G68: 1.65 | H68: 2.55
B69: SET | C69: 1454.86 | D69: -0.22 | E69: -0.85 | F69: -0.09 | G69: 1.42 | H69: 2.27
B70: OUT | C70: 1455.15 | D70: 0.02 | E70: -0.71 | F70: -0.31 | G70: 1.44 | H70: 2.05
B71: NOV | C71: 1453.4 | D71: -0.12 | E71: -0.32 | F71: -0.93 | G71: 1.32 | H71: 1.76
B72: DEZ | C72: 1458.2 | D72: 0.33 | E72: 0.23 | F72: -0.62 | G72: 1.65 | H72: 1.65
A75: SÉRIE HISTÓRICA DO IPCA
H76: (continuação)
F77: VARIAÇÃO
A78: ANO | B78: MÊS | C78: NÚMERO ÍNDICE | D78: (%)
C79: (DEZ 93 = 100) | D79: NO | E79: 3 | F79: 6 | G79: NO | H79: 12
D80: MÊS | E80: MESES | F80: MESES | G80: ANO | H80: MESES
A82: 1999 | B82: JAN | C82: 1468.41 | D82: 0.7 | E82: 0.91 | F82: 0.2 | G82: 0.7 | H82: 1.65
B83: FEV | C83: 1483.83 | D83: 1.05 | E83: 2.09 | F83: 1.77 | G83: 1.76 | H83: 2.24
B84: MAR | C84: 1500.15 | D84: 1.1 | E84: 2.88 | F84: 3.11 | G84: 2.88 | H84: 3.02
B85: ABR | C85: 1508.55 | D85: 0.56 | E85: 2.73 | F85: 3.67 | G85: 3.45 | H85: 3.35
B86: MAI | C86: 1513.08 | D86: 0.3 | E86: 1.97 | F86: 4.11 | G86: 3.76 | H86: 3.14
B87: JUN | C87: 1515.95 | D87: 0.19 | E87: 1.05 | F87: 3.96 | G87: 3.96 | H87: 3.32
B88: JUL | C88: 1532.47 | D88: 1.09 | E88: 1.59 | F88: 4.36 | G88: 5.09 | H88: 4.57
B89: AGO | C89: 1541.05 | D89: 0.56 | E89: 1.85 | F89: 3.86 | G89: 5.68 | H89: 5.69
B90: SET | C90: 1545.83 | D90: 0.31 | E90: 1.97 | F90: 3.05 | G90: 6.01 | H90: 6.25
B91: OUT | C91: 1564.23 | D91: 1.19 | E91: 2.07 | F91: 3.69 | G91: 7.27 | H91: 7.5
B92: NOV | C92: 1579.09 | D92: 0.95 | E92: 2.47 | F92: 4.36 | G92: 8.29 | H92: 8.65
B93: DEZ | C93: 1588.56 | D93: 0.6 | E93: 2.76 | F93: 4.79 | G93: 8.94 | H93: 8.94
A95: 2000 | B95: JAN | C95: 1598.41 | D95: 0.62 | E95: 2.19 | F95: 4.3 | G95: 0.62 | H95: 8.85
B96: FEV | C96: 1600.49 | D96: 0.13 | E96: 1.36 | F96: 3.86 | G96: 0.75 | H96: 7.86
B97: MAR | C97: 1604.01 | D97: 0.22 | E97: 0.97 | F97: 3.76 | G97: 0.97 | H97: 6.92
B98: ABR | C98: 1610.75 | D98: 0.42 | E98: 0.77 | F98: 2.97 | G98: 1.4 | H98: 6.77
B99: MAI | C99: 1610.91 | D99: 0.01 | E99: 0.65 | F99: 2.02 | G99: 1.41 | H99: 6.47
B100: JUN | C100: 1614.62 | D100: 0.23 | E100: 0.66 | F100: 1.64 | G100: 1.64 | H100: 6.51
B101: JUL | C101: 1640.62 | D101: 1.61 | E101: 1.85 | F101: 2.64 | G101: 3.28 | H101: 7.06
B102: AGO | C102: 1662.11 | D102: 1.31 | E102: 3.18 | F102: 3.85 | G102: 4.63 | H102: 7.86
B103: SET | C103: 1665.93 | D103: 0.23 | E103: 3.18 | F103: 3.86 | G103: 4.87 | H103: 7.77
B104: OUT | C104: 1668.26 | D104: 0.14 | E104: 1.68 | F104: 3.57 | G104: 5.02 | H104: 6.65
B105: NOV | C105: 1673.6 | D105: 0.32 | E105: 0.69 | F105: 3.89 | G105: 5.35 | H105: 5.99
B106: DEZ | C106: 1683.47 | D106: 0.59 | E106: 1.05 | F106: 4.26 | G106: 5.97 | H106: 5.97
A108: 2001 | B108: JAN | C108: 1693.07 | D108: 0.57 | E108: 1.49 | F108: 3.2 | G108: 0.57 | H108: 5.92
B109: FEV | C109: 1700.86 | D109: 0.46 | E109: 1.63 | F109: 2.33 | G109: 1.03 | H109: 6.27
B110: MAR | C110: 1707.32 | D110: 0.38 | E110: 1.42 | F110: 2.48 | G110: 1.42 | H110: 6.44
B111: ABR | C111: 1717.22 | D111: 0.58 | E111: 1.43 | F111: 2.93 | G111: 2 | H111: 6.61
B112: MAI | C112: 1724.26 | D112: 0.41 | E112: 1.38 | F112: 3.03 | G112: 2.42 | H112: 7.04
B113: JUN | C113: 1733.23 | D113: 0.52 | E113: 1.52 | F113: 2.96 | G113: 2.96 | H113: 7.35
B114: JUL | C114: 1756.28 | D114: 1.33 | E114: 2.27 | F114: 3.73 | G114: 4.32 | H114: 7.05
B115: AGO | C115: 1768.57 | D115: 0.7 | E115: 2.57 | F115: 3.98 | G115: 5.06 | H115: 6.41
B116: SET | C116: 1773.52 | D116: 0.28 | E116: 2.32 | F116: 3.88 | G116: 5.35 | H116: 6.46
B117: OUT | C117: 1788.24 | D117: 0.83 | E117: 1.82 | F117: 4.14 | G117: 6.22 | H117: 7.19
B118: NOV | C118: 1800.94 | D118: 0.71 | E118: 1.83 | F118: 4.45 | G118: 6.98 | H118: 7.61
B119: DEZ | C119: 1812.65 | D119: 0.65 | E119: 2.21 | F119: 4.58 | G119: 7.67 | H119: 7.67
A121: 2002 | B121: JAN | C121: 1822.08 | D121: 0.52 | E121: 1.89 | F121: 3.75 | G121: 0.52 | H121: 7.62
B122: FEV | C122: 1828.64 | D122: 0.36 | E122: 1.54 | F122: 3.4 | G122: 0.88 | H122: 7.51
B123: MAR | C123: 1839.61 | D123: 0.6 | E123: 1.49 | F123: 3.73 | G123: 1.49 | H123: 7.75
B124: ABR | C124: 1854.33 | D124: 0.8 | E124: 1.77 | F124: 3.7 | G124: 2.3 | H124: 7.98
B125: MAI | C125: 1858.22 | D125: 0.21 | E125: 1.62 | F125: 3.18 | G125: 2.51 | H125: 7.77
B126: JUN | C126: 1866.02 | D126: 0.42 | E126: 1.44 | F126: 2.94 | G126: 2.94 | H126: 7.66
B127: JUL | C127: 1888.23 | D127: 1.19 | E127: 1.83 | F127: 3.63 | G127: 4.17 | H127: 7.51
B128: AGO | C128: 1900.5 | D128: 0.65 | E128: 2.28 | F128: 3.93 | G128: 4.85 | H128: 7.46
B129: SET | C129: 1914.18 | D129: 0.72 | E129: 2.58 | F129: 4.05 | G129: 5.6 | H129: 7.93
B130: OUT | C130: 1939.26 | D130: 1.31 | E130: 2.7 | F130: 4.58 | G130: 6.98 | H130: 8.45
B131: NOV | C131: 1997.83 | D131: 3.02 | E131: 5.12 | F131: 7.51 | G131: 10.22 | H131: 10.93
B132: DEZ | C132: 2039.78 | D132: 2.1 | E132: 6.56 | F132: 9.31 | G132: 12.53 | H132: 12.53
A134: 2003 | B134: JAN | C134: 2085.68 | D134: 2.25 | E134: 7.55 | F134: 10.46 | G134: 2.25 | H134: 14.47
B135: FEV | C135: 2118.43 | D135: 1.57 | E135: 6.04 | F135: 11.47 | G135: 3.86 | H135: 15.85
B136: MAR | C136: 2144.49 | D136: 1.23 | E136: 5.13 | F136: 12.03 | G136: 5.13 | H136: 16.57
B137: ABR | C137: 2165.29 | D137: 0.97 | E137: 3.82 | F137: 11.66 | G137: 6.15 | H137: 16.77
B138: MAI | C138: 2178.5 | D138: 0.61 | E138: 2.84 | F138: 9.04 | G138: 6.8 | H138: 17.24
B139: JUN | C139: 2175.23 | D139: -0.15 | E139: 1.43 | F139: 6.64 | G139: 6.64 | H139: 16.57
B140: JUL | C140: 2179.58 | D140: 0.2 | E140: 0.66 | F140: 4.5 | G140: 6.85 | H140: 15.43
B141: AGO | C141: 2186.99 | D141: 0.34 | E141: 0.39 | F141: 3.24 | G141: 7.22 | H141: 15.07
B142: SET | C142: 2204.05 | D142: 0.78 | E142: 1.32 | F142: 2.78 | G142: 8.05 | H142: 15.14
B143: OUT | C143: 2210.44 | D143: 0.29 | E143: 1.42 | F143: 2.09 | G143: 8.37 | H143: 13.98
B144: NOV | C144: 2217.96 | D144: 0.34 | E144: 1.42 | F144: 1.81 | G144: 8.74 | H144: 11.02
B145: DEZ | C145: 2229.49 | D145: 0.52 | E145: 1.15 | F145: 2.49 | G145: 9.3 | H145: 9.3
A148: SÉRIE HISTÓRICA DO IPCA
H149: (continuação)
F150: VARIAÇÃO
A151: ANO | B151: MÊS | C151: NÚMERO ÍNDICE | D151: (%)
C152: (DEZ 93 = 100) | D152: NO | E152: 3 | F152: 6 | G152: NO | H152: 12
D153: MÊS | E153: MESES | F153: MESES | G153: ANO | H153: MESES
A155: 2004 | B155: JAN | C155: 2246.43 | D155: 0.76 | E155: 1.63 | F155: 3.07 | G155: 0.76 | H155: 7.71
B156: FEV | C156: 2260.13 | D156: 0.61 | E156: 1.9 | F156: 3.34 | G156: 1.37 | H156: 6.69
B157: MAR | C157: 2270.75 | D157: 0.47 | E157: 1.85 | F157: 3.03 | G157: 1.85 | H157: 5.89
B158: ABR | C158: 2279.15 | D158: 0.37 | E158: 1.46 | F158: 3.11 | G158: 2.23 | H158: 5.26
B159: MAI | C159: 2290.77 | D159: 0.51 | E159: 1.36 | F159: 3.28 | G159: 2.75 | H159: 5.15
B160: JUN | C160: 2307.03 | D160: 0.71 | E160: 1.6 | F160: 3.48 | G160: 3.48 | H160: 6.06
B161: JUL | C161: 2328.02 | D161: 0.91 | E161: 2.14 | F161: 3.63 | G161: 4.42 | H161: 6.81
B162: AGO | C162: 2344.08 | D162: 0.69 | E162: 2.33 | F162: 3.71 | G162: 5.14 | H162: 7.18
B163: SET | C163: 2351.82 | D163: 0.33 | E163: 1.94 | F163: 3.57 | G163: 5.49 | H163: 6.7
B164: OUT | C164: 2362.17 | D164: 0.44 | E164: 1.47 | F164: 3.64 | G164: 5.95 | H164: 6.86
B165: NOV | C165: 2378.47 | D165: 0.69 | E165: 1.47 | F165: 3.83 | G165: 6.68 | H165: 7.24
B166: DEZ | C166: 2398.92 | D166: 0.86 | E166: 2 | F166: 3.98 | G166: 7.6 | H166: 7.6
A168: 2005 | B168: JAN | C168: 2412.83 | D168: 0.58 | E168: 2.14 | F168: 3.64 | G168: 0.58 | H168: 7.41
B169: FEV | C169: 2427.07 | D169: 0.59 | E169: 2.04 | F169: 3.54 | G169: 1.17 | H169: 7.39
B170: MAR | C170: 2441.87 | D170: 0.61 | E170: 1.79 | F170: 3.83 | G170: 1.79 | H170: 7.54
B171: ABR | C171: 2463.11 | D171: 0.87 | E171: 2.08 | F171: 4.27 | G171: 2.68 | H171: 8.07
B172: MAI | C172: 2475.18 | D172: 0.49 | E172: 1.98 | F172: 4.07 | G172: 3.18 | H172: 8.05
B173: JUN | C173: 2474.68 | D173: -0.02 | E173: 1.34 | F173: 3.16 | G173: 3.16 | H173: 7.27
B174: JUL | C174: 2480.87 | D174: 0.25 | E174: 0.72 | F174: 2.82 | G174: 3.42 | H174: 6.57
B175: AGO | C175: 2485.09 | D175: 0.17 | E175: 0.4 | F175: 2.39 | G175: 3.59 | H175: 6.02
B176: SET | C176: 2493.79 | D176: 0.35 | E176: 0.77 | F176: 2.13 | G176: 3.95 | H176: 6.04
B177: OUT | C177: 2512.49 | D177: 0.75 | E177: 1.27 | F177: 2 | G177: 4.73 | H177: 6.36
B178: NOV | C178: 2526.31 | D178: 0.55 | E178: 1.66 | F178: 2.07 | G178: 5.31 | H178: 6.22
B179: DEZ | C179: 2535.4 | D179: 0.36 | E179: 1.67 | F179: 2.45 | G179: 5.69 | H179: 5.69
A181: 2006 | B181: JAN | C181: 2550.36 | D181: 0.59 | E181: 1.51 | F181: 2.8 | G181: 0.59 | H181: 5.7
B182: FEV | C182: 2560.82 | D182: 0.41 | E182: 1.37 | F182: 3.05 | G182: 1 | H182: 5.51
B183: MAR | C183: 2571.83 | D183: 0.43 | E183: 1.44 | F183: 3.13 | G183: 1.44 | H183: 5.32
B184: ABR | C184: 2577.23 | D184: 0.21 | E184: 1.05 | F184: 2.58 | G184: 1.65 | H184: 4.63
B185: MAI | C185: 2579.81 | D185: 0.1 | E185: 0.74 | F185: 2.12 | G185: 1.75 | H185: 4.23
B186: JUN | C186: 2574.39 | D186: -0.21 | E186: 0.1 | F186: 1.54 | G186: 1.54 | H186: 4.03
B187: JUL | C187: 2579.28 | D187: 0.19 | E187: 0.08 | F187: 1.13 | G187: 1.73 | H187: 3.97
B188: AGO | C188: 2580.57 | D188: 0.05 | E188: 0.03 | F188: 0.77 | G188: 1.78 | H188: 3.84
B189: SET | C189: 2585.99 | D189: 0.21 | E189: 0.45 | F189: 0.55 | G189: 2 | H189: 3.7
B190: OUT | C190: 2594.52 | D190: 0.33 | E190: 0.59 | F190: 0.67 | G190: 2.33 | H190: 3.26
B191: NOV | C191: 2602.56 | D191: 0.31 | E191: 0.85 | F191: 0.88 | G191: 2.65 | H191: 3.02
B192: DEZ | C192: 2615.05 | D192: 0.48 | E192: 1.12 | F192: 1.58 | G192: 3.14 | H192: 3.14
A194: 2007 | B194: JAN | C194: 2626.56 | D194: 0.44 | E194: 1.23 | F194: 1.83 | G194: 0.44 | H194: 2.99
B195: FEV | C195: 2638.12 | D195: 0.44 | E195: 1.37 | F195: 2.23 | G195: 0.88 | H195: 3.02
B196: MAR | C196: 2647.88 | D196: 0.37 | E196: 1.26 | F196: 2.39 | G196: 1.26 | H196: 2.96
B197: ABR | C197: 2654.5 | D197: 0.25 | E197: 1.06 | F197: 2.31 | G197: 1.51 | H197: 3
B198: MAI | C198: 2661.93 | D198: 0.28 | E198: 0.9 | F198: 2.28 | G198: 1.79 | H198: 3.18
B199: JUN | C199: 2669.38 | D199: 0.28 | E199: 0.81 | F199: 2.08 | G199: 2.08 | H199: 3.69
B200: JUL | C200: 2675.79 | D200: 0.24 | E200: 0.8 | F200: 1.87 | G200: 2.32 | H200: 3.74
B201: AGO | C201: 2688.37 | D201: 0.47 | E201: 0.99 | F201: 1.9 | G201: 2.8 | H201: 4.18
B202: SET | C202: 2693.21 | D202: 0.18 | E202: 0.89 | F202: 1.71 | G202: 2.99 | H202: 4.15
B203: OUT | C203: 2701.29 | D203: 0.3 | E203: 0.95 | F203: 1.76 | G203: 3.3 | H203: 4.12
B204: NOV | C204: 2711.55 | D204: 0.38 | E204: 0.86 | F204: 1.86 | G204: 3.69 | H204: 4.19
B205: DEZ | C205: 2731.62 | D205: 0.74 | E205: 1.43 | F205: 2.33 | G205: 4.46 | H205: 4.46
A207: 2008 | B207: JAN | C207: 2746.37 | D207: 0.54 | E207: 1.67 | F207: 2.64 | G207: 0.54 | H207: 4.56
B208: FEV | C208: 2759.83 | D208: 0.49 | E208: 1.78 | F208: 2.66 | G208: 1.03 | H208: 4.61
B209: MAR | C209: 2773.08 | D209: 0.48 | E209: 1.52 | F209: 2.97 | G209: 1.52 | H209: 4.73
B210: ABR | C210: 2788.33 | D210: 0.55 | E210: 1.53 | F210: 3.22 | G210: 2.08 | H210: 5.04
B211: MAI | C211: 2810.36 | D211: 0.79 | E211: 1.83 | F211: 3.64 | G211: 2.88 | H211: 5.58
B212: JUN | C212: 2831.16 | D212: 0.74 | E212: 2.09 | F212: 3.64 | G212: 3.64 | H212: 6.06
B213: JUL | C213: 2846.16 | D213: 0.53 | E213: 2.07 | F213: 3.63 | G213: 4.19 | H213: 6.37
B214: AGO | C214: 2854.13 | D214: 0.28 | E214: 1.56 | F214: 3.42 | G214: 4.48 | H214: 6.17
B215: SET | C215: 2861.55 | D215: 0.26 | E215: 1.07 | F215: 3.19 | G215: 4.76 | H215: 6.25
B216: OUT | C216: 2874.43 | D216: 0.45 | E216: 0.99 | F216: 3.09 | G216: 5.23 | H216: 6.41
B217: NOV | C217: 2884.78 | D217: 0.36 | E217: 1.07 | F217: 2.65 | G217: 5.61 | H217: 6.39
B218: DEZ | C218: 2892.86 | D218: 0.28 | E218: 1.09 | F218: 2.18 | G218: 5.9 | H218: 5.9
A221: SÉRIE HISTÓRICA DO IPCA
H222: (continuação)
... 206 more rows

Sheet Classificação OPEX (hidden)
B2: CUSTOS/DESPESAS COMERCIAIS/DESPESAS GERAIS E ADMINISTRATIVAS/OUTRAS RECEITAS E DESPESAS
B3: CONTA DETALHADA | C3: DESCRIÇÃO | D3: ANO DE 2019 | E3: ANO DE 2020 | F3: ANO DE 2021 | G3: ANO DE 2022 | H3: ANO DE 2023 | I3: MÉDIA 5 ANOS | J3: 2019 a preços de jul de 2024 | K3: 2020 a preços de jul de 2024 | L3: 2021 a preços de jul de 2024 | M3: 2022 a preços de jul de 2024 | N3: 2023 a preços de jul de 2024 | O3: Média a preços de jul 2024 | P3: C/D | Q3: MOLÉCULA, TRIBUTOS S/ A RECEITA, DEPRECIAÇÃO, AMORTIZAÇÃO e DEMAIS CONTAS NÃO APLICÁVEIS AO OPEX&ODESP/ENCARGOS e Valores Negativos não aplicáveis | R3: ELEGÍVEL/EFICIENTE | S3: GLOSA | T3: CC | U3: CRITÉRIO | V3: Grupo - Plano Negócios | W3: CC Compagas - Plano Negócios | X3: CC Descrição - Plano Negócios | Y3: concatenar
D4: 36517787.36 | E4: 23459626.14 | F4: 42258081.16 | G4: 69206041.87 | H4: 45374757.14 | I4: =AVERAGE(D4:H4) -> 43363258.73 | J4: =D4*'Série - IPCA'!$C$444/'Série - IPCA'!$C$385 -> 47731551.26 | K4: =E4*'Série - IPCA'!$C$444/'Série - IPCA'!$C$398 -> 29338192 | L4: =F4*'Série - IPCA'!$C$444/'Série - IPCA'!$C$411 -> 48016294.99 | M4: =G4*'Série - IPCA'!$C$444/'Série - IPCA'!$C$424 -> 74335867.28 | N4: =H4*'Série - IPCA'!$C$444/'Série - IPCA'!$C$437 -> 46585317.48 | O4: =AVERAGE(J4:N4) -> 49201444.6 | Q4: S | S4: NÃO | T4: OPEX | V4: Custos | W4: 9999 | X4: RATEIO
D5: 21410598.48 | E5: 0 | F5: 0 | G5: 0 | H5: 0 | I5: =AVERAGE(D5:H5) -> 4282119.696 | J5: =D5*'Série - IPCA'!$C$444/'Série - IPCA'!$C$385 -> 27985295.74 | K5: =E5*'Série - IPCA'!$C$444/'Série - IPCA'!$C$398 -> 0 | L5: =F5*'Série - IPCA'!$C$444/'Série - IPCA'!$C$411 -> 0 | M5: =G5*'Série - IPCA'!$C$444/'Série - IPCA'!$C$424 -> 0 | N5: =H5*'Série - IPCA'!$C$444/'Série - IPCA'!$C$437 -> 0 | O5: =AVERAGE(J5:N5) -> 5597059.148 | Q5: S | T5: OPEX | V5: Custos | W5: 9999 | X5: RATEIO
D6: 2087207.9 | E6: 2236768.8 | F6: 3027361.54 | G6: 2361654.27 | H6: 179887.11 | I6: 1978575.924 | J6: =D6*'Série - IPCA'!$C$444/'Série - IPCA'!$C$385 -> 2728140.944 | K6: =E6*'Série - IPCA'!$C$444/'Série - IPCA'!$C$398 -> 2797263.355 | L6: =F6*'Série - IPCA'!$C$444/'Série - IPCA'!$C$411 -> 3439878.972 | M6: =G6*'Série - IPCA'!$C$444/'Série - IPCA'!$C$424 -> 2536709.421 | N6: =H6*'Série - IPCA'!$C$444/'Série - IPCA'!$C$437 -> 184686.3467 | O6: 2337335.808 | Q6: S | T6: OPEX | V6: Custos | W6: 9999 | X6: RATEIO
D7: 192015161.3 | E7: 160026471 | F7: 263751764 | G7: 473219888.5 | H7: 347870769.4 | I7: 287376810.8 | J7: =D7*'Série - IPCA'!$C$444/'Série - IPCA'!$C$385 -> 250978555.3 | K7: =E7*'Série - IPCA'!$C$444/'Série - IPCA'!$C$398 -> 200126263.9 | L7: =F7*'Série - IPCA'!$C$444/'Série - IPCA'!$C$411 -> 299691376.4 | M7: =G7*'Série - IPCA'!$C$444/'Série - IPCA'!$C$424 -> 508296817.4 | N7: =H7*'Série - IPCA'!$C$444/'Série - IPCA'!$C$437 -> 357151668.7 | O7: 323248936.3 | Q7: S | T7: OPEX | V7: Custos | W7: 9999 | X7: RATEIO
D8: 48270309.29 | E8: 45189847.99 | F8: 32041846.85 | G8: 83319540.01 | H8: 44798697.94 | I8: 50724048.42 | J8: =D8*'Série - IPCA'!$C$444/'Série - IPCA'!$C$385 -> 63092999.58 | K8: =E8*'Série - IPCA'!$C$444/'Série - IPCA'!$C$398 -> 56513621.7 | L8: =F8*'Série - IPCA'!$C$444/'Série - IPCA'!$C$411 -> 36407965.73 | M8: =G8*'Série - IPCA'!$C$444/'Série - IPCA'!$C$424 -> 89495513.69 | N8: =H8*'Série - IPCA'!$C$444/'Série - IPCA'!$C$437 -> 45993889.5 | O8: 58300798.04 | Q8: S | T8: OPEX | V8: Custos | W8: 9999 | X8: RATEIO
D9: 198430846.4 | E9: 14461745.33 | F9: 0 | G9: 0 | H9: 0 | I9: 42578518.36 | J9: =D9*'Série - IPCA'!$C$444/'Série - IPCA'!$C$385 -> 259364348.3 | K9: =E9*'Série - IPCA'!$C$444/'Série - IPCA'!$C$398 -> 18085601.99 | L9: =F9*'Série - IPCA'!$C$444/'Série - IPCA'!$C$411 -> 0 | M9: =G9*'Série - IPCA'!$C$444/'Série - IPCA'!$C$424 -> 0 | N9: =H9*'Série - IPCA'!$C$444/'Série - IPCA'!$C$437 -> 0 | O9: 55489990.06 | Q9: S | T9: OPEX | V9: Custos | W9: 9999 | X9: RATEIO
D10: 88234524.26 | E10: 90262805.72 | F10: 143431834 | G10: 273247913.2 | H10: 204074594.7 | I10: 159850334.4 | J10: =D10*'Série - IPCA'!$C$444/'Série - IPCA'!$C$385 -> 115329296.3 | K10: =E10*'Série - IPCA'!$C$444/'Série - IPCA'!$C$398 -> 112881062.5 | L10: =F10*'Série - IPCA'!$C$444/'Série - IPCA'!$C$411 -> 162976289.2 | M10: =G10*'Série - IPCA'!$C$444/'Série - IPCA'!$C$424 -> 293502128.8 | N10: =H10*'Série - IPCA'!$C$444/'Série - IPCA'!$C$437 -> 209519133.2 | O10: 178841582 | Q10: S | T10: OPEX | V10: Custos | W10: 9999 | X10: RATEIO
D11: 255348.93 | E11: 247026.72 | F11: 223045.23 | G11: 237768.44 | H11: 222433.94 | I11: 237124.652 | J11: =D11*'Série - IPCA'!$C$444/'Série - IPCA'!$C$385 -> 333760.6527 | K11: =E11*'Série - IPCA'!$C$444/'Série - IPCA'!$C$398 -> 308927.2309 | L11: =F11*'Série - IPCA'!$C$444/'Série - IPCA'!$C$411 -> 253438.047 | M11: =G11*'Série - IPCA'!$C$444/'Série - IPCA'!$C$424 -> 255392.7767 | N11: =H11*'Série - IPCA'!$C$444/'Série - IPCA'!$C$437 -> 228368.2903 | O11: 275977.3995 | Q11: S | T11: OPEX | V11: Custos | W11: 9999 | X11: RATEIO
D12: 5914821.2 | E12: 5253086.84 | F12: 6091552.33 | G12: 13166789.96 | H12: 9938294.69 | I12: 8072909.004 | J12: =D12*'Série - IPCA'!$C$444/'Série - IPCA'!$C$385 -> 7731125.343 | K12: =E12*'Série - IPCA'!$C$444/'Série - IPCA'!$C$398 -> 6569417.151 | L12: =F12*'Série - IPCA'!$C$444/'Série - IPCA'!$C$411 -> 6921605.658 | M12: =G12*'Série - IPCA'!$C$444/'Série - IPCA'!$C$424 -> 14142764.48 | N12: =H12*'Série - IPCA'!$C$444/'Série - IPCA'!$C$437 -> 10203440.03 | O12: 9113670.533 | Q12: S | T12: OPEX | V12: Custos | W12: 9999 | X12: RATEIO
D13: 14207307.53 | E13: 13568711.19 | F13: 21634616.12 | G13: 40118446.26 | H13: 29703887.95 | I13: 23846593.81 | J13: =D13*'Série - IPCA'!$C$444/'Série - IPCA'!$C$385 -> 18570041.53 | K13: =E13*'Série - IPCA'!$C$444/'Série - IPCA'!$C$398 -> 16968789.35 | L13: =F13*'Série - IPCA'!$C$444/'Série - IPCA'!$C$411 -> 24582614.29 | M13: =G13*'Série - IPCA'!$C$444/'Série - IPCA'!$C$424 -> 43092184.09 | N13: =H13*'Série - IPCA'!$C$444/'Série - IPCA'!$C$437 -> 30496362.69 | O13: 26741998.39 | Q13: S | T13: OPEX | V13: Custos | W13: 9999 | X13: RATEIO
D14: 8579680.53 | E14: 5397923.88 | F14: 9650388.38 | G14: 21057821.08 | H14: 15858055.1 | I14: 12108773.79 | J14: =D14*'Série - IPCA'!$C$444/'Série - IPCA'!$C$385 -> 11214301.05 | K14: =E14*'Série - IPCA'!$C$444/'Série - IPCA'!$C$398 -> 6750547.782 | L14: =F14*'Série - IPCA'!$C$444/'Série - IPCA'!$C$411 -> 10965379.46 | M14: =G14*'Série - IPCA'!$C$444/'Série - IPCA'!$C$424 -> 22618710.02 | N14: =H14*'Série - IPCA'!$C$444/'Série - IPCA'!$C$437 -> 16281134.67 | O14: 13566014.6 | Q14: S | T14: OPEX | V14: Custos | W14: 9999 | X14: RATEIO
D15: 245464.04 | E15: 0 | F15: 0 | G15: 0 | H15: 0 | I15: 49092.808 | J15: =D15*'Série - IPCA'!$C$444/'Série - IPCA'!$C$385 -> 320840.3426 | K15: =E15*'Série - IPCA'!$C$444/'Série - IPCA'!$C$398 -> 0 | L15: =F15*'Série - IPCA'!$C$444/'Série - IPCA'!$C$411 -> 0 | M15: =G15*'Série - IPCA'!$C$444/'Série - IPCA'!$C$424 -> 0 | N15: =H15*'Série - IPCA'!$C$444/'Série - IPCA'!$C$437 -> 0 | O15: 64168.06853 | Q15: S | T15: OPEX | V15: Custos | W15: 9999 | X15: RATEIO
D16: -5525033.75 | E16: 1792148.06 | F16: 3695131.95 | G16: 4266922.46 | H16: 4640195.14 | I16: 1773872.772 | J16: =D16*'Série - IPCA'!$C$444/'Série - IPCA'!$C$385 -> -7221643.225 | K16: =E16*'Série - IPCA'!$C$444/'Série - IPCA'!$C$398 -> 2241228.55 | L16: =F16*'Série - IPCA'!$C$444/'Série - IPCA'!$C$411 -> 4198641.795 | M16: =G16*'Série - IPCA'!$C$444/'Série - IPCA'!$C$424 -> 4583203.621 | N16: =H16*'Série - IPCA'!$C$444/'Série - IPCA'!$C$437 -> 4763991.642 | O16: 1713084.477 | Q16: S | T16: OPEX | V16: Custos | W16: 9999 | X16: RATEIO
D17: 0 | E17: 0 | F17: -14266.97 | G17: 0 | H17: 0 | I17: -2853.394 | J17: =D17*'Série - IPCA'!$C$444/'Série - IPCA'!$C$385 -> 0 | K17: =E17*'Série - IPCA'!$C$444/'Série - IPCA'!$C$398 -> 0 | L17: =F17*'Série - IPCA'!$C$444/'Série - IPCA'!$C$411 -> -16211.03044 | M17: =G17*'Série - IPCA'!$C$444/'Série - IPCA'!$C$424 -> 0 | N17: =H17*'Série - IPCA'!$C$444/'Série - IPCA'!$C$437 -> 0 | O17: -3242.206089 | Q17: S | R17: NÃO | S17: SIM | T17: OPEX | U17: FIXO | V17: DESPESAS_GERAIS | W17: 9999 | X17: RATEIO
D18: -26610620.87 | E18: 0 | F18: 0 | G18: 0 | H18: 0 | I18: -5322124.174 | J18: =D18*'Série - IPCA'!$C$444/'Série - IPCA'!$C$385 -> -34782124.17 | K18: =E18*'Série - IPCA'!$C$444/'Série - IPCA'!$C$398 -> 0 | L18: =F18*'Série - IPCA'!$C$444/'Série - IPCA'!$C$411 -> 0 | M18: =G18*'Série - IPCA'!$C$444/'Série - IPCA'!$C$424 -> 0 | N18: =H18*'Série - IPCA'!$C$444/'Série - IPCA'!$C$437 -> 0 | O18: -6956424.833 | Q18: S | R18: NÃO | S18: SIM | T18: OPEX | U18: FIXO | V18: DESPESAS_GERAIS | W18: 4100 | X18: GERÊNCIA DE SERVIÇOS CORPORATIVOS
D19: -2380823.5 | E19: -1336577.2 | F19: -618963.07 | G19: -709584.9 | H19: -1384620.81 | I19: -1286113.896 | J19: =D19*'Série - IPCA'!$C$444/'Série - IPCA'!$C$385 -> -3111919.072 | K19: =E19*'Série - IPCA'!$C$444/'Série - IPCA'!$C$398 -> -1671499.72 | L19: =F19*'Série - IPCA'!$C$444/'Série - IPCA'!$C$411 -> -703304.8483 | M19: =G19*'Série - IPCA'!$C$444/'Série - IPCA'!$C$424 -> -762182.1379 | N19: =H19*'Série - IPCA'!$C$444/'Série - IPCA'!$C$437 -> -1421561.328 | O19: -1534093.421 | Q19: S | R19: NÃO | S19: SIM | T19: OPEX | U19: FIXO | V19: PESSOAL | W19: 5100 | X19: GERÊNCIA DE ENGENHARIA
D20: 0 | E20: 0 | F20: 0 | G20: 0 | H20: 0 | I20: 0 | J20: =D20*'Série - IPCA'!$C$444/'Série - IPCA'!$C$385 -> 0 | K20: =E20*'Série - IPCA'!$C$444/'Série - IPCA'!$C$398 -> 0 | L20: =F20*'Série - IPCA'!$C$444/'Série - IPCA'!$C$411 -> 0 | M20: =G20*'Série - IPCA'!$C$444/'Série - IPCA'!$C$424 -> 0 | N20: =H20*'Série - IPCA'!$C$444/'Série - IPCA'!$C$437 -> 0 | O20: 0 | Q20: S | R20: NÃO | S20: SIM | T20: ENCARGOS DE GESTÃO | U20: FIXO | V20: PESSOAL | W20: 4100 | X20: GERÊNCIA DE SERVIÇOS CORPORATIVOS
D21: 0 | E21: 9442.66 | F21: 12580.72 | G21: 15425.34 | H21: 17255.8 | I21: 10940.904 | J21: =D21*'Série - IPCA'!$C$444/'Série - IPCA'!$C$385 -> 0 | K21: =E21*'Série - IPCA'!$C$444/'Série - IPCA'!$C$398 -> 11808.82297 | L21: =F21*'Série - IPCA'!$C$444/'Série - IPCA'!$C$411 -> 14295.00692 | M21: =G21*'Série - IPCA'!$C$444/'Série - IPCA'!$C$424 -> 16568.72718 | N21: =H21*'Série - IPCA'!$C$444/'Série - IPCA'!$C$437 -> 17716.17022 | O21: 12077.74546 | Q21: N | R21: SIM | S21: NÃO | T21: OPEX | U21: FUNCIONÁRIOS | V21: PESSOAL | W21: 5100 | X21: GERÊNCIA DE ENGENHARIA
D22: 365541.06 | E22: 311870.13 | F22: 330156.42 | G22: 267375.9 | H22: 263615.01 | I22: 307711.704 | J22: =D22*'Série - IPCA'!$C$444/'Série - IPCA'!$C$385 -> 477790.2251 | K22: =E22*'Série - IPCA'!$C$444/'Série - IPCA'!$C$398 -> 390019.2483 | L22: =F22*'Série - IPCA'!$C$444/'Série - IPCA'!$C$411 -> 375144.5315 | M22: =G22*'Série - IPCA'!$C$444/'Série - IPCA'!$C$424 -> 287194.8587 | N22: =H22*'Série - IPCA'!$C$444/'Série - IPCA'!$C$437 -> 270648.0366 | O22: 360159.3801 | Q22: N | R22: SIM | S22: NÃO | T22: OPEX | U22: FUNCIONÁRIOS | V22: PESSOAL | W22: 5200 | X22: GERÊNCIA DE OPERAÇÕES
D23: 0 | E23: 0 | F23: 44069.33 | G23: 50645.19 | H23: 53809.63 | I23: 29704.83 | J23: =D23*'Série - IPCA'!$C$444/'Série - IPCA'!$C$385 -> 0 | K23: =E23*'Série - IPCA'!$C$444/'Série - IPCA'!$C$398 -> 0 | L23: =F23*'Série - IPCA'!$C$444/'Série - IPCA'!$C$411 -> 50074.35007 | M23: =G23*'Série - IPCA'!$C$444/'Série - IPCA'!$C$424 -> 54399.21169 | N23: =H23*'Série - IPCA'!$C$444/'Série - IPCA'!$C$437 -> 55245.22565 | O23: 31943.75748 | Q23: N | R23: SIM | S23: NÃO | T23: ENCARGOS DE COMERCIALIZAÇÃO | U23: FUNCIONÁRIOS | V23: PESSOAL | W23: 5300 | X23: GERÊNCIA COMERCIAL
D24: 0 | E24: 32084.63 | F24: 45095.36 | G24: 50523.29 | H24: 52782.8 | I24: 36097.216 | J24: =D24*'Série - IPCA'!$C$444/'Série - IPCA'!$C$385 -> 0 | K24: =E24*'Série - IPCA'!$C$444/'Série - IPCA'!$C$398 -> 40124.46872 | L24: =F24*'Série - IPCA'!$C$444/'Série - IPCA'!$C$411 -> 51240.19002 | M24: =G24*'Série - IPCA'!$C$444/'Série - IPCA'!$C$424 -> 54268.27598 | N24: =H24*'Série - IPCA'!$C$444/'Série - IPCA'!$C$437 -> 54191.00069 | O24: 39964.78708 | Q24: N | R24: SIM | S24: NÃO | T24: ENCARGOS DE GESTÃO | U24: FUNCIONÁRIOS | V24: PESSOAL | W24: 2410 | X24: ASSESSORIA DE SEGURANÇA DO TRABALHO
D25: 636676.74 | E25: 591033.47 | F25: 644404.1 | G25: 675201.61 | H25: 730188.92 | I25: 655500.968 | J25: =D25*'Série - IPCA'!$C$444/'Série - IPCA'!$C$385 -> 832185.3719 | K25: =E25*'Série - IPCA'!$C$444/'Série - IPCA'!$C$398 -> 739135.9657 | L25: =F25*'Série - IPCA'!$C$444/'Série - IPCA'!$C$411 -> 732212.5499 | M25: =G25*'Série - IPCA'!$C$444/'Série - IPCA'!$C$424 -> 725250.2225 | N25: =H25*'Série - IPCA'!$C$444/'Série - IPCA'!$C$437 -> 749669.7459 | O25: 755690.7712 | Q25: N | R25: SIM | S25: NÃO | T25: ENCARGOS DE GESTÃO | U25: FIXO | V25: DESPESAS_GERAIS | W25: 2300 | X25: DIRETORIA COLEGIADA - DAF
D26: 626678.47 | E26: 629936.04 | F26: 314956.23 | G26: 601689.51 | H26: 739646.83 | I26: 582581.416 | J26: =D26*'Série - IPCA'!$C$444/'Série - IPCA'!$C$385 -> 819116.8655 | K26: =E26*'Série - IPCA'!$C$444/'Série - IPCA'!$C$398 -> 787786.8292 | L26: =F26*'Série - IPCA'!$C$444/'Série - IPCA'!$C$411 -> 357873.1176 | M26: =G26*'Série - IPCA'!$C$444/'Série - IPCA'!$C$424 -> 646289.1151 | N26: =H26*'Série - IPCA'!$C$444/'Série - IPCA'!$C$437 -> 759379.985 | O26: 674089.1825 | Q26: N | R26: SIM | S26: NÃO | T26: ENCARGOS DE GESTÃO | U26: FIXO | V26: DESPESAS_GERAIS | W26: 2400 | X26: DIRETORIA COLEGIADA - DTC
D27: 0 | E27: 598.41 | F27: 1250.54 | G27: 1496.77 | H27: 1740.2 | I27: 1017.184 | J27: =D27*'Série - IPCA'!$C$444/'Série - IPCA'!$C$385 -> 0 | K27: =E27*'Série - IPCA'!$C$444/'Série - IPCA'!$C$398 -> 748.3609232 | L27: =F27*'Série - IPCA'!$C$444/'Série - IPCA'!$C$411 -> 1420.942359 | M27: =G27*'Série - IPCA'!$C$444/'Série - IPCA'!$C$424 -> 1607.716509 | N27: =H27*'Série - IPCA'!$C$444/'Série - IPCA'!$C$437 -> 1786.627072 | O27: 1112.729373 | Q27: N | R27: SIM | S27: NÃO | T27: OPEX | U27: FUNCIONÁRIOS | V27: DESPESAS_GERAIS | W27: 5100 | X27: GERÊNCIA DE ENGENHARIA
D28: 0 | E28: 1026.75 | F28: 1642.32 | G28: 2450.13 | H28: 2848.76 | I28: 1593.592 | J28: =D28*'Série - IPCA'!$C$444/'Série - IPCA'!$C$385 -> 0 | K28: =E28*'Série - IPCA'!$C$444/'Série - IPCA'!$C$398 -> 1284.035323 | L28: =F28*'Série - IPCA'!$C$444/'Série - IPCA'!$C$411 -> 1866.107486 | M28: =G28*'Série - IPCA'!$C$444/'Série - IPCA'!$C$424 -> 2631.743321 | N28: =H28*'Série - IPCA'!$C$444/'Série - IPCA'!$C$437 -> 2924.76252 | O28: 1741.32973 | Q28: N | R28: SIM | S28: NÃO | T28: OPEX | U28: FUNCIONÁRIOS | V28: DESPESAS_GERAIS | W28: 5200 | X28: GERÊNCIA DE OPERAÇÕES
D29: 0 | E29: 604.59 | F29: 866.53 | G29: 1292.76 | H29: 1503 | I29: 853.376 | J29: =D29*'Série - IPCA'!$C$444/'Série - IPCA'!$C$385 -> 0 | K29: =E29*'Série - IPCA'!$C$444/'Série - IPCA'!$C$398 -> 756.0895215 | L29: =F29*'Série - IPCA'!$C$444/'Série - IPCA'!$C$411 -> 984.6059963 | M29: =G29*'Série - IPCA'!$C$444/'Série - IPCA'!$C$424 -> 1388.584482 | N29: =H29*'Série - IPCA'!$C$444/'Série - IPCA'!$C$437 -> 1543.098775 | O29: 934.4757549 | Q29: N | R29: SIM | S29: NÃO | T29: ENCARGOS DE COMERCIALIZAÇÃO | U29: FUNCIONÁRIOS | V29: DESPESAS_GERAIS | W29: 5300 | X29: GERÊNCIA COMERCIAL
D30: 0 | E30: 24.52 | F30: 45.35 | G30: 67.65 | H30: 78.66 | I30: 43.236 | J30: =D30*'Série - IPCA'!$C$444/'Série - IPCA'!$C$385 -> 0 | K30: =E30*'Série - IPCA'!$C$444/'Série - IPCA'!$C$398 -> 30.66427673 | L30: =F30*'Série - IPCA'!$C$444/'Série - IPCA'!$C$411 -> 51.52952804 | M30: =G30*'Série - IPCA'!$C$444/'Série - IPCA'!$C$424 -> 72.66448543 | N30: =H30*'Série - IPCA'!$C$444/'Série - IPCA'!$C$437 -> 80.75858261 | O30: 47.12337456 | Q30: N | R30: SIM | S30: NÃO | T30: ENCARGOS DE GESTÃO | U30: FUNCIONÁRIOS | V30: DESPESAS_GERAIS | W30: 1005 | X30: AUDITORIA INTERNA
D31: 0 | E31: 61.61 | F31: 91.41 | G31: 136.37 | H31: 158.53 | I31: 89.584 | J31: =D31*'Série - IPCA'!$C$444/'Série - IPCA'!$C$385 -> 0 | K31: =E31*'Série - IPCA'!$C$444/'Série - IPCA'!$C$398 -> 77.04837232 | L31: =F31*'Série - IPCA'!$C$444/'Série - IPCA'!$C$411 -> 103.8658028 | M31: =G31*'Série - IPCA'!$C$444/'Série - IPCA'!$C$424 -> 146.4782835 | N31: =H31*'Série - IPCA'!$C$444/'Série - IPCA'!$C$437 -> 162.759447 | O31: 98.03038113 | Q31: N | R31: SIM | S31: NÃO | T31: ENCARGOS DE GESTÃO | U31: FUNCIONÁRIOS | V31: DESPESAS_GERAIS | W31: 2110 | X31: ASSESSORIA DA DIRETORIA EXECUTIVA
D32: 0 | E32: 73.77 | F32: 136.76 | G32: 204.02 | H32: 237.19 | I32: 130.348 | J32: =D32*'Série - IPCA'!$C$444/'Série - IPCA'!$C$385 -> 0 | K32: =E32*'Série - IPCA'!$C$444/'Série - IPCA'!$C$398 -> 92.25545246 | L32: =F32*'Série - IPCA'!$C$444/'Série - IPCA'!$C$411 -> 155.3953309 | M32: =G32*'Série - IPCA'!$C$444/'Série - IPCA'!$C$424 -> 219.1427689 | N32: =H32*'Série - IPCA'!$C$444/'Série - IPCA'!$C$437 -> 243.5180296 | O32: 142.0623164 | Q32: N | R32: SIM | S32: NÃO | T32: ENCARGOS DE GESTÃO | U32: FUNCIONÁRIOS | V32: DESPESAS_GERAIS | W32: 2120 | X32: ASSESSORIA DA PRESIDÊNCIA
D33: 0 | E33: 24.46 | F33: 45.36 | G33: 67.65 | H33: 78.66 | I33: 43.226 | J33: =D33*'Série - IPCA'!$C$444/'Série - IPCA'!$C$385 -> 0 | K33: =E33*'Série - IPCA'!$C$444/'Série - IPCA'!$C$398 -> 30.58924179 | L33: =F33*'Série - IPCA'!$C$444/'Série - IPCA'!$C$411 -> 51.54089067 | M33: =G33*'Série - IPCA'!$C$444/'Série - IPCA'!$C$424 -> 72.66448543 | N33: =H33*'Série - IPCA'!$C$444/'Série - IPCA'!$C$437 -> 80.75858261 | O33: 47.1106401 | Q33: N | R33: SIM | S33: NÃO | T33: ENCARGOS DE GESTÃO | U33: FUNCIONÁRIOS | V33: DESPESAS_GERAIS | W33: 2310 | X33: ASSESSORIA DAF
D34: 0 | E34: 28.09 | F34: 0 | G34: 0 | H34: 0 | I34: 5.618 | J34: =D34*'Série - IPCA'!$C$444/'Série - IPCA'!$C$385 -> 0 | K34: =E34*'Série - IPCA'!$C$444/'Série - IPCA'!$C$398 -> 35.12885535 | L34: =F34*'Série - IPCA'!$C$444/'Série - IPCA'!$C$411 -> 0 | M34: =G34*'Série - IPCA'!$C$444/'Série - IPCA'!$C$424 -> 0 | N34: =H34*'Série - IPCA'!$C$444/'Série - IPCA'!$C$437 -> 0 | O34: 7.025771071 | Q34: N | R34: SIM | S34: NÃO | T34: ENCARGOS DE GESTÃO | U34: FUNCIONÁRIOS | V34: DESPESAS_GERAIS | W34: 2200 | X34: DIRETORIA COLEGIADA - PRESIDÊNCIA
D35: 0 | E35: 7.01 | F35: 0 | G35: 0 | H35: 0 | I35: 1.402 | J35: =D35*'Série - IPCA'!$C$444/'Série - IPCA'!$C$385 -> 0 | K35: =E35*'Série - IPCA'!$C$444/'Série - IPCA'!$C$398 -> 8.76658156 | L35: =F35*'Série - IPCA'!$C$444/'Série - IPCA'!$C$411 -> 0 | M35: =G35*'Série - IPCA'!$C$444/'Série - IPCA'!$C$424 -> 0 | N35: =H35*'Série - IPCA'!$C$444/'Série - IPCA'!$C$437 -> 0 | O35: 1.753316312 | Q35: N | R35: SIM | S35: NÃO | T35: ENCARGOS DE GESTÃO | U35: FUNCIONÁRIOS | V35: DESPESAS_GERAIS | W35: 2300 | X35: DIRETORIA COLEGIADA - DAF
D36: 0 | E36: 7.01 | F36: 0 | G36: 0 | H36: 0 | I36: 1.402 | J36: =D36*'Série - IPCA'!$C$444/'Série - IPCA'!$C$385 -> 0 | K36: =E36*'Série - IPCA'!$C$444/'Série - IPCA'!$C$398 -> 8.76658156 | L36: =F36*'Série - IPCA'!$C$444/'Série - IPCA'!$C$411 -> 0 | M36: =G36*'Série - IPCA'!$C$444/'Série - IPCA'!$C$424 -> 0 | N36: =H36*'Série - IPCA'!$C$444/'Série - IPCA'!$C$437 -> 0 | O36: 1.753316312 | Q36: N | R36: SIM | S36: NÃO | T36: ENCARGOS DE GESTÃO | U36: FUNCIONÁRIOS | V36: DESPESAS_GERAIS | W36: 2400 | X36: DIRETORIA COLEGIADA - DTC
D37: 0 | E37: 342.53 | F37: 546.98 | G37: 816.04 | H37: 948.75 | I37: 530.86 | J37: =D37*'Série - IPCA'!$C$444/'Série - IPCA'!$C$385 -> 0 | K37: =E37*'Série - IPCA'!$C$444/'Série - IPCA'!$C$398 -> 428.3619375 | L37: =F37*'Série - IPCA'!$C$444/'Série - IPCA'!$C$411 -> 621.5131477 | M37: =G37*'Série - IPCA'!$C$444/'Série - IPCA'!$C$424 -> 876.5281107 | N37: =H37*'Série - IPCA'!$C$444/'Série - IPCA'!$C$437 -> 974.0618516 | O37: 580.0930095 | Q37: N | R37: SIM | S37: NÃO | T37: ENCARGOS DE GESTÃO | U37: FUNCIONÁRIOS | V37: DESPESAS_GERAIS | W37: 3200 | X37: GERÊNCIA DE PLANEJAMENTO E MEIO AMBIENTE
D38: 0 | E38: 119.33 | F38: 182.1 | G38: 271.67 | H38: 315.83 | I38: 177.786 | J38: =D38*'Série - IPCA'!$C$444/'Série - IPCA'!$C$385 -> 0 | K38: =E38*'Série - IPCA'!$C$444/'Série - IPCA'!$C$398 -> 149.2319797 | L38: =F38*'Série - IPCA'!$C$444/'Série - IPCA'!$C$411 -> 206.9134963 | M38: =G38*'Série - IPCA'!$C$444/'Série - IPCA'!$C$424 -> 291.8072544 | N38: =H38*'Série - IPCA'!$C$444/'Série - IPCA'!$C$437 -> 324.2560786 | O38: 194.4417618 | Q38: N | R38: SIM | S38: NÃO | T38: ENCARGOS DE GESTÃO | U38: FUNCIONÁRIOS | V38: DESPESAS_GERAIS | W38: 3300 | X38: GERÊNCIA JURÍDICA
D39: 0 | E39: 122.84 | F39: 182.1 | G39: 271.67 | H39: 315.83 | I39: 178.488 | J39: =D39*'Série - IPCA'!$C$444/'Série - IPCA'!$C$385 -> 0 | K39: =E39*'Série - IPCA'!$C$444/'Série - IPCA'!$C$398 -> 153.6215234 | L39: =F39*'Série - IPCA'!$C$444/'Série - IPCA'!$C$411 -> 206.9134963 | M39: =G39*'Série - IPCA'!$C$444/'Série - IPCA'!$C$424 -> 291.8072544 | N39: =H39*'Série - IPCA'!$C$444/'Série - IPCA'!$C$437 -> 324.2560786 | O39: 195.3196705 | Q39: N | R39: SIM | S39: NÃO | T39: ENCARGOS DE GESTÃO | U39: FUNCIONÁRIOS | V39: DESPESAS_GERAIS | W39: 3500 | X39: ASSESSORIA DE COMUNICAÇÃO INSTITUCIONAL
D40: 0 | E40: 182.98 | F40: 319.56 | G40: 476.72 | H40: 554.25 | I40: 306.702 | J40: =D40*'Série - IPCA'!$C$444/'Série - IPCA'!$C$385 -> 0 | K40: =E40*'Série - IPCA'!$C$444/'Série - IPCA'!$C$398 -> 228.8315398 | L40: =F40*'Série - IPCA'!$C$444/'Série - IPCA'!$C$411 -> 363.1042112 | M40: =G40*'Série - IPCA'!$C$444/'Série - IPCA'!$C$424 -> 512.056371 | N40: =H40*'Série - IPCA'!$C$444/'Série - IPCA'!$C$437 -> 569.0369236 | O40: 334.6058091 | Q40: N | R40: SIM | S40: NÃO | T40: ENCARGOS DE GESTÃO | U40: FUNCIONÁRIOS | V40: DESPESAS_GERAIS | W40: 3600 | X40: GERÊNCIA DE GOVERNANÇA, RISCO E COMPLIANCE
D41: 0 | E41: 537.78 | F41: 866.55 | G41: 1805.18 | H41: 1503 | I41: 942.502 | J41: =D41*'Série - IPCA'!$C$444/'Série - IPCA'!$C$385 -> 0 | K41: =E41*'Série - IPCA'!$C$444/'Série - IPCA'!$C$398 -> 672.5381215 | L41: =F41*'Série - IPCA'!$C$444/'Série - IPCA'!$C$411 -> 984.6287215 | M41: =G41*'Série - IPCA'!$C$444/'Série - IPCA'!$C$424 -> 1938.987078 | N41: =H41*'Série - IPCA'!$C$444/'Série - IPCA'!$C$437 -> 1543.098775 | O41: 1027.850539 | Q41: N | R41: SIM | S41: NÃO | T41: ENCARGOS DE GESTÃO | U41: FUNCIONÁRIOS | V41: DESPESAS_GERAIS | W41: 4100 | X41: GERÊNCIA DE SERVIÇOS CORPORATIVOS
D42: 0 | E42: 259.99 | F42: 410.23 | G42: 612.02 | H42: 711.55 | I42: 398.758 | J42: =D42*'Série - IPCA'!$C$444/'Série - IPCA'!$C$385 -> 0 | K42: =E42*'Série - IPCA'!$C$444/'Série - IPCA'!$C$398 -> 325.1388787 | L42: =F42*'Série - IPCA'!$C$444/'Série - IPCA'!$C$411 -> 466.1291794 | M42: =G42*'Série - IPCA'!$C$444/'Série - IPCA'!$C$424 -> 657.3853418 | N42: =H42*'Série - IPCA'!$C$444/'Série - IPCA'!$C$437 -> 730.5335552 | O42: 435.837391 | Q42: N | R42: SIM | S42: NÃO | T42: ENCARGOS DE GESTÃO | U42: FUNCIONÁRIOS | V42: DESPESAS_GERAIS | W42: 4200 | X42: GERÊNCIA FINANCEIRA
D43: 0 | E43: 240.52 | F43: 364.91 | G43: 544.36 | H43: 632.92 | I43: 356.542 | J43: =D43*'Série - IPCA'!$C$444/'Série - IPCA'!$C$385 -> 0 | K43: =E43*'Série - IPCA'!$C$444/'Série - IPCA'!$C$398 -> 300.7900424 | L43: =F43*'Série - IPCA'!$C$444/'Série - IPCA'!$C$411 -> 414.6337393 | M43: =G43*'Série - IPCA'!$C$444/'Série - IPCA'!$C$424 -> 584.7101151 | N43: =H43*'Série - IPCA'!$C$444/'Série - IPCA'!$C$437 -> 649.805773 | O43: 389.987934 | Q43: N | R43: SIM | S43: NÃO | T43: ENCARGOS DE GESTÃO | U43: FUNCIONÁRIOS | V43: DESPESAS_GERAIS | W43: 4300 | X43: GERÊNCIA DE TECNOLOGIA E SISTEMAS DE INFORMAÇÃO
D44: 0 | E44: 175.65 | F44: 273.5 | G44: 408.03 | H44: 474.4 | I44: 266.316 | J44: =D44*'Série - IPCA'!$C$444/'Série - IPCA'!$C$385 -> 0 | K44: =E44*'Série - IPCA'!$C$444/'Série - IPCA'!$C$398 -> 219.6647719 | L44: =F44*'Série - IPCA'!$C$444/'Série - IPCA'!$C$411 -> 310.7679365 | M44: =G44*'Série - IPCA'!$C$444/'Série - IPCA'!$C$424 -> 438.2747966 | N44: =H44*'Série - IPCA'!$C$444/'Série - IPCA'!$C$437 -> 487.0565928 | O44: 291.1528196 | Q44: N | R44: SIM | S44: NÃO | T44: ENCARGOS DE GESTÃO | U44: FUNCIONÁRIOS | V44: DESPESAS_GERAIS | W44: 4500 | X44: GERÊNCIA CONTÁBIL
D45: -8309.86 | E45: 0 | F45: 0 | G45: 0 | H45: 0 | I45: -1661.972 | J45: =D45*'Série - IPCA'!$C$444/'Série - IPCA'!$C$385 -> -10861.6249 | K45: =E45*'Série - IPCA'!$C$444/'Série - IPCA'!$C$398 -> 0 | L45: =F45*'Série - IPCA'!$C$444/'Série - IPCA'!$C$411 -> 0 | M45: =G45*'Série - IPCA'!$C$444/'Série - IPCA'!$C$424 -> 0 | N45: =H45*'Série - IPCA'!$C$444/'Série - IPCA'!$C$437 -> 0 | O45: -2172.324981 | Q45: SIM | R45: SIM | S45: NÃO | T45: ENCARGOS DE COMERCIALIZAÇÃO | U45: FIXO | V45: ALUGUÉIS | W45: 5300 | X45: GERÊNCIA COMERCIAL
D46: -18440.77 | E46: 0 | F46: 0 | G46: 0 | H46: 0 | I46: -3688.154 | J46: =D46*'Série - IPCA'!$C$444/'Série - IPCA'!$C$385 -> -24103.50194 | K46: =E46*'Série - IPCA'!$C$444/'Série - IPCA'!$C$398 -> 0 | L46: =F46*'Série - IPCA'!$C$444/'Série - IPCA'!$C$411 -> 0 | M46: =G46*'Série - IPCA'!$C$444/'Série - IPCA'!$C$424 -> 0 | N46: =H46*'Série - IPCA'!$C$444/'Série - IPCA'!$C$437 -> 0 | O46: -4820.700389 | Q46: SIM | R46: SIM | S46: NÃO | T46: ENCARGOS DE COMERCIALIZAÇÃO | U46: FIXO | V46: ALUGUÉIS | W46: 5400 | X46: GERÊNCIA COMERCIAL (inativo)
D47: -9229.24 | E47: 0 | F47: 0 | G47: 0 | H47: 0 | I47: -1845.848 | J47: =D47*'Série - IPCA'!$C$444/'Série - IPCA'!$C$385 -> -12063.32514 | K47: =E47*'Série - IPCA'!$C$444/'Série - IPCA'!$C$398 -> 0 | L47: =F47*'Série - IPCA'!$C$444/'Série - IPCA'!$C$411 -> 0 | M47: =G47*'Série - IPCA'!$C$444/'Série - IPCA'!$C$424 -> 0 | N47: =H47*'Série - IPCA'!$C$444/'Série - IPCA'!$C$437 -> 0 | O47: -2412.665027 | Q47: SIM | R47: SIM | S47: NÃO | T47: ENCARGOS DE COMERCIALIZAÇÃO | U47: FIXO | V47: ALUGUÉIS | W47: 5500 | X47: GERÊNCIA COMERCIAL (inativo)
D48: -3235.52 | E48: 0 | F48: 0 | G48: 0 | H48: 0 | I48: -647.104 | J48: =D48*'Série - IPCA'!$C$444/'Série - IPCA'!$C$385 -> -4229.073006 | K48: =E48*'Série - IPCA'!$C$444/'Série - IPCA'!$C$398 -> 0 | L48: =F48*'Série - IPCA'!$C$444/'Série - IPCA'!$C$411 -> 0 | M48: =G48*'Série - IPCA'!$C$444/'Série - IPCA'!$C$424 -> 0 | N48: =H48*'Série - IPCA'!$C$444/'Série - IPCA'!$C$437 -> 0 | O48: -845.8146011 | Q48: SIM | R48: SIM | S48: NÃO | T48: ENCARGOS DE GESTÃO | U48: FIXO | V48: ALUGUÉIS | W48: 2100 | X48: SECRETARIA
D49: -7372.75 | E49: 0 | F49: 0 | G49: 0 | H49: 0 | I49: -1474.55 | J49: =D49*'Série - IPCA'!$C$444/'Série - IPCA'!$C$385 -> -9636.750198 | K49: =E49*'Série - IPCA'!$C$444/'Série - IPCA'!$C$398 -> 0 | L49: =F49*'Série - IPCA'!$C$444/'Série - IPCA'!$C$411 -> 0 | M49: =G49*'Série - IPCA'!$C$444/'Série - IPCA'!$C$424 -> 0 | N49: =H49*'Série - IPCA'!$C$444/'Série - IPCA'!$C$437 -> 0 | O49: -1927.35004 | Q49: SIM | R49: SIM | S49: NÃO | T49: ENCARGOS DE GESTÃO | U49: FIXO | V49: ALUGUÉIS | W49: 2200 | X49: DIRETORIA COLEGIADA - PRESIDÊNCIA
D50: -1838.76 | E50: 0 | F50: 0 | G50: 0 | H50: 0 | I50: -367.752 | J50: =D50*'Série - IPCA'!$C$444/'Série - IPCA'!$C$385 -> -2403.400467 | K50: =E50*'Série - IPCA'!$C$444/'Série - IPCA'!$C$398 -> 0 | L50: =F50*'Série - IPCA'!$C$444/'Série - IPCA'!$C$411 -> 0 | M50: =G50*'Série - IPCA'!$C$444/'Série - IPCA'!$C$424 -> 0 | N50: =H50*'Série - IPCA'!$C$444/'Série - IPCA'!$C$437 -> 0 | O50: -480.6800934 | Q50: SIM | R50: SIM | S50: NÃO | T50: ENCARGOS DE GESTÃO | U50: FIXO | V50: ALUGUÉIS | W50: 2300 | X50: DIRETORIA COLEGIADA - DAF
D51: -1838.76 | E51: 0 | F51: 0 | G51: 0 | H51: 0 | I51: -367.752 | J51: =D51*'Série - IPCA'!$C$444/'Série - IPCA'!$C$385 -> -2403.400467 | K51: =E51*'Série - IPCA'!$C$444/'Série - IPCA'!$C$398 -> 0 | L51: =F51*'Série - IPCA'!$C$444/'Série - IPCA'!$C$411 -> 0 | M51: =G51*'Série - IPCA'!$C$444/'Série - IPCA'!$C$424 -> 0 | N51: =H51*'Série - IPCA'!$C$444/'Série - IPCA'!$C$437 -> 0 | O51: -480.6800934 | Q51: SIM | R51: SIM | S51: NÃO | T51: ENCARGOS DE GESTÃO | U51: FIXO | V51: ALUGUÉIS | W51: 2400 | X51: DIRETORIA COLEGIADA - DTC
D52: -7832.47 | E52: 0 | F52: 0 | G52: 0 | H52: 0 | I52: -1566.494 | J52: =D52*'Série - IPCA'!$C$444/'Série - IPCA'!$C$385 -> -10237.63953 | K52: =E52*'Série - IPCA'!$C$444/'Série - IPCA'!$C$398 -> 0 | L52: =F52*'Série - IPCA'!$C$444/'Série - IPCA'!$C$411 -> 0 | M52: =G52*'Série - IPCA'!$C$444/'Série - IPCA'!$C$424 -> 0 | N52: =H52*'Série - IPCA'!$C$444/'Série - IPCA'!$C$437 -> 0 | O52: -2047.527905 | Q52: SIM | R52: SIM | S52: NÃO | T52: ENCARGOS DE GESTÃO | U52: FIXO | V52: ALUGUÉIS | W52: 3100 | X52: SMS
D53: -4614.61 | E53: 0 | F53: 0 | G53: 0 | H53: 0 | I53: -922.922 | J53: =D53*'Série - IPCA'!$C$444/'Série - IPCA'!$C$385 -> -6031.649498 | K53: =E53*'Série - IPCA'!$C$444/'Série - IPCA'!$C$398 -> 0 | L53: =F53*'Série - IPCA'!$C$444/'Série - IPCA'!$C$411 -> 0 | M53: =G53*'Série - IPCA'!$C$444/'Série - IPCA'!$C$424 -> 0 | N53: =H53*'Série - IPCA'!$C$444/'Série - IPCA'!$C$437 -> 0 | O53: -1206.3299 | Q53: SIM | R53: SIM | S53: NÃO | T53: ENCARGOS DE GESTÃO | U53: FIXO | V53: ALUGUÉIS | W53: 3200 | X53: GERÊNCIA DE PLANEJAMENTO E MEIO AMBIENTE
D54: -5534.01 | E54: 0 | F54: 0 | G54: 0 | H54: 0 | I54: -1106.802 | J54: =D54*'Série - IPCA'!$C$444/'Série - IPCA'!$C$385 -> -7233.375873 | K54: =E54*'Série - IPCA'!$C$444/'Série - IPCA'!$C$398 -> 0 | L54: =F54*'Série - IPCA'!$C$444/'Série - IPCA'!$C$411 -> 0 | M54: =G54*'Série - IPCA'!$C$444/'Série - IPCA'!$C$424 -> 0 | N54: =H54*'Série - IPCA'!$C$444/'Série - IPCA'!$C$437 -> 0 | O54: -1446.675175 | Q54: SIM | R54: SIM | S54: NÃO | T54: ENCARGOS DE GESTÃO | U54: FIXO | V54: ALUGUÉIS | W54: 3300 | X54: GERÊNCIA JURÍDICA
D55: -6453.39 | E55: 0 | F55: 0 | G55: 0 | H55: 0 | I55: -1290.678 | J55: =D55*'Série - IPCA'!$C$444/'Série - IPCA'!$C$385 -> -8435.076106 | K55: =E55*'Série - IPCA'!$C$444/'Série - IPCA'!$C$398 -> 0 | L55: =F55*'Série - IPCA'!$C$444/'Série - IPCA'!$C$411 -> 0 | M55: =G55*'Série - IPCA'!$C$444/'Série - IPCA'!$C$424 -> 0 | N55: =H55*'Série - IPCA'!$C$444/'Série - IPCA'!$C$437 -> 0 | O55: -1687.015221 | Q55: SIM | R55: SIM | S55: NÃO | T55: ENCARGOS DE GESTÃO | U55: FIXO | V55: ALUGUÉIS | W55: 3400 | X55: MARKETING
D56: -2775.89 | E56: 0 | F56: 0 | G56: 0 | H56: 0 | I56: -555.178 | J56: =D56*'Série - IPCA'!$C$444/'Série - IPCA'!$C$385 -> -3628.301313 | K56: =E56*'Série - IPCA'!$C$444/'Série - IPCA'!$C$398 -> 0 | L56: =F56*'Série - IPCA'!$C$444/'Série - IPCA'!$C$411 -> 0 | M56: =G56*'Série - IPCA'!$C$444/'Série - IPCA'!$C$424 -> 0 | N56: =H56*'Série - IPCA'!$C$444/'Série - IPCA'!$C$437 -> 0 | O56: -725.6602627 | Q56: SIM | R56: SIM | S56: NÃO | T56: ENCARGOS DE GESTÃO | U56: FIXO | V56: ALUGUÉIS | W56: 3600 | X56: GERÊNCIA DE GOVERNANÇA, RISCO E COMPLIANCE
D57: -12786.45 | E57: 0 | F57: 0 | G57: 0 | H57: 0 | I57: -2557.29 | J57: =D57*'Série - IPCA'!$C$444/'Série - IPCA'!$C$385 -> -16712.87167 | K57: =E57*'Série - IPCA'!$C$444/'Série - IPCA'!$C$398 -> 0 | L57: =F57*'Série - IPCA'!$C$444/'Série - IPCA'!$C$411 -> 0 | M57: =G57*'Série - IPCA'!$C$444/'Série - IPCA'!$C$424 -> 0 | N57: =H57*'Série - IPCA'!$C$444/'Série - IPCA'!$C$437 -> 0 | O57: -3342.574333 | Q57: SIM | R57: SIM | S57: NÃO | T57: ENCARGOS DE GESTÃO | U57: FIXO | V57: ALUGUÉIS | W57: 4100 | X57: GERÊNCIA DE SERVIÇOS CORPORATIVOS
D58: -10148.61 | E58: 0 | F58: 0 | G58: 0 | H58: 0 | I58: -2029.722 | J58: =D58*'Série - IPCA'!$C$444/'Série - IPCA'!$C$385 -> -13265.0123 | K58: =E58*'Série - IPCA'!$C$444/'Série - IPCA'!$C$398 -> 0 | L58: =F58*'Série - IPCA'!$C$444/'Série - IPCA'!$C$411 -> 0 | M58: =G58*'Série - IPCA'!$C$444/'Série - IPCA'!$C$424 -> 0 | N58: =H58*'Série - IPCA'!$C$444/'Série - IPCA'!$C$437 -> 0 | O58: -2653.00246 | Q58: SIM | R58: SIM | S58: NÃO | T58: ENCARGOS DE GESTÃO | U58: FIXO | V58: ALUGUÉIS | W58: 4200 | X58: GERÊNCIA FINANCEIRA
D59: -11456.97 | E59: 0 | F59: 0 | G59: 0 | H59: 0 | I59: -2291.394 | J59: =D59*'Série - IPCA'!$C$444/'Série - IPCA'!$C$385 -> -14975.13925 | K59: =E59*'Série - IPCA'!$C$444/'Série - IPCA'!$C$398 -> 0 | L59: =F59*'Série - IPCA'!$C$444/'Série - IPCA'!$C$411 -> 0 | M59: =G59*'Série - IPCA'!$C$444/'Série - IPCA'!$C$424 -> 0 | N59: =H59*'Série - IPCA'!$C$444/'Série - IPCA'!$C$437 -> 0 | O59: -2995.02785 | Q59: SIM | R59: SIM | S59: NÃO | T59: ENCARGOS DE GESTÃO | U59: FIXO | V59: ALUGUÉIS | W59: 4300 | X59: GERÊNCIA DE TECNOLOGIA E SISTEMAS DE INFORMAÇÃO
D60: -7372.77 | E60: 0 | F60: 0 | G60: 0 | H60: 0 | I60: -1474.554 | J60: =D60*'Série - IPCA'!$C$444/'Série - IPCA'!$C$385 -> -9636.77634 | K60: =E60*'Série - IPCA'!$C$444/'Série - IPCA'!$C$398 -> 0 | L60: =F60*'Série - IPCA'!$C$444/'Série - IPCA'!$C$411 -> 0 | M60: =G60*'Série - IPCA'!$C$444/'Série - IPCA'!$C$424 -> 0 | N60: =H60*'Série - IPCA'!$C$444/'Série - IPCA'!$C$437 -> 0 | O60: -1927.355268 | Q60: SIM | R60: SIM | S60: NÃO | T60: ENCARGOS DE GESTÃO | U60: FIXO | V60: ALUGUÉIS | W60: 4500 | X60: GERÊNCIA CONTÁBIL
D61: -6453.39 | E61: 0 | F61: 0 | G61: 0 | H61: 0 | I61: -1290.678 | J61: =D61*'Série - IPCA'!$C$444/'Série - IPCA'!$C$385 -> -8435.076106 | K61: =E61*'Série - IPCA'!$C$444/'Série - IPCA'!$C$398 -> 0 | L61: =F61*'Série - IPCA'!$C$444/'Série - IPCA'!$C$411 -> 0 | M61: =G61*'Série - IPCA'!$C$444/'Série - IPCA'!$C$424 -> 0 | N61: =H61*'Série - IPCA'!$C$444/'Série - IPCA'!$C$437 -> 0 | O61: -1687.015221 | Q61: SIM | R61: SIM | S61: NÃO | T61: ENCARGOS DE GESTÃO | U61: FIXO | V61: ALUGUÉIS | W61: 4600 | X61: GERÊNCIA DE PESSOAS E CULTURA
D62: 0 | E62: 0 | F62: 0 | G62: 1043.65 | H62: 4245.71 | I62: 1057.872 | J62: =D62*'Série - IPCA'!$C$444/'Série - IPCA'!$C$385 -> 0 | K62: =E62*'Série - IPCA'!$C$444/'Série - IPCA'!$C$398 -> 0 | L62: =F62*'Série - IPCA'!$C$444/'Série - IPCA'!$C$411 -> 0 | M62: =G62*'Série - IPCA'!$C$444/'Série - IPCA'!$C$424 -> 1121.009464 | N62: =H62*'Série - IPCA'!$C$444/'Série - IPCA'!$C$437 -> 4358.98197 | O62: 1095.998287 | Q62: N | R62: SIM | S62: NÃO | T62: OPEX | U62: FIXO | V62: ALUGUÉIS | W62: 5100 | X62: GERÊNCIA DE ENGENHARIA
D63: 0 | E63: 0 | F63: 0 | G63: 0 | H63: 0 | I63: 0 | J63: =D63*'Série - IPCA'!$C$444/'Série - IPCA'!$C$385 -> 0 | K63: =E63*'Série - IPCA'!$C$444/'Série - IPCA'!$C$398 -> 0 | L63: =F63*'Série - IPCA'!$C$444/'Série - IPCA'!$C$411 -> 0 | M63: =G63*'Série - IPCA'!$C$444/'Série - IPCA'!$C$424 -> 0 | N63: =H63*'Série - IPCA'!$C$444/'Série - IPCA'!$C$437 -> 0 | O63: 0 | Q63: N | R63: SIM | S63: NÃO | T63: OPEX | U63: FIXO | V63: ALUGUÉIS | W63: 5200 | X63: GERÊNCIA DE OPERAÇÕES
D64: 142 | E64: 0 | F64: 0 | G64: 0 | H64: 0 | I64: 28.4 | J64: =D64*'Série - IPCA'!$C$444/'Série - IPCA'!$C$385 -> 185.6049002 | K64: =E64*'Série - IPCA'!$C$444/'Série - IPCA'!$C$398 -> 0 | L64: =F64*'Série - IPCA'!$C$444/'Série - IPCA'!$C$411 -> 0 | M64: =G64*'Série - IPCA'!$C$444/'Série - IPCA'!$C$424 -> 0 | N64: =H64*'Série - IPCA'!$C$444/'Série - IPCA'!$C$437 -> 0 | O64: 37.12098005 | Q64: N | R64: SIM | S64: NÃO | T64: ENCARGOS DE COMERCIALIZAÇÃO | U64: FIXO | V64: ALUGUÉIS | W64: 5300 | X64: GERÊNCIA COMERCIAL
D65: 0 | E65: 0 | F65: 0 | G65: 0 | H65: 663.4 | I65: 132.68 | J65: =D65*'Série - IPCA'!$C$444/'Série - IPCA'!$C$385 -> 0 | K65: =E65*'Série - IPCA'!$C$444/'Série - IPCA'!$C$398 -> 0 | L65: =F65*'Série - IPCA'!$C$444/'Série - IPCA'!$C$411 -> 0 | M65: =G65*'Série - IPCA'!$C$444/'Série - IPCA'!$C$424 -> 0 | N65: =H65*'Série - IPCA'!$C$444/'Série - IPCA'!$C$437 -> 681.0989538 | O65: 136.2197908 | Q65: N | R65: SIM | S65: NÃO | T65: ENCARGOS DE GESTÃO | U65: FIXO | V65: ALUGUÉIS | W65: 2130 | X65: ASSESSORIA DE RELAÇÕES INSTITUCIONAIS E NOVOS NEGÓCIOS
D66: 0 | E66: 0 | F66: 0 | G66: 425.17 | H66: 307.89 | I66: 146.612 | J66: =D66*'Série - IPCA'!$C$444/'Série - IPCA'!$C$385 -> 0 | K66: =E66*'Série - IPCA'!$C$444/'Série - IPCA'!$C$398 -> 0 | L66: =F66*'Série - IPCA'!$C$444/'Série - IPCA'!$C$411 -> 0 | M66: =G66*'Série - IPCA'!$C$444/'Série - IPCA'!$C$424 -> 456.6852812 | N66: =H66*'Série - IPCA'!$C$444/'Série - IPCA'!$C$437 -> 316.1042461 | O66: 154.5579055 | Q66: N | R66: SIM | S66: NÃO | T66: ENCARGOS DE GESTÃO | U66: FIXO | V66: ALUGUÉIS | W66: 2200 | X66: DIRETORIA COLEGIADA - PRESIDÊNCIA
D67: 0 | E67: 0 | F67: 0 | G67: 0 | H67: 219.41 | I67: 43.882 | J67: =D67*'Série - IPCA'!$C$444/'Série - IPCA'!$C$385 -> 0 | K67: =E67*'Série - IPCA'!$C$444/'Série - IPCA'!$C$398 -> 0 | L67: =F67*'Série - IPCA'!$C$444/'Série - IPCA'!$C$411 -> 0 | M67: =G67*'Série - IPCA'!$C$444/'Série - IPCA'!$C$424 -> 0 | N67: =H67*'Série - IPCA'!$C$444/'Série - IPCA'!$C$437 -> 225.2636742 | O67: 45.05273483 | Q67: N | R67: SIM | S67: NÃO | T67: ENCARGOS DE GESTÃO | U67: FIXO | V67: ALUGUÉIS | W67: 2400 | X67: DIRETORIA COLEGIADA - DTC
D68: 155 | E68: 0 | F68: 0 | G68: 0 | H68: 0 | I68: 31 | J68: =D68*'Série - IPCA'!$C$444/'Série - IPCA'!$C$385 -> 202.5968981 | K68: =E68*'Série - IPCA'!$C$444/'Série - IPCA'!$C$398 -> 0 | L68: =F68*'Série - IPCA'!$C$444/'Série - IPCA'!$C$411 -> 0 | M68: =G68*'Série - IPCA'!$C$444/'Série - IPCA'!$C$424 -> 0 | N68: =H68*'Série - IPCA'!$C$444/'Série - IPCA'!$C$437 -> 0 | O68: 40.51937963 | Q68: N | R68: SIM | S68: NÃO | T68: ENCARGOS DE GESTÃO | U68: FIXO | V68: ALUGUÉIS | W68: 3200 | X68: GERÊNCIA DE PLANEJAMENTO E MEIO AMBIENTE
D69: 0 | E69: 0 | F69: 0 | G69: 0 | H69: 1772.43 | I69: =AVERAGE(D69:H69) -> 354.486 | J69: =D69*'Série - IPCA'!$C$444/'Série - IPCA'!$C$385 -> 0 | K69: =E69*'Série - IPCA'!$C$444/'Série - IPCA'!$C$398 -> 0 | L69: =F69*'Série - IPCA'!$C$444/'Série - IPCA'!$C$411 -> 0 | M69: =G69*'Série - IPCA'!$C$444/'Série - IPCA'!$C$424 -> 0 | N69: =H69*'Série - IPCA'!$C$444/'Série - IPCA'!$C$437 -> 1819.716941 | O69: =AVERAGE(J69:N69) -> 363.9433882 | Q69: N | R69: SIM | S69: NÃO | T69: ENCARGOS DE GESTÃO | U69: FIXO | V69: ALUGUÉIS | W69: 4100 | X69: GERÊNCIA DE SERVIÇOS CORPORATIVOS
D70: 0 | E70: 0 | F70: 4500 | G70: 0 | H70: 0 | I70: 900 | J70: =D70*'Série - IPCA'!$C$444/'Série - IPCA'!$C$385 -> 0 | K70: =E70*'Série - IPCA'!$C$444/'Série - IPCA'!$C$398 -> 0 | L70: =F70*'Série - IPCA'!$C$444/'Série - IPCA'!$C$411 -> 5113.183598 | M70: =G70*'Série - IPCA'!$C$444/'Série - IPCA'!$C$424 -> 0 | N70: =H70*'Série - IPCA'!$C$444/'Série - IPCA'!$C$437 -> 0 | O70: 1022.63672 | Q70: N | R70: SIM | S70: NÃO | T70: OPEX | U70: EXTENSÃO | V70: ALUGUÉIS | W70: 5200 | X70: GERÊNCIA DE OPERAÇÕES
D71: 83933.33 | E71: 101756.18 | F71: 109334.33 | G71: 109290.97 | H71: 113878.26 | I71: 103638.614 | J71: =D71*'Série - IPCA'!$C$444/'Série - IPCA'!$C$385 -> 109707.3052 | K71: =E71*'Série - IPCA'!$C$444/'Série - IPCA'!$C$398 -> 127254.4724 | L71: =F71*'Série - IPCA'!$C$444/'Série - IPCA'!$C$411 -> 124232.5562 | M71: =G71*'Série - IPCA'!$C$444/'Série - IPCA'!$C$424 -> 117392.0487 | N71: =H71*'Série - IPCA'!$C$444/'Série - IPCA'!$C$437 -> 116916.4362 | O71: 119100.5637 | Q71: N | R71: SIM | S71: NÃO | T71: ENCARGOS DE GESTÃO | U71: FIXO | V71: ALUGUÉIS | W71: 4300 | X71: GERÊNCIA DE TECNOLOGIA E SISTEMAS DE INFORMAÇÃO
D72: 2663.5 | E72: 503.5 | F72: 1797.35 | G72: 498.3 | H72: 128.8 | I72: 1118.29 | J72: =D72*'Série - IPCA'!$C$444/'Série - IPCA'!$C$385 -> 3481.398956 | K72: =E72*'Série - IPCA'!$C$444/'Série - IPCA'!$C$398 -> 629.668162 | L72: =F72*'Série - IPCA'!$C$444/'Série - IPCA'!$C$411 -> 2042.262342 | M72: =G72*'Série - IPCA'!$C$444/'Série - IPCA'!$C$424 -> 535.2359659 | N72: =H72*'Série - IPCA'!$C$444/'Série - IPCA'!$C$437 -> 132.2362756 | O72: 1364.16034 | Q72: N | R72: NÃO | S72: NÃO | T72: OPEX | U72: FIXO | V72: DESPESAS_GERAIS | W72: 5100 | X72: GERÊNCIA DE ENGENHARIA
D73: 0 | E73: 4769.84 | F73: 0 | G73: 604.2 | H73: 0 | I73: 1074.808 | J73: =D73*'Série - IPCA'!$C$444/'Série - IPCA'!$C$385 -> 0 | K73: =E73*'Série - IPCA'!$C$444/'Série - IPCA'!$C$398 -> 5965.077231 | L73: =F73*'Série - IPCA'!$C$444/'Série - IPCA'!$C$411 -> 0 | M73: =G73*'Série - IPCA'!$C$444/'Série - IPCA'!$C$424 -> 648.9856925 | N73: =H73*'Série - IPCA'!$C$444/'Série - IPCA'!$C$437 -> 0 | O73: 1322.812585 | Q73: N | R73: NÃO | S73: NÃO | T73: OPEX | U73: FIXO | V73: DESPESAS_GERAIS | W73: 5200 | X73: GERÊNCIA DE OPERAÇÕES
D74: 0 | E74: 1795.49 | F74: 0 | G74: 0 | H74: 0 | I74: 359.098 | J74: =D74*'Série - IPCA'!$C$444/'Série - IPCA'!$C$385 -> 0 | K74: =E74*'Série - IPCA'!$C$444/'Série - IPCA'!$C$398 -> 2245.407921 | L74: =F74*'Série - IPCA'!$C$444/'Série - IPCA'!$C$411 -> 0 | M74: =G74*'Série - IPCA'!$C$444/'Série - IPCA'!$C$424 -> 0 | N74: =H74*'Série - IPCA'!$C$444/'Série - IPCA'!$C$437 -> 0 | O74: 449.0815842 | Q74: N | R74: NÃO | S74: NÃO | T74: ENCARGOS DE COMERCIALIZAÇÃO | U74: FIXO | V74: DESPESAS_GERAIS | W74: 5300 | X74: GERÊNCIA COMERCIAL
D75: 725 | E75: 1706.82 | F75: 0 | G75: 0 | H75: 0 | I75: 486.364 | J75: =D75*'Série - IPCA'!$C$444/'Série - IPCA'!$C$385 -> 947.6306526 | K75: =E75*'Série - IPCA'!$C$444/'Série - IPCA'!$C$398 -> 2134.518793 | L75: =F75*'Série - IPCA'!$C$444/'Série - IPCA'!$C$411 -> 0 | M75: =G75*'Série - IPCA'!$C$444/'Série - IPCA'!$C$424 -> 0 | N75: =H75*'Série - IPCA'!$C$444/'Série - IPCA'!$C$437 -> 0 | O75: 616.4298891 | Q75: N | R75: NÃO | S75: NÃO | T75: ENCARGOS DE GESTÃO | U75: FIXO | V75: DESPESAS_GERAIS | W75: 2100 | X75: SECRETARIA
D76: 1504.8 | E76: 2370.06 | F76: 598.8 | G76: 6733.26 | H76: 6961.38 | I76: 3633.66 | J76: =D76*'Série - IPCA'!$C$444/'Série - IPCA'!$C$385 -> 1966.889112 | K76: =E76*'Série - IPCA'!$C$444/'Série - IPCA'!$C$398 -> 2963.954963 | L76: =F76*'Série - IPCA'!$C$444/'Série - IPCA'!$C$411 -> 680.3942975 | M76: =G76*'Série - IPCA'!$C$444/'Série - IPCA'!$C$424 -> 7232.355849 | N76: =H76*'Série - IPCA'!$C$444/'Série - IPCA'!$C$437 -> 7147.103761 | O76: 3998.139596 | Q76: N | R76: NÃO | S76: NÃO | T76: ENCARGOS DE GESTÃO | U76: FIXO | V76: DESPESAS_GERAIS | W76: 2200 | X76: DIRETORIA COLEGIADA - PRESIDÊNCIA
D77: 1163.27 | E77: 1097.56 | F77: 0 | G77: 0 | H77: 0 | I77: 452.166 | J77: =D77*'Série - IPCA'!$C$444/'Série - IPCA'!$C$385 -> 1520.483185 | K77: =E77*'Série - IPCA'!$C$444/'Série - IPCA'!$C$398 -> 1372.589052 | L77: =F77*'Série - IPCA'!$C$444/'Série - IPCA'!$C$411 -> 0 | M77: =G77*'Série - IPCA'!$C$444/'Série - IPCA'!$C$424 -> 0 | N77: =H77*'Série - IPCA'!$C$444/'Série - IPCA'!$C$437 -> 0 | O77: 578.6144475 | Q77: N | R77: NÃO | S77: NÃO | T77: ENCARGOS DE GESTÃO | U77: FIXO | V77: DESPESAS_GERAIS | W77: 2300 | X77: DIRETORIA COLEGIADA - DAF
D78: 0 | E78: 491.35 | F78: 62.8 | G78: 134.5 | H78: 168 | I78: 171.33 | J78: =D78*'Série - IPCA'!$C$444/'Série - IPCA'!$C$385 -> 0 | K78: =E78*'Série - IPCA'!$C$444/'Série - IPCA'!$C$398 -> 614.4735877 | L78: =F78*'Série - IPCA'!$C$444/'Série - IPCA'!$C$411 -> 71.35731777 | M78: =G78*'Série - IPCA'!$C$444/'Série - IPCA'!$C$424 -> 144.4696717 | N78: =H78*'Série - IPCA'!$C$444/'Série - IPCA'!$C$437 -> 172.4820986 | O78: 200.5565352 | Q78: N | R78: NÃO | S78: NÃO | T78: ENCARGOS DE GESTÃO | U78: FIXO | V78: DESPESAS_GERAIS | W78: 2410 | X78: ASSESSORIA DE SEGURANÇA DO TRABALHO
D79: 7463.72 | E79: 0 | F79: 2307.06 | G79: 0 | H79: 0 | I79: 1954.156 | J79: =D79*'Série - IPCA'!$C$444/'Série - IPCA'!$C$385 -> 9755.654971 | K79: =E79*'Série - IPCA'!$C$444/'Série - IPCA'!$C$398 -> 0 | L79: =F79*'Série - IPCA'!$C$444/'Série - IPCA'!$C$411 -> 2621.426967 | M79: =G79*'Série - IPCA'!$C$444/'Série - IPCA'!$C$424 -> 0 | N79: =H79*'Série - IPCA'!$C$444/'Série - IPCA'!$C$437 -> 0 | O79: 2475.416388 | Q79: N | R79: NÃO | S79: NÃO | T79: ENCARGOS DE GESTÃO | U79: FIXO | V79: DESPESAS_GERAIS | W79: 3100 | X79: SMS
D80: 1024.41 | E80: 7593.5 | F80: 7663.34 | G80: 2797.97 | H80: 874.05 | I80: 3990.654 | J80: =D80*'Série - IPCA'!$C$444/'Série - IPCA'!$C$385 -> 1338.982506 | K80: =E80*'Série - IPCA'!$C$444/'Série - IPCA'!$C$398 -> 9496.296302 | L80: =F80*'Série - IPCA'!$C$444/'Série - IPCA'!$C$411 -> 8707.569866 | M80: =G80*'Série - IPCA'!$C$444/'Série - IPCA'!$C$424 -> 3005.366597 | N80: =H80*'Série - IPCA'!$C$444/'Série - IPCA'!$C$437 -> 897.3689185 | O80: 4689.116838 | Q80: N | R80: NÃO | S80: NÃO | T80: ENCARGOS DE GESTÃO | U80: FIXO | V80: DESPESAS_GERAIS | W80: 3200 | X80: GERÊNCIA DE PLANEJAMENTO E MEIO AMBIENTE
D81: 503.7 | E81: 0 | F81: 0 | G81: 1197 | H81: 0 | I81: 340.14 | J81: =D81*'Série - IPCA'!$C$444/'Série - IPCA'!$C$385 -> 658.3745651 | K81: =E81*'Série - IPCA'!$C$444/'Série - IPCA'!$C$398 -> 0 | L81: =F81*'Série - IPCA'!$C$444/'Série - IPCA'!$C$411 -> 0 | M81: =G81*'Série - IPCA'!$C$444/'Série - IPCA'!$C$424 -> 1285.726372 | N81: =H81*'Série - IPCA'!$C$444/'Série - IPCA'!$C$437 -> 0 | O81: 388.8201874 | Q81: N | R81: NÃO | S81: NÃO | T81: ENCARGOS DE GESTÃO | U81: FIXO | V81: DESPESAS_GERAIS | W81: 3300 | X81: GERÊNCIA JURÍDICA
D82: 0 | E82: 850 | F82: 1690 | G82: 7371 | H82: 23196 | I82: 6621.4 | J82: =D82*'Série - IPCA'!$C$444/'Série - IPCA'!$C$385 -> 0 | K82: =E82*'Série - IPCA'!$C$444/'Série - IPCA'!$C$398 -> 1062.994911 | L82: =F82*'Série - IPCA'!$C$444/'Série - IPCA'!$C$411 -> 1920.284507 | M82: =G82*'Série - IPCA'!$C$444/'Série - IPCA'!$C$424 -> 7917.367659 | N82: =H82*'Série - IPCA'!$C$444/'Série - IPCA'!$C$437 -> 23814.84976 | O82: 6943.099368 | Q82: N | R82: NÃO | S82: NÃO | T82: ENCARGOS DE GESTÃO | U82: FIXO | V82: DESPESAS_GERAIS | W82: 3500 | X82: ASSESSORIA DE COMUNICAÇÃO INSTITUCIONAL
D83: 0 | E83: 318.2 | F83: 152 | G83: 0 | H83: 143.97 | I83: 122.834 | J83: =D83*'Série - IPCA'!$C$444/'Série - IPCA'!$C$385 -> 0 | K83: =E83*'Série - IPCA'!$C$444/'Série - IPCA'!$C$398 -> 397.9352714 | L83: =F83*'Série - IPCA'!$C$444/'Série - IPCA'!$C$411 -> 172.7119793 | M83: =G83*'Série - IPCA'!$C$444/'Série - IPCA'!$C$424 -> 0 | N83: =H83*'Série - IPCA'!$C$444/'Série - IPCA'!$C$437 -> 147.8109985 | O83: 143.6916498 | Q83: N | R83: NÃO | S83: NÃO | T83: ENCARGOS DE GESTÃO | U83: FIXO | V83: DESPESAS_GERAIS | W83: 3600 | X83: GERÊNCIA DE GOVERNANÇA, RISCO E COMPLIANCE
D84: 0 | E84: 0 | F84: 1198.8 | G84: 0 | H84: 0 | I84: 239.76 | J84: =D84*'Série - IPCA'!$C$444/'Série - IPCA'!$C$385 -> 0 | K84: =E84*'Série - IPCA'!$C$444/'Série - IPCA'!$C$398 -> 0 | L84: =F84*'Série - IPCA'!$C$444/'Série - IPCA'!$C$411 -> 1362.152111 | M84: =G84*'Série - IPCA'!$C$444/'Série - IPCA'!$C$424 -> 0 | N84: =H84*'Série - IPCA'!$C$444/'Série - IPCA'!$C$437 -> 0 | O84: 272.4304221 | Q84: N | R84: NÃO | S84: NÃO | T84: ENCARGOS DE GESTÃO | U84: FIXO | V84: DESPESAS_GERAIS | W84: 3700 | X84: GERÊNCIA DE REGULAÇÃO
D85: 408.5 | E85: 1199.57 | F85: 145 | G85: 114 | H85: 2318.9 | I85: 837.194 | J85: =D85*'Série - IPCA'!$C$444/'Série - IPCA'!$C$385 -> 533.9408574 | K85: =E85*'Série - IPCA'!$C$444/'Série - IPCA'!$C$398 -> 1500.160948 | L85: =F85*'Série - IPCA'!$C$444/'Série - IPCA'!$C$411 -> 164.7581382 | M85: =G85*'Série - IPCA'!$C$444/'Série - IPCA'!$C$424 -> 122.4501307 | N85: =H85*'Série - IPCA'!$C$444/'Série - IPCA'!$C$437 -> 2380.766301 | O85: 940.4152749 | Q85: N | R85: NÃO | S85: NÃO | T85: ENCARGOS DE GESTÃO | U85: FIXO | V85: DESPESAS_GERAIS | W85: 4100 | X85: GERÊNCIA DE SERVIÇOS CORPORATIVOS
D86: 202577.78 | E86: 203460.16 | F86: 207979.92 | G86: 197874.61 | H86: 203325.1 | I86: 203043.514 | J86: =D86*'Série - IPCA'!$C$444/'Série - IPCA'!$C$385 -> 264784.7088 | K86: =E86*'Série - IPCA'!$C$444/'Série - IPCA'!$C$398 -> 254443.6643 | L86: =F86*'Série - IPCA'!$C$444/'Série - IPCA'!$C$411 -> 236319.8924 | M86: =G86*'Série - IPCA'!$C$444/'Série - IPCA'!$C$424 -> 212541.8583 | N86: =H86*'Série - IPCA'!$C$444/'Série - IPCA'!$C$437 -> 208749.6426 | O86: 235367.9533 | Q86: N | R86: NÃO | S86: NÃO | T86: ENCARGOS DE GESTÃO | U86: FIXO | V86: DESPESAS_GERAIS | W86: 4200 | X86: GERÊNCIA FINANCEIRA
D87: 1968 | E87: 25521.84 | F87: 2182.4 | G87: 2411.2 | H87: 2801.02 | I87: 6976.892 | J87: =D87*'Série - IPCA'!$C$444/'Série - IPCA'!$C$385 -> 2572.327068 | K87: =E87*'Série - IPCA'!$C$444/'Série - IPCA'!$C$398 -> 31917.16005 | L87: =F87*'Série - IPCA'!$C$444/'Série - IPCA'!$C$411 -> 2479.780419 | M87: =G87*'Série - IPCA'!$C$444/'Série - IPCA'!$C$424 -> 2589.927676 | N87: =H87*'Série - IPCA'!$C$444/'Série - IPCA'!$C$437 -> 2875.748857 | O87: 8486.988813 | Q87: N | R87: NÃO | S87: NÃO | T87: ENCARGOS DE GESTÃO | U87: FIXO | V87: DESPESAS_GERAIS | W87: 4500 | X87: GERÊNCIA CONTÁBIL
D88: 121577.82 | E88: 242474.09 | F88: 314555.82 | G88: 312636.7 | H88: 371129.55 | I88: 272474.796 | J88: =D88*'Série - IPCA'!$C$444/'Série - IPCA'!$C$385 -> 158911.5433 | K88: =E88*'Série - IPCA'!$C$444/'Série - IPCA'!$C$398 -> 303233.7926 | L88: =F88*'Série - IPCA'!$C$444/'Série - IPCA'!$C$411 -> 357418.1466 | M88: =G88*'Série - IPCA'!$C$444/'Série - IPCA'!$C$424 -> 335810.5681 | N88: =H88*'Série - IPCA'!$C$444/'Série - IPCA'!$C$437 -> 381030.9741 | O88: 307281.0049 | Q88: N | R88: NÃO | S88: NÃO | T88: ENCARGOS DE COMERCIALIZAÇÃO | U88: FUNCIONÁRIOS | V88: PESSOAL | W88: 5300 | X88: GERÊNCIA COMERCIAL
D89: 0 | E89: 15311.76 | F89: 15870.08 | G89: 16864.36 | H89: 21135.56 | I89: 13836.352 | J89: =D89*'Série - IPCA'!$C$444/'Série - IPCA'!$C$385 -> 0 | K89: =E89*'Série - IPCA'!$C$444/'Série - IPCA'!$C$398 -> 19148.61525 | L89: =F89*'Série - IPCA'!$C$444/'Série - IPCA'!$C$411 -> 18032.58506 | M89: =G89*'Série - IPCA'!$C$444/'Série - IPCA'!$C$424 -> 18114.41303 | N89: =H89*'Série - IPCA'!$C$444/'Série - IPCA'!$C$437 -> 21699.43896 | O89: 15399.01046 | Q89: N | R89: NÃO | S89: NÃO | T89: ENCARGOS DE GESTÃO | U89: FUNCIONÁRIOS | V89: PESSOAL | W89: 1005 | X89: AUDITORIA INTERNA
D90: 0 | E90: 0 | F90: 28660.56 | G90: 27686.88 | H90: 27763.25 | I90: 16822.138 | J90: =D90*'Série - IPCA'!$C$444/'Série - IPCA'!$C$385 -> 0 | K90: =E90*'Série - IPCA'!$C$444/'Série - IPCA'!$C$398 -> 0 | L90: =F90*'Série - IPCA'!$C$444/'Série - IPCA'!$C$411 -> 32565.93451 | M90: =G90*'Série - IPCA'!$C$444/'Série - IPCA'!$C$424 -> 29739.141 | N90: =H90*'Série - IPCA'!$C$444/'Série - IPCA'!$C$437 -> 28503.95015 | O90: 18161.80513 | Q90: N | R90: NÃO | S90: NÃO | T90: ENCARGOS DE GESTÃO | U90: FUNCIONÁRIOS | V90: PESSOAL | W90: 1010 | X90: GOVERNANÇA SOCIETÁRIA
D91: 0 | E91: 0 | F91: 0 | G91: 0 | H91: 0 | I91: 0 | J91: =D91*'Série - IPCA'!$C$444/'Série - IPCA'!$C$385 -> 0 | K91: =E91*'Série - IPCA'!$C$444/'Série - IPCA'!$C$398 -> 0 | L91: =F91*'Série - IPCA'!$C$444/'Série - IPCA'!$C$411 -> 0 | M91: =G91*'Série - IPCA'!$C$444/'Série - IPCA'!$C$424 -> 0 | N91: =H91*'Série - IPCA'!$C$444/'Série - IPCA'!$C$437 -> 0 | O91: 0 | Q91: N | R91: NÃO | S91: NÃO | T91: ENCARGOS DE GESTÃO | U91: FUNCIONÁRIOS | V91: PESSOAL | W91: 2100 | X91: SECRETARIA
D92: 6683.8 | E92: 24478.25 | F92: 22755.56 | G92: 18186.66 | H92: 13994.89 | I92: 17219.832 | J92: =D92*'Série - IPCA'!$C$444/'Série - IPCA'!$C$385 -> 8736.239663 | K92: =E92*'Série - IPCA'!$C$444/'Série - IPCA'!$C$398 -> 30612.06492 | L92: =F92*'Série - IPCA'!$C$444/'Série - IPCA'!$C$411 -> 25856.30137 | M92: =G92*'Série - IPCA'!$C$444/'Série - IPCA'!$C$424 -> 19534.72713 | N92: =H92*'Série - IPCA'!$C$444/'Série - IPCA'!$C$437 -> 14368.26189 | O92: 19821.51899 | Q92: N | R92: NÃO | S92: NÃO | T92: ENCARGOS DE GESTÃO | U92: FUNCIONÁRIOS | V92: PESSOAL | W92: 2110 | X92: ASSESSORIA DA DIRETORIA EXECUTIVA
D93: 8033.63 | E93: 31355.16 | F93: 29473.11 | G93: 29836.38 | H93: 35343.86 | I93: 26808.428 | J93: =D93*'Série - IPCA'!$C$444/'Série - IPCA'!$C$385 -> 10500.57109 | K93: =E93*'Série - IPCA'!$C$444/'Série - IPCA'!$C$398 -> 39212.20649 | L93: =F93*'Série - IPCA'!$C$444/'Série - IPCA'!$C$411 -> 33489.20503 | M93: =G93*'Série - IPCA'!$C$444/'Série - IPCA'!$C$424 -> 32047.97043 | N93: =H93*'Série - IPCA'!$C$444/'Série - IPCA'!$C$437 -> 36286.80444 | O93: 30307.3515 | Q93: N | R93: NÃO | S93: NÃO | T93: ENCARGOS DE GESTÃO | U93: FUNCIONÁRIOS | V93: PESSOAL | W93: 2120 | X93: ASSESSORIA DA PRESIDÊNCIA
D94: 0 | E94: 1198 | F94: 14986.94 | G94: 16381.2 | H94: 18773.04 | I94: 10267.836 | J94: =D94*'Série - IPCA'!$C$444/'Série - IPCA'!$C$385 -> 0 | K94: =E94*'Série - IPCA'!$C$444/'Série - IPCA'!$C$398 -> 1498.197533 | L94: =F94*'Série - IPCA'!$C$444/'Série - IPCA'!$C$411 -> 17029.10573 | M94: =G94*'Série - IPCA'!$C$444/'Série - IPCA'!$C$424 -> 17595.4393 | N94: =H94*'Série - IPCA'!$C$444/'Série - IPCA'!$C$437 -> 19273.88891 | O94: 11079.3263 | Q94: N | R94: NÃO | S94: NÃO | T94: ENCARGOS DE GESTÃO | U94: FUNCIONÁRIOS | V94: PESSOAL | W94: 2130 | X94: ASSESSORIA DE RELAÇÕES INSTITUCIONAIS E NOVOS NEGÓCIOS
D95: 17679.34 | E95: 406.52 | F95: 0 | G95: 0 | H95: 350 | I95: 3687.172 | J95: =D95*'Série - IPCA'!$C$444/'Série - IPCA'!$C$385 -> 23108.25448 | K95: =E95*'Série - IPCA'!$C$444/'Série - IPCA'!$C$398 -> 508.3866956 | L95: =F95*'Série - IPCA'!$C$444/'Série - IPCA'!$C$411 -> 0 | M95: =G95*'Série - IPCA'!$C$444/'Série - IPCA'!$C$424 -> 0 | N95: =H95*'Série - IPCA'!$C$444/'Série - IPCA'!$C$437 -> 359.3377055 | O95: 4795.195777 | Q95: N | R95: NÃO | S95: NÃO | T95: ENCARGOS DE GESTÃO | U95: FUNCIONÁRIOS | V95: PESSOAL | W95: 2200 | X95: DIRETORIA COLEGIADA - PRESIDÊNCIA
D96: -100.27 | E96: 12951.45 | F96: 13543.82 | G96: 0 | H96: 0 | I96: 5279 | J96: =D96*'Série - IPCA'!$C$444/'Série - IPCA'!$C$385 -> -131.0605869 | K96: =E96*'Série - IPCA'!$C$444/'Série - IPCA'!$C$398 -> 16196.85346 | L96: =F96*'Série - IPCA'!$C$444/'Série - IPCA'!$C$411 -> 15389.34184 | M96: =G96*'Série - IPCA'!$C$444/'Série - IPCA'!$C$424 -> 0 | N96: =H96*'Série - IPCA'!$C$444/'Série - IPCA'!$C$437 -> 0 | O96: 6291.026943 | Q96: N | R96: NÃO | S96: NÃO | T96: ENCARGOS DE GESTÃO | U96: FUNCIONÁRIOS | V96: PESSOAL | W96: 2300 | X96: DIRETORIA COLEGIADA - DAF
D97: 0 | E97: 1522.82 | F97: 827.6 | G97: 483.16 | H97: 928.08 | I97: 752.332 | J97: =D97*'Série - IPCA'!$C$444/'Série - IPCA'!$C$385 -> 0 | K97: =E97*'Série - IPCA'!$C$444/'Série - IPCA'!$C$398 -> 1904.411659 | L97: =F97*'Série - IPCA'!$C$444/'Série - IPCA'!$C$411 -> 940.3712769 | M97: =G97*'Série - IPCA'!$C$444/'Série - IPCA'!$C$424 -> 518.9737292 | N97: =H97*'Série - IPCA'!$C$444/'Série - IPCA'!$C$437 -> 952.8403934 | O97: 863.3194118 | Q97: N | R97: NÃO | S97: NÃO | T97: ENCARGOS DE GESTÃO | U97: FUNCIONÁRIOS | V97: PESSOAL | W97: 2310 | X97: ASSESSORIA DAF
D98: 9185.28 | E98: 101.38 | F98: 0 | G98: 0 | H98: 0 | I98: 1857.332 | J98: =D98*'Série - IPCA'!$C$444/'Série - IPCA'!$C$385 -> 12005.86604 | K98: =E98*'Série - IPCA'!$C$444/'Série - IPCA'!$C$398 -> 126.7840283 | L98: =F98*'Série - IPCA'!$C$444/'Série - IPCA'!$C$411 -> 0 | M98: =G98*'Série - IPCA'!$C$444/'Série - IPCA'!$C$424 -> 0 | N98: =H98*'Série - IPCA'!$C$444/'Série - IPCA'!$C$437 -> 0 | O98: 2426.530014 | Q98: N | R98: NÃO | S98: NÃO | T98: ENCARGOS DE GESTÃO | U98: FUNCIONÁRIOS | V98: PESSOAL | W98: 2400 | X98: DIRETORIA COLEGIADA - DTC
D99: 16886.04 | E99: 52759.89 | F99: 56098.14 | G99: 63422.4 | H99: 81619.32 | I99: 54157.158 | J99: =D99*'Série - IPCA'!$C$444/'Série - IPCA'!$C$385 -> 22071.35049 | K99: =E99*'Série - IPCA'!$C$444/'Série - IPCA'!$C$398 -> 65980.58186 | L99: =F99*'Série - IPCA'!$C$444/'Série - IPCA'!$C$411 -> 63742.24207 | M99: =G99*'Série - IPCA'!$C$444/'Série - IPCA'!$C$424 -> 68123.51901 | N99: =H99*'Série - IPCA'!$C$444/'Série - IPCA'!$C$437 -> 83796.85478 | O99: 60742.90964 | Q99: N | R99: NÃO | S99: NÃO | T99: ENCARGOS DE GESTÃO | U99: FUNCIONÁRIOS | V99: PESSOAL | W99: 2410 | X99: ASSESSORIA DE SEGURANÇA DO TRABALHO
D100: 44723.85 | E100: 25738.2 | F100: 0 | G100: 0 | H100: 0 | I100: 14092.41 | J100: =D100*'Série - IPCA'!$C$444/'Série - IPCA'!$C$385 -> 58457.50505 | K100: =E100*'Série - IPCA'!$C$444/'Série - IPCA'!$C$398 -> 32187.73602 | L100: =F100*'Série - IPCA'!$C$444/'Série - IPCA'!$C$411 -> 0 | M100: =G100*'Série - IPCA'!$C$444/'Série - IPCA'!$C$424 -> 0 | N100: =H100*'Série - IPCA'!$C$444/'Série - IPCA'!$C$437 -> 0 | O100: 18129.04821 | Q100: N | R100: NÃO | S100: NÃO | T100: ENCARGOS DE GESTÃO | U100: FUNCIONÁRIOS | V100: PESSOAL | W100: 3100 | X100: SMS
D101: 48299.61 | E101: 68778.93 | F101: 87196.68 | G101: 85542.71 | H101: 103982.48 | I101: 78760.082 | J101: =D101*'Série - IPCA'!$C$444/'Série - IPCA'!$C$385 -> 63131.29785 | K101: =E101*'Série - IPCA'!$C$444/'Série - IPCA'!$C$398 -> 86013.70891 | L101: =F101*'Série - IPCA'!$C$444/'Série - IPCA'!$C$411 -> 99078.36311 | M101: =G101*'Série - IPCA'!$C$444/'Série - IPCA'!$C$424 -> 91883.47383 | N101: =H101*'Série - IPCA'!$C$444/'Série - IPCA'!$C$437 -> 106756.6451 | O101: 89372.69775 | Q101: N | R101: NÃO | S101: NÃO | T101: ENCARGOS DE GESTÃO | U101: FUNCIONÁRIOS | V101: PESSOAL | W101: 3200 | X101: GERÊNCIA DE PLANEJAMENTO E MEIO AMBIENTE
D102: 44280.58 | E102: 53379.14 | F102: 44911.92 | G102: 43104.74 | H102: 51386.54 | I102: 47412.584 | J102: =D102*'Série - IPCA'!$C$444/'Série - IPCA'!$C$385 -> 57878.11713 | K102: =E102*'Série - IPCA'!$C$444/'Série - IPCA'!$C$398 -> 66755.00491 | L102: =F102*'Série - IPCA'!$C$444/'Série - IPCA'!$C$411 -> 51031.75393 | M102: =G102*'Série - IPCA'!$C$444/'Série - IPCA'!$C$424 -> 46299.83373 | N102: =H102*'Série - IPCA'!$C$444/'Série - IPCA'!$C$437 -> 52757.48965 | O102: 54944.43987 | Q102: N | R102: NÃO | S102: NÃO | T102: ENCARGOS DE GESTÃO | U102: FUNCIONÁRIOS | V102: PESSOAL | W102: 3300 | X102: GERÊNCIA JURÍDICA
D103: 12426.91 | E103: 46270.66 | F103: 43123.27 | G103: 41365.9 | H103: 39277.11 | I103: 36492.77 | J103: =D103*'Série - IPCA'!$C$444/'Série - IPCA'!$C$385 -> 16242.92529 | K103: =E103*'Série - IPCA'!$C$444/'Série - IPCA'!$C$398 -> 57865.26601 | L103: =F103*'Série - IPCA'!$C$444/'Série - IPCA'!$C$411 -> 48999.37708 | M103: =G103*'Série - IPCA'!$C$444/'Série - IPCA'!$C$424 -> 44432.10403 | N103: =H103*'Série - IPCA'!$C$444/'Série - IPCA'!$C$437 -> 40324.99024 | O103: 41572.93253 | Q103: N | R103: NÃO | S103: NÃO | T103: ENCARGOS DE GESTÃO | U103: FUNCIONÁRIOS | V103: PESSOAL | W103: 3500 | X103: ASSESSORIA DE COMUNICAÇÃO INSTITUCIONAL
D104: 32031.33 | E104: 62079.56 | F104: 43154.35 | G104: 56769.32 | H104: 63406.06 | I104: 51488.124 | J104: =D104*'Série - IPCA'!$C$444/'Série - IPCA'!$C$385 -> 41867.4071 | K104: =E104*'Série - IPCA'!$C$444/'Série - IPCA'!$C$398 -> 77635.59572 | L104: =F104*'Série - IPCA'!$C$444/'Série - IPCA'!$C$411 -> 49034.69214 | M104: =G104*'Série - IPCA'!$C$444/'Série - IPCA'!$C$424 -> 60977.28642 | N104: =H104*'Série - IPCA'!$C$444/'Série - IPCA'!$C$437 -> 65097.68033 | O104: 58922.53234 | Q104: N | R104: NÃO | S104: NÃO | T104: ENCARGOS DE GESTÃO | U104: FUNCIONÁRIOS | V104: PESSOAL | W104: 3600 | X104: GERÊNCIA DE GOVERNANÇA, RISCO E COMPLIANCE
D105: 0 | E105: 820.97 | F105: 9851.64 | G105: 10728.36 | H105: 12294.83 | I105: 6739.16 | J105: =D105*'Série - IPCA'!$C$444/'Série - IPCA'!$C$385 -> 0 | K105: =E105*'Série - IPCA'!$C$444/'Série - IPCA'!$C$398 -> 1026.690508 | L105: =F105*'Série - IPCA'!$C$444/'Série - IPCA'!$C$411 -> 11194.05424 | M105: =G105*'Série - IPCA'!$C$444/'Série - IPCA'!$C$424 -> 11523.58845 | N105: =H105*'Série - IPCA'!$C$444/'Série - IPCA'!$C$437 -> 12622.84572 | O105: 7273.435783 | Q105: N | R105: NÃO | S105: NÃO | T105: ENCARGOS DE GESTÃO | U105: FUNCIONÁRIOS | V105: PESSOAL | W105: 3700 | X105: GERÊNCIA DE REGULAÇÃO
D106: 88931.2 | E106: 160993 | F106: 325653.38 | G106: 67392.56 | H106: 155947.4 | I106: 159783.508 | J106: =D106*'Série - IPCA'!$C$444/'Série - IPCA'!$C$385 -> 116239.905 | K106: =E106*'Série - IPCA'!$C$444/'Série - IPCA'!$C$398 -> 201334.9879 | L106: =F106*'Série - IPCA'!$C$444/'Série - IPCA'!$C$411 -> 370027.8936 | M106: =G106*'Série - IPCA'!$C$444/'Série - IPCA'!$C$424 -> 72387.96296 | N106: =H106*'Série - IPCA'!$C$444/'Série - IPCA'!$C$437 -> 160107.9454 | O106: 184019.739 | Q106: N | R106: NÃO | S106: NÃO | T106: ENCARGOS DE GESTÃO | U106: FUNCIONÁRIOS | V106: PESSOAL | W106: 4100 | X106: GERÊNCIA DE SERVIÇOS CORPORATIVOS
D107: 82070.9 | E107: 98209.95 | F107: 82854.98 | G107: 87867.52 | H107: 105099.44 | I107: 91220.558 | J107: =D107*'Série - IPCA'!$C$444/'Série - IPCA'!$C$385 -> 107272.9662 | K107: =E107*'Série - IPCA'!$C$444/'Série - IPCA'!$C$398 -> 122819.6201 | L107: =F107*'Série - IPCA'!$C$444/'Série - IPCA'!$C$411 -> 94145.04995 | M107: =G107*'Série - IPCA'!$C$444/'Série - IPCA'!$C$424 -> 94380.60794 | N107: =H107*'Série - IPCA'!$C$444/'Série - IPCA'!$C$437 -> 107903.4046 | O107: 105304.3298 | Q107: N | R107: NÃO | S107: NÃO | T107: ENCARGOS DE GESTÃO | U107: FUNCIONÁRIOS | V107: PESSOAL | W107: 4200 | X107: GERÊNCIA FINANCEIRA
D108: 87597.41 | E108: 110015.4 | F108: 98017.89 | G108: 82418.77 | H108: 87174.1 | I108: 93044.714 | J108: =D108*'Série - IPCA'!$C$444/'Série - IPCA'!$C$385 -> 114496.539 | K108: =E108*'Série - IPCA'!$C$444/'Série - IPCA'!$C$398 -> 137583.3063 | L108: =F108*'Série - IPCA'!$C$444/'Série - IPCA'!$C$411 -> 111374.1039 | M108: =G108*'Série - IPCA'!$C$444/'Série - IPCA'!$C$424 -> 88527.97505 | N108: =H108*'Série - IPCA'!$C$444/'Série - IPCA'!$C$437 -> 89499.83163 | O108: 108296.3512 | Q108: N | R108: NÃO | S108: NÃO | T108: ENCARGOS DE GESTÃO | U108: FUNCIONÁRIOS | V108: PESSOAL | W108: 4300 | X108: GERÊNCIA DE TECNOLOGIA E SISTEMAS DE INFORMAÇÃO
D109: 58456.08 | E109: 70440.66 | F109: 71666.85 | G109: 79970.46 | H109: 92956.99 | I109: 74698.208 | J109: =D109*'Série - IPCA'!$C$444/'Série - IPCA'!$C$385 -> 76406.58378 | K109: =E109*'Série - IPCA'!$C$444/'Série - IPCA'!$C$398 -> 88091.83895 | L109: =F109*'Série - IPCA'!$C$444/'Série - IPCA'!$C$411 -> 81432.39154 | M109: =G109*'Série - IPCA'!$C$444/'Série - IPCA'!$C$424 -> 85898.18663 | N109: =H109*'Série - IPCA'!$C$444/'Série - IPCA'!$C$437 -> 95437.00427 | O109: 85453.20104 | Q109: N | R109: NÃO | S109: NÃO | T109: ENCARGOS DE GESTÃO | U109: FUNCIONÁRIOS | V109: PESSOAL | W109: 4500 | X109: GERÊNCIA CONTÁBIL
D110: 51661.61 | E110: 0 | F110: 0 | G110: 0 | H110: 9636.06 | I110: 12259.534 | J110: =D110*'Série - IPCA'!$C$444/'Série - IPCA'!$C$385 -> 67525.68993 | K110: =E110*'Série - IPCA'!$C$444/'Série - IPCA'!$C$398 -> 0 | L110: =F110*'Série - IPCA'!$C$444/'Série - IPCA'!$C$411 -> 0 | M110: =G110*'Série - IPCA'!$C$444/'Série - IPCA'!$C$424 -> 0 | N110: =H110*'Série - IPCA'!$C$444/'Série - IPCA'!$C$437 -> 9893.141972 | O110: 15483.76638 | Q110: N | R110: NÃO | S110: NÃO | T110: ENCARGOS DE GESTÃO | U110: FUNCIONÁRIOS | V110: PESSOAL | W110: 4600 | X110: GERÊNCIA DE PESSOAS E CULTURA
D111: 263536.54 | E111: 291931.44 | F111: 140077.92 | G111: 129079.07 | H111: 168788.42 | I111: 198682.678 | J111: =D111*'Série - IPCA'!$C$444/'Série - IPCA'!$C$385 -> 344462.4874 | K111: =E111*'Série - IPCA'!$C$444/'Série - IPCA'!$C$398 -> 365084.2766 | L111: =F111*'Série - IPCA'!$C$444/'Série - IPCA'!$C$411 -> 159165.3607 | M111: =G111*'Série - IPCA'!$C$444/'Série - IPCA'!$C$424 -> 138646.9209 | N111: =H111*'Série - IPCA'!$C$444/'Série - IPCA'!$C$437 -> 173291.553 | O111: 236130.1197 | Q111: N | R111: NÃO | S111: NÃO | T111: OPEX | U111: FUNCIONÁRIOS | V111: PESSOAL | W111: 5100 | X111: GERÊNCIA DE ENGENHARIA
D112: 415267.13 | E112: 515047 | F112: 486137.1 | G112: 509385.22 | H112: 579861.13 | I112: 501139.516 | J112: =D112*'Série - IPCA'!$C$444/'Série - IPCA'!$C$385 -> 542786.0157 | K112: =E112*'Série - IPCA'!$C$444/'Série - IPCA'!$C$398 -> 644108.6352 | L112: =F112*'Série - IPCA'!$C$444/'Série - IPCA'!$C$411 -> 552379.6103 | M112: =G112*'Série - IPCA'!$C$444/'Série - IPCA'!$C$424 -> 547142.8662 | N112: =H112*'Série - IPCA'!$C$444/'Série - IPCA'!$C$437 -> 595331.337 | O112: 576349.6929 | Q112: N | R112: NÃO | S112: NÃO | T112: OPEX | U112: FUNCIONÁRIOS | V112: PESSOAL | W112: 5200 | X112: GERÊNCIA DE OPERAÇÕES
D113: 70393.17 | E113: 0 | F113: 0 | G113: 0 | H113: 0 | I113: 14078.634 | J113: =D113*'Série - IPCA'!$C$444/'Série - IPCA'!$C$385 -> 92009.27672 | K113: =E113*'Série - IPCA'!$C$444/'Série - IPCA'!$C$398 -> 0 | L113: =F113*'Série - IPCA'!$C$444/'Série - IPCA'!$C$411 -> 0 | M113: =G113*'Série - IPCA'!$C$444/'Série - IPCA'!$C$424 -> 0 | N113: =H113*'Série - IPCA'!$C$444/'Série - IPCA'!$C$437 -> 0 | O113: 18401.85534 | Q113: N | R113: NÃO | S113: NÃO | T113: ENCARGOS DE COMERCIALIZAÇÃO | U113: FUNCIONÁRIOS | V113: PESSOAL | W113: 5400 | X113: GERÊNCIA COMERCIAL (inativo)
D114: 40807.8 | E114: 0 | F114: 0 | G114: 0 | H114: 0 | I114: 8161.56 | J114: =D114*'Série - IPCA'!$C$444/'Série - IPCA'!$C$385 -> 53338.9271 | K114: =E114*'Série - IPCA'!$C$444/'Série - IPCA'!$C$398 -> 0 | L114: =F114*'Série - IPCA'!$C$444/'Série - IPCA'!$C$411 -> 0 | M114: =G114*'Série - IPCA'!$C$444/'Série - IPCA'!$C$424 -> 0 | N114: =H114*'Série - IPCA'!$C$444/'Série - IPCA'!$C$437 -> 0 | O114: 10667.78542 | Q114: N | R114: NÃO | S114: NÃO | T114: ENCARGOS DE COMERCIALIZAÇÃO | U114: FUNCIONÁRIOS | V114: PESSOAL | W114: 5500 | X114: GERÊNCIA COMERCIAL (inativo)
D115: 27467.15 | E115: 0 | F115: 0 | G115: 0 | H115: 0 | I115: 5493.43 | J115: =D115*'Série - IPCA'!$C$444/'Série - IPCA'!$C$385 -> 35901.67349 | K115: =E115*'Série - IPCA'!$C$444/'Série - IPCA'!$C$398 -> 0 | L115: =F115*'Série - IPCA'!$C$444/'Série - IPCA'!$C$411 -> 0 | M115: =G115*'Série - IPCA'!$C$444/'Série - IPCA'!$C$424 -> 0 | N115: =H115*'Série - IPCA'!$C$444/'Série - IPCA'!$C$437 -> 0 | O115: 7180.334698 | Q115: N | R115: NÃO | S115: NÃO | T115: ENCARGOS DE GESTÃO | U115: FUNCIONÁRIOS | V115: PESSOAL | W115: 2100 | X115: SECRETARIA
D116: 43743.13 | E116: 0 | F116: 0 | G116: 0 | H116: 0 | I116: 8748.626 | J116: =D116*'Série - IPCA'!$C$444/'Série - IPCA'!$C$385 -> 57175.62873 | K116: =E116*'Série - IPCA'!$C$444/'Série - IPCA'!$C$398 -> 0 | L116: =F116*'Série - IPCA'!$C$444/'Série - IPCA'!$C$411 -> 0 | M116: =G116*'Série - IPCA'!$C$444/'Série - IPCA'!$C$424 -> 0 | N116: =H116*'Série - IPCA'!$C$444/'Série - IPCA'!$C$437 -> 0 | O116: 11435.12575 | Q116: N | R116: NÃO | S116: NÃO | T116: ENCARGOS DE GESTÃO | U116: FUNCIONÁRIOS | V116: PESSOAL | W116: 3400 | X116: MARKETING
D117: 67412.74 | E117: 0 | F117: 0 | G117: 0 | H117: 0 | I117: 13482.548 | J117: =D117*'Série - IPCA'!$C$444/'Série - IPCA'!$C$385 -> 88113.62593 | K117: =E117*'Série - IPCA'!$C$444/'Série - IPCA'!$C$398 -> 0 | L117: =F117*'Série - IPCA'!$C$444/'Série - IPCA'!$C$411 -> 0 | M117: =G117*'Série - IPCA'!$C$444/'Série - IPCA'!$C$424 -> 0 | N117: =H117*'Série - IPCA'!$C$444/'Série - IPCA'!$C$437 -> 0 | O117: 17622.72519 | Q117: N | R117: SIM | S117: NÃO | T117: ENCARGOS DE COMERCIALIZAÇÃO | U117: FIXO | V117: DESPESAS_INSTITUCIONAIS | W117: 5400 | X117: GERÊNCIA COMERCIAL (inativo)
D118: 33738.7 | E118: 0 | F118: 0 | G118: 0 | H118: 0 | I118: 6747.74 | J118: =D118*'Série - IPCA'!$C$444/'Série - IPCA'!$C$385 -> 44099.07076 | K118: =E118*'Série - IPCA'!$C$444/'Série - IPCA'!$C$398 -> 0 | L118: =F118*'Série - IPCA'!$C$444/'Série - IPCA'!$C$411 -> 0 | M118: =G118*'Série - IPCA'!$C$444/'Série - IPCA'!$C$424 -> 0 | N118: =H118*'Série - IPCA'!$C$444/'Série - IPCA'!$C$437 -> 0 | O118: 8819.814151 | Q118: N | R118: SIM | S118: NÃO | T118: ENCARGOS DE COMERCIALIZAÇÃO | U118: FIXO | V118: DESPESAS_INSTITUCIONAIS | W118: 5500 | X118: GERÊNCIA COMERCIAL (inativo)
D119: 11827.97 | E119: 0 | F119: 0 | G119: 0 | H119: 0 | I119: 2365.594 | J119: =D119*'Série - IPCA'!$C$444/'Série - IPCA'!$C$385 -> 15460.06473 | K119: =E119*'Série - IPCA'!$C$444/'Série - IPCA'!$C$398 -> 0 | L119: =F119*'Série - IPCA'!$C$444/'Série - IPCA'!$C$411 -> 0 | M119: =G119*'Série - IPCA'!$C$444/'Série - IPCA'!$C$424 -> 0 | N119: =H119*'Série - IPCA'!$C$444/'Série - IPCA'!$C$437 -> 0 | O119: 3092.012946 | Q119: N | R119: SIM | S119: NÃO | T119: ENCARGOS DE GESTÃO | U119: FIXO | V119: DESPESAS_INSTITUCIONAIS | W119: 2100 | X119: SECRETARIA
D120: 26952.18 | E120: 0 | F120: 0 | G120: 0 | H120: 0 | I120: 5390.436 | J120: =D120*'Série - IPCA'!$C$444/'Série - IPCA'!$C$385 -> 35228.56817 | K120: =E120*'Série - IPCA'!$C$444/'Série - IPCA'!$C$398 -> 0 | L120: =F120*'Série - IPCA'!$C$444/'Série - IPCA'!$C$411 -> 0 | M120: =G120*'Série - IPCA'!$C$444/'Série - IPCA'!$C$424 -> 0 | N120: =H120*'Série - IPCA'!$C$444/'Série - IPCA'!$C$437 -> 0 | O120: 7045.713634 | Q120: N | R120: SIM | S120: NÃO | T120: ENCARGOS DE GESTÃO | U120: FIXO | V120: DESPESAS_INSTITUCIONAIS | W120: 2200 | X120: DIRETORIA COLEGIADA - PRESIDÊNCIA
D121: 9221.88 | E121: 0 | F121: 0 | G121: 0 | H121: 0 | I121: 1844.376 | J121: =D121*'Série - IPCA'!$C$444/'Série - IPCA'!$C$385 -> 12053.70505 | K121: =E121*'Série - IPCA'!$C$444/'Série - IPCA'!$C$398 -> 0 | L121: =F121*'Série - IPCA'!$C$444/'Série - IPCA'!$C$411 -> 0 | M121: =G121*'Série - IPCA'!$C$444/'Série - IPCA'!$C$424 -> 0 | N121: =H121*'Série - IPCA'!$C$444/'Série - IPCA'!$C$437 -> 0 | O121: 2410.74101 | Q121: N | R121: SIM | S121: NÃO | T121: ENCARGOS DE GESTÃO | U121: FIXO | V121: DESPESAS_INSTITUCIONAIS | W121: 2300 | X121: DIRETORIA COLEGIADA - DAF
D122: 6721.88 | E122: 0 | F122: 0 | G122: 0 | H122: 0 | I122: 1344.376 | J122: =D122*'Série - IPCA'!$C$444/'Série - IPCA'!$C$385 -> 8786.013146 | K122: =E122*'Série - IPCA'!$C$444/'Série - IPCA'!$C$398 -> 0 | L122: =F122*'Série - IPCA'!$C$444/'Série - IPCA'!$C$411 -> 0 | M122: =G122*'Série - IPCA'!$C$444/'Série - IPCA'!$C$424 -> 0 | N122: =H122*'Série - IPCA'!$C$444/'Série - IPCA'!$C$437 -> 0 | O122: 1757.202629 | Q122: N | R122: SIM | S122: NÃO | T122: ENCARGOS DE GESTÃO | U122: FIXO | V122: DESPESAS_INSTITUCIONAIS | W122: 2400 | X122: DIRETORIA COLEGIADA - DTC
D123: 28632.65 | E123: 0 | F123: 0 | G123: 0 | H123: 0 | I123: 5726.53 | J123: =D123*'Série - IPCA'!$C$444/'Série - IPCA'!$C$385 -> 37425.07145 | K123: =E123*'Série - IPCA'!$C$444/'Série - IPCA'!$C$398 -> 0 | L123: =F123*'Série - IPCA'!$C$444/'Série - IPCA'!$C$411 -> 0 | M123: =G123*'Série - IPCA'!$C$444/'Série - IPCA'!$C$424 -> 0 | N123: =H123*'Série - IPCA'!$C$444/'Série - IPCA'!$C$437 -> 0 | O123: 7485.014291 | Q123: N | R123: SIM | S123: NÃO | T123: ENCARGOS DE GESTÃO | U123: FIXO | V123: DESPESAS_INSTITUCIONAIS | W123: 3100 | X123: SMS
D124: 16869.34 | E124: 0 | F124: 0 | G124: 0 | H124: 0 | I124: 3373.868 | J124: =D124*'Série - IPCA'!$C$444/'Série - IPCA'!$C$385 -> 22049.52231 | K124: =E124*'Série - IPCA'!$C$444/'Série - IPCA'!$C$398 -> 0 | L124: =F124*'Série - IPCA'!$C$444/'Série - IPCA'!$C$411 -> 0 | M124: =G124*'Série - IPCA'!$C$444/'Série - IPCA'!$C$424 -> 0 | N124: =H124*'Série - IPCA'!$C$444/'Série - IPCA'!$C$437 -> 0 | O124: 4409.904461 | Q124: N | R124: SIM | S124: NÃO | T124: ENCARGOS DE GESTÃO | U124: FIXO | V124: DESPESAS_INSTITUCIONAIS | W124: 3200 | X124: GERÊNCIA DE PLANEJAMENTO E MEIO AMBIENTE
D125: 47471.4 | E125: 21113.67 | F125: 2691.94 | G125: 2691.94 | H125: 3216.69 | I125: 15437.128 | J125: =D125*'Série - IPCA'!$C$444/'Série - IPCA'!$C$385 -> 62048.76381 | K125: =E125*'Série - IPCA'!$C$444/'Série - IPCA'!$C$398 -> 26404.3809 | L125: =F125*'Série - IPCA'!$C$444/'Série - IPCA'!$C$411 -> 3058.751879 | M125: =G125*'Série - IPCA'!$C$444/'Série - IPCA'!$C$424 -> 2891.477235 | N125: =H125*'Série - IPCA'!$C$444/'Série - IPCA'!$C$437 -> 3302.508582 | O125: 19541.17648 | Q125: S | T125: OPEX | V125: SERVIÇOS | W125: 5100 | X125: GERÊNCIA DE ENGENHARIA
D126: 27.8 | E126: 0 | F126: 0 | G126: 0 | H126: 0 | I126: 5.56 | J126: =D126*'Série - IPCA'!$C$444/'Série - IPCA'!$C$385 -> 36.33673399 | K126: =E126*'Série - IPCA'!$C$444/'Série - IPCA'!$C$398 -> 0 | L126: =F126*'Série - IPCA'!$C$444/'Série - IPCA'!$C$411 -> 0 | M126: =G126*'Série - IPCA'!$C$444/'Série - IPCA'!$C$424 -> 0 | N126: =H126*'Série - IPCA'!$C$444/'Série - IPCA'!$C$437 -> 0 | O126: 7.267346798 | Q126: S | R126: NÃO | T126: OPEX | V126: DESPESAS GERAIS | W126: 5100 | X126: GERÊNCIA DE ENGENHARIA
D127: 25536845.82 | E127: 28098186.46 | F127: 28142776.17 | G127: 30437686.47 | H127: 27452997.9 | I127: 27933698.56 | J127: =D127*'Série - IPCA'!$C$444/'Série - IPCA'!$C$385 -> 33378617.75 | K127: =E127*'Série - IPCA'!$C$444/'Série - IPCA'!$C$398 -> 35139093.2 | L127: =F127*'Série - IPCA'!$C$444/'Série - IPCA'!$C$411 -> 31977595.89 | M127: =G127*'Série - IPCA'!$C$444/'Série - IPCA'!$C$424 -> 32693848.12 | N127: =H127*'Série - IPCA'!$C$444/'Série - IPCA'!$C$437 -> 28185420.78 | O127: 32274915.15 | Q127: S | T127: OPEX | V127: SERVIÇOS | W127: 5200 | X127: GERÊNCIA DE OPERAÇÕES
D128: 2353554.54 | E128: 0 | F128: 0 | G128: 0 | H128: 0 | I128: 470710.908 | J128: =D128*'Série - IPCA'!$C$444/'Série - IPCA'!$C$385 -> 3076276.448 | K128: =E128*'Série - IPCA'!$C$444/'Série - IPCA'!$C$398 -> 0 | L128: =F128*'Série - IPCA'!$C$444/'Série - IPCA'!$C$411 -> 0 | M128: =G128*'Série - IPCA'!$C$444/'Série - IPCA'!$C$424 -> 0 | N128: =H128*'Série - IPCA'!$C$444/'Série - IPCA'!$C$437 -> 0 | O128: 615255.2896 | Q128: S | R128: NÃO | T128: OPEX | V128: DESPESAS GERAIS | W128: 5200 | X128: GERÊNCIA DE OPERAÇÕES
D129: 268.36 | E129: 0 | F129: 0 | G129: 0 | H129: 0 | I129: 53.672 | J129: =D129*'Série - IPCA'!$C$444/'Série - IPCA'!$C$385 -> 350.7671199 | K129: =E129*'Série - IPCA'!$C$444/'Série - IPCA'!$C$398 -> 0 | L129: =F129*'Série - IPCA'!$C$444/'Série - IPCA'!$C$411 -> 0 | M129: =G129*'Série - IPCA'!$C$444/'Série - IPCA'!$C$424 -> 0 | N129: =H129*'Série - IPCA'!$C$444/'Série - IPCA'!$C$437 -> 0 | O129: 70.15342398 | Q129: S | R129: NÃO | T129: OPEX | V129: DESPESAS GERAIS | W129: 5200 | X129: GERÊNCIA DE OPERAÇÕES
D130: 20230.31 | E130: 0 | F130: 0 | G130: 0 | H130: 0 | I130: 4046.062 | J130: =D130*'Série - IPCA'!$C$444/'Série - IPCA'!$C$385 -> 26442.56809 | K130: =E130*'Série - IPCA'!$C$444/'Série - IPCA'!$C$398 -> 0 | L130: =F130*'Série - IPCA'!$C$444/'Série - IPCA'!$C$411 -> 0 | M130: =G130*'Série - IPCA'!$C$444/'Série - IPCA'!$C$424 -> 0 | N130: =H130*'Série - IPCA'!$C$444/'Série - IPCA'!$C$437 -> 0 | O130: 5288.513619 | Q130: N | R130: SIM | S130: NÃO | T130: ENCARGOS DE GESTÃO | U130: FIXO | V130: DESPESAS_INSTITUCIONAIS | W130: 3300 | X130: GERÊNCIA JURÍDICA
D131: 23591.25 | E131: 0 | F131: 0 | G131: 0 | H131: 0 | I131: 4718.25 | J131: =D131*'Série - IPCA'!$C$444/'Série - IPCA'!$C$385 -> 30835.57467 | K131: =E131*'Série - IPCA'!$C$444/'Série - IPCA'!$C$398 -> 0 | L131: =F131*'Série - IPCA'!$C$444/'Série - IPCA'!$C$411 -> 0 | M131: =G131*'Série - IPCA'!$C$444/'Série - IPCA'!$C$424 -> 0 | N131: =H131*'Série - IPCA'!$C$444/'Série - IPCA'!$C$437 -> 0 | O131: 6167.114933 | Q131: N | R131: SIM | S131: NÃO | T131: ENCARGOS DE GESTÃO | U131: FIXO | V131: DESPESAS_INSTITUCIONAIS | W131: 3400 | X131: MARKETING
D132: 10147.45 | E132: 0 | F132: 0 | G132: 0 | H132: 0 | I132: 2029.49 | J132: =D132*'Série - IPCA'!$C$444/'Série - IPCA'!$C$385 -> 13263.49609 | K132: =E132*'Série - IPCA'!$C$444/'Série - IPCA'!$C$398 -> 0 | L132: =F132*'Série - IPCA'!$C$444/'Série - IPCA'!$C$411 -> 0 | M132: =G132*'Série - IPCA'!$C$444/'Série - IPCA'!$C$424 -> 0 | N132: =H132*'Série - IPCA'!$C$444/'Série - IPCA'!$C$437 -> 0 | O132: 2652.699218 | Q132: N | R132: SIM | S132: NÃO | T132: ENCARGOS DE GESTÃO | U132: FIXO | V132: DESPESAS_INSTITUCIONAIS | W132: 3600 | X132: GERÊNCIA DE GOVERNANÇA, RISCO E COMPLIANCE
D133: 53821.53 | E133: 0 | F133: 0 | G133: 0 | H133: 0 | I133: =AVERAGE(D133:H133) -> 10764.306 | J133: =D133*'Série - IPCA'!$C$444/'Série - IPCA'!$C$385 -> 70348.87117 | K133: =E133*'Série - IPCA'!$C$444/'Série - IPCA'!$C$398 -> 0 | L133: =F133*'Série - IPCA'!$C$444/'Série - IPCA'!$C$411 -> 0 | M133: =G133*'Série - IPCA'!$C$444/'Série - IPCA'!$C$424 -> 0 | N133: =H133*'Série - IPCA'!$C$444/'Série - IPCA'!$C$437 -> 0 | O133: =AVERAGE(J133:N133) -> 14069.77423 | Q133: N | R133: SIM | S133: NÃO | T133: ENCARGOS DE GESTÃO | U133: FIXO | V133: DESPESAS_INSTITUCIONAIS | W133: 4100 | X133: GERÊNCIA DE SERVIÇOS CORPORATIVOS
D134: 37099.65 | E134: 0 | F134: 0 | G134: 0 | H134: 0 | I134: 7419.93 | J134: =D134*'Série - IPCA'!$C$444/'Série - IPCA'!$C$385 -> 48492.0904 | K134: =E134*'Série - IPCA'!$C$444/'Série - IPCA'!$C$398 -> 0 | L134: =F134*'Série - IPCA'!$C$444/'Série - IPCA'!$C$411 -> 0 | M134: =G134*'Série - IPCA'!$C$444/'Série - IPCA'!$C$424 -> 0 | N134: =H134*'Série - IPCA'!$C$444/'Série - IPCA'!$C$437 -> 0 | O134: 9698.41808 | Q134: N | R134: SIM | S134: NÃO | T134: ENCARGOS DE GESTÃO | U134: FIXO | V134: DESPESAS_INSTITUCIONAIS | W134: 4200 | X134: GERÊNCIA FINANCEIRA
D135: 41882.55 | E135: 0 | F135: 0 | G135: 0 | H135: 0 | I135: 8376.51 | J135: =D135*'Série - IPCA'!$C$444/'Série - IPCA'!$C$385 -> 54743.70785 | K135: =E135*'Série - IPCA'!$C$444/'Série - IPCA'!$C$398 -> 0 | L135: =F135*'Série - IPCA'!$C$444/'Série - IPCA'!$C$411 -> 0 | M135: =G135*'Série - IPCA'!$C$444/'Série - IPCA'!$C$424 -> 0 | N135: =H135*'Série - IPCA'!$C$444/'Série - IPCA'!$C$437 -> 0 | O135: 10948.74157 | Q135: N | R135: SIM | S135: NÃO | T135: ENCARGOS DE GESTÃO | U135: FIXO | V135: DESPESAS_INSTITUCIONAIS | W135: 4300 | X135: GERÊNCIA DE TECNOLOGIA E SISTEMAS DE INFORMAÇÃO
D136: 26952.17 | E136: 0 | F136: 0 | G136: 0 | H136: 0 | I136: 5390.434 | J136: =D136*'Série - IPCA'!$C$444/'Série - IPCA'!$C$385 -> 35228.5551 | K136: =E136*'Série - IPCA'!$C$444/'Série - IPCA'!$C$398 -> 0 | L136: =F136*'Série - IPCA'!$C$444/'Série - IPCA'!$C$411 -> 0 | M136: =G136*'Série - IPCA'!$C$444/'Série - IPCA'!$C$424 -> 0 | N136: =H136*'Série - IPCA'!$C$444/'Série - IPCA'!$C$437 -> 0 | O136: 7045.711019 | Q136: N | R136: SIM | S136: NÃO | T136: ENCARGOS DE GESTÃO | U136: FIXO | V136: DESPESAS_INSTITUCIONAIS | W136: 4500 | X136: GERÊNCIA CONTÁBIL
D137: 23591.25 | E137: 0 | F137: 0 | G137: 0 | H137: 0 | I137: 4718.25 | J137: =D137*'Série - IPCA'!$C$444/'Série - IPCA'!$C$385 -> 30835.57467 | K137: =E137*'Série - IPCA'!$C$444/'Série - IPCA'!$C$398 -> 0 | L137: =F137*'Série - IPCA'!$C$444/'Série - IPCA'!$C$411 -> 0 | M137: =G137*'Série - IPCA'!$C$444/'Série - IPCA'!$C$424 -> 0 | N137: =H137*'Série - IPCA'!$C$444/'Série - IPCA'!$C$437 -> 0 | O137: 6167.114933 | Q137: N | R137: SIM | S137: NÃO | T137: ENCARGOS DE GESTÃO | U137: FIXO | V137: DESPESAS_INSTITUCIONAIS | W137: 4600 | X137: GERÊNCIA DE PESSOAS E CULTURA
D138: 140248.3 | E138: 0 | F138: 0 | G138: 0 | H138: 0 | I138: 28049.66 | J138: =D138*'Série - IPCA'!$C$444/'Série - IPCA'!$C$385 -> 183315.2939 | K138: =E138*'Série - IPCA'!$C$444/'Série - IPCA'!$C$398 -> 0 | L138: =F138*'Série - IPCA'!$C$444/'Série - IPCA'!$C$411 -> 0 | M138: =G138*'Série - IPCA'!$C$444/'Série - IPCA'!$C$424 -> 0 | N138: =H138*'Série - IPCA'!$C$444/'Série - IPCA'!$C$437 -> 0 | O138: 36663.05877 | Q138: N | R138: NÃO | S138: NÃO | T138: ENCARGOS DE GESTÃO | U138: FIXO | V138: DESPESAS_GERAIS | W138: 2100 | X138: SECRETARIA
D139: 8735.68 | E139: 7097.74 | F139: 19241.87 | G139: 15607.89 | H139: 11749.14 | I139: 12486.464 | J139: =D139*'Série - IPCA'!$C$444/'Série - IPCA'!$C$385 -> 11418.20433 | K139: =E139*'Série - IPCA'!$C$444/'Série - IPCA'!$C$398 -> 8876.307647 | L139: =F139*'Série - IPCA'!$C$444/'Série - IPCA'!$C$411 -> 21863.82535 | M139: =G139*'Série - IPCA'!$C$444/'Série - IPCA'!$C$424 -> 16764.80851 | N139: =H139*'Série - IPCA'!$C$444/'Série - IPCA'!$C$437 -> 12062.59717 | O139: 14197.1486 | Q139: N | R139: SIM | S139: NÃO | T139: ENCARGOS DE COMERCIALIZAÇÃO | U139: FUNCIONÁRIOS | V139: PESSOAL | W139: 5300 | X139: GERÊNCIA COMERCIAL
D140: 65517.6 | E140: 63333.68 | F140: 44514.07 | G140: 37091.61 | H140: 37141.38 | I140: 49519.668 | J140: =D140*'Série - IPCA'!$C$444/'Série - IPCA'!$C$385 -> 85636.53247 | K140: =E140*'Série - IPCA'!$C$444/'Série - IPCA'!$C$398 -> 79203.97593 | L140: =F140*'Série - IPCA'!$C$444/'Série - IPCA'!$C$411 -> 50579.69169 | M140: =G140*'Série - IPCA'!$C$444/'Série - IPCA'!$C$424 -> 39840.98676 | N140: =H140*'Série - IPCA'!$C$444/'Série - IPCA'!$C$437 -> 38132.28076 | O140: 58678.69352 | Q140: N | R140: SIM | S140: NÃO | T140: OPEX | U140: FUNCIONÁRIOS | V140: PESSOAL | W140: 5100 | X140: GERÊNCIA DE ENGENHARIA
D141: 80259.06 | E141: 70431.42 | F141: 75319.72 | G141: 101440.35 | H141: 86217.48 | I141: 82733.606 | J141: =D141*'Série - IPCA'!$C$444/'Série - IPCA'!$C$385 -> 104904.7523 | K141: =E141*'Série - IPCA'!$C$444/'Série - IPCA'!$C$398 -> 88080.28357 | L141: =F141*'Série - IPCA'!$C$444/'Série - IPCA'!$C$411 -> 85583.01265 | M141: =G141*'Série - IPCA'!$C$444/'Série - IPCA'!$C$424 -> 108959.5098 | N141: =H141*'Série - IPCA'!$C$444/'Série - IPCA'!$C$437 -> 88517.68982 | O141: 95209.04961 | Q141: N | R141: SIM | S141: NÃO | T141: OPEX | U141: FUNCIONÁRIOS | V141: PESSOAL | W141: 5200 | X141: GERÊNCIA DE OPERAÇÕES
D142: 8735.68 | E142: 0 | F142: 0 | G142: 0 | H142: 0 | I142: 1747.136 | J142: =D142*'Série - IPCA'!$C$444/'Série - IPCA'!$C$385 -> 11418.20433 | K142: =E142*'Série - IPCA'!$C$444/'Série - IPCA'!$C$398 -> 0 | L142: =F142*'Série - IPCA'!$C$444/'Série - IPCA'!$C$411 -> 0 | M142: =G142*'Série - IPCA'!$C$444/'Série - IPCA'!$C$424 -> 0 | N142: =H142*'Série - IPCA'!$C$444/'Série - IPCA'!$C$437 -> 0 | O142: 2283.640866 | Q142: N | R142: SIM | S142: NÃO | T142: ENCARGOS DE COMERCIALIZAÇÃO | U142: FUNCIONÁRIOS | V142: PESSOAL | W142: 5500 | X142: GERÊNCIA COMERCIAL (inativo)
D143: 0 | E143: 12011.56 | F143: 7687.91 | G143: 6977.61 | H143: 7556.76 | I143: 6846.768 | J143: =D143*'Série - IPCA'!$C$444/'Série - IPCA'!$C$385 -> 0 | K143: =E143*'Série - IPCA'!$C$444/'Série - IPCA'!$C$398 -> 15021.44371 | L143: =F143*'Série - IPCA'!$C$444/'Série - IPCA'!$C$411 -> 8735.487848 | M143: =G143*'Série - IPCA'!$C$444/'Série - IPCA'!$C$424 -> 7494.818037 | N143: =H143*'Série - IPCA'!$C$444/'Série - IPCA'!$C$437 -> 7758.367998 | O143: 7802.023519 | Q143: N | R143: SIM | S143: NÃO | T143: ENCARGOS DE GESTÃO | U143: FUNCIONÁRIOS | V143: PESSOAL | W143: 1005 | X143: AUDITORIA INTERNA
D144: 0 | E144: 0 | F144: 1106.69 | G144: 0 | H144: 0 | I144: 221.338 | J144: =D144*'Série - IPCA'!$C$444/'Série - IPCA'!$C$385 -> 0 | K144: =E144*'Série - IPCA'!$C$444/'Série - IPCA'!$C$398 -> 0 | L144: =F144*'Série - IPCA'!$C$444/'Série - IPCA'!$C$411 -> 1257.490924 | M144: =G144*'Série - IPCA'!$C$444/'Série - IPCA'!$C$424 -> 0 | N144: =H144*'Série - IPCA'!$C$444/'Série - IPCA'!$C$437 -> 0 | O144: 251.4981847 | Q144: N | R144: SIM | S144: NÃO | T144: ENCARGOS DE GESTÃO | U144: FUNCIONÁRIOS | V144: PESSOAL | W144: 1010 | X144: GOVERNANÇA SOCIETÁRIA
D145: 17471.36 | E145: 0 | F145: 0 | G145: 0 | H145: 0 | I145: 3494.272 | J145: =D145*'Série - IPCA'!$C$444/'Série - IPCA'!$C$385 -> 22836.40866 | K145: =E145*'Série - IPCA'!$C$444/'Série - IPCA'!$C$398 -> 0 | L145: =F145*'Série - IPCA'!$C$444/'Série - IPCA'!$C$411 -> 0 | M145: =G145*'Série - IPCA'!$C$444/'Série - IPCA'!$C$424 -> 0 | N145: =H145*'Série - IPCA'!$C$444/'Série - IPCA'!$C$437 -> 0 | O145: 4567.281732 | Q145: N | R145: SIM | S145: NÃO | T145: ENCARGOS DE GESTÃO | U145: FUNCIONÁRIOS | V145: PESSOAL | W145: 2100 | X145: SECRETARIA
D146: 4367.84 | E146: 9281.66 | F146: 6595.95 | G146: 3305.34 | H146: 0 | I146: 4710.158 | J146: =D146*'Série - IPCA'!$C$444/'Série - IPCA'!$C$385 -> 5709.102165 | K146: =E146*'Série - IPCA'!$C$444/'Série - IPCA'!$C$398 -> 11607.47923 | L146: =F146*'Série - IPCA'!$C$444/'Série - IPCA'!$C$411 -> 7494.734079 | M146: =G146*'Série - IPCA'!$C$444/'Série - IPCA'!$C$424 -> 3550.344867 | N146: =H146*'Série - IPCA'!$C$444/'Série - IPCA'!$C$437 -> 0 | O146: 5672.332068 | Q146: N | R146: SIM | S146: NÃO | T146: ENCARGOS DE GESTÃO | U146: FUNCIONÁRIOS | V146: PESSOAL | W146: 2110 | X146: ASSESSORIA DA DIRETORIA EXECUTIVA
D147: 0 | E147: 0 | F147: 0 | G147: 0 | H147: 6965.1 | I147: 1393.02 | J147: =D147*'Série - IPCA'!$C$444/'Série - IPCA'!$C$385 -> 0 | K147: =E147*'Série - IPCA'!$C$444/'Série - IPCA'!$C$398 -> 0 | L147: =F147*'Série - IPCA'!$C$444/'Série - IPCA'!$C$411 -> 0 | M147: =G147*'Série - IPCA'!$C$444/'Série - IPCA'!$C$424 -> 0 | N147: =H147*'Série - IPCA'!$C$444/'Série - IPCA'!$C$437 -> 7150.923007 | O147: 1430.184601 | Q147: N | R147: SIM | S147: NÃO | T147: ENCARGOS DE GESTÃO | U147: FUNCIONÁRIOS | V147: PESSOAL | W147: 2140 | X147: ASSESSORIA DTC
D148: 0 | E148: 5459.8 | F148: 6045.06 | G148: 0 | H148: 0 | I148: 2300.972 | J148: =D148*'Série - IPCA'!$C$444/'Série - IPCA'!$C$385 -> 0 | K148: =E148*'Série - IPCA'!$C$444/'Série - IPCA'!$C$398 -> 6827.928959 | L148: =F148*'Série - IPCA'!$C$444/'Série - IPCA'!$C$411 -> 6868.778143 | M148: =G148*'Série - IPCA'!$C$444/'Série - IPCA'!$C$424 -> 0 | N148: =H148*'Série - IPCA'!$C$444/'Série - IPCA'!$C$437 -> 0 | O148: 2739.34142 | Q148: N | R148: SIM | S148: NÃO | T148: ENCARGOS DE GESTÃO | U148: FUNCIONÁRIOS | V148: PESSOAL | W148: 2300 | X148: DIRETORIA COLEGIADA - DAF
D149: 8735.68 | E149: 0 | F149: 0 | G149: 0 | H149: 0 | I149: 1747.136 | J149: =D149*'Série - IPCA'!$C$444/'Série - IPCA'!$C$385 -> 11418.20433 | K149: =E149*'Série - IPCA'!$C$444/'Série - IPCA'!$C$398 -> 0 | L149: =F149*'Série - IPCA'!$C$444/'Série - IPCA'!$C$411 -> 0 | M149: =G149*'Série - IPCA'!$C$444/'Série - IPCA'!$C$424 -> 0 | N149: =H149*'Série - IPCA'!$C$444/'Série - IPCA'!$C$437 -> 0 | O149: 2283.640866 | Q149: N | R149: SIM | S149: NÃO | T149: ENCARGOS DE GESTÃO | U149: FUNCIONÁRIOS | V149: PESSOAL | W149: 2400 | X149: DIRETORIA COLEGIADA - DTC
D150: 6551.76 | E150: 12557.54 | F150: 13191.9 | G150: 10405.26 | H150: 6914.34 | I150: 9924.16 | J150: =D150*'Série - IPCA'!$C$444/'Série - IPCA'!$C$385 -> 8563.653247 | K150: =E150*'Série - IPCA'!$C$444/'Série - IPCA'!$C$398 -> 15704.23661 | L150: =F150*'Série - IPCA'!$C$444/'Série - IPCA'!$C$411 -> 14989.46816 | M150: =G150*'Série - IPCA'!$C$444/'Série - IPCA'!$C$424 -> 11176.539 | N150: =H150*'Série - IPCA'!$C$444/'Série - IPCA'!$C$437 -> 7098.808773 | O150: 11506.54116 | Q150: N | R150: SIM | S150: NÃO | T150: ENCARGOS DE GESTÃO | U150: FUNCIONÁRIOS | V150: PESSOAL | W150: 2410 | X150: ASSESSORIA DE SEGURANÇA DO TRABALHO
D151: 15287.44 | E151: 0 | F151: 0 | G151: 0 | H151: 0 | I151: 3057.488 | J151: =D151*'Série - IPCA'!$C$444/'Série - IPCA'!$C$385 -> 19981.85758 | K151: =E151*'Série - IPCA'!$C$444/'Série - IPCA'!$C$398 -> 0 | L151: =F151*'Série - IPCA'!$C$444/'Série - IPCA'!$C$411 -> 0 | M151: =G151*'Série - IPCA'!$C$444/'Série - IPCA'!$C$424 -> 0 | N151: =H151*'Série - IPCA'!$C$444/'Série - IPCA'!$C$437 -> 0 | O151: 3996.371515 | Q151: N | R151: SIM | S151: NÃO | T151: ENCARGOS DE GESTÃO | U151: FUNCIONÁRIOS | V151: PESSOAL | W151: 3100 | X151: SMS
D152: 26207.04 | E152: 29482.92 | F152: 21425.79 | G152: 29644.65 | H152: 30176.28 | I152: 27387.336 | J152: =D152*'Série - IPCA'!$C$444/'Série - IPCA'!$C$385 -> 34254.61299 | K152: =E152*'Série - IPCA'!$C$444/'Série - IPCA'!$C$398 -> 36870.81638 | L152: =F152*'Série - IPCA'!$C$444/'Série - IPCA'!$C$411 -> 24345.33289 | M152: =G152*'Série - IPCA'!$C$444/'Série - IPCA'!$C$424 -> 31842.02865 | N152: =H152*'Série - IPCA'!$C$444/'Série - IPCA'!$C$437 -> 30981.35776 | O152: 31658.82973 | Q152: N | R152: SIM | S152: NÃO | T152: ENCARGOS DE GESTÃO | U152: FUNCIONÁRIOS | V152: PESSOAL | W152: 3200 | X152: GERÊNCIA DE PLANEJAMENTO E MEIO AMBIENTE
D153: 19655.28 | E153: 20747.24 | F153: 17013.76 | G153: 13955.22 | H153: 8740.08 | I153: 16022.316 | J153: =D153*'Série - IPCA'!$C$444/'Série - IPCA'!$C$385 -> 25690.95974 | K153: =E153*'Série - IPCA'!$C$444/'Série - IPCA'!$C$398 -> 25946.13004 | L153: =F153*'Série - IPCA'!$C$444/'Série - IPCA'!$C$411 -> 19332.10635 | M153: =G153*'Série - IPCA'!$C$444/'Série - IPCA'!$C$424 -> 14989.63607 | N153: =H153*'Série - IPCA'!$C$444/'Série - IPCA'!$C$437 -> 8973.25798 | O153: 18986.41804 | Q153: N | R153: SIM | S153: NÃO | T153: ENCARGOS DE GESTÃO | U153: FUNCIONÁRIOS | V153: PESSOAL | W153: 3300 | X153: GERÊNCIA JURÍDICA
D154: 8735.68 | E154: 0 | F154: 0 | G154: 0 | H154: 0 | I154: 1747.136 | J154: =D154*'Série - IPCA'!$C$444/'Série - IPCA'!$C$385 -> 11418.20433 | K154: =E154*'Série - IPCA'!$C$444/'Série - IPCA'!$C$398 -> 0 | L154: =F154*'Série - IPCA'!$C$444/'Série - IPCA'!$C$411 -> 0 | M154: =G154*'Série - IPCA'!$C$444/'Série - IPCA'!$C$424 -> 0 | N154: =H154*'Série - IPCA'!$C$444/'Série - IPCA'!$C$437 -> 0 | O154: 2283.640866 | Q154: N | R154: SIM | S154: NÃO | T154: ENCARGOS DE GESTÃO | U154: FUNCIONÁRIOS | V154: PESSOAL | W154: 3400 | X154: MARKETING
D155: 2183.92 | E155: 6551.76 | F155: 6595.95 | G155: 0 | H155: 0 | I155: 3066.326 | J155: =D155*'Série - IPCA'!$C$444/'Série - IPCA'!$C$385 -> 2854.551082 | K155: =E155*'Série - IPCA'!$C$444/'Série - IPCA'!$C$398 -> 8193.514751 | L155: =F155*'Série - IPCA'!$C$444/'Série - IPCA'!$C$411 -> 7494.734079 | M155: =G155*'Série - IPCA'!$C$444/'Série - IPCA'!$C$424 -> 0 | N155: =H155*'Série - IPCA'!$C$444/'Série - IPCA'!$C$437 -> 0 | O155: 3708.559982 | Q155: N | R155: SIM | S155: NÃO | T155: ENCARGOS DE GESTÃO | U155: FUNCIONÁRIOS | V155: PESSOAL | W155: 3500 | X155: ASSESSORIA DE COMUNICAÇÃO INSTITUCIONAL
D156: 2183.92 | E156: 6551.76 | F156: 1637.94 | G156: 3672.27 | H156: 7556.76 | I156: 4320.53 | J156: =D156*'Série - IPCA'!$C$444/'Série - IPCA'!$C$385 -> 2854.551082 | K156: =E156*'Série - IPCA'!$C$444/'Série - IPCA'!$C$398 -> 8193.514751 | L156: =F156*'Série - IPCA'!$C$444/'Série - IPCA'!$C$411 -> 1861.130654 | M156: =G156*'Série - IPCA'!$C$444/'Série - IPCA'!$C$424 -> 3944.47317 | N156: =H156*'Série - IPCA'!$C$444/'Série - IPCA'!$C$437 -> 7758.367998 | O156: 4922.407531 | Q156: N | R156: SIM | S156: NÃO | T156: ENCARGOS DE GESTÃO | U156: FUNCIONÁRIOS | V156: PESSOAL | W156: 3600 | X156: GERÊNCIA DE GOVERNANÇA, RISCO E COMPLIANCE
D157: 11465.58 | E157: 25661.06 | F157: 14283.86 | G157: 8630.28 | H157: 7556.76 | I157: 13519.508 | J157: =D157*'Série - IPCA'!$C$444/'Série - IPCA'!$C$385 -> 14986.39318 | K157: =E157*'Série - IPCA'!$C$444/'Série - IPCA'!$C$398 -> 32091.26611 | L157: =F157*'Série - IPCA'!$C$444/'Série - IPCA'!$C$411 -> 16230.22193 | M157: =G157*'Série - IPCA'!$C$444/'Série - IPCA'!$C$424 -> 9269.990471 | N157: =H157*'Série - IPCA'!$C$444/'Série - IPCA'!$C$437 -> 7758.367998 | O157: 16067.24794 | Q157: N | R157: SIM | S157: NÃO | T157: ENCARGOS DE GESTÃO | U157: FUNCIONÁRIOS | V157: PESSOAL | W157: 4100 | X157: GERÊNCIA DE SERVIÇOS CORPORATIVOS
D158: 2729.9 | E158: 6005.78 | F158: 0 | G158: 0 | H158: 642.42 | I158: 1875.62 | J158: =D158*'Série - IPCA'!$C$444/'Série - IPCA'!$C$385 -> 3568.188853 | K158: =E158*'Série - IPCA'!$C$444/'Série - IPCA'!$C$398 -> 7510.721855 | L158: =F158*'Série - IPCA'!$C$444/'Série - IPCA'!$C$411 -> 0 | M158: =G158*'Série - IPCA'!$C$444/'Série - IPCA'!$C$424 -> 0 | N158: =H158*'Série - IPCA'!$C$444/'Série - IPCA'!$C$437 -> 659.559225 | O158: 2347.693987 | Q158: N | R158: SIM | S158: NÃO | T158: ENCARGOS DE GESTÃO | U158: FUNCIONÁRIOS | V158: PESSOAL | W158: 4200 | X158: GERÊNCIA FINANCEIRA
D159: 21293.22 | E159: 19655.28 | F159: 13732.97 | G159: 6977.61 | H159: 7556.76 | I159: 13843.168 | J159: =D159*'Série - IPCA'!$C$444/'Série - IPCA'!$C$385 -> 27831.87305 | K159: =E159*'Série - IPCA'!$C$444/'Série - IPCA'!$C$398 -> 24580.54425 | L159: =F159*'Série - IPCA'!$C$444/'Série - IPCA'!$C$411 -> 15604.26599 | M159: =G159*'Série - IPCA'!$C$444/'Série - IPCA'!$C$424 -> 7494.818037 | N159: =H159*'Série - IPCA'!$C$444/'Série - IPCA'!$C$437 -> 7758.367998 | O159: 16653.97387 | Q159: N | R159: SIM | S159: NÃO | T159: ENCARGOS DE GESTÃO | U159: FUNCIONÁRIOS | V159: PESSOAL | W159: 4300 | X159: GERÊNCIA DE TECNOLOGIA E SISTEMAS DE INFORMAÇÃO
D160: 1661582.16 | E160: 0 | F160: 0 | G160: 0 | H160: 0 | I160: 332316.432 | J160: =D160*'Série - IPCA'!$C$444/'Série - IPCA'!$C$385 -> 2171815.43 | K160: =E160*'Série - IPCA'!$C$444/'Série - IPCA'!$C$398 -> 0 | L160: =F160*'Série - IPCA'!$C$444/'Série - IPCA'!$C$411 -> 0 | M160: =G160*'Série - IPCA'!$C$444/'Série - IPCA'!$C$424 -> 0 | N160: =H160*'Série - IPCA'!$C$444/'Série - IPCA'!$C$437 -> 0 | O160: 434363.086 | Q160: S | T160: OPEX | V160: SERVIÇOS | W160: 4100 | X160: GERÊNCIA DE SERVIÇOS CORPORATIVOS
D161: 364849.65 | E161: 0 | F161: 0 | G161: 0 | H161: 0 | I161: 72969.93 | J161: =D161*'Série - IPCA'!$C$444/'Série - IPCA'!$C$385 -> 476886.4992 | K161: =E161*'Série - IPCA'!$C$444/'Série - IPCA'!$C$398 -> 0 | L161: =F161*'Série - IPCA'!$C$444/'Série - IPCA'!$C$411 -> 0 | M161: =G161*'Série - IPCA'!$C$444/'Série - IPCA'!$C$424 -> 0 | N161: =H161*'Série - IPCA'!$C$444/'Série - IPCA'!$C$437 -> 0 | O161: 95377.29984 | Q161: S | T161: OPEX | V161: SERVIÇOS | W161: 4100 | X161: GERÊNCIA DE SERVIÇOS CORPORATIVOS
D162: 16925.38 | E162: 13103.52 | F162: 6595.95 | G162: 6977.61 | H162: 7556.76 | I162: 10231.844 | J162: =D162*'Série - IPCA'!$C$444/'Série - IPCA'!$C$385 -> 22122.77089 | K162: =E162*'Série - IPCA'!$C$444/'Série - IPCA'!$C$398 -> 16387.0295 | L162: =F162*'Série - IPCA'!$C$444/'Série - IPCA'!$C$411 -> 7494.734079 | M162: =G162*'Série - IPCA'!$C$444/'Série - IPCA'!$C$424 -> 7494.818037 | N162: =H162*'Série - IPCA'!$C$444/'Série - IPCA'!$C$437 -> 7758.367998 | O162: 12251.5441 | Q162: N | R162: SIM | S162: NÃO | T162: ENCARGOS DE GESTÃO | U162: FUNCIONÁRIOS | V162: PESSOAL | W162: 4500 | X162: GERÊNCIA CONTÁBIL
D163: 50412.69 | E163: 17786.8 | F163: 1064.85 | G163: 42185.44 | H163: 22924.95 | I163: 26874.946 | J163: =D163*'Série - IPCA'!$C$444/'Série - IPCA'!$C$385 -> 65893.25562 | K163: =E163*'Série - IPCA'!$C$444/'Série - IPCA'!$C$398 -> 22243.85633 | L163: =F163*'Série - IPCA'!$C$444/'Série - IPCA'!$C$411 -> 1209.949679 | M163: =G163*'Série - IPCA'!$C$444/'Série - IPCA'!$C$424 -> 45312.39158 | N163: =H163*'Série - IPCA'!$C$444/'Série - IPCA'!$C$437 -> 23536.56838 | O163: 31639.20432 | Q163: N | R163: SIM | S163: NÃO | T163: OPEX | U163: FIXO | V163: TRIBUTOS_E_TAXAS_FISCAIS | W163: 5100 | X163: GERÊNCIA DE ENGENHARIA
D164: 42330.46 | E164: 37263.92 | F164: 1670.58 | G164: 86048.11 | H164: 36685.11 | I164: 40799.636 | J164: =D164*'Série - IPCA'!$C$444/'Série - IPCA'!$C$385 -> 55329.1606 | K164: =E164*'Série - IPCA'!$C$444/'Série - IPCA'!$C$398 -> 46601.59685 | L164: =F164*'Série - IPCA'!$C$444/'Série - IPCA'!$C$411 -> 1898.218279 | M164: =G164*'Série - IPCA'!$C$444/'Série - IPCA'!$C$424 -> 92426.33608 | N164: =H164*'Série - IPCA'!$C$444/'Série - IPCA'!$C$437 -> 37663.83786 | O164: 46783.82993 | Q164: N | R164: SIM | S164: NÃO | T164: OPEX | U164: FIXO | V164: TRIBUTOS_E_TAXAS_FISCAIS | W164: 5200 | X164: GERÊNCIA DE OPERAÇÕES
D165: 5459.8 | E165: 0 | F165: 0 | G165: 0 | H165: 642.42 | I165: 1220.444 | J165: =D165*'Série - IPCA'!$C$444/'Série - IPCA'!$C$385 -> 7136.377706 | K165: =E165*'Série - IPCA'!$C$444/'Série - IPCA'!$C$398 -> 0 | L165: =F165*'Série - IPCA'!$C$444/'Série - IPCA'!$C$411 -> 0 | M165: =G165*'Série - IPCA'!$C$444/'Série - IPCA'!$C$424 -> 0 | N165: =H165*'Série - IPCA'!$C$444/'Série - IPCA'!$C$437 -> 659.559225 | O165: 1559.187386 | Q165: N | R165: SIM | S165: NÃO | T165: ENCARGOS DE GESTÃO | U165: FUNCIONÁRIOS | V165: PESSOAL | W165: 4600 | X165: GERÊNCIA DE PESSOAS E CULTURA
D166: 1490.83 | E166: 0 | F166: 0 | G166: 0 | H166: 0 | I166: 298.166 | J166: =D166*'Série - IPCA'!$C$444/'Série - IPCA'!$C$385 -> 1948.629249 | K166: =E166*'Série - IPCA'!$C$444/'Série - IPCA'!$C$398 -> 0 | L166: =F166*'Série - IPCA'!$C$444/'Série - IPCA'!$C$411 -> 0 | M166: =G166*'Série - IPCA'!$C$444/'Série - IPCA'!$C$424 -> 0 | N166: =H166*'Série - IPCA'!$C$444/'Série - IPCA'!$C$437 -> 0 | O166: 389.7258499 | Q166: N | R166: SIM | S166: NÃO | T166: OPEX | U166: FUNCIONÁRIOS | V166: PESSOAL | W166: 5200 | X166: GERÊNCIA DE OPERAÇÕES
D167: 24008.14 | E167: 0 | F167: 0 | G167: 0 | H167: 0 | I167: 4801.628 | J167: =D167*'Série - IPCA'!$C$444/'Série - IPCA'!$C$385 -> 31380.4819 | K167: =E167*'Série - IPCA'!$C$444/'Série - IPCA'!$C$398 -> 0 | L167: =F167*'Série - IPCA'!$C$444/'Série - IPCA'!$C$411 -> 0 | M167: =G167*'Série - IPCA'!$C$444/'Série - IPCA'!$C$424 -> 0 | N167: =H167*'Série - IPCA'!$C$444/'Série - IPCA'!$C$437 -> 0 | O167: 6276.096379 | Q167: N | R167: SIM | S167: NÃO | T167: OPEX | U167: FUNCIONÁRIOS | V167: PESSOAL | W167: 5300 | X167: GERÊNCIA COMERCIAL
D168: 1663.3 | E168: 0 | F168: 0 | G168: 0 | H168: 0 | I168: 332.66 | J168: =D168*'Série - IPCA'!$C$444/'Série - IPCA'!$C$385 -> 2174.060779 | K168: =E168*'Série - IPCA'!$C$444/'Série - IPCA'!$C$398 -> 0 | L168: =F168*'Série - IPCA'!$C$444/'Série - IPCA'!$C$411 -> 0 | M168: =G168*'Série - IPCA'!$C$444/'Série - IPCA'!$C$424 -> 0 | N168: =H168*'Série - IPCA'!$C$444/'Série - IPCA'!$C$437 -> 0 | O168: 434.8121557 | Q168: N | R168: SIM | S168: NÃO | T168: ENCARGOS DE GESTÃO | U168: FUNCIONÁRIOS | V168: PESSOAL | W168: 4300 | X168: GERÊNCIA DE TECNOLOGIA E SISTEMAS DE INFORMAÇÃO
D169: 23608.32 | E169: 0 | F169: 0 | G169: 0 | H169: 0 | I169: 4721.664 | J169: =D169*'Série - IPCA'!$C$444/'Série - IPCA'!$C$385 -> 30857.88647 | K169: =E169*'Série - IPCA'!$C$444/'Série - IPCA'!$C$398 -> 0 | L169: =F169*'Série - IPCA'!$C$444/'Série - IPCA'!$C$411 -> 0 | M169: =G169*'Série - IPCA'!$C$444/'Série - IPCA'!$C$424 -> 0 | N169: =H169*'Série - IPCA'!$C$444/'Série - IPCA'!$C$437 -> 0 | O169: 6171.577293 | Q169: N | R169: SIM | S169: NÃO | T169: ENCARGOS DE COMERCIALIZAÇÃO | U169: FUNCIONÁRIOS | V169: PESSOAL | W169: 5400 | X169: GERÊNCIA COMERCIAL (inativo)
D170: 14749.36 | E170: 0 | F170: 0 | G170: 0 | H170: 0 | I170: 2949.872 | J170: =D170*'Série - IPCA'!$C$444/'Série - IPCA'!$C$385 -> 19278.54571 | K170: =E170*'Série - IPCA'!$C$444/'Série - IPCA'!$C$398 -> 0 | L170: =F170*'Série - IPCA'!$C$444/'Série - IPCA'!$C$411 -> 0 | M170: =G170*'Série - IPCA'!$C$444/'Série - IPCA'!$C$424 -> 0 | N170: =H170*'Série - IPCA'!$C$444/'Série - IPCA'!$C$437 -> 0 | O170: 3855.709143 | Q170: N | R170: SIM | S170: NÃO | T170: ENCARGOS DE COMERCIALIZAÇÃO | U170: FUNCIONÁRIOS | V170: PESSOAL | W170: 5500 | X170: GERÊNCIA COMERCIAL (inativo)
D171: 7869.44 | E171: 0 | F171: 0 | G171: 0 | H171: 0 | I171: 1573.888 | J171: =D171*'Série - IPCA'!$C$444/'Série - IPCA'!$C$385 -> 10285.96216 | K171: =E171*'Série - IPCA'!$C$444/'Série - IPCA'!$C$398 -> 0 | L171: =F171*'Série - IPCA'!$C$444/'Série - IPCA'!$C$411 -> 0 | M171: =G171*'Série - IPCA'!$C$444/'Série - IPCA'!$C$424 -> 0 | N171: =H171*'Série - IPCA'!$C$444/'Série - IPCA'!$C$437 -> 0 | O171: 2057.192431 | Q171: N | R171: SIM | S171: NÃO | T171: ENCARGOS DE GESTÃO | U171: FUNCIONÁRIOS | V171: PESSOAL | W171: 2100 | X171: SECRETARIA
D172: 5410.24 | E172: 0 | F172: 0 | G172: 0 | H172: 0 | I172: 1082.048 | J172: =D172*'Série - IPCA'!$C$444/'Série - IPCA'!$C$385 -> 7071.598982 | K172: =E172*'Série - IPCA'!$C$444/'Série - IPCA'!$C$398 -> 0 | L172: =F172*'Série - IPCA'!$C$444/'Série - IPCA'!$C$411 -> 0 | M172: =G172*'Série - IPCA'!$C$444/'Série - IPCA'!$C$424 -> 0 | N172: =H172*'Série - IPCA'!$C$444/'Série - IPCA'!$C$437 -> 0 | O172: 1414.319796 | Q172: N | R172: SIM | S172: NÃO | T172: ENCARGOS DE GESTÃO | U172: FUNCIONÁRIOS | V172: PESSOAL | W172: 2200 | X172: DIRETORIA COLEGIADA - PRESIDÊNCIA
D173: 15738.88 | E173: 0 | F173: 0 | G173: 0 | H173: 0 | I173: 3147.776 | J173: =D173*'Série - IPCA'!$C$444/'Série - IPCA'!$C$385 -> 20571.92431 | K173: =E173*'Série - IPCA'!$C$444/'Série - IPCA'!$C$398 -> 0 | L173: =F173*'Série - IPCA'!$C$444/'Série - IPCA'!$C$411 -> 0 | M173: =G173*'Série - IPCA'!$C$444/'Série - IPCA'!$C$424 -> 0 | N173: =H173*'Série - IPCA'!$C$444/'Série - IPCA'!$C$437 -> 0 | O173: 4114.384862 | Q173: N | R173: SIM | S173: NÃO | T173: ENCARGOS DE GESTÃO | U173: FUNCIONÁRIOS | V173: PESSOAL | W173: 3400 | X173: MARKETING
D174: 0 | E174: 0 | F174: 0 | G174: 0 | H174: 73 | I174: 14.6 | J174: =D174*'Série - IPCA'!$C$444/'Série - IPCA'!$C$385 -> 0 | K174: =E174*'Série - IPCA'!$C$444/'Série - IPCA'!$C$398 -> 0 | L174: =F174*'Série - IPCA'!$C$444/'Série - IPCA'!$C$411 -> 0 | M174: =G174*'Série - IPCA'!$C$444/'Série - IPCA'!$C$424 -> 0 | N174: =H174*'Série - IPCA'!$C$444/'Série - IPCA'!$C$437 -> 74.94757857 | O174: 14.98951571 | Q174: N | R174: SIM | S174: NÃO | T174: OPEX | U174: FIXO | V174: DESPESAS_GERAIS | W174: 5100 | X174: GERÊNCIA DE ENGENHARIA
D175: 0 | E175: 189 | F175: 0 | G175: 0 | H175: 0 | I175: 37.8 | J175: =D175*'Série - IPCA'!$C$444/'Série - IPCA'!$C$385 -> 0 | K175: =E175*'Série - IPCA'!$C$444/'Série - IPCA'!$C$398 -> 236.3600449 | L175: =F175*'Série - IPCA'!$C$444/'Série - IPCA'!$C$411 -> 0 | M175: =G175*'Série - IPCA'!$C$444/'Série - IPCA'!$C$424 -> 0 | N175: =H175*'Série - IPCA'!$C$444/'Série - IPCA'!$C$437 -> 0 | O175: 47.27200899 | Q175: N | R175: SIM | S175: NÃO | T175: ENCARGOS DE COMERCIALIZAÇÃO | U175: FIXO | V175: DESPESAS_GERAIS | W175: 5300 | X175: GERÊNCIA COMERCIAL
D176: 0 | E176: 0 | F176: 0 | G176: 0 | H176: 484.01 | I176: 96.802 | J176: =D176*'Série - IPCA'!$C$444/'Série - IPCA'!$C$385 -> 0 | K176: =E176*'Série - IPCA'!$C$444/'Série - IPCA'!$C$398 -> 0 | L176: =F176*'Série - IPCA'!$C$444/'Série - IPCA'!$C$411 -> 0 | M176: =G176*'Série - IPCA'!$C$444/'Série - IPCA'!$C$424 -> 0 | N176: =H176*'Série - IPCA'!$C$444/'Série - IPCA'!$C$437 -> 496.9229795 | O176: 99.3845959 | Q176: N | R176: SIM | S176: NÃO | T176: ENCARGOS DE GESTÃO | U176: FIXO | V176: DESPESAS_GERAIS | W176: 2110 | X176: ASSESSORIA DA DIRETORIA EXECUTIVA
D177: 0 | E177: 0 | F177: 0 | G177: 480 | H177: 0 | I177: 96 | J177: =D177*'Série - IPCA'!$C$444/'Série - IPCA'!$C$385 -> 0 | K177: =E177*'Série - IPCA'!$C$444/'Série - IPCA'!$C$398 -> 0 | L177: =F177*'Série - IPCA'!$C$444/'Série - IPCA'!$C$411 -> 0 | M177: =G177*'Série - IPCA'!$C$444/'Série - IPCA'!$C$424 -> 515.5794975 | N177: =H177*'Série - IPCA'!$C$444/'Série - IPCA'!$C$437 -> 0 | O177: 103.1158995 | Q177: N | R177: SIM | S177: NÃO | T177: ENCARGOS DE GESTÃO | U177: FIXO | V177: DESPESAS_GERAIS | W177: 2400 | X177: DIRETORIA COLEGIADA - DTC
D178: 0 | E178: 0 | F178: 359 | G178: 0 | H178: 0 | I178: 71.8 | J178: =D178*'Série - IPCA'!$C$444/'Série - IPCA'!$C$385 -> 0 | K178: =E178*'Série - IPCA'!$C$444/'Série - IPCA'!$C$398 -> 0 | L178: =F178*'Série - IPCA'!$C$444/'Série - IPCA'!$C$411 -> 407.9184248 | M178: =G178*'Série - IPCA'!$C$444/'Série - IPCA'!$C$424 -> 0 | N178: =H178*'Série - IPCA'!$C$444/'Série - IPCA'!$C$437 -> 0 | O178: 81.58368497 | Q178: N | R178: SIM | S178: NÃO | T178: ENCARGOS DE GESTÃO | U178: FIXO | V178: DESPESAS_GERAIS | W178: 2410 | X178: ASSESSORIA DE SEGURANÇA DO TRABALHO
D179: 0 | E179: 0 | F179: 0 | G179: 900 | H179: 2768.8 | I179: 733.76 | J179: =D179*'Série - IPCA'!$C$444/'Série - IPCA'!$C$385 -> 0 | K179: =E179*'Série - IPCA'!$C$444/'Série - IPCA'!$C$398 -> 0 | L179: =F179*'Série - IPCA'!$C$444/'Série - IPCA'!$C$411 -> 0 | M179: =G179*'Série - IPCA'!$C$444/'Série - IPCA'!$C$424 -> 966.7115579 | N179: =H179*'Série - IPCA'!$C$444/'Série - IPCA'!$C$437 -> 2842.669254 | O179: 761.8761624 | Q179: N | R179: SIM | S179: NÃO | T179: ENCARGOS DE GESTÃO | U179: FIXO | V179: DESPESAS_GERAIS | W179: 2200 | X179: DIRETORIA COLEGIADA - PRESIDÊNCIA
D180: 0 | E180: 1152 | F180: 0 | G180: 0 | H180: 0 | I180: 230.4 | J180: =D180*'Série - IPCA'!$C$444/'Série - IPCA'!$C$385 -> 0 | K180: =E180*'Série - IPCA'!$C$444/'Série - IPCA'!$C$398 -> 1440.67075 | L180: =F180*'Série - IPCA'!$C$444/'Série - IPCA'!$C$411 -> 0 | M180: =G180*'Série - IPCA'!$C$444/'Série - IPCA'!$C$424 -> 0 | N180: =H180*'Série - IPCA'!$C$444/'Série - IPCA'!$C$437 -> 0 | O180: 288.13415 | Q180: N | R180: SIM | S180: NÃO | T180: ENCARGOS DE GESTÃO | U180: FIXO | V180: DESPESAS_GERAIS | W180: 2310 | X180: ASSESSORIA DAF
D181: 0 | E181: 0 | F181: 0 | G181: 30.45 | H181: 0 | I181: 6.09 | J181: =D181*'Série - IPCA'!$C$444/'Série - IPCA'!$C$385 -> 0 | K181: =E181*'Série - IPCA'!$C$444/'Série - IPCA'!$C$398 -> 0 | L181: =F181*'Série - IPCA'!$C$444/'Série - IPCA'!$C$411 -> 0 | M181: =G181*'Série - IPCA'!$C$444/'Série - IPCA'!$C$424 -> 32.70707437 | N181: =H181*'Série - IPCA'!$C$444/'Série - IPCA'!$C$437 -> 0 | O181: 6.541414875 | Q181: N | R181: SIM | S181: NÃO | T181: ENCARGOS DE GESTÃO | U181: FIXO | V181: DESPESAS_GERAIS | W181: 3300 | X181: GERÊNCIA JURÍDICA
D182: 3464.75 | E182: 2162.66 | F182: 0 | G182: 6125.8 | H182: 23638.33 | I182: 7078.308 | J182: =D182*'Série - IPCA'!$C$444/'Série - IPCA'!$C$385 -> 4528.694212 | K182: =E182*'Série - IPCA'!$C$444/'Série - IPCA'!$C$398 -> 2704.584205 | L182: =F182*'Série - IPCA'!$C$444/'Série - IPCA'!$C$411 -> 0 | M182: =G182*'Série - IPCA'!$C$444/'Série - IPCA'!$C$424 -> 6579.868512 | N182: =H182*'Série - IPCA'!$C$444/'Série - IPCA'!$C$437 -> 24268.98075 | O182: 7616.425536 | Q182: N | R182: SIM | S182: NÃO | T182: ENCARGOS DE GESTÃO | U182: FIXO | V182: DESPESAS_GERAIS | W182: 4100 | X182: GERÊNCIA DE SERVIÇOS CORPORATIVOS
D183: 538.46 | E183: 0 | F183: 0 | G183: 0 | H183: 0 | I183: 107.692 | J183: =D183*'Série - IPCA'!$C$444/'Série - IPCA'!$C$385 -> 703.8085534 | K183: =E183*'Série - IPCA'!$C$444/'Série - IPCA'!$C$398 -> 0 | L183: =F183*'Série - IPCA'!$C$444/'Série - IPCA'!$C$411 -> 0 | M183: =G183*'Série - IPCA'!$C$444/'Série - IPCA'!$C$424 -> 0 | N183: =H183*'Série - IPCA'!$C$444/'Série - IPCA'!$C$437 -> 0 | O183: 140.7617107 | Q183: N | R183: SIM | S183: NÃO | T183: ENCARGOS DE GESTÃO | U183: FIXO | V183: DESPESAS_GERAIS | W183: 4300 | X183: GERÊNCIA DE TECNOLOGIA E SISTEMAS DE INFORMAÇÃO
D184: 21617.86 | E184: 19363.38 | F184: 15466.77 | G184: 23049.91 | H184: 38589.58 | I184: 23617.5 | J184: =D184*'Série - IPCA'!$C$444/'Série - IPCA'!$C$385 -> 28256.20245 | K184: =E184*'Série - IPCA'!$C$444/'Série - IPCA'!$C$398 -> 24215.49929 | L184: =F184*'Série - IPCA'!$C$444/'Série - IPCA'!$C$411 -> 17574.31882 | M184: =G184*'Série - IPCA'!$C$444/'Série - IPCA'!$C$424 -> 24758.46045 | N184: =H184*'Série - IPCA'!$C$444/'Série - IPCA'!$C$437 -> 39619.11752 | O184: 26884.71971 | Q184: N | R184: SIM | S184: NÃO | T184: OPEX | U184: FUNCIONÁRIOS | V184: PESSOAL | W184: 5100 | X184: GERÊNCIA DE ENGENHARIA
D185: 0 | E185: 1525.42 | F185: 55085.33 | G185: 72472.88 | H185: 69065.41 | I185: 39629.808 | J185: =D185*'Série - IPCA'!$C$444/'Série - IPCA'!$C$385 -> 0 | K185: =E185*'Série - IPCA'!$C$444/'Série - IPCA'!$C$398 -> 1907.663173 | L185: =F185*'Série - IPCA'!$C$444/'Série - IPCA'!$C$411 -> 62591.42352 | M185: =G185*'Série - IPCA'!$C$444/'Série - IPCA'!$C$424 -> 77844.85636 | N185: =H185*'Série - IPCA'!$C$444/'Série - IPCA'!$C$437 -> 70908.01702 | O185: 42650.39202 | Q185: N | R185: SIM | S185: NÃO | T185: OPEX | U185: FUNCIONÁRIOS | V185: PESSOAL | W185: 5200 | X185: GERÊNCIA DE OPERAÇÕES
D186: 6944.94 | E186: 20133.56 | F186: 16679.9 | G186: 25521.28 | H186: 70067.31 | I186: 27869.398 | J186: =D186*'Série - IPCA'!$C$444/'Série - IPCA'!$C$385 -> 9077.569689 | K186: =E186*'Série - IPCA'!$C$444/'Série - IPCA'!$C$398 -> 25178.67273 | L186: =F186*'Série - IPCA'!$C$444/'Série - IPCA'!$C$411 -> 18952.75358 | M186: =G186*'Série - IPCA'!$C$444/'Série - IPCA'!$C$424 -> 27413.01816 | N186: =H186*'Série - IPCA'!$C$444/'Série - IPCA'!$C$437 -> 71936.64687 | O186: 30511.73221 | Q186: N | R186: SIM | S186: NÃO | T186: ENCARGOS DE COMERCIALIZAÇÃO | U186: FUNCIONÁRIOS | V186: PESSOAL | W186: 5300 | X186: GERÊNCIA COMERCIAL
D187: 0 | E187: 0 | F187: 3097.65 | G187: 11900.58 | H187: 26764.9 | I187: 8352.626 | J187: =D187*'Série - IPCA'!$C$444/'Série - IPCA'!$C$385 -> 0 | K187: =E187*'Série - IPCA'!$C$444/'Série - IPCA'!$C$398 -> 0 | L187: =F187*'Série - IPCA'!$C$444/'Série - IPCA'!$C$411 -> 3519.74515 | M187: =G187*'Série - IPCA'!$C$444/'Série - IPCA'!$C$424 -> 12782.69803 | N187: =H187*'Série - IPCA'!$C$444/'Série - IPCA'!$C$437 -> 27478.96501 | O187: 8756.281639 | Q187: N | R187: SIM | S187: NÃO | T187: ENCARGOS DE GESTÃO | U187: FUNCIONÁRIOS | V187: PESSOAL | W187: 1010 | X187: GOVERNANÇA SOCIETÁRIA
D188: 20028.4 | E188: 7613.89 | F188: 0 | G188: 0 | H188: 0 | I188: 5528.458 | J188: =D188*'Série - IPCA'!$C$444/'Série - IPCA'!$C$385 -> 26178.65622 | K188: =E188*'Série - IPCA'!$C$444/'Série - IPCA'!$C$398 -> 9521.795674 | L188: =F188*'Série - IPCA'!$C$444/'Série - IPCA'!$C$411 -> 0 | M188: =G188*'Série - IPCA'!$C$444/'Série - IPCA'!$C$424 -> 0 | N188: =H188*'Série - IPCA'!$C$444/'Série - IPCA'!$C$437 -> 0 | O188: 7140.09038 | Q188: N | R188: SIM | S188: NÃO | T188: ENCARGOS DE GESTÃO | U188: FUNCIONÁRIOS | V188: PESSOAL | W188: 2100 | X188: SECRETARIA
D189: 0 | E189: 0 | F189: 0 | G189: 22229.5 | H189: 53339.17 | I189: 15113.734 | J189: =D189*'Série - IPCA'!$C$444/'Série - IPCA'!$C$385 -> 0 | K189: =E189*'Série - IPCA'!$C$444/'Série - IPCA'!$C$398 -> 0 | L189: =F189*'Série - IPCA'!$C$444/'Série - IPCA'!$C$411 -> 0 | M189: =G189*'Série - IPCA'!$C$444/'Série - IPCA'!$C$424 -> 23877.23842 | N189: =H189*'Série - IPCA'!$C$444/'Série - IPCA'!$C$437 -> 54762.21417 | O189: 15727.89052 | Q189: N | R189: SIM | S189: NÃO | T189: ENCARGOS DE GESTÃO | U189: FUNCIONÁRIOS | V189: PESSOAL | W189: 2110 | X189: ASSESSORIA DA DIRETORIA EXECUTIVA
D190: 403.96 | E190: 0 | F190: 0 | G190: 5632.74 | H190: 26629.8 | I190: 6533.3 | J190: =D190*'Série - IPCA'!$C$444/'Série - IPCA'!$C$385 -> 528.0067289 | K190: =E190*'Série - IPCA'!$C$444/'Série - IPCA'!$C$398 -> 0 | L190: =F190*'Série - IPCA'!$C$444/'Série - IPCA'!$C$411 -> 0 | M190: =G190*'Série - IPCA'!$C$444/'Série - IPCA'!$C$424 -> 6050.260956 | N190: =H190*'Série - IPCA'!$C$444/'Série - IPCA'!$C$437 -> 27340.26066 | O190: 6783.705668 | Q190: N | R190: SIM | S190: NÃO | T190: ENCARGOS DE GESTÃO | U190: FUNCIONÁRIOS | V190: PESSOAL | W190: 2410 | X190: ASSESSORIA DE SEGURANÇA DO TRABALHO
D191: 32793.72 | E191: 0 | F191: 11192 | G191: 14495.29 | H191: 0 | I191: 11696.202 | J191: =D191*'Série - IPCA'!$C$444/'Série - IPCA'!$C$385 -> 42863.90936 | K191: =E191*'Série - IPCA'!$C$444/'Série - IPCA'!$C$398 -> 0 | L191: =F191*'Série - IPCA'!$C$444/'Série - IPCA'!$C$411 -> 12717.05574 | M191: =G191*'Série - IPCA'!$C$444/'Série - IPCA'!$C$424 -> 15569.7382 | N191: =H191*'Série - IPCA'!$C$444/'Série - IPCA'!$C$437 -> 0 | O191: 14230.14066 | Q191: N | R191: SIM | S191: NÃO | T191: ENCARGOS DE GESTÃO | U191: FUNCIONÁRIOS | V191: PESSOAL | W191: 3100 | X191: SMS
D192: 0 | E192: 0 | F192: 6071.7 | G192: 23080.71 | H192: 26638.1 | I192: 11158.102 | J192: =D192*'Série - IPCA'!$C$444/'Série - IPCA'!$C$385 -> 0 | K192: =E192*'Série - IPCA'!$C$444/'Série - IPCA'!$C$398 -> 0 | L192: =F192*'Série - IPCA'!$C$444/'Série - IPCA'!$C$411 -> 6899.04819 | M192: =G192*'Série - IPCA'!$C$444/'Série - IPCA'!$C$424 -> 24791.54347 | N192: =H192*'Série - IPCA'!$C$444/'Série - IPCA'!$C$437 -> 27348.78209 | O192: 11807.87475 | Q192: N | R192: SIM | S192: NÃO | T192: ENCARGOS DE GESTÃO | U192: FUNCIONÁRIOS | V192: PESSOAL | W192: 3200 | X192: GERÊNCIA DE PLANEJAMENTO E MEIO AMBIENTE
D193: 0 | E193: 2103.53 | F193: 18860.21 | G193: 24065.42 | H193: 24806.74 | I193: 13967.18 | J193: =D193*'Série - IPCA'!$C$444/'Série - IPCA'!$C$385 -> 0 | K193: =E193*'Série - IPCA'!$C$444/'Série - IPCA'!$C$398 -> 2630.637277 | L193: =F193*'Série - IPCA'!$C$444/'Série - IPCA'!$C$411 -> 21430.15921 | M193: =G193*'Série - IPCA'!$C$444/'Série - IPCA'!$C$424 -> 25849.24407 | N193: =H193*'Série - IPCA'!$C$444/'Série - IPCA'!$C$437 -> 25468.56295 | O193: 15075.7207 | Q193: N | R193: SIM | S193: NÃO | T193: ENCARGOS DE GESTÃO | U193: FUNCIONÁRIOS | V193: PESSOAL | W193: 3300 | X193: GERÊNCIA JURÍDICA
D194: 9527.95 | E194: 0 | F194: 19764.55 | G194: 10285.74 | H194: 1789.26 | I194: 8273.5 | J194: =D194*'Série - IPCA'!$C$444/'Série - IPCA'!$C$385 -> 12453.76204 | K194: =E194*'Série - IPCA'!$C$444/'Série - IPCA'!$C$398 -> 0 | L194: =F194*'Série - IPCA'!$C$444/'Série - IPCA'!$C$411 -> 22457.72731 | M194: =G194*'Série - IPCA'!$C$444/'Série - IPCA'!$C$424 -> 11048.15971 | N194: =H194*'Série - IPCA'!$C$444/'Série - IPCA'!$C$437 -> 1836.995951 | O194: 9559.329001 | Q194: N | R194: SIM | S194: NÃO | T194: ENCARGOS DE GESTÃO | U194: FUNCIONÁRIOS | V194: PESSOAL | W194: 3400 | X194: MARKETING
D195: 0 | E195: 14779.94 | F195: 0 | G195: 10461.65 | H195: 24986.48 | I195: 10045.614 | J195: =D195*'Série - IPCA'!$C$444/'Série - IPCA'!$C$385 -> 0 | K195: =E195*'Série - IPCA'!$C$444/'Série - IPCA'!$C$398 -> 18483.53059 | L195: =F195*'Série - IPCA'!$C$444/'Série - IPCA'!$C$411 -> 0 | M195: =G195*'Série - IPCA'!$C$444/'Série - IPCA'!$C$424 -> 11237.10885 | N195: =H195*'Série - IPCA'!$C$444/'Série - IPCA'!$C$437 -> 25653.09826 | O195: 11074.74754 | Q195: N | R195: SIM | S195: NÃO | T195: ENCARGOS DE GESTÃO | U195: FUNCIONÁRIOS | V195: PESSOAL | W195: 3500 | X195: ASSESSORIA DE COMUNICAÇÃO INSTITUCIONAL
D196: 22494.25 | E196: 8398.85 | F196: 16284.16 | G196: 2957.7 | H196: 0 | I196: 10026.992 | J196: =D196*'Série - IPCA'!$C$444/'Série - IPCA'!$C$385 -> 29401.71146 | K196: =E196*'Série - IPCA'!$C$444/'Série - IPCA'!$C$398 -> 10503.45272 | L196: =F196*'Série - IPCA'!$C$444/'Série - IPCA'!$C$411 -> 18503.08885 | M196: =G196*'Série - IPCA'!$C$444/'Série - IPCA'!$C$424 -> 3176.936416 | N196: =H196*'Série - IPCA'!$C$444/'Série - IPCA'!$C$437 -> 0 | O196: 12317.03789 | Q196: N | R196: SIM | S196: NÃO | T196: ENCARGOS DE GESTÃO | U196: FUNCIONÁRIOS | V196: PESSOAL | W196: 3600 | X196: GERÊNCIA DE GOVERNANÇA, RISCO E COMPLIANCE
D197: 0 | E197: 0 | F197: 10216.36 | G197: 12144.5 | H197: 28431.8 | I197: =AVERAGE(D197:H197) -> 10158.532 | J197: =D197*'Série - IPCA'!$C$444/'Série - IPCA'!$C$385 -> 0 | K197: =E197*'Série - IPCA'!$C$444/'Série - IPCA'!$C$398 -> 0 | L197: =F197*'Série - IPCA'!$C$444/'Série - IPCA'!$C$411 -> 11608.47209 | M197: =G197*'Série - IPCA'!$C$444/'Série - IPCA'!$C$424 -> 13044.69835 | N197: =H197*'Série - IPCA'!$C$444/'Série - IPCA'!$C$437 -> 29190.3365 | O197: =AVERAGE(J197:N197) -> 10768.70139 | Q197: N | R197: SIM | S197: NÃO | T197: ENCARGOS DE GESTÃO | U197: FUNCIONÁRIOS | V197: PESSOAL | W197: 3700 | X197: GERÊNCIA DE REGULAÇÃO
D198: 10354.81 | E198: 16357.37 | F198: 21767.94 | G198: 20720.03 | H198: 26759.82 | I198: 19191.994 | J198: =D198*'Série - IPCA'!$C$444/'Série - IPCA'!$C$385 -> 13534.53153 | K198: =E198*'Série - IPCA'!$C$444/'Série - IPCA'!$C$398 -> 20456.23655 | L198: =F198*'Série - IPCA'!$C$444/'Série - IPCA'!$C$411 -> 24734.10528 | M198: =G198*'Série - IPCA'!$C$444/'Série - IPCA'!$C$424 -> 22255.88053 | N198: =H198*'Série - IPCA'!$C$444/'Série - IPCA'!$C$437 -> 27473.74948 | O198: 21690.90067 | Q198: N | R198: SIM | S198: NÃO | T198: ENCARGOS DE GESTÃO | U198: FUNCIONÁRIOS | V198: PESSOAL | W198: 4100 | X198: GERÊNCIA DE SERVIÇOS CORPORATIVOS
D199: 17813.17 | E199: 17698.4 | F199: 23069.71 | G199: 55218.96 | H199: 50161.31 | I199: 32792.31 | J199: =D199*'Série - IPCA'!$C$444/'Série - IPCA'!$C$385 -> 23283.18057 | K199: =E199*'Série - IPCA'!$C$444/'Série - IPCA'!$C$398 -> 22133.30486 | L199: =F199*'Série - IPCA'!$C$444/'Série - IPCA'!$C$411 -> 26213.2584 | M199: =G199*'Série - IPCA'!$C$444/'Série - IPCA'!$C$424 -> 59312.00761 | N199: =H199*'Série - IPCA'!$C$444/'Série - IPCA'!$C$437 -> 51499.57154 | O199: 36488.26459 | Q199: N | R199: SIM | S199: NÃO | T199: ENCARGOS DE GESTÃO | U199: FUNCIONÁRIOS | V199: PESSOAL | W199: 4200 | X199: GERÊNCIA FINANCEIRA
D200: 61790.61 | E200: 25514.12 | F200: 36249.47 | G200: 44534.16 | H200: 48419.41 | I200: 43301.554 | J200: =D200*'Série - IPCA'!$C$444/'Série - IPCA'!$C$385 -> 80765.07045 | K200: =E200*'Série - IPCA'!$C$444/'Série - IPCA'!$C$398 -> 31907.50555 | L200: =F200*'Série - IPCA'!$C$444/'Série - IPCA'!$C$411 -> 41188.93232 | M200: =G200*'Série - IPCA'!$C$444/'Série - IPCA'!$C$424 -> 47835.20799 | N200: =H200*'Série - IPCA'!$C$444/'Série - IPCA'!$C$437 -> 49711.19911 | O200: 50281.58309 | Q200: N | R200: SIM | S200: NÃO | T200: ENCARGOS DE GESTÃO | U200: FUNCIONÁRIOS | V200: PESSOAL | W200: 4300 | X200: GERÊNCIA DE TECNOLOGIA E SISTEMAS DE INFORMAÇÃO
D201: 41935.7 | E201: 11559.13 | F201: 19351.5 | G201: 23261.42 | H201: 26908.15 | I201: 24603.18 | J201: =D201*'Série - IPCA'!$C$444/'Série - IPCA'!$C$385 -> 54813.17898 | K201: =E201*'Série - IPCA'!$C$444/'Série - IPCA'!$C$398 -> 14455.64278 | L201: =F201*'Série - IPCA'!$C$444/'Série - IPCA'!$C$411 -> 21988.39387 | M201: =G201*'Série - IPCA'!$C$444/'Série - IPCA'!$C$424 -> 24985.64841 | N201: =H201*'Série - IPCA'!$C$444/'Série - IPCA'!$C$437 -> 27626.0368 | O201: 28773.78017 | Q201: N | R201: SIM | S201: NÃO | T201: ENCARGOS DE GESTÃO | U201: FUNCIONÁRIOS | V201: PESSOAL | W201: 4500 | X201: GERÊNCIA CONTÁBIL
... 1467 more rows

Sheet DRIVER_OPEX
A1: Grupo de Gastos | B1: Centro de Custo | C1: Descrição do Centro de Custo | E1: Critérios | F1: Orçamento Base | G1: 2024/2025 | H1: 2025/2026 | I1: 2026/2027 | J1: 2027/2028 | K1: 2028/2029
F2: =SUMIF($C$3:$C$436,$C$3,F3:F436) -> 70185789 | G2: =SUMIF($C$3:$C$436,$C$3,G3:G436) -> 76267264.25 | H2: 82659605.68 | I2: 90348522 | J2: 93246244.64 | K2: 94772628.83
A3: ALUGUÉIS | B3: TOTAL | C3: TOTAL | D3: ALOCAÇÃO | F3: =SUM(F4:F38) -> 2481429.744 | G3: =SUM(G4:G38) -> 2481429.744 | H3: 2481429.744 | I3: 2481429.744 | J3: 2481429.744 | K3: 2481429.744
A4: ALUGUÉIS | B4: 2130 | C4: =VLOOKUP(B4,Centro_Custo!$A$2:$B$36,2,0) -> ASSESSORIA DE RELAÇÕES INSTITUCIONAIS E NOVOS NEGÓCIOS | D4: =VLOOKUP(B4,Centro_Custo!$A$2:$C$36,3) -> Encargos de Gestão | E4: Fixo | F4: =SUMIFS('Classificação OPEX'!$O$4:$O$1666,'Classificação OPEX'!$Q$4:$Q$1666,"N",'Classificação OPEX'!$S$4:$S$1666,"NÃO",'Classificação OPEX'!$V$4:$V$1666,DRIVER_OPEX!A4,'Classificação OPEX'!$W$4:$W$1666,DRIVER_OPEX!B4) -> 136.2197908 | G4: =IF($F4="",0,VLOOKUP($E4,Drivers!$A$26:$F$48,MATCH(G$1,Drivers!$A$25:$F$25,0),0)*$F4) -> 136.2197908 | H4: =IF($F4="",0,VLOOKUP($E4,Drivers!$A$26:$F$48,MATCH(H$1,Drivers!$A$25:$F$25,0),0)*$F4) -> 136.2197908 | I4: =IF($F4="",0,VLOOKUP($E4,Drivers!$A$26:$F$48,MATCH(I$1,Drivers!$A$25:$F$25,0),0)*$F4) -> 136.2197908 | J4: =IF($F4="",0,VLOOKUP($E4,Drivers!$A$26:$F$48,MATCH(J$1,Drivers!$A$25:$F$25,0),0)*$F4) -> 136.2197908 | K4: =IF($F4="",0,VLOOKUP($E4,Drivers!$A$26:$F$48,MATCH(K$1,Drivers!$A$25:$F$25,0),0)*$F4) -> 136.2197908
A5: ALUGUÉIS | B5: 2400 | C5: =VLOOKUP(B5,Centro_Custo!$A$2:$B$36,2,0) -> DIRETORIA COLEGIADA - DTC | D5: =VLOOKUP(B5,Centro_Custo!$A$2:$C$36,3) -> Encargos de Comercialização | E5: Fixo | F5: =SUMIFS('Classificação OPEX'!$O$4:$O$1666,'Classificação OPEX'!$Q$4:$Q$1666,"N",'Classificação OPEX'!$S$4:$S$1666,"NÃO",'Classificação OPEX'!$V$4:$V$1666,DRIVER_OPEX!A5,'Classificação OPEX'!$W$4:$W$1666,DRIVER_OPEX!B5) -> 957.7167566 | G5: =IF($F5="",0,VLOOKUP($E5,Drivers!$A$26:$F$48,MATCH(G$1,Drivers!$A$25:$F$25,0),0)*$F5) -> 957.7167566 | H5: =IF($F5="",0,VLOOKUP($E5,Drivers!$A$26:$F$48,MATCH(H$1,Drivers!$A$25:$F$25,0),0)*$F5) -> 957.7167566 | I5: =IF($F5="",0,VLOOKUP($E5,Drivers!$A$26:$F$48,MATCH(I$1,Drivers!$A$25:$F$25,0),0)*$F5) -> 957.7167566 | J5: =IF($F5="",0,VLOOKUP($E5,Drivers!$A$26:$F$48,MATCH(J$1,Drivers!$A$25:$F$25,0),0)*$F5) -> 957.7167566 | K5: =IF($F5="",0,VLOOKUP($E5,Drivers!$A$26:$F$48,MATCH(K$1,Drivers!$A$25:$F$25,0),0)*$F5) -> 957.7167566
A6: ALUGUÉIS | B6: 4100 | C6: =VLOOKUP(B6,Centro_Custo!$A$2:$B$36,2,0) -> GERÊNCIA DE SERVIÇOS CORPORATIVOS | D6: =VLOOKUP(B6,Centro_Custo!$A$2:$C$36,3) -> Encargos de Gestão | E6: Fixo | F6: =SUMIFS('Classificação OPEX'!$O$4:$O$1666,'Classificação OPEX'!$Q$4:$Q$1666,"N",'Classificação OPEX'!$S$4:$S$1666,"NÃO",'Classificação OPEX'!$V$4:$V$1666,DRIVER_OPEX!A6,'Classificação OPEX'!$W$4:$W$1666,DRIVER_OPEX!B6) -> 2009786.999 | G6: =IF($F6="",0,VLOOKUP($E6,Drivers!$A$26:$F$48,MATCH(G$1,Drivers!$A$25:$F$25,0),0)*$F6) -> 2009786.999 | H6: =IF($F6="",0,VLOOKUP($E6,Drivers!$A$26:$F$48,MATCH(H$1,Drivers!$A$25:$F$25,0),0)*$F6) -> 2009786.999 | I6: =IF($F6="",0,VLOOKUP($E6,Drivers!$A$26:$F$48,MATCH(I$1,Drivers!$A$25:$F$25,0),0)*$F6) -> 2009786.999 | J6: =IF($F6="",0,VLOOKUP($E6,Drivers!$A$26:$F$48,MATCH(J$1,Drivers!$A$25:$F$25,0),0)*$F6) -> 2009786.999 | K6: =IF($F6="",0,VLOOKUP($E6,Drivers!$A$26:$F$48,MATCH(K$1,Drivers!$A$25:$F$25,0),0)*$F6) -> 2009786.999
A7: ALUGUÉIS | B7: 4300 | C7: =VLOOKUP(B7,Centro_Custo!$A$2:$B$36,2,0) -> GERÊNCIA DE TECNOLOGIA E SISTEMAS DE INFORMAÇÃO | D7: =VLOOKUP(B7,Centro_Custo!$A$2:$C$36,3) -> Encargos de Gestão | E7: Fixo | F7: =SUMIFS('Classificação OPEX'!$O$4:$O$1666,'Classificação OPEX'!$Q$4:$Q$1666,"N",'Classificação OPEX'!$S$4:$S$1666,"NÃO",'Classificação OPEX'!$V$4:$V$1666,DRIVER_OPEX!A7,'Classificação OPEX'!$W$4:$W$1666,DRIVER_OPEX!B7) -> 142004.6868 | G7: =IF($F7="",0,VLOOKUP($E7,Drivers!$A$26:$F$48,MATCH(G$1,Drivers!$A$25:$F$25,0),0)*$F7) -> 142004.6868 | H7: =IF($F7="",0,VLOOKUP($E7,Drivers!$A$26:$F$48,MATCH(H$1,Drivers!$A$25:$F$25,0),0)*$F7) -> 142004.6868 | I7: =IF($F7="",0,VLOOKUP($E7,Drivers!$A$26:$F$48,MATCH(I$1,Drivers!$A$25:$F$25,0),0)*$F7) -> 142004.6868 | J7: =IF($F7="",0,VLOOKUP($E7,Drivers!$A$26:$F$48,MATCH(J$1,Drivers!$A$25:$F$25,0),0)*$F7) -> 142004.6868 | K7: =IF($F7="",0,VLOOKUP($E7,Drivers!$A$26:$F$48,MATCH(K$1,Drivers!$A$25:$F$25,0),0)*$F7) -> 142004.6868
A8: ALUGUÉIS | B8: 5100 | C8: =VLOOKUP(B8,Centro_Custo!$A$2:$B$36,2,0) -> GERÊNCIA DE ENGENHARIA | D8: =VLOOKUP(B8,Centro_Custo!$A$2:$C$36,3) -> OPEX&ODESP | E8: Fixo | F8: =SUMIFS('Classificação OPEX'!$O$4:$O$1666,'Classificação OPEX'!$Q$4:$Q$1666,"N",'Classificação OPEX'!$S$4:$S$1666,"NÃO",'Classificação OPEX'!$V$4:$V$1666,DRIVER_OPEX!A8,'Classificação OPEX'!$W$4:$W$1666,DRIVER_OPEX!B8) -> 50331.64557 | G8: =IF($F8="",0,VLOOKUP($E8,Drivers!$A$26:$F$48,MATCH(G$1,Drivers!$A$25:$F$25,0),0)*$F8) -> 50331.64557 | H8: =IF($F8="",0,VLOOKUP($E8,Drivers!$A$26:$F$48,MATCH(H$1,Drivers!$A$25:$F$25,0),0)*$F8) -> 50331.64557 | I8: =IF($F8="",0,VLOOKUP($E8,Drivers!$A$26:$F$48,MATCH(I$1,Drivers!$A$25:$F$25,0),0)*$F8) -> 50331.64557 | J8: =IF($F8="",0,VLOOKUP($E8,Drivers!$A$26:$F$48,MATCH(J$1,Drivers!$A$25:$F$25,0),0)*$F8) -> 50331.64557 | K8: =IF($F8="",0,VLOOKUP($E8,Drivers!$A$26:$F$48,MATCH(K$1,Drivers!$A$25:$F$25,0),0)*$F8) -> 50331.64557
A9: ALUGUÉIS | B9: 5200 | C9: =VLOOKUP(B9,Centro_Custo!$A$2:$B$36,2,0) -> GERÊNCIA DE OPERAÇÕES | D9: =VLOOKUP(B9,Centro_Custo!$A$2:$C$36,3) -> OPEX&ODESP | E9: Fixo | F9: =SUMIFS('Classificação OPEX'!$O$4:$O$1666,'Classificação OPEX'!$Q$4:$Q$1666,"N",'Classificação OPEX'!$S$4:$S$1666,"NÃO",'Classificação OPEX'!$V$4:$V$1666,DRIVER_OPEX!A9,'Classificação OPEX'!$W$4:$W$1666,DRIVER_OPEX!B9) -> 86611.29348 | G9: =IF($F9="",0,VLOOKUP($E9,Drivers!$A$26:$F$48,MATCH(G$1,Drivers!$A$25:$F$25,0),0)*$F9) -> 86611.29348 | H9: =IF($F9="",0,VLOOKUP($E9,Drivers!$A$26:$F$48,MATCH(H$1,Drivers!$A$25:$F$25,0),0)*$F9) -> 86611.29348 | I9: =IF($F9="",0,VLOOKUP($E9,Drivers!$A$26:$F$48,MATCH(I$1,Drivers!$A$25:$F$25,0),0)*$F9) -> 86611.29348 | J9: =IF($F9="",0,VLOOKUP($E9,Drivers!$A$26:$F$48,MATCH(J$1,Drivers!$A$25:$F$25,0),0)*$F9) -> 86611.29348 | K9: =IF($F9="",0,VLOOKUP($E9,Drivers!$A$26:$F$48,MATCH(K$1,Drivers!$A$25:$F$25,0),0)*$F9) -> 86611.29348
A10: ALUGUÉIS | B10: 9999 | C10: =VLOOKUP(B10,Centro_Custo!$A$2:$B$36,2,0) -> RATEIO | D10: =VLOOKUP(B10,Centro_Custo!$A$2:$C$36,3) -> Encargos de Gestão | E10: Município | F10: =SUMIFS('Classificação OPEX'!$O$4:$O$1666,'Classificação OPEX'!$Q$4:$Q$1666,"N",'Classificação OPEX'!$S$4:$S$1666,"NÃO",'Classificação OPEX'!$V$4:$V$1666,DRIVER_OPEX!A10,'Classificação OPEX'!$W$4:$W$1666,DRIVER_OPEX!B10) -> 0 | G10: =IF($F10="",0,VLOOKUP($E10,Drivers!$A$26:$F$48,MATCH(G$1,Drivers!$A$25:$F$25,0),0)*$F10) -> 0 | H10: =IF($F10="",0,VLOOKUP($E10,Drivers!$A$26:$F$48,MATCH(H$1,Drivers!$A$25:$F$25,0),0)*$F10) -> 0 | I10: =IF($F10="",0,VLOOKUP($E10,Drivers!$A$26:$F$48,MATCH(I$1,Drivers!$A$25:$F$25,0),0)*$F10) -> 0 | J10: =IF($F10="",0,VLOOKUP($E10,Drivers!$A$26:$F$48,MATCH(J$1,Drivers!$A$25:$F$25,0),0)*$F10) -> 0 | K10: =IF($F10="",0,VLOOKUP($E10,Drivers!$A$26:$F$48,MATCH(K$1,Drivers!$A$25:$F$25,0),0)*$F10) -> 0
A11: ALUGUÉIS | B11: 1001 | C11: CONSELHO DE ADMINISTRAÇÃO | D11: =VLOOKUP(B11,Centro_Custo!$A$2:$C$36,3) -> Encargos de Gestão | E11: Fixo | F11: =SUMIFS('Classificação OPEX'!$O$4:$O$1666,'Classificação OPEX'!$Q$4:$Q$1666,"N",'Classificação OPEX'!$S$4:$S$1666,"NÃO",'Classificação OPEX'!$V$4:$V$1666,DRIVER_OPEX!A11,'Classificação OPEX'!$W$4:$W$1666,DRIVER_OPEX!B11) -> 0 | G11: =IF($F11="",0,VLOOKUP($E11,Drivers!$A$26:$F$48,MATCH(G$1,Drivers!$A$25:$F$25,0),0)*$F11) -> 0 | H11: =IF($F11="",0,VLOOKUP($E11,Drivers!$A$26:$F$48,MATCH(H$1,Drivers!$A$25:$F$25,0),0)*$F11) -> 0 | I11: =IF($F11="",0,VLOOKUP($E11,Drivers!$A$26:$F$48,MATCH(I$1,Drivers!$A$25:$F$25,0),0)*$F11) -> 0 | J11: =IF($F11="",0,VLOOKUP($E11,Drivers!$A$26:$F$48,MATCH(J$1,Drivers!$A$25:$F$25,0),0)*$F11) -> 0 | K11: =IF($F11="",0,VLOOKUP($E11,Drivers!$A$26:$F$48,MATCH(K$1,Drivers!$A$25:$F$25,0),0)*$F11) -> 0
A12: ALUGUÉIS | B12: 1002 | C12: CONSELHO FISCAL | D12: =VLOOKUP(B12,Centro_Custo!$A$2:$C$36,3) -> Encargos de Gestão | E12: Fixo | F12: =SUMIFS('Classificação OPEX'!$O$4:$O$1666,'Classificação OPEX'!$Q$4:$Q$1666,"N",'Classificação OPEX'!$S$4:$S$1666,"NÃO",'Classificação OPEX'!$V$4:$V$1666,DRIVER_OPEX!A12,'Classificação OPEX'!$W$4:$W$1666,DRIVER_OPEX!B12) -> 0 | G12: =IF($F12="",0,VLOOKUP($E12,Drivers!$A$26:$F$48,MATCH(G$1,Drivers!$A$25:$F$25,0),0)*$F12) -> 0 | H12: =IF($F12="",0,VLOOKUP($E12,Drivers!$A$26:$F$48,MATCH(H$1,Drivers!$A$25:$F$25,0),0)*$F12) -> 0 | I12: =IF($F12="",0,VLOOKUP($E12,Drivers!$A$26:$F$48,MATCH(I$1,Drivers!$A$25:$F$25,0),0)*$F12) -> 0 | J12: =IF($F12="",0,VLOOKUP($E12,Drivers!$A$26:$F$48,MATCH(J$1,Drivers!$A$25:$F$25,0),0)*$F12) -> 0 | K12: =IF($F12="",0,VLOOKUP($E12,Drivers!$A$26:$F$48,MATCH(K$1,Drivers!$A$25:$F$25,0),0)*$F12) -> 0
A13: ALUGUÉIS | B13: 1003 | C13: COMITÊ DE INDICAÇÃO E AVALIAÇÃO | D13: =VLOOKUP(B13,Centro_Custo!$A$2:$C$36,3) -> Encargos de Gestão | E13: Fixo | F13: =SUMIFS('Classificação OPEX'!$O$4:$O$1666,'Classificação OPEX'!$Q$4:$Q$1666,"N",'Classificação OPEX'!$S$4:$S$1666,"NÃO",'Classificação OPEX'!$V$4:$V$1666,DRIVER_OPEX!A13,'Classificação OPEX'!$W$4:$W$1666,DRIVER_OPEX!B13) -> 0 | G13: =IF($F13="",0,VLOOKUP($E13,Drivers!$A$26:$F$48,MATCH(G$1,Drivers!$A$25:$F$25,0),0)*$F13) -> 0 | H13: =IF($F13="",0,VLOOKUP($E13,Drivers!$A$26:$F$48,MATCH(H$1,Drivers!$A$25:$F$25,0),0)*$F13) -> 0 | I13: =IF($F13="",0,VLOOKUP($E13,Drivers!$A$26:$F$48,MATCH(I$1,Drivers!$A$25:$F$25,0),0)*$F13) -> 0 | J13: =IF($F13="",0,VLOOKUP($E13,Drivers!$A$26:$F$48,MATCH(J$1,Drivers!$A$25:$F$25,0),0)*$F13) -> 0 | K13: =IF($F13="",0,VLOOKUP($E13,Drivers!$A$26:$F$48,MATCH(K$1,Drivers!$A$25:$F$25,0),0)*$F13) -> 0
A14: ALUGUÉIS | B14: 1004 | C14: COMITÊ DE AUDITORIA ESTATUTÁRIA | D14: =VLOOKUP(B14,Centro_Custo!$A$2:$C$36,3) -> Encargos de Gestão | E14: Fixo | F14: =SUMIFS('Classificação OPEX'!$O$4:$O$1666,'Classificação OPEX'!$Q$4:$Q$1666,"N",'Classificação OPEX'!$S$4:$S$1666,"NÃO",'Classificação OPEX'!$V$4:$V$1666,DRIVER_OPEX!A14,'Classificação OPEX'!$W$4:$W$1666,DRIVER_OPEX!B14) -> 0 | G14: =IF($F14="",0,VLOOKUP($E14,Drivers!$A$26:$F$48,MATCH(G$1,Drivers!$A$25:$F$25,0),0)*$F14) -> 0 | H14: =IF($F14="",0,VLOOKUP($E14,Drivers!$A$26:$F$48,MATCH(H$1,Drivers!$A$25:$F$25,0),0)*$F14) -> 0 | I14: =IF($F14="",0,VLOOKUP($E14,Drivers!$A$26:$F$48,MATCH(I$1,Drivers!$A$25:$F$25,0),0)*$F14) -> 0 | J14: =IF($F14="",0,VLOOKUP($E14,Drivers!$A$26:$F$48,MATCH(J$1,Drivers!$A$25:$F$25,0),0)*$F14) -> 0 | K14: =IF($F14="",0,VLOOKUP($E14,Drivers!$A$26:$F$48,MATCH(K$1,Drivers!$A$25:$F$25,0),0)*$F14) -> 0
A15: ALUGUÉIS | B15: 1005 | C15: AUDITORIA INTERNA | D15: =VLOOKUP(B15,Centro_Custo!$A$2:$C$36,3) -> Encargos de Gestão | E15: Fixo | F15: =SUMIFS('Classificação OPEX'!$O$4:$O$1666,'Classificação OPEX'!$Q$4:$Q$1666,"N",'Classificação OPEX'!$S$4:$S$1666,"NÃO",'Classificação OPEX'!$V$4:$V$1666,DRIVER_OPEX!A15,'Classificação OPEX'!$W$4:$W$1666,DRIVER_OPEX!B15) -> 1741.241709 | G15: =IF($F15="",0,VLOOKUP($E15,Drivers!$A$26:$F$48,MATCH(G$1,Drivers!$A$25:$F$25,0),0)*$F15) -> 1741.241709 | H15: =IF($F15="",0,VLOOKUP($E15,Drivers!$A$26:$F$48,MATCH(H$1,Drivers!$A$25:$F$25,0),0)*$F15) -> 1741.241709 | I15: =IF($F15="",0,VLOOKUP($E15,Drivers!$A$26:$F$48,MATCH(I$1,Drivers!$A$25:$F$25,0),0)*$F15) -> 1741.241709 | J15: =IF($F15="",0,VLOOKUP($E15,Drivers!$A$26:$F$48,MATCH(J$1,Drivers!$A$25:$F$25,0),0)*$F15) -> 1741.241709 | K15: =IF($F15="",0,VLOOKUP($E15,Drivers!$A$26:$F$48,MATCH(K$1,Drivers!$A$25:$F$25,0),0)*$F15) -> 1741.241709
A16: ALUGUÉIS | B16: 1010 | C16: GOVERNANÇA SOCIETÁRIA | D16: =VLOOKUP(B16,Centro_Custo!$A$2:$C$36,3) -> Encargos de Gestão | E16: Fixo | F16: =SUMIFS('Classificação OPEX'!$O$4:$O$1666,'Classificação OPEX'!$Q$4:$Q$1666,"N",'Classificação OPEX'!$S$4:$S$1666,"NÃO",'Classificação OPEX'!$V$4:$V$1666,DRIVER_OPEX!A16,'Classificação OPEX'!$W$4:$W$1666,DRIVER_OPEX!B16) -> 0 | G16: =IF($F16="",0,VLOOKUP($E16,Drivers!$A$26:$F$48,MATCH(G$1,Drivers!$A$25:$F$25,0),0)*$F16) -> 0 | H16: =IF($F16="",0,VLOOKUP($E16,Drivers!$A$26:$F$48,MATCH(H$1,Drivers!$A$25:$F$25,0),0)*$F16) -> 0 | I16: =IF($F16="",0,VLOOKUP($E16,Drivers!$A$26:$F$48,MATCH(I$1,Drivers!$A$25:$F$25,0),0)*$F16) -> 0 | J16: =IF($F16="",0,VLOOKUP($E16,Drivers!$A$26:$F$48,MATCH(J$1,Drivers!$A$25:$F$25,0),0)*$F16) -> 0 | K16: =IF($F16="",0,VLOOKUP($E16,Drivers!$A$26:$F$48,MATCH(K$1,Drivers!$A$25:$F$25,0),0)*$F16) -> 0
A17: ALUGUÉIS | B17: 2100 | C17: SECRETARIA | D17: =VLOOKUP(B17,Centro_Custo!$A$2:$C$36,3) -> Encargos de Gestão | E17: Fixo | F17: =SUMIFS('Classificação OPEX'!$O$4:$O$1666,'Classificação OPEX'!$Q$4:$Q$1666,"N",'Classificação OPEX'!$S$4:$S$1666,"NÃO",'Classificação OPEX'!$V$4:$V$1666,DRIVER_OPEX!A17,'Classificação OPEX'!$W$4:$W$1666,DRIVER_OPEX!B17) -> 1117.52449 | G17: =IF($F17="",0,VLOOKUP($E17,Drivers!$A$26:$F$48,MATCH(G$1,Drivers!$A$25:$F$25,0),0)*$F17) -> 1117.52449 | H17: =IF($F17="",0,VLOOKUP($E17,Drivers!$A$26:$F$48,MATCH(H$1,Drivers!$A$25:$F$25,0),0)*$F17) -> 1117.52449 | I17: =IF($F17="",0,VLOOKUP($E17,Drivers!$A$26:$F$48,MATCH(I$1,Drivers!$A$25:$F$25,0),0)*$F17) -> 1117.52449 | J17: =IF($F17="",0,VLOOKUP($E17,Drivers!$A$26:$F$48,MATCH(J$1,Drivers!$A$25:$F$25,0),0)*$F17) -> 1117.52449 | K17: =IF($F17="",0,VLOOKUP($E17,Drivers!$A$26:$F$48,MATCH(K$1,Drivers!$A$25:$F$25,0),0)*$F17) -> 1117.52449
A18: ALUGUÉIS | B18: 2110 | C18: ASSESSORIA DA DIRETORIA EXECUTIVA | D18: =VLOOKUP(B18,Centro_Custo!$A$2:$C$36,3) -> Encargos de Gestão | E18: Fixo | F18: =SUMIFS('Classificação OPEX'!$O$4:$O$1666,'Classificação OPEX'!$Q$4:$Q$1666,"N",'Classificação OPEX'!$S$4:$S$1666,"NÃO",'Classificação OPEX'!$V$4:$V$1666,DRIVER_OPEX!A18,'Classificação OPEX'!$W$4:$W$1666,DRIVER_OPEX!B18) -> 4271.128622 | G18: =IF($F18="",0,VLOOKUP($E18,Drivers!$A$26:$F$48,MATCH(G$1,Drivers!$A$25:$F$25,0),0)*$F18) -> 4271.128622 | H18: =IF($F18="",0,VLOOKUP($E18,Drivers!$A$26:$F$48,MATCH(H$1,Drivers!$A$25:$F$25,0),0)*$F18) -> 4271.128622 | I18: =IF($F18="",0,VLOOKUP($E18,Drivers!$A$26:$F$48,MATCH(I$1,Drivers!$A$25:$F$25,0),0)*$F18) -> 4271.128622 | J18: =IF($F18="",0,VLOOKUP($E18,Drivers!$A$26:$F$48,MATCH(J$1,Drivers!$A$25:$F$25,0),0)*$F18) -> 4271.128622 | K18: =IF($F18="",0,VLOOKUP($E18,Drivers!$A$26:$F$48,MATCH(K$1,Drivers!$A$25:$F$25,0),0)*$F18) -> 4271.128622
A19: ALUGUÉIS | B19: 2120 | C19: ASSESSORIA DA PRESIDÊNCIA | D19: =VLOOKUP(B19,Centro_Custo!$A$2:$C$36,3) -> Encargos de Gestão | E19: Fixo | F19: =SUMIFS('Classificação OPEX'!$O$4:$O$1666,'Classificação OPEX'!$Q$4:$Q$1666,"N",'Classificação OPEX'!$S$4:$S$1666,"NÃO",'Classificação OPEX'!$V$4:$V$1666,DRIVER_OPEX!A19,'Classificação OPEX'!$W$4:$W$1666,DRIVER_OPEX!B19) -> 5281.132353 | G19: =IF($F19="",0,VLOOKUP($E19,Drivers!$A$26:$F$48,MATCH(G$1,Drivers!$A$25:$F$25,0),0)*$F19) -> 5281.132353 | H19: =IF($F19="",0,VLOOKUP($E19,Drivers!$A$26:$F$48,MATCH(H$1,Drivers!$A$25:$F$25,0),0)*$F19) -> 5281.132353 | I19: =IF($F19="",0,VLOOKUP($E19,Drivers!$A$26:$F$48,MATCH(I$1,Drivers!$A$25:$F$25,0),0)*$F19) -> 5281.132353 | J19: =IF($F19="",0,VLOOKUP($E19,Drivers!$A$26:$F$48,MATCH(J$1,Drivers!$A$25:$F$25,0),0)*$F19) -> 5281.132353 | K19: =IF($F19="",0,VLOOKUP($E19,Drivers!$A$26:$F$48,MATCH(K$1,Drivers!$A$25:$F$25,0),0)*$F19) -> 5281.132353
A20: ALUGUÉIS | B20: 2140 | C20: ASSESSORIA DTC | D20: =VLOOKUP(B20,Centro_Custo!$A$2:$C$36,3) -> Encargos de Comercialização | E20: Fixo | F20: =SUMIFS('Classificação OPEX'!$O$4:$O$1666,'Classificação OPEX'!$Q$4:$Q$1666,"N",'Classificação OPEX'!$S$4:$S$1666,"NÃO",'Classificação OPEX'!$V$4:$V$1666,DRIVER_OPEX!A20,'Classificação OPEX'!$W$4:$W$1666,DRIVER_OPEX!B20) -> 0 | G20: =IF($F20="",0,VLOOKUP($E20,Drivers!$A$26:$F$48,MATCH(G$1,Drivers!$A$25:$F$25,0),0)*$F20) -> 0 | H20: =IF($F20="",0,VLOOKUP($E20,Drivers!$A$26:$F$48,MATCH(H$1,Drivers!$A$25:$F$25,0),0)*$F20) -> 0 | I20: =IF($F20="",0,VLOOKUP($E20,Drivers!$A$26:$F$48,MATCH(I$1,Drivers!$A$25:$F$25,0),0)*$F20) -> 0 | J20: =IF($F20="",0,VLOOKUP($E20,Drivers!$A$26:$F$48,MATCH(J$1,Drivers!$A$25:$F$25,0),0)*$F20) -> 0 | K20: =IF($F20="",0,VLOOKUP($E20,Drivers!$A$26:$F$48,MATCH(K$1,Drivers!$A$25:$F$25,0),0)*$F20) -> 0
A21: ALUGUÉIS | B21: 2200 | C21: DIRETORIA COLEGIADA - PRESIDÊNCIA | D21: =VLOOKUP(B21,Centro_Custo!$A$2:$C$36,3) -> Encargos de Gestão | E21: Fixo | F21: =SUMIFS('Classificação OPEX'!$O$4:$O$1666,'Classificação OPEX'!$Q$4:$Q$1666,"N",'Classificação OPEX'!$S$4:$S$1666,"NÃO",'Classificação OPEX'!$V$4:$V$1666,DRIVER_OPEX!A21,'Classificação OPEX'!$W$4:$W$1666,DRIVER_OPEX!B21) -> 1271.884715 | G21: =IF($F21="",0,VLOOKUP($E21,Drivers!$A$26:$F$48,MATCH(G$1,Drivers!$A$25:$F$25,0),0)*$F21) -> 1271.884715 | H21: =IF($F21="",0,VLOOKUP($E21,Drivers!$A$26:$F$48,MATCH(H$1,Drivers!$A$25:$F$25,0),0)*$F21) -> 1271.884715 | I21: =IF($F21="",0,VLOOKUP($E21,Drivers!$A$26:$F$48,MATCH(I$1,Drivers!$A$25:$F$25,0),0)*$F21) -> 1271.884715 | J21: =IF($F21="",0,VLOOKUP($E21,Drivers!$A$26:$F$48,MATCH(J$1,Drivers!$A$25:$F$25,0),0)*$F21) -> 1271.884715 | K21: =IF($F21="",0,VLOOKUP($E21,Drivers!$A$26:$F$48,MATCH(K$1,Drivers!$A$25:$F$25,0),0)*$F21) -> 1271.884715
A22: ALUGUÉIS | B22: 2300 | C22: DIRETORIA COLEGIADA - DAF | D22: =VLOOKUP(B22,Centro_Custo!$A$2:$C$36,3) -> Encargos de Gestão | E22: Fixo | F22: =SUMIFS('Classificação OPEX'!$O$4:$O$1666,'Classificação OPEX'!$Q$4:$Q$1666,"N",'Classificação OPEX'!$S$4:$S$1666,"NÃO",'Classificação OPEX'!$V$4:$V$1666,DRIVER_OPEX!A22,'Classificação OPEX'!$W$4:$W$1666,DRIVER_OPEX!B22) -> 912.6640218 | G22: =IF($F22="",0,VLOOKUP($E22,Drivers!$A$26:$F$48,MATCH(G$1,Drivers!$A$25:$F$25,0),0)*$F22) -> 912.6640218 | H22: =IF($F22="",0,VLOOKUP($E22,Drivers!$A$26:$F$48,MATCH(H$1,Drivers!$A$25:$F$25,0),0)*$F22) -> 912.6640218 | I22: =IF($F22="",0,VLOOKUP($E22,Drivers!$A$26:$F$48,MATCH(I$1,Drivers!$A$25:$F$25,0),0)*$F22) -> 912.6640218 | J22: =IF($F22="",0,VLOOKUP($E22,Drivers!$A$26:$F$48,MATCH(J$1,Drivers!$A$25:$F$25,0),0)*$F22) -> 912.6640218 | K22: =IF($F22="",0,VLOOKUP($E22,Drivers!$A$26:$F$48,MATCH(K$1,Drivers!$A$25:$F$25,0),0)*$F22) -> 912.6640218
A23: ALUGUÉIS | B23: 2310 | C23: ASSESSORIA DAF | D23: =VLOOKUP(B23,Centro_Custo!$A$2:$C$36,3) -> Encargos de Gestão | E23: Fixo | F23: =SUMIFS('Classificação OPEX'!$O$4:$O$1666,'Classificação OPEX'!$Q$4:$Q$1666,"N",'Classificação OPEX'!$S$4:$S$1666,"NÃO",'Classificação OPEX'!$V$4:$V$1666,DRIVER_OPEX!A23,'Classificação OPEX'!$W$4:$W$1666,DRIVER_OPEX!B23) -> 1741.246254 | G23: =IF($F23="",0,VLOOKUP($E23,Drivers!$A$26:$F$48,MATCH(G$1,Drivers!$A$25:$F$25,0),0)*$F23) -> 1741.246254 | H23: =IF($F23="",0,VLOOKUP($E23,Drivers!$A$26:$F$48,MATCH(H$1,Drivers!$A$25:$F$25,0),0)*$F23) -> 1741.246254 | I23: =IF($F23="",0,VLOOKUP($E23,Drivers!$A$26:$F$48,MATCH(I$1,Drivers!$A$25:$F$25,0),0)*$F23) -> 1741.246254 | J23: =IF($F23="",0,VLOOKUP($E23,Drivers!$A$26:$F$48,MATCH(J$1,Drivers!$A$25:$F$25,0),0)*$F23) -> 1741.246254 | K23: =IF($F23="",0,VLOOKUP($E23,Drivers!$A$26:$F$48,MATCH(K$1,Drivers!$A$25:$F$25,0),0)*$F23) -> 1741.246254
A24: ALUGUÉIS | B24: 2410 | C24: ASSESSORIA DE SEGURANÇA DO TRABALHO | D24: =VLOOKUP(B24,Centro_Custo!$A$2:$C$36,3) -> OPEX&ODESP | E24: Fixo | F24: =SUMIFS('Classificação OPEX'!$O$4:$O$1666,'Classificação OPEX'!$Q$4:$Q$1666,"N",'Classificação OPEX'!$S$4:$S$1666,"NÃO",'Classificação OPEX'!$V$4:$V$1666,DRIVER_OPEX!A24,'Classificação OPEX'!$W$4:$W$1666,DRIVER_OPEX!B24) -> 0 | G24: =IF($F24="",0,VLOOKUP($E24,Drivers!$A$26:$F$48,MATCH(G$1,Drivers!$A$25:$F$25,0),0)*$F24) -> 0 | H24: =IF($F24="",0,VLOOKUP($E24,Drivers!$A$26:$F$48,MATCH(H$1,Drivers!$A$25:$F$25,0),0)*$F24) -> 0 | I24: =IF($F24="",0,VLOOKUP($E24,Drivers!$A$26:$F$48,MATCH(I$1,Drivers!$A$25:$F$25,0),0)*$F24) -> 0 | J24: =IF($F24="",0,VLOOKUP($E24,Drivers!$A$26:$F$48,MATCH(J$1,Drivers!$A$25:$F$25,0),0)*$F24) -> 0 | K24: =IF($F24="",0,VLOOKUP($E24,Drivers!$A$26:$F$48,MATCH(K$1,Drivers!$A$25:$F$25,0),0)*$F24) -> 0
A25: ALUGUÉIS | B25: 3100 | C25: SMS | D25: =VLOOKUP(B25,Centro_Custo!$A$2:$C$36,3) -> OPEX&ODESP | E25: Fixo | F25: =SUMIFS('Classificação OPEX'!$O$4:$O$1666,'Classificação OPEX'!$Q$4:$Q$1666,"N",'Classificação OPEX'!$S$4:$S$1666,"NÃO",'Classificação OPEX'!$V$4:$V$1666,DRIVER_OPEX!A25,'Classificação OPEX'!$W$4:$W$1666,DRIVER_OPEX!B25) -> 2153.097881 | G25: =IF($F25="",0,VLOOKUP($E25,Drivers!$A$26:$F$48,MATCH(G$1,Drivers!$A$25:$F$25,0),0)*$F25) -> 2153.097881 | H25: =IF($F25="",0,VLOOKUP($E25,Drivers!$A$26:$F$48,MATCH(H$1,Drivers!$A$25:$F$25,0),0)*$F25) -> 2153.097881 | I25: =IF($F25="",0,VLOOKUP($E25,Drivers!$A$26:$F$48,MATCH(I$1,Drivers!$A$25:$F$25,0),0)*$F25) -> 2153.097881 | J25: =IF($F25="",0,VLOOKUP($E25,Drivers!$A$26:$F$48,MATCH(J$1,Drivers!$A$25:$F$25,0),0)*$F25) -> 2153.097881 | K25: =IF($F25="",0,VLOOKUP($E25,Drivers!$A$26:$F$48,MATCH(K$1,Drivers!$A$25:$F$25,0),0)*$F25) -> 2153.097881
A26: ALUGUÉIS | B26: 3200 | C26: GERÊNCIA DE PLANEJAMENTO E MEIO AMBIENTE | D26: =VLOOKUP(B26,Centro_Custo!$A$2:$C$36,3) -> OPEX&ODESP | E26: Fixo | F26: =SUMIFS('Classificação OPEX'!$O$4:$O$1666,'Classificação OPEX'!$Q$4:$Q$1666,"N",'Classificação OPEX'!$S$4:$S$1666,"NÃO",'Classificação OPEX'!$V$4:$V$1666,DRIVER_OPEX!A26,'Classificação OPEX'!$W$4:$W$1666,DRIVER_OPEX!B26) -> 26130.61607 | G26: =IF($F26="",0,VLOOKUP($E26,Drivers!$A$26:$F$48,MATCH(G$1,Drivers!$A$25:$F$25,0),0)*$F26) -> 26130.61607 | H26: =IF($F26="",0,VLOOKUP($E26,Drivers!$A$26:$F$48,MATCH(H$1,Drivers!$A$25:$F$25,0),0)*$F26) -> 26130.61607 | I26: =IF($F26="",0,VLOOKUP($E26,Drivers!$A$26:$F$48,MATCH(I$1,Drivers!$A$25:$F$25,0),0)*$F26) -> 26130.61607 | J26: =IF($F26="",0,VLOOKUP($E26,Drivers!$A$26:$F$48,MATCH(J$1,Drivers!$A$25:$F$25,0),0)*$F26) -> 26130.61607 | K26: =IF($F26="",0,VLOOKUP($E26,Drivers!$A$26:$F$48,MATCH(K$1,Drivers!$A$25:$F$25,0),0)*$F26) -> 26130.61607
A27: ALUGUÉIS | B27: 3300 | C27: GERÊNCIA JURÍDICA | D27: =VLOOKUP(B27,Centro_Custo!$A$2:$C$36,3) -> Encargos de Gestão | E27: Fixo | F27: =SUMIFS('Classificação OPEX'!$O$4:$O$1666,'Classificação OPEX'!$Q$4:$Q$1666,"N",'Classificação OPEX'!$S$4:$S$1666,"NÃO",'Classificação OPEX'!$V$4:$V$1666,DRIVER_OPEX!A27,'Classificação OPEX'!$W$4:$W$1666,DRIVER_OPEX!B27) -> 10234.87507 | G27: =IF($F27="",0,VLOOKUP($E27,Drivers!$A$26:$F$48,MATCH(G$1,Drivers!$A$25:$F$25,0),0)*$F27) -> 10234.87507 | H27: =IF($F27="",0,VLOOKUP($E27,Drivers!$A$26:$F$48,MATCH(H$1,Drivers!$A$25:$F$25,0),0)*$F27) -> 10234.87507 | I27: =IF($F27="",0,VLOOKUP($E27,Drivers!$A$26:$F$48,MATCH(I$1,Drivers!$A$25:$F$25,0),0)*$F27) -> 10234.87507 | J27: =IF($F27="",0,VLOOKUP($E27,Drivers!$A$26:$F$48,MATCH(J$1,Drivers!$A$25:$F$25,0),0)*$F27) -> 10234.87507 | K27: =IF($F27="",0,VLOOKUP($E27,Drivers!$A$26:$F$48,MATCH(K$1,Drivers!$A$25:$F$25,0),0)*$F27) -> 10234.87507
A28: ALUGUÉIS | B28: 3400 | C28: MARKETING | D28: =VLOOKUP(B28,Centro_Custo!$A$2:$C$36,3) -> Encargos de Comercialização | E28: Fixo | F28: =SUMIFS('Classificação OPEX'!$O$4:$O$1666,'Classificação OPEX'!$Q$4:$Q$1666,"N",'Classificação OPEX'!$S$4:$S$1666,"NÃO",'Classificação OPEX'!$V$4:$V$1666,DRIVER_OPEX!A28,'Classificação OPEX'!$W$4:$W$1666,DRIVER_OPEX!B28) -> 3762.334193 | G28: =IF($F28="",0,VLOOKUP($E28,Drivers!$A$26:$F$48,MATCH(G$1,Drivers!$A$25:$F$25,0),0)*$F28) -> 3762.334193 | H28: =IF($F28="",0,VLOOKUP($E28,Drivers!$A$26:$F$48,MATCH(H$1,Drivers!$A$25:$F$25,0),0)*$F28) -> 3762.334193 | I28: =IF($F28="",0,VLOOKUP($E28,Drivers!$A$26:$F$48,MATCH(I$1,Drivers!$A$25:$F$25,0),0)*$F28) -> 3762.334193 | J28: =IF($F28="",0,VLOOKUP($E28,Drivers!$A$26:$F$48,MATCH(J$1,Drivers!$A$25:$F$25,0),0)*$F28) -> 3762.334193 | K28: =IF($F28="",0,VLOOKUP($E28,Drivers!$A$26:$F$48,MATCH(K$1,Drivers!$A$25:$F$25,0),0)*$F28) -> 3762.334193
A29: ALUGUÉIS | B29: 3500 | C29: ASSESSORIA DE COMUNICAÇÃO INSTITUCIONAL | D29: =VLOOKUP(B29,Centro_Custo!$A$2:$C$36,3) -> Encargos de Gestão | E29: Fixo | F29: =SUMIFS('Classificação OPEX'!$O$4:$O$1666,'Classificação OPEX'!$Q$4:$Q$1666,"N",'Classificação OPEX'!$S$4:$S$1666,"NÃO",'Classificação OPEX'!$V$4:$V$1666,DRIVER_OPEX!A29,'Classificação OPEX'!$W$4:$W$1666,DRIVER_OPEX!B29) -> 9392.468262 | G29: =IF($F29="",0,VLOOKUP($E29,Drivers!$A$26:$F$48,MATCH(G$1,Drivers!$A$25:$F$25,0),0)*$F29) -> 9392.468262 | H29: =IF($F29="",0,VLOOKUP($E29,Drivers!$A$26:$F$48,MATCH(H$1,Drivers!$A$25:$F$25,0),0)*$F29) -> 9392.468262 | I29: =IF($F29="",0,VLOOKUP($E29,Drivers!$A$26:$F$48,MATCH(I$1,Drivers!$A$25:$F$25,0),0)*$F29) -> 9392.468262 | J29: =IF($F29="",0,VLOOKUP($E29,Drivers!$A$26:$F$48,MATCH(J$1,Drivers!$A$25:$F$25,0),0)*$F29) -> 9392.468262 | K29: =IF($F29="",0,VLOOKUP($E29,Drivers!$A$26:$F$48,MATCH(K$1,Drivers!$A$25:$F$25,0),0)*$F29) -> 9392.468262
A30: ALUGUÉIS | B30: 3600 | C30: GERÊNCIA DE GOVERNANÇA, RISCO E COMPLIANCE | D30: =VLOOKUP(B30,Centro_Custo!$A$2:$C$36,3) -> Encargos de Gestão | E30: Fixo | F30: =SUMIFS('Classificação OPEX'!$O$4:$O$1666,'Classificação OPEX'!$Q$4:$Q$1666,"N",'Classificação OPEX'!$S$4:$S$1666,"NÃO",'Classificação OPEX'!$V$4:$V$1666,DRIVER_OPEX!A30,'Classificação OPEX'!$W$4:$W$1666,DRIVER_OPEX!B30) -> 12371.76602 | G30: =IF($F30="",0,VLOOKUP($E30,Drivers!$A$26:$F$48,MATCH(G$1,Drivers!$A$25:$F$25,0),0)*$F30) -> 12371.76602 | H30: =IF($F30="",0,VLOOKUP($E30,Drivers!$A$26:$F$48,MATCH(H$1,Drivers!$A$25:$F$25,0),0)*$F30) -> 12371.76602 | I30: =IF($F30="",0,VLOOKUP($E30,Drivers!$A$26:$F$48,MATCH(I$1,Drivers!$A$25:$F$25,0),0)*$F30) -> 12371.76602 | J30: =IF($F30="",0,VLOOKUP($E30,Drivers!$A$26:$F$48,MATCH(J$1,Drivers!$A$25:$F$25,0),0)*$F30) -> 12371.76602 | K30: =IF($F30="",0,VLOOKUP($E30,Drivers!$A$26:$F$48,MATCH(K$1,Drivers!$A$25:$F$25,0),0)*$F30) -> 12371.76602
A31: ALUGUÉIS | B31: 3700 | C31: GERÊNCIA DE REGULAÇÃO | D31: =VLOOKUP(B31,Centro_Custo!$A$2:$C$36,3) -> Encargos de Gestão | E31: Fixo | F31: =SUMIFS('Classificação OPEX'!$O$4:$O$1666,'Classificação OPEX'!$Q$4:$Q$1666,"N",'Classificação OPEX'!$S$4:$S$1666,"NÃO",'Classificação OPEX'!$V$4:$V$1666,DRIVER_OPEX!A31,'Classificação OPEX'!$W$4:$W$1666,DRIVER_OPEX!B31) -> 0 | G31: =IF($F31="",0,VLOOKUP($E31,Drivers!$A$26:$F$48,MATCH(G$1,Drivers!$A$25:$F$25,0),0)*$F31) -> 0 | H31: =IF($F31="",0,VLOOKUP($E31,Drivers!$A$26:$F$48,MATCH(H$1,Drivers!$A$25:$F$25,0),0)*$F31) -> 0 | I31: =IF($F31="",0,VLOOKUP($E31,Drivers!$A$26:$F$48,MATCH(I$1,Drivers!$A$25:$F$25,0),0)*$F31) -> 0 | J31: =IF($F31="",0,VLOOKUP($E31,Drivers!$A$26:$F$48,MATCH(J$1,Drivers!$A$25:$F$25,0),0)*$F31) -> 0 | K31: =IF($F31="",0,VLOOKUP($E31,Drivers!$A$26:$F$48,MATCH(K$1,Drivers!$A$25:$F$25,0),0)*$F31) -> 0
A32: ALUGUÉIS | B32: 4200 | C32: GERÊNCIA FINANCEIRA | D32: =VLOOKUP(B32,Centro_Custo!$A$2:$C$36,3) -> Encargos de Gestão | E32: Fixo | F32: =SUMIFS('Classificação OPEX'!$O$4:$O$1666,'Classificação OPEX'!$Q$4:$Q$1666,"N",'Classificação OPEX'!$S$4:$S$1666,"NÃO",'Classificação OPEX'!$V$4:$V$1666,DRIVER_OPEX!A32,'Classificação OPEX'!$W$4:$W$1666,DRIVER_OPEX!B32) -> 24596.99772 | G32: =IF($F32="",0,VLOOKUP($E32,Drivers!$A$26:$F$48,MATCH(G$1,Drivers!$A$25:$F$25,0),0)*$F32) -> 24596.99772 | H32: =IF($F32="",0,VLOOKUP($E32,Drivers!$A$26:$F$48,MATCH(H$1,Drivers!$A$25:$F$25,0),0)*$F32) -> 24596.99772 | I32: =IF($F32="",0,VLOOKUP($E32,Drivers!$A$26:$F$48,MATCH(I$1,Drivers!$A$25:$F$25,0),0)*$F32) -> 24596.99772 | J32: =IF($F32="",0,VLOOKUP($E32,Drivers!$A$26:$F$48,MATCH(J$1,Drivers!$A$25:$F$25,0),0)*$F32) -> 24596.99772 | K32: =IF($F32="",0,VLOOKUP($E32,Drivers!$A$26:$F$48,MATCH(K$1,Drivers!$A$25:$F$25,0),0)*$F32) -> 24596.99772
A33: ALUGUÉIS | B33: 4500 | C33: GERÊNCIA CONTÁBIL | D33: =VLOOKUP(B33,Centro_Custo!$A$2:$C$36,3) -> Encargos de Gestão | E33: Fixo | F33: =SUMIFS('Classificação OPEX'!$O$4:$O$1666,'Classificação OPEX'!$Q$4:$Q$1666,"N",'Classificação OPEX'!$S$4:$S$1666,"NÃO",'Classificação OPEX'!$V$4:$V$1666,DRIVER_OPEX!A33,'Classificação OPEX'!$W$4:$W$1666,DRIVER_OPEX!B33) -> 16617.18817 | G33: =IF($F33="",0,VLOOKUP($E33,Drivers!$A$26:$F$48,MATCH(G$1,Drivers!$A$25:$F$25,0),0)*$F33) -> 16617.18817 | H33: =IF($F33="",0,VLOOKUP($E33,Drivers!$A$26:$F$48,MATCH(H$1,Drivers!$A$25:$F$25,0),0)*$F33) -> 16617.18817 | I33: =IF($F33="",0,VLOOKUP($E33,Drivers!$A$26:$F$48,MATCH(I$1,Drivers!$A$25:$F$25,0),0)*$F33) -> 16617.18817 | J33: =IF($F33="",0,VLOOKUP($E33,Drivers!$A$26:$F$48,MATCH(J$1,Drivers!$A$25:$F$25,0),0)*$F33) -> 16617.18817 | K33: =IF($F33="",0,VLOOKUP($E33,Drivers!$A$26:$F$48,MATCH(K$1,Drivers!$A$25:$F$25,0),0)*$F33) -> 16617.18817
A34: ALUGUÉIS | B34: 4600 | C34: GERÊNCIA DE PESSOAS E CULTURA | D34: =VLOOKUP(B34,Centro_Custo!$A$2:$C$36,3) -> Encargos de Gestão | E34: Fixo | F34: =SUMIFS('Classificação OPEX'!$O$4:$O$1666,'Classificação OPEX'!$Q$4:$Q$1666,"N",'Classificação OPEX'!$S$4:$S$1666,"NÃO",'Classificação OPEX'!$V$4:$V$1666,DRIVER_OPEX!A34,'Classificação OPEX'!$W$4:$W$1666,DRIVER_OPEX!B34) -> 3762.334193 | G34: =IF($F34="",0,VLOOKUP($E34,Drivers!$A$26:$F$48,MATCH(G$1,Drivers!$A$25:$F$25,0),0)*$F34) -> 3762.334193 | H34: =IF($F34="",0,VLOOKUP($E34,Drivers!$A$26:$F$48,MATCH(H$1,Drivers!$A$25:$F$25,0),0)*$F34) -> 3762.334193 | I34: =IF($F34="",0,VLOOKUP($E34,Drivers!$A$26:$F$48,MATCH(I$1,Drivers!$A$25:$F$25,0),0)*$F34) -> 3762.334193 | J34: =IF($F34="",0,VLOOKUP($E34,Drivers!$A$26:$F$48,MATCH(J$1,Drivers!$A$25:$F$25,0),0)*$F34) -> 3762.334193 | K34: =IF($F34="",0,VLOOKUP($E34,Drivers!$A$26:$F$48,MATCH(K$1,Drivers!$A$25:$F$25,0),0)*$F34) -> 3762.334193
A35: ALUGUÉIS | B35: 5300 | C35: GERÊNCIA COMERCIAL | D35: =VLOOKUP(B35,Centro_Custo!$A$2:$C$36,3) -> Encargos de Comercialização | E35: Fixo | F35: =SUMIFS('Classificação OPEX'!$O$4:$O$1666,'Classificação OPEX'!$Q$4:$Q$1666,"N",'Classificação OPEX'!$S$4:$S$1666,"NÃO",'Classificação OPEX'!$V$4:$V$1666,DRIVER_OPEX!A35,'Classificação OPEX'!$W$4:$W$1666,DRIVER_OPEX!B35) -> 50471.36604 | G35: =IF($F35="",0,VLOOKUP($E35,Drivers!$A$26:$F$48,MATCH(G$1,Drivers!$A$25:$F$25,0),0)*$F35) -> 50471.36604 | H35: =IF($F35="",0,VLOOKUP($E35,Drivers!$A$26:$F$48,MATCH(H$1,Drivers!$A$25:$F$25,0),0)*$F35) -> 50471.36604 | I35: =IF($F35="",0,VLOOKUP($E35,Drivers!$A$26:$F$48,MATCH(I$1,Drivers!$A$25:$F$25,0),0)*$F35) -> 50471.36604 | J35: =IF($F35="",0,VLOOKUP($E35,Drivers!$A$26:$F$48,MATCH(J$1,Drivers!$A$25:$F$25,0),0)*$F35) -> 50471.36604 | K35: =IF($F35="",0,VLOOKUP($E35,Drivers!$A$26:$F$48,MATCH(K$1,Drivers!$A$25:$F$25,0),0)*$F35) -> 50471.36604
A36: ALUGUÉIS | B36: 0000 | C36: RATEIO | D36: =VLOOKUP(B36,Centro_Custo!$A$2:$C$36,3) -> Encargos de Gestão | E36: Município | F36: =SUMIFS('Classificação OPEX'!$O$4:$O$1666,'Classificação OPEX'!$Q$4:$Q$1666,"N",'Classificação OPEX'!$S$4:$S$1666,"NÃO",'Classificação OPEX'!$V$4:$V$1666,DRIVER_OPEX!A36,'Classificação OPEX'!$W$4:$W$1666,DRIVER_OPEX!B36) -> 0 | G36: =IF($F36="",0,VLOOKUP($E36,Drivers!$A$26:$F$48,MATCH(G$1,Drivers!$A$25:$F$25,0),0)*$F36) -> 0 | H36: =IF($F36="",0,VLOOKUP($E36,Drivers!$A$26:$F$48,MATCH(H$1,Drivers!$A$25:$F$25,0),0)*$F36) -> 0 | I36: =IF($F36="",0,VLOOKUP($E36,Drivers!$A$26:$F$48,MATCH(I$1,Drivers!$A$25:$F$25,0),0)*$F36) -> 0 | J36: =IF($F36="",0,VLOOKUP($E36,Drivers!$A$26:$F$48,MATCH(J$1,Drivers!$A$25:$F$25,0),0)*$F36) -> 0 | K36: =IF($F36="",0,VLOOKUP($E36,Drivers!$A$26:$F$48,MATCH(K$1,Drivers!$A$25:$F$25,0),0)*$F36) -> 0
A37: ALUGUÉIS | B37: 5400 | C37: GERÊNCIA COMERCIAL | D37: =VLOOKUP(B37,Centro_Custo!$A$2:$C$36,3) -> Encargos de Gestão | E37: Fixo | F37: =SUMIFS('Classificação OPEX'!$O$4:$O$1666,'Classificação OPEX'!$Q$4:$Q$1666,"N",'Classificação OPEX'!$S$4:$S$1666,"NÃO",'Classificação OPEX'!$V$4:$V$1666,DRIVER_OPEX!A37,'Classificação OPEX'!$W$4:$W$1666,DRIVER_OPEX!B37) -> 12903.69446 | G37: =IF($F37="",0,VLOOKUP($E37,Drivers!$A$26:$F$48,MATCH(G$1,Drivers!$A$25:$F$25,0),0)*$F37) -> 12903.69446 | H37: =IF($F37="",0,VLOOKUP($E37,Drivers!$A$26:$F$48,MATCH(H$1,Drivers!$A$25:$F$25,0),0)*$F37) -> 12903.69446 | I37: =IF($F37="",0,VLOOKUP($E37,Drivers!$A$26:$F$48,MATCH(I$1,Drivers!$A$25:$F$25,0),0)*$F37) -> 12903.69446 | J37: =IF($F37="",0,VLOOKUP($E37,Drivers!$A$26:$F$48,MATCH(J$1,Drivers!$A$25:$F$25,0),0)*$F37) -> 12903.69446 | K37: =IF($F37="",0,VLOOKUP($E37,Drivers!$A$26:$F$48,MATCH(K$1,Drivers!$A$25:$F$25,0),0)*$F37) -> 12903.69446
A38: ALUGUÉIS | B38: 5500 | C38: GERÊNCIA COMERCIAL | D38: =VLOOKUP(B38,Centro_Custo!$A$2:$C$36,3) -> Encargos de Gestão | E38: Fixo | F38: =SUMIFS('Classificação OPEX'!$O$4:$O$1666,'Classificação OPEX'!$Q$4:$Q$1666,"N",'Classificação OPEX'!$S$4:$S$1666,"NÃO",'Classificação OPEX'!$V$4:$V$1666,DRIVER_OPEX!A38,'Classificação OPEX'!$W$4:$W$1666,DRIVER_OPEX!B38) -> 2867.62185 | G38: =IF($F38="",0,VLOOKUP($E38,Drivers!$A$26:$F$48,MATCH(G$1,Drivers!$A$25:$F$25,0),0)*$F38) -> 2867.62185 | H38: =IF($F38="",0,VLOOKUP($E38,Drivers!$A$26:$F$48,MATCH(H$1,Drivers!$A$25:$F$25,0),0)*$F38) -> 2867.62185 | I38: =IF($F38="",0,VLOOKUP($E38,Drivers!$A$26:$F$48,MATCH(I$1,Drivers!$A$25:$F$25,0),0)*$F38) -> 2867.62185 | J38: =IF($F38="",0,VLOOKUP($E38,Drivers!$A$26:$F$48,MATCH(J$1,Drivers!$A$25:$F$25,0),0)*$F38) -> 2867.62185 | K38: =IF($F38="",0,VLOOKUP($E38,Drivers!$A$26:$F$48,MATCH(K$1,Drivers!$A$25:$F$25,0),0)*$F38) -> 2867.62185
A39: CUSTO_ODORIZAÇAO | B39: TOTAL | C39: TOTAL | F39: =SUM(F40:F74) -> 231949.5856 | G39: =SUM(G40:G74) -> 230712.1297 | H39: =SUM(H40:H74) -> 248867.8198 | I39: 268459.6634 | J39: 313996.5499 | K39: 355213.7871
A40: CUSTO_ODORIZAÇAO | B40: 5200 | C40: =VLOOKUP(B40,Centro_Custo!$A$2:$B$36,2,0) -> GERÊNCIA DE OPERAÇÕES | D40: =VLOOKUP(B40,Centro_Custo!$A$2:$C$36,3) -> OPEX&ODESP | E40: Volume distribuído - Sem Termoelétrica | F40: =SUMIFS('Classificação OPEX'!$O$4:$O$1666,'Classificação OPEX'!$Q$4:$Q$1666,"N",'Classificação OPEX'!$S$4:$S$1666,"NÃO",'Classificação OPEX'!$V$4:$V$1666,DRIVER_OPEX!A40,'Classificação OPEX'!$W$4:$W$1666,DRIVER_OPEX!B40) -> 231949.5856 | G40: =IF($F40="",0,VLOOKUP($E40,Drivers!$A$26:$F$48,MATCH(G$1,Drivers!$A$25:$F$25,0),0)*$F40) -> 230712.1297 | H40: =IF($F40="",0,VLOOKUP($E40,Drivers!$A$26:$F$48,MATCH(H$1,Drivers!$A$25:$F$25,0),0)*$F40) -> 248867.8198 | I40: =IF($F40="",0,VLOOKUP($E40,Drivers!$A$26:$F$48,MATCH(I$1,Drivers!$A$25:$F$25,0),0)*$F40) -> 268459.6634 | J40: =IF($F40="",0,VLOOKUP($E40,Drivers!$A$26:$F$48,MATCH(J$1,Drivers!$A$25:$F$25,0),0)*$F40) -> 313996.5499 | K40: =IF($F40="",0,VLOOKUP($E40,Drivers!$A$26:$F$48,MATCH(K$1,Drivers!$A$25:$F$25,0),0)*$F40) -> 355213.7871
A41: CUSTO_ODORIZAÇAO | B41: 0000 | C41: RATEIO | D41: =VLOOKUP(B41,Centro_Custo!$A$2:$C$36,3) -> Encargos de Gestão | E41: Fixo | F41: =SUMIFS('Classificação OPEX'!$O$4:$O$1666,'Classificação OPEX'!$Q$4:$Q$1666,"N",'Classificação OPEX'!$S$4:$S$1666,"NÃO",'Classificação OPEX'!$V$4:$V$1666,DRIVER_OPEX!A41,'Classificação OPEX'!$W$4:$W$1666,DRIVER_OPEX!B41) -> 0 | G41: =IF($F41="",0,VLOOKUP($E41,Drivers!$A$26:$F$48,MATCH(G$1,Drivers!$A$25:$F$25,0),0)*$F41) -> 0 | H41: =IF($F41="",0,VLOOKUP($E41,Drivers!$A$26:$F$48,MATCH(H$1,Drivers!$A$25:$F$25,0),0)*$F41) -> 0 | I41: =IF($F41="",0,VLOOKUP($E41,Drivers!$A$26:$F$48,MATCH(I$1,Drivers!$A$25:$F$25,0),0)*$F41) -> 0 | J41: =IF($F41="",0,VLOOKUP($E41,Drivers!$A$26:$F$48,MATCH(J$1,Drivers!$A$25:$F$25,0),0)*$F41) -> 0 | K41: =IF($F41="",0,VLOOKUP($E41,Drivers!$A$26:$F$48,MATCH(K$1,Drivers!$A$25:$F$25,0),0)*$F41) -> 0
A42: CUSTO_ODORIZAÇAO | B42: 1001 | C42: CONSELHO DE ADMINISTRAÇÃO | D42: =VLOOKUP(B42,Centro_Custo!$A$2:$C$36,3) -> Encargos de Gestão | E42: Fixo | F42: =SUMIFS('Classificação OPEX'!$O$4:$O$1666,'Classificação OPEX'!$Q$4:$Q$1666,"N",'Classificação OPEX'!$S$4:$S$1666,"NÃO",'Classificação OPEX'!$V$4:$V$1666,DRIVER_OPEX!A42,'Classificação OPEX'!$W$4:$W$1666,DRIVER_OPEX!B42) -> 0 | G42: =IF($F42="",0,VLOOKUP($E42,Drivers!$A$26:$F$48,MATCH(G$1,Drivers!$A$25:$F$25,0),0)*$F42) -> 0 | H42: =IF($F42="",0,VLOOKUP($E42,Drivers!$A$26:$F$48,MATCH(H$1,Drivers!$A$25:$F$25,0),0)*$F42) -> 0 | I42: =IF($F42="",0,VLOOKUP($E42,Drivers!$A$26:$F$48,MATCH(I$1,Drivers!$A$25:$F$25,0),0)*$F42) -> 0 | J42: =IF($F42="",0,VLOOKUP($E42,Drivers!$A$26:$F$48,MATCH(J$1,Drivers!$A$25:$F$25,0),0)*$F42) -> 0 | K42: =IF($F42="",0,VLOOKUP($E42,Drivers!$A$26:$F$48,MATCH(K$1,Drivers!$A$25:$F$25,0),0)*$F42) -> 0
A43: CUSTO_ODORIZAÇAO | B43: 1002 | C43: CONSELHO FISCAL | D43: =VLOOKUP(B43,Centro_Custo!$A$2:$C$36,3) -> Encargos de Gestão | E43: Fixo | F43: =SUMIFS('Classificação OPEX'!$O$4:$O$1666,'Classificação OPEX'!$Q$4:$Q$1666,"N",'Classificação OPEX'!$S$4:$S$1666,"NÃO",'Classificação OPEX'!$V$4:$V$1666,DRIVER_OPEX!A43,'Classificação OPEX'!$W$4:$W$1666,DRIVER_OPEX!B43) -> 0 | G43: =IF($F43="",0,VLOOKUP($E43,Drivers!$A$26:$F$48,MATCH(G$1,Drivers!$A$25:$F$25,0),0)*$F43) -> 0 | H43: =IF($F43="",0,VLOOKUP($E43,Drivers!$A$26:$F$48,MATCH(H$1,Drivers!$A$25:$F$25,0),0)*$F43) -> 0 | I43: =IF($F43="",0,VLOOKUP($E43,Drivers!$A$26:$F$48,MATCH(I$1,Drivers!$A$25:$F$25,0),0)*$F43) -> 0 | J43: =IF($F43="",0,VLOOKUP($E43,Drivers!$A$26:$F$48,MATCH(J$1,Drivers!$A$25:$F$25,0),0)*$F43) -> 0 | K43: =IF($F43="",0,VLOOKUP($E43,Drivers!$A$26:$F$48,MATCH(K$1,Drivers!$A$25:$F$25,0),0)*$F43) -> 0
A44: CUSTO_ODORIZAÇAO | B44: 1003 | C44: COMITÊ DE INDICAÇÃO E AVALIAÇÃO | D44: =VLOOKUP(B44,Centro_Custo!$A$2:$C$36,3) -> Encargos de Gestão | E44: Fixo | F44: =SUMIFS('Classificação OPEX'!$O$4:$O$1666,'Classificação OPEX'!$Q$4:$Q$1666,"N",'Classificação OPEX'!$S$4:$S$1666,"NÃO",'Classificação OPEX'!$V$4:$V$1666,DRIVER_OPEX!A44,'Classificação OPEX'!$W$4:$W$1666,DRIVER_OPEX!B44) -> 0 | G44: =IF($F44="",0,VLOOKUP($E44,Drivers!$A$26:$F$48,MATCH(G$1,Drivers!$A$25:$F$25,0),0)*$F44) -> 0 | H44: =IF($F44="",0,VLOOKUP($E44,Drivers!$A$26:$F$48,MATCH(H$1,Drivers!$A$25:$F$25,0),0)*$F44) -> 0 | I44: =IF($F44="",0,VLOOKUP($E44,Drivers!$A$26:$F$48,MATCH(I$1,Drivers!$A$25:$F$25,0),0)*$F44) -> 0 | J44: =IF($F44="",0,VLOOKUP($E44,Drivers!$A$26:$F$48,MATCH(J$1,Drivers!$A$25:$F$25,0),0)*$F44) -> 0 | K44: =IF($F44="",0,VLOOKUP($E44,Drivers!$A$26:$F$48,MATCH(K$1,Drivers!$A$25:$F$25,0),0)*$F44) -> 0
A45: CUSTO_ODORIZAÇAO | B45: 1004 | C45: COMITÊ DE AUDITORIA ESTATUTÁRIA | D45: =VLOOKUP(B45,Centro_Custo!$A$2:$C$36,3) -> Encargos de Gestão | E45: Fixo | F45: =SUMIFS('Classificação OPEX'!$O$4:$O$1666,'Classificação OPEX'!$Q$4:$Q$1666,"N",'Classificação OPEX'!$S$4:$S$1666,"NÃO",'Classificação OPEX'!$V$4:$V$1666,DRIVER_OPEX!A45,'Classificação OPEX'!$W$4:$W$1666,DRIVER_OPEX!B45) -> 0 | G45: =IF($F45="",0,VLOOKUP($E45,Drivers!$A$26:$F$48,MATCH(G$1,Drivers!$A$25:$F$25,0),0)*$F45) -> 0 | H45: =IF($F45="",0,VLOOKUP($E45,Drivers!$A$26:$F$48,MATCH(H$1,Drivers!$A$25:$F$25,0),0)*$F45) -> 0 | I45: =IF($F45="",0,VLOOKUP($E45,Drivers!$A$26:$F$48,MATCH(I$1,Drivers!$A$25:$F$25,0),0)*$F45) -> 0 | J45: =IF($F45="",0,VLOOKUP($E45,Drivers!$A$26:$F$48,MATCH(J$1,Drivers!$A$25:$F$25,0),0)*$F45) -> 0 | K45: =IF($F45="",0,VLOOKUP($E45,Drivers!$A$26:$F$48,MATCH(K$1,Drivers!$A$25:$F$25,0),0)*$F45) -> 0
A46: CUSTO_ODORIZAÇAO | B46: 1005 | C46: AUDITORIA INTERNA | D46: =VLOOKUP(B46,Centro_Custo!$A$2:$C$36,3) -> Encargos de Gestão | E46: Fixo | F46: =SUMIFS('Classificação OPEX'!$O$4:$O$1666,'Classificação OPEX'!$Q$4:$Q$1666,"N",'Classificação OPEX'!$S$4:$S$1666,"NÃO",'Classificação OPEX'!$V$4:$V$1666,DRIVER_OPEX!A46,'Classificação OPEX'!$W$4:$W$1666,DRIVER_OPEX!B46) -> 0 | G46: =IF($F46="",0,VLOOKUP($E46,Drivers!$A$26:$F$48,MATCH(G$1,Drivers!$A$25:$F$25,0),0)*$F46) -> 0 | H46: =IF($F46="",0,VLOOKUP($E46,Drivers!$A$26:$F$48,MATCH(H$1,Drivers!$A$25:$F$25,0),0)*$F46) -> 0 | I46: =IF($F46="",0,VLOOKUP($E46,Drivers!$A$26:$F$48,MATCH(I$1,Drivers!$A$25:$F$25,0),0)*$F46) -> 0 | J46: =IF($F46="",0,VLOOKUP($E46,Drivers!$A$26:$F$48,MATCH(J$1,Drivers!$A$25:$F$25,0),0)*$F46) -> 0 | K46: =IF($F46="",0,VLOOKUP($E46,Drivers!$A$26:$F$48,MATCH(K$1,Drivers!$A$25:$F$25,0),0)*$F46) -> 0
A47: CUSTO_ODORIZAÇAO | B47: 1010 | C47: GOVERNANÇA SOCIETÁRIA | D47: =VLOOKUP(B47,Centro_Custo!$A$2:$C$36,3) -> Encargos de Gestão | E47: Fixo | F47: =SUMIFS('Classificação OPEX'!$O$4:$O$1666,'Classificação OPEX'!$Q$4:$Q$1666,"N",'Classificação OPEX'!$S$4:$S$1666,"NÃO",'Classificação OPEX'!$V$4:$V$1666,DRIVER_OPEX!A47,'Classificação OPEX'!$W$4:$W$1666,DRIVER_OPEX!B47) -> 0 | G47: =IF($F47="",0,VLOOKUP($E47,Drivers!$A$26:$F$48,MATCH(G$1,Drivers!$A$25:$F$25,0),0)*$F47) -> 0 | H47: =IF($F47="",0,VLOOKUP($E47,Drivers!$A$26:$F$48,MATCH(H$1,Drivers!$A$25:$F$25,0),0)*$F47) -> 0 | I47: =IF($F47="",0,VLOOKUP($E47,Drivers!$A$26:$F$48,MATCH(I$1,Drivers!$A$25:$F$25,0),0)*$F47) -> 0 | J47: =IF($F47="",0,VLOOKUP($E47,Drivers!$A$26:$F$48,MATCH(J$1,Drivers!$A$25:$F$25,0),0)*$F47) -> 0 | K47: =IF($F47="",0,VLOOKUP($E47,Drivers!$A$26:$F$48,MATCH(K$1,Drivers!$A$25:$F$25,0),0)*$F47) -> 0
A48: CUSTO_ODORIZAÇAO | B48: 2100 | C48: SECRETARIA | D48: =VLOOKUP(B48,Centro_Custo!$A$2:$C$36,3) -> Encargos de Gestão | E48: Fixo | F48: =SUMIFS('Classificação OPEX'!$O$4:$O$1666,'Classificação OPEX'!$Q$4:$Q$1666,"N",'Classificação OPEX'!$S$4:$S$1666,"NÃO",'Classificação OPEX'!$V$4:$V$1666,DRIVER_OPEX!A48,'Classificação OPEX'!$W$4:$W$1666,DRIVER_OPEX!B48) -> 0 | G48: =IF($F48="",0,VLOOKUP($E48,Drivers!$A$26:$F$48,MATCH(G$1,Drivers!$A$25:$F$25,0),0)*$F48) -> 0 | H48: =IF($F48="",0,VLOOKUP($E48,Drivers!$A$26:$F$48,MATCH(H$1,Drivers!$A$25:$F$25,0),0)*$F48) -> 0 | I48: =IF($F48="",0,VLOOKUP($E48,Drivers!$A$26:$F$48,MATCH(I$1,Drivers!$A$25:$F$25,0),0)*$F48) -> 0 | J48: =IF($F48="",0,VLOOKUP($E48,Drivers!$A$26:$F$48,MATCH(J$1,Drivers!$A$25:$F$25,0),0)*$F48) -> 0 | K48: =IF($F48="",0,VLOOKUP($E48,Drivers!$A$26:$F$48,MATCH(K$1,Drivers!$A$25:$F$25,0),0)*$F48) -> 0
A49: CUSTO_ODORIZAÇAO | B49: 2110 | C49: ASSESSORIA DA DIRETORIA EXECUTIVA | D49: =VLOOKUP(B49,Centro_Custo!$A$2:$C$36,3) -> Encargos de Gestão | E49: Fixo | F49: =SUMIFS('Classificação OPEX'!$O$4:$O$1666,'Classificação OPEX'!$Q$4:$Q$1666,"N",'Classificação OPEX'!$S$4:$S$1666,"NÃO",'Classificação OPEX'!$V$4:$V$1666,DRIVER_OPEX!A49,'Classificação OPEX'!$W$4:$W$1666,DRIVER_OPEX!B49) -> 0 | G49: =IF($F49="",0,VLOOKUP($E49,Drivers!$A$26:$F$48,MATCH(G$1,Drivers!$A$25:$F$25,0),0)*$F49) -> 0 | H49: =IF($F49="",0,VLOOKUP($E49,Drivers!$A$26:$F$48,MATCH(H$1,Drivers!$A$25:$F$25,0),0)*$F49) -> 0 | I49: =IF($F49="",0,VLOOKUP($E49,Drivers!$A$26:$F$48,MATCH(I$1,Drivers!$A$25:$F$25,0),0)*$F49) -> 0 | J49: =IF($F49="",0,VLOOKUP($E49,Drivers!$A$26:$F$48,MATCH(J$1,Drivers!$A$25:$F$25,0),0)*$F49) -> 0 | K49: =IF($F49="",0,VLOOKUP($E49,Drivers!$A$26:$F$48,MATCH(K$1,Drivers!$A$25:$F$25,0),0)*$F49) -> 0
A50: CUSTO_ODORIZAÇAO | B50: 2120 | C50: ASSESSORIA DA PRESIDÊNCIA | D50: =VLOOKUP(B50,Centro_Custo!$A$2:$C$36,3) -> Encargos de Gestão | E50: Fixo | F50: =SUMIFS('Classificação OPEX'!$O$4:$O$1666,'Classificação OPEX'!$Q$4:$Q$1666,"N",'Classificação OPEX'!$S$4:$S$1666,"NÃO",'Classificação OPEX'!$V$4:$V$1666,DRIVER_OPEX!A50,'Classificação OPEX'!$W$4:$W$1666,DRIVER_OPEX!B50) -> 0 | G50: =IF($F50="",0,VLOOKUP($E50,Drivers!$A$26:$F$48,MATCH(G$1,Drivers!$A$25:$F$25,0),0)*$F50) -> 0 | H50: =IF($F50="",0,VLOOKUP($E50,Drivers!$A$26:$F$48,MATCH(H$1,Drivers!$A$25:$F$25,0),0)*$F50) -> 0 | I50: =IF($F50="",0,VLOOKUP($E50,Drivers!$A$26:$F$48,MATCH(I$1,Drivers!$A$25:$F$25,0),0)*$F50) -> 0 | J50: =IF($F50="",0,VLOOKUP($E50,Drivers!$A$26:$F$48,MATCH(J$1,Drivers!$A$25:$F$25,0),0)*$F50) -> 0 | K50: =IF($F50="",0,VLOOKUP($E50,Drivers!$A$26:$F$48,MATCH(K$1,Drivers!$A$25:$F$25,0),0)*$F50) -> 0
A51: CUSTO_ODORIZAÇAO | B51: 2130 | C51: ASSESSORIA DE RELAÇÕES INSTITUCIONAIS E NOVOS NEGÓCIOS | D51: =VLOOKUP(B51,Centro_Custo!$A$2:$C$36,3) -> Encargos de Gestão | E51: Fixo | F51: =SUMIFS('Classificação OPEX'!$O$4:$O$1666,'Classificação OPEX'!$Q$4:$Q$1666,"N",'Classificação OPEX'!$S$4:$S$1666,"NÃO",'Classificação OPEX'!$V$4:$V$1666,DRIVER_OPEX!A51,'Classificação OPEX'!$W$4:$W$1666,DRIVER_OPEX!B51) -> 0 | G51: =IF($F51="",0,VLOOKUP($E51,Drivers!$A$26:$F$48,MATCH(G$1,Drivers!$A$25:$F$25,0),0)*$F51) -> 0 | H51: =IF($F51="",0,VLOOKUP($E51,Drivers!$A$26:$F$48,MATCH(H$1,Drivers!$A$25:$F$25,0),0)*$F51) -> 0 | I51: =IF($F51="",0,VLOOKUP($E51,Drivers!$A$26:$F$48,MATCH(I$1,Drivers!$A$25:$F$25,0),0)*$F51) -> 0 | J51: =IF($F51="",0,VLOOKUP($E51,Drivers!$A$26:$F$48,MATCH(J$1,Drivers!$A$25:$F$25,0),0)*$F51) -> 0 | K51: =IF($F51="",0,VLOOKUP($E51,Drivers!$A$26:$F$48,MATCH(K$1,Drivers!$A$25:$F$25,0),0)*$F51) -> 0
A52: CUSTO_ODORIZAÇAO | B52: 2140 | C52: ASSESSORIA DTC | D52: =VLOOKUP(B52,Centro_Custo!$A$2:$C$36,3) -> Encargos de Comercialização | E52: Fixo | F52: =SUMIFS('Classificação OPEX'!$O$4:$O$1666,'Classificação OPEX'!$Q$4:$Q$1666,"N",'Classificação OPEX'!$S$4:$S$1666,"NÃO",'Classificação OPEX'!$V$4:$V$1666,DRIVER_OPEX!A52,'Classificação OPEX'!$W$4:$W$1666,DRIVER_OPEX!B52) -> 0 | G52: =IF($F52="",0,VLOOKUP($E52,Drivers!$A$26:$F$48,MATCH(G$1,Drivers!$A$25:$F$25,0),0)*$F52) -> 0 | H52: =IF($F52="",0,VLOOKUP($E52,Drivers!$A$26:$F$48,MATCH(H$1,Drivers!$A$25:$F$25,0),0)*$F52) -> 0 | I52: =IF($F52="",0,VLOOKUP($E52,Drivers!$A$26:$F$48,MATCH(I$1,Drivers!$A$25:$F$25,0),0)*$F52) -> 0 | J52: =IF($F52="",0,VLOOKUP($E52,Drivers!$A$26:$F$48,MATCH(J$1,Drivers!$A$25:$F$25,0),0)*$F52) -> 0 | K52: =IF($F52="",0,VLOOKUP($E52,Drivers!$A$26:$F$48,MATCH(K$1,Drivers!$A$25:$F$25,0),0)*$F52) -> 0
A53: CUSTO_ODORIZAÇAO | B53: 2200 | C53: DIRETORIA COLEGIADA - PRESIDÊNCIA | D53: =VLOOKUP(B53,Centro_Custo!$A$2:$C$36,3) -> Encargos de Gestão | E53: Fixo | F53: =SUMIFS('Classificação OPEX'!$O$4:$O$1666,'Classificação OPEX'!$Q$4:$Q$1666,"N",'Classificação OPEX'!$S$4:$S$1666,"NÃO",'Classificação OPEX'!$V$4:$V$1666,DRIVER_OPEX!A53,'Classificação OPEX'!$W$4:$W$1666,DRIVER_OPEX!B53) -> 0 | G53: =IF($F53="",0,VLOOKUP($E53,Drivers!$A$26:$F$48,MATCH(G$1,Drivers!$A$25:$F$25,0),0)*$F53) -> 0 | H53: =IF($F53="",0,VLOOKUP($E53,Drivers!$A$26:$F$48,MATCH(H$1,Drivers!$A$25:$F$25,0),0)*$F53) -> 0 | I53: =IF($F53="",0,VLOOKUP($E53,Drivers!$A$26:$F$48,MATCH(I$1,Drivers!$A$25:$F$25,0),0)*$F53) -> 0 | J53: =IF($F53="",0,VLOOKUP($E53,Drivers!$A$26:$F$48,MATCH(J$1,Drivers!$A$25:$F$25,0),0)*$F53) -> 0 | K53: =IF($F53="",0,VLOOKUP($E53,Drivers!$A$26:$F$48,MATCH(K$1,Drivers!$A$25:$F$25,0),0)*$F53) -> 0
A54: CUSTO_ODORIZAÇAO | B54: 2300 | C54: DIRETORIA COLEGIADA - DAF | D54: =VLOOKUP(B54,Centro_Custo!$A$2:$C$36,3) -> Encargos de Gestão | E54: Fixo | F54: =SUMIFS('Classificação OPEX'!$O$4:$O$1666,'Classificação OPEX'!$Q$4:$Q$1666,"N",'Classificação OPEX'!$S$4:$S$1666,"NÃO",'Classificação OPEX'!$V$4:$V$1666,DRIVER_OPEX!A54,'Classificação OPEX'!$W$4:$W$1666,DRIVER_OPEX!B54) -> 0 | G54: =IF($F54="",0,VLOOKUP($E54,Drivers!$A$26:$F$48,MATCH(G$1,Drivers!$A$25:$F$25,0),0)*$F54) -> 0 | H54: =IF($F54="",0,VLOOKUP($E54,Drivers!$A$26:$F$48,MATCH(H$1,Drivers!$A$25:$F$25,0),0)*$F54) -> 0 | I54: =IF($F54="",0,VLOOKUP($E54,Drivers!$A$26:$F$48,MATCH(I$1,Drivers!$A$25:$F$25,0),0)*$F54) -> 0 | J54: =IF($F54="",0,VLOOKUP($E54,Drivers!$A$26:$F$48,MATCH(J$1,Drivers!$A$25:$F$25,0),0)*$F54) -> 0 | K54: =IF($F54="",0,VLOOKUP($E54,Drivers!$A$26:$F$48,MATCH(K$1,Drivers!$A$25:$F$25,0),0)*$F54) -> 0
A55: CUSTO_ODORIZAÇAO | B55: 2310 | C55: ASSESSORIA DAF | D55: =VLOOKUP(B55,Centro_Custo!$A$2:$C$36,3) -> Encargos de Gestão | E55: Fixo | F55: =SUMIFS('Classificação OPEX'!$O$4:$O$1666,'Classificação OPEX'!$Q$4:$Q$1666,"N",'Classificação OPEX'!$S$4:$S$1666,"NÃO",'Classificação OPEX'!$V$4:$V$1666,DRIVER_OPEX!A55,'Classificação OPEX'!$W$4:$W$1666,DRIVER_OPEX!B55) -> 0 | G55: =IF($F55="",0,VLOOKUP($E55,Drivers!$A$26:$F$48,MATCH(G$1,Drivers!$A$25:$F$25,0),0)*$F55) -> 0 | H55: =IF($F55="",0,VLOOKUP($E55,Drivers!$A$26:$F$48,MATCH(H$1,Drivers!$A$25:$F$25,0),0)*$F55) -> 0 | I55: =IF($F55="",0,VLOOKUP($E55,Drivers!$A$26:$F$48,MATCH(I$1,Drivers!$A$25:$F$25,0),0)*$F55) -> 0 | J55: =IF($F55="",0,VLOOKUP($E55,Drivers!$A$26:$F$48,MATCH(J$1,Drivers!$A$25:$F$25,0),0)*$F55) -> 0 | K55: =IF($F55="",0,VLOOKUP($E55,Drivers!$A$26:$F$48,MATCH(K$1,Drivers!$A$25:$F$25,0),0)*$F55) -> 0
A56: CUSTO_ODORIZAÇAO | B56: 2400 | C56: DIRETORIA COLEGIADA - DTC | D56: =VLOOKUP(B56,Centro_Custo!$A$2:$C$36,3) -> Encargos de Comercialização | E56: Fixo | F56: =SUMIFS('Classificação OPEX'!$O$4:$O$1666,'Classificação OPEX'!$Q$4:$Q$1666,"N",'Classificação OPEX'!$S$4:$S$1666,"NÃO",'Classificação OPEX'!$V$4:$V$1666,DRIVER_OPEX!A56,'Classificação OPEX'!$W$4:$W$1666,DRIVER_OPEX!B56) -> 0 | G56: =IF($F56="",0,VLOOKUP($E56,Drivers!$A$26:$F$48,MATCH(G$1,Drivers!$A$25:$F$25,0),0)*$F56) -> 0 | H56: =IF($F56="",0,VLOOKUP($E56,Drivers!$A$26:$F$48,MATCH(H$1,Drivers!$A$25:$F$25,0),0)*$F56) -> 0 | I56: =IF($F56="",0,VLOOKUP($E56,Drivers!$A$26:$F$48,MATCH(I$1,Drivers!$A$25:$F$25,0),0)*$F56) -> 0 | J56: =IF($F56="",0,VLOOKUP($E56,Drivers!$A$26:$F$48,MATCH(J$1,Drivers!$A$25:$F$25,0),0)*$F56) -> 0 | K56: =IF($F56="",0,VLOOKUP($E56,Drivers!$A$26:$F$48,MATCH(K$1,Drivers!$A$25:$F$25,0),0)*$F56) -> 0
A57: CUSTO_ODORIZAÇAO | B57: 2410 | C57: ASSESSORIA DE SEGURANÇA DO TRABALHO | D57: =VLOOKUP(B57,Centro_Custo!$A$2:$C$36,3) -> OPEX&ODESP | E57: Fixo | F57: =SUMIFS('Classificação OPEX'!$O$4:$O$1666,'Classificação OPEX'!$Q$4:$Q$1666,"N",'Classificação OPEX'!$S$4:$S$1666,"NÃO",'Classificação OPEX'!$V$4:$V$1666,DRIVER_OPEX!A57,'Classificação OPEX'!$W$4:$W$1666,DRIVER_OPEX!B57) -> 0 | G57: =IF($F57="",0,VLOOKUP($E57,Drivers!$A$26:$F$48,MATCH(G$1,Drivers!$A$25:$F$25,0),0)*$F57) -> 0 | H57: =IF($F57="",0,VLOOKUP($E57,Drivers!$A$26:$F$48,MATCH(H$1,Drivers!$A$25:$F$25,0),0)*$F57) -> 0 | I57: =IF($F57="",0,VLOOKUP($E57,Drivers!$A$26:$F$48,MATCH(I$1,Drivers!$A$25:$F$25,0),0)*$F57) -> 0 | J57: =IF($F57="",0,VLOOKUP($E57,Drivers!$A$26:$F$48,MATCH(J$1,Drivers!$A$25:$F$25,0),0)*$F57) -> 0 | K57: =IF($F57="",0,VLOOKUP($E57,Drivers!$A$26:$F$48,MATCH(K$1,Drivers!$A$25:$F$25,0),0)*$F57) -> 0
A58: CUSTO_ODORIZAÇAO | B58: 3100 | C58: SMS | D58: =VLOOKUP(B58,Centro_Custo!$A$2:$C$36,3) -> OPEX&ODESP | E58: Fixo | F58: =SUMIFS('Classificação OPEX'!$O$4:$O$1666,'Classificação OPEX'!$Q$4:$Q$1666,"N",'Classificação OPEX'!$S$4:$S$1666,"NÃO",'Classificação OPEX'!$V$4:$V$1666,DRIVER_OPEX!A58,'Classificação OPEX'!$W$4:$W$1666,DRIVER_OPEX!B58) -> 0 | G58: =IF($F58="",0,VLOOKUP($E58,Drivers!$A$26:$F$48,MATCH(G$1,Drivers!$A$25:$F$25,0),0)*$F58) -> 0 | H58: =IF($F58="",0,VLOOKUP($E58,Drivers!$A$26:$F$48,MATCH(H$1,Drivers!$A$25:$F$25,0),0)*$F58) -> 0 | I58: =IF($F58="",0,VLOOKUP($E58,Drivers!$A$26:$F$48,MATCH(I$1,Drivers!$A$25:$F$25,0),0)*$F58) -> 0 | J58: =IF($F58="",0,VLOOKUP($E58,Drivers!$A$26:$F$48,MATCH(J$1,Drivers!$A$25:$F$25,0),0)*$F58) -> 0 | K58: =IF($F58="",0,VLOOKUP($E58,Drivers!$A$26:$F$48,MATCH(K$1,Drivers!$A$25:$F$25,0),0)*$F58) -> 0
A59: CUSTO_ODORIZAÇAO | B59: 3200 | C59: GERÊNCIA DE PLANEJAMENTO E MEIO AMBIENTE | D59: =VLOOKUP(B59,Centro_Custo!$A$2:$C$36,3) -> OPEX&ODESP | E59: Fixo | F59: =SUMIFS('Classificação OPEX'!$O$4:$O$1666,'Classificação OPEX'!$Q$4:$Q$1666,"N",'Classificação OPEX'!$S$4:$S$1666,"NÃO",'Classificação OPEX'!$V$4:$V$1666,DRIVER_OPEX!A59,'Classificação OPEX'!$W$4:$W$1666,DRIVER_OPEX!B59) -> 0 | G59: =IF($F59="",0,VLOOKUP($E59,Drivers!$A$26:$F$48,MATCH(G$1,Drivers!$A$25:$F$25,0),0)*$F59) -> 0 | H59: =IF($F59="",0,VLOOKUP($E59,Drivers!$A$26:$F$48,MATCH(H$1,Drivers!$A$25:$F$25,0),0)*$F59) -> 0 | I59: =IF($F59="",0,VLOOKUP($E59,Drivers!$A$26:$F$48,MATCH(I$1,Drivers!$A$25:$F$25,0),0)*$F59) -> 0 | J59: =IF($F59="",0,VLOOKUP($E59,Drivers!$A$26:$F$48,MATCH(J$1,Drivers!$A$25:$F$25,0),0)*$F59) -> 0 | K59: =IF($F59="",0,VLOOKUP($E59,Drivers!$A$26:$F$48,MATCH(K$1,Drivers!$A$25:$F$25,0),0)*$F59) -> 0
A60: CUSTO_ODORIZAÇAO | B60: 3300 | C60: GERÊNCIA JURÍDICA | D60: =VLOOKUP(B60,Centro_Custo!$A$2:$C$36,3) -> Encargos de Gestão | E60: Fixo | F60: =SUMIFS('Classificação OPEX'!$O$4:$O$1666,'Classificação OPEX'!$Q$4:$Q$1666,"N",'Classificação OPEX'!$S$4:$S$1666,"NÃO",'Classificação OPEX'!$V$4:$V$1666,DRIVER_OPEX!A60,'Classificação OPEX'!$W$4:$W$1666,DRIVER_OPEX!B60) -> 0 | G60: =IF($F60="",0,VLOOKUP($E60,Drivers!$A$26:$F$48,MATCH(G$1,Drivers!$A$25:$F$25,0),0)*$F60) -> 0 | H60: =IF($F60="",0,VLOOKUP($E60,Drivers!$A$26:$F$48,MATCH(H$1,Drivers!$A$25:$F$25,0),0)*$F60) -> 0 | I60: =IF($F60="",0,VLOOKUP($E60,Drivers!$A$26:$F$48,MATCH(I$1,Drivers!$A$25:$F$25,0),0)*$F60) -> 0 | J60: =IF($F60="",0,VLOOKUP($E60,Drivers!$A$26:$F$48,MATCH(J$1,Drivers!$A$25:$F$25,0),0)*$F60) -> 0 | K60: =IF($F60="",0,VLOOKUP($E60,Drivers!$A$26:$F$48,MATCH(K$1,Drivers!$A$25:$F$25,0),0)*$F60) -> 0
A61: CUSTO_ODORIZAÇAO | B61: 3400 | C61: MARKETING | D61: =VLOOKUP(B61,Centro_Custo!$A$2:$C$36,3) -> Encargos de Comercialização | E61: Fixo | F61: =SUMIFS('Classificação OPEX'!$O$4:$O$1666,'Classificação OPEX'!$Q$4:$Q$1666,"N",'Classificação OPEX'!$S$4:$S$1666,"NÃO",'Classificação OPEX'!$V$4:$V$1666,DRIVER_OPEX!A61,'Classificação OPEX'!$W$4:$W$1666,DRIVER_OPEX!B61) -> 0 | G61: =IF($F61="",0,VLOOKUP($E61,Drivers!$A$26:$F$48,MATCH(G$1,Drivers!$A$25:$F$25,0),0)*$F61) -> 0 | H61: =IF($F61="",0,VLOOKUP($E61,Drivers!$A$26:$F$48,MATCH(H$1,Drivers!$A$25:$F$25,0),0)*$F61) -> 0 | I61: =IF($F61="",0,VLOOKUP($E61,Drivers!$A$26:$F$48,MATCH(I$1,Drivers!$A$25:$F$25,0),0)*$F61) -> 0 | J61: =IF($F61="",0,VLOOKUP($E61,Drivers!$A$26:$F$48,MATCH(J$1,Drivers!$A$25:$F$25,0),0)*$F61) -> 0 | K61: =IF($F61="",0,VLOOKUP($E61,Drivers!$A$26:$F$48,MATCH(K$1,Drivers!$A$25:$F$25,0),0)*$F61) -> 0
A62: CUSTO_ODORIZAÇAO | B62: 3500 | C62: ASSESSORIA DE COMUNICAÇÃO INSTITUCIONAL | D62: =VLOOKUP(B62,Centro_Custo!$A$2:$C$36,3) -> Encargos de Gestão | E62: Fixo | F62: =SUMIFS('Classificação OPEX'!$O$4:$O$1666,'Classificação OPEX'!$Q$4:$Q$1666,"N",'Classificação OPEX'!$S$4:$S$1666,"NÃO",'Classificação OPEX'!$V$4:$V$1666,DRIVER_OPEX!A62,'Classificação OPEX'!$W$4:$W$1666,DRIVER_OPEX!B62) -> 0 | G62: =IF($F62="",0,VLOOKUP($E62,Drivers!$A$26:$F$48,MATCH(G$1,Drivers!$A$25:$F$25,0),0)*$F62) -> 0 | H62: =IF($F62="",0,VLOOKUP($E62,Drivers!$A$26:$F$48,MATCH(H$1,Drivers!$A$25:$F$25,0),0)*$F62) -> 0 | I62: =IF($F62="",0,VLOOKUP($E62,Drivers!$A$26:$F$48,MATCH(I$1,Drivers!$A$25:$F$25,0),0)*$F62) -> 0 | J62: =IF($F62="",0,VLOOKUP($E62,Drivers!$A$26:$F$48,MATCH(J$1,Drivers!$A$25:$F$25,0),0)*$F62) -> 0 | K62: =IF($F62="",0,VLOOKUP($E62,Drivers!$A$26:$F$48,MATCH(K$1,Drivers!$A$25:$F$25,0),0)*$F62) -> 0
A63: CUSTO_ODORIZAÇAO | B63: 3600 | C63: GERÊNCIA DE GOVERNANÇA, RISCO E COMPLIANCE | D63: =VLOOKUP(B63,Centro_Custo!$A$2:$C$36,3) -> Encargos de Gestão | E63: Fixo | F63: =SUMIFS('Classificação OPEX'!$O$4:$O$1666,'Classificação OPEX'!$Q$4:$Q$1666,"N",'Classificação OPEX'!$S$4:$S$1666,"NÃO",'Classificação OPEX'!$V$4:$V$1666,DRIVER_OPEX!A63,'Classificação OPEX'!$W$4:$W$1666,DRIVER_OPEX!B63) -> 0 | G63: =IF($F63="",0,VLOOKUP($E63,Drivers!$A$26:$F$48,MATCH(G$1,Drivers!$A$25:$F$25,0),0)*$F63) -> 0 | H63: =IF($F63="",0,VLOOKUP($E63,Drivers!$A$26:$F$48,MATCH(H$1,Drivers!$A$25:$F$25,0),0)*$F63) -> 0 | I63: =IF($F63="",0,VLOOKUP($E63,Drivers!$A$26:$F$48,MATCH(I$1,Drivers!$A$25:$F$25,0),0)*$F63) -> 0 | J63: =IF($F63="",0,VLOOKUP($E63,Drivers!$A$26:$F$48,MATCH(J$1,Drivers!$A$25:$F$25,0),0)*$F63) -> 0 | K63: =IF($F63="",0,VLOOKUP($E63,Drivers!$A$26:$F$48,MATCH(K$1,Drivers!$A$25:$F$25,0),0)*$F63) -> 0
A64: CUSTO_ODORIZAÇAO | B64: 3700 | C64: GERÊNCIA DE REGULAÇÃO | D64: =VLOOKUP(B64,Centro_Custo!$A$2:$C$36,3) -> Encargos de Gestão | E64: Fixo | F64: =SUMIFS('Classificação OPEX'!$O$4:$O$1666,'Classificação OPEX'!$Q$4:$Q$1666,"N",'Classificação OPEX'!$S$4:$S$1666,"NÃO",'Classificação OPEX'!$V$4:$V$1666,DRIVER_OPEX!A64,'Classificação OPEX'!$W$4:$W$1666,DRIVER_OPEX!B64) -> 0 | G64: =IF($F64="",0,VLOOKUP($E64,Drivers!$A$26:$F$48,MATCH(G$1,Drivers!$A$25:$F$25,0),0)*$F64) -> 0 | H64: =IF($F64="",0,VLOOKUP($E64,Drivers!$A$26:$F$48,MATCH(H$1,Drivers!$A$25:$F$25,0),0)*$F64) -> 0 | I64: =IF($F64="",0,VLOOKUP($E64,Drivers!$A$26:$F$48,MATCH(I$1,Drivers!$A$25:$F$25,0),0)*$F64) -> 0 | J64: =IF($F64="",0,VLOOKUP($E64,Drivers!$A$26:$F$48,MATCH(J$1,Drivers!$A$25:$F$25,0),0)*$F64) -> 0 | K64: =IF($F64="",0,VLOOKUP($E64,Drivers!$A$26:$F$48,MATCH(K$1,Drivers!$A$25:$F$25,0),0)*$F64) -> 0
A65: CUSTO_ODORIZAÇAO | B65: 4100 | C65: GERÊNCIA DE SERVIÇOS CORPORATIVOS | D65: =VLOOKUP(B65,Centro_Custo!$A$2:$C$36,3) -> Encargos de Gestão | E65: Fixo | F65: =SUMIFS('Classificação OPEX'!$O$4:$O$1666,'Classificação OPEX'!$Q$4:$Q$1666,"N",'Classificação OPEX'!$S$4:$S$1666,"NÃO",'Classificação OPEX'!$V$4:$V$1666,DRIVER_OPEX!A65,'Classificação OPEX'!$W$4:$W$1666,DRIVER_OPEX!B65) -> 0 | G65: =IF($F65="",0,VLOOKUP($E65,Drivers!$A$26:$F$48,MATCH(G$1,Drivers!$A$25:$F$25,0),0)*$F65) -> 0 | H65: =IF($F65="",0,VLOOKUP($E65,Drivers!$A$26:$F$48,MATCH(H$1,Drivers!$A$25:$F$25,0),0)*$F65) -> 0 | I65: =IF($F65="",0,VLOOKUP($E65,Drivers!$A$26:$F$48,MATCH(I$1,Drivers!$A$25:$F$25,0),0)*$F65) -> 0 | J65: =IF($F65="",0,VLOOKUP($E65,Drivers!$A$26:$F$48,MATCH(J$1,Drivers!$A$25:$F$25,0),0)*$F65) -> 0 | K65: =IF($F65="",0,VLOOKUP($E65,Drivers!$A$26:$F$48,MATCH(K$1,Drivers!$A$25:$F$25,0),0)*$F65) -> 0
A66: CUSTO_ODORIZAÇAO | B66: 4200 | C66: GERÊNCIA FINANCEIRA | D66: =VLOOKUP(B66,Centro_Custo!$A$2:$C$36,3) -> Encargos de Gestão | E66: Fixo | F66: =SUMIFS('Classificação OPEX'!$O$4:$O$1666,'Classificação OPEX'!$Q$4:$Q$1666,"N",'Classificação OPEX'!$S$4:$S$1666,"NÃO",'Classificação OPEX'!$V$4:$V$1666,DRIVER_OPEX!A66,'Classificação OPEX'!$W$4:$W$1666,DRIVER_OPEX!B66) -> 0 | G66: =IF($F66="",0,VLOOKUP($E66,Drivers!$A$26:$F$48,MATCH(G$1,Drivers!$A$25:$F$25,0),0)*$F66) -> 0 | H66: =IF($F66="",0,VLOOKUP($E66,Drivers!$A$26:$F$48,MATCH(H$1,Drivers!$A$25:$F$25,0),0)*$F66) -> 0 | I66: =IF($F66="",0,VLOOKUP($E66,Drivers!$A$26:$F$48,MATCH(I$1,Drivers!$A$25:$F$25,0),0)*$F66) -> 0 | J66: =IF($F66="",0,VLOOKUP($E66,Drivers!$A$26:$F$48,MATCH(J$1,Drivers!$A$25:$F$25,0),0)*$F66) -> 0 | K66: =IF($F66="",0,VLOOKUP($E66,Drivers!$A$26:$F$48,MATCH(K$1,Drivers!$A$25:$F$25,0),0)*$F66) -> 0
A67: CUSTO_ODORIZAÇAO | B67: 4300 | C67: GERÊNCIA DE TECNOLOGIA E SISTEMAS DE INFORMAÇÃO | D67: =VLOOKUP(B67,Centro_Custo!$A$2:$C$36,3) -> Encargos de Gestão | E67: Fixo | F67: =SUMIFS('Classificação OPEX'!$O$4:$O$1666,'Classificação OPEX'!$Q$4:$Q$1666,"N",'Classificação OPEX'!$S$4:$S$1666,"NÃO",'Classificação OPEX'!$V$4:$V$1666,DRIVER_OPEX!A67,'Classificação OPEX'!$W$4:$W$1666,DRIVER_OPEX!B67) -> 0 | G67: =IF($F67="",0,VLOOKUP($E67,Drivers!$A$26:$F$48,MATCH(G$1,Drivers!$A$25:$F$25,0),0)*$F67) -> 0 | H67: =IF($F67="",0,VLOOKUP($E67,Drivers!$A$26:$F$48,MATCH(H$1,Drivers!$A$25:$F$25,0),0)*$F67) -> 0 | I67: =IF($F67="",0,VLOOKUP($E67,Drivers!$A$26:$F$48,MATCH(I$1,Drivers!$A$25:$F$25,0),0)*$F67) -> 0 | J67: =IF($F67="",0,VLOOKUP($E67,Drivers!$A$26:$F$48,MATCH(J$1,Drivers!$A$25:$F$25,0),0)*$F67) -> 0 | K67: =IF($F67="",0,VLOOKUP($E67,Drivers!$A$26:$F$48,MATCH(K$1,Drivers!$A$25:$F$25,0),0)*$F67) -> 0
A68: CUSTO_ODORIZAÇAO | B68: 4500 | C68: GERÊNCIA CONTÁBIL | D68: =VLOOKUP(B68,Centro_Custo!$A$2:$C$36,3) -> Encargos de Gestão | E68: Fixo | F68: =SUMIFS('Classificação OPEX'!$O$4:$O$1666,'Classificação OPEX'!$Q$4:$Q$1666,"N",'Classificação OPEX'!$S$4:$S$1666,"NÃO",'Classificação OPEX'!$V$4:$V$1666,DRIVER_OPEX!A68,'Classificação OPEX'!$W$4:$W$1666,DRIVER_OPEX!B68) -> 0 | G68: =IF($F68="",0,VLOOKUP($E68,Drivers!$A$26:$F$48,MATCH(G$1,Drivers!$A$25:$F$25,0),0)*$F68) -> 0 | H68: =IF($F68="",0,VLOOKUP($E68,Drivers!$A$26:$F$48,MATCH(H$1,Drivers!$A$25:$F$25,0),0)*$F68) -> 0 | I68: =IF($F68="",0,VLOOKUP($E68,Drivers!$A$26:$F$48,MATCH(I$1,Drivers!$A$25:$F$25,0),0)*$F68) -> 0 | J68: =IF($F68="",0,VLOOKUP($E68,Drivers!$A$26:$F$48,MATCH(J$1,Drivers!$A$25:$F$25,0),0)*$F68) -> 0 | K68: =IF($F68="",0,VLOOKUP($E68,Drivers!$A$26:$F$48,MATCH(K$1,Drivers!$A$25:$F$25,0),0)*$F68) -> 0
A69: CUSTO_ODORIZAÇAO | B69: 4600 | C69: GERÊNCIA DE PESSOAS E CULTURA | D69: =VLOOKUP(B69,Centro_Custo!$A$2:$C$36,3) -> Encargos de Gestão | E69: Fixo | F69: =SUMIFS('Classificação OPEX'!$O$4:$O$1666,'Classificação OPEX'!$Q$4:$Q$1666,"N",'Classificação OPEX'!$S$4:$S$1666,"NÃO",'Classificação OPEX'!$V$4:$V$1666,DRIVER_OPEX!A69,'Classificação OPEX'!$W$4:$W$1666,DRIVER_OPEX!B69) -> 0 | G69: =IF($F69="",0,VLOOKUP($E69,Drivers!$A$26:$F$48,MATCH(G$1,Drivers!$A$25:$F$25,0),0)*$F69) -> 0 | H69: =IF($F69="",0,VLOOKUP($E69,Drivers!$A$26:$F$48,MATCH(H$1,Drivers!$A$25:$F$25,0),0)*$F69) -> 0 | I69: =IF($F69="",0,VLOOKUP($E69,Drivers!$A$26:$F$48,MATCH(I$1,Drivers!$A$25:$F$25,0),0)*$F69) -> 0 | J69: =IF($F69="",0,VLOOKUP($E69,Drivers!$A$26:$F$48,MATCH(J$1,Drivers!$A$25:$F$25,0),0)*$F69) -> 0 | K69: =IF($F69="",0,VLOOKUP($E69,Drivers!$A$26:$F$48,MATCH(K$1,Drivers!$A$25:$F$25,0),0)*$F69) -> 0
A70: CUSTO_ODORIZAÇAO | B70: 5100 | C70: GERÊNCIA DE ENGENHARIA | D70: =VLOOKUP(B70,Centro_Custo!$A$2:$C$36,3) -> OPEX&ODESP | E70: Fixo | F70: =SUMIFS('Classificação OPEX'!$O$4:$O$1666,'Classificação OPEX'!$Q$4:$Q$1666,"N",'Classificação OPEX'!$S$4:$S$1666,"NÃO",'Classificação OPEX'!$V$4:$V$1666,DRIVER_OPEX!A70,'Classificação OPEX'!$W$4:$W$1666,DRIVER_OPEX!B70) -> 0 | G70: =IF($F70="",0,VLOOKUP($E70,Drivers!$A$26:$F$48,MATCH(G$1,Drivers!$A$25:$F$25,0),0)*$F70) -> 0 | H70: =IF($F70="",0,VLOOKUP($E70,Drivers!$A$26:$F$48,MATCH(H$1,Drivers!$A$25:$F$25,0),0)*$F70) -> 0 | I70: =IF($F70="",0,VLOOKUP($E70,Drivers!$A$26:$F$48,MATCH(I$1,Drivers!$A$25:$F$25,0),0)*$F70) -> 0 | J70: =IF($F70="",0,VLOOKUP($E70,Drivers!$A$26:$F$48,MATCH(J$1,Drivers!$A$25:$F$25,0),0)*$F70) -> 0 | K70: =IF($F70="",0,VLOOKUP($E70,Drivers!$A$26:$F$48,MATCH(K$1,Drivers!$A$25:$F$25,0),0)*$F70) -> 0
A71: CUSTO_ODORIZAÇAO | B71: 5300 | C71: GERÊNCIA COMERCIAL | D71: =VLOOKUP(B71,Centro_Custo!$A$2:$C$36,3) -> Encargos de Comercialização | E71: Fixo | F71: =SUMIFS('Classificação OPEX'!$O$4:$O$1666,'Classificação OPEX'!$Q$4:$Q$1666,"N",'Classificação OPEX'!$S$4:$S$1666,"NÃO",'Classificação OPEX'!$V$4:$V$1666,DRIVER_OPEX!A71,'Classificação OPEX'!$W$4:$W$1666,DRIVER_OPEX!B71) -> 0 | G71: =IF($F71="",0,VLOOKUP($E71,Drivers!$A$26:$F$48,MATCH(G$1,Drivers!$A$25:$F$25,0),0)*$F71) -> 0 | H71: =IF($F71="",0,VLOOKUP($E71,Drivers!$A$26:$F$48,MATCH(H$1,Drivers!$A$25:$F$25,0),0)*$F71) -> 0 | I71: =IF($F71="",0,VLOOKUP($E71,Drivers!$A$26:$F$48,MATCH(I$1,Drivers!$A$25:$F$25,0),0)*$F71) -> 0 | J71: =IF($F71="",0,VLOOKUP($E71,Drivers!$A$26:$F$48,MATCH(J$1,Drivers!$A$25:$F$25,0),0)*$F71) -> 0 | K71: =IF($F71="",0,VLOOKUP($E71,Drivers!$A$26:$F$48,MATCH(K$1,Drivers!$A$25:$F$25,0),0)*$F71) -> 0
A72: CUSTO_ODORIZAÇAO | B72: 9999 | C72: RATEIO | D72: =VLOOKUP(B72,Centro_Custo!$A$2:$C$36,3) -> Encargos de Gestão | E72: Fixo | F72: =SUMIFS('Classificação OPEX'!$O$4:$O$1666,'Classificação OPEX'!$Q$4:$Q$1666,"N",'Classificação OPEX'!$S$4:$S$1666,"NÃO",'Classificação OPEX'!$V$4:$V$1666,DRIVER_OPEX!A72,'Classificação OPEX'!$W$4:$W$1666,DRIVER_OPEX!B72) -> 0 | G72: =IF($F72="",0,VLOOKUP($E72,Drivers!$A$26:$F$48,MATCH(G$1,Drivers!$A$25:$F$25,0),0)*$F72) -> 0 | H72: =IF($F72="",0,VLOOKUP($E72,Drivers!$A$26:$F$48,MATCH(H$1,Drivers!$A$25:$F$25,0),0)*$F72) -> 0 | I72: =IF($F72="",0,VLOOKUP($E72,Drivers!$A$26:$F$48,MATCH(I$1,Drivers!$A$25:$F$25,0),0)*$F72) -> 0 | J72: =IF($F72="",0,VLOOKUP($E72,Drivers!$A$26:$F$48,MATCH(J$1,Drivers!$A$25:$F$25,0),0)*$F72) -> 0 | K72: =IF($F72="",0,VLOOKUP($E72,Drivers!$A$26:$F$48,MATCH(K$1,Drivers!$A$25:$F$25,0),0)*$F72) -> 0
A73: CUSTO_ODORIZAÇAO | B73: 5400 | C73: GERÊNCIA COMERCIAL | D73: =VLOOKUP(B73,Centro_Custo!$A$2:$C$36,3) -> Encargos de Gestão | E73: Fixo | F73: =SUMIFS('Classificação OPEX'!$O$4:$O$1666,'Classificação OPEX'!$Q$4:$Q$1666,"N",'Classificação OPEX'!$S$4:$S$1666,"NÃO",'Classificação OPEX'!$V$4:$V$1666,DRIVER_OPEX!A73,'Classificação OPEX'!$W$4:$W$1666,DRIVER_OPEX!B73) -> 0 | G73: =IF($F73="",0,VLOOKUP($E73,Drivers!$A$26:$F$48,MATCH(G$1,Drivers!$A$25:$F$25,0),0)*$F73) -> 0 | H73: =IF($F73="",0,VLOOKUP($E73,Drivers!$A$26:$F$48,MATCH(H$1,Drivers!$A$25:$F$25,0),0)*$F73) -> 0 | I73: =IF($F73="",0,VLOOKUP($E73,Drivers!$A$26:$F$48,MATCH(I$1,Drivers!$A$25:$F$25,0),0)*$F73) -> 0 | J73: =IF($F73="",0,VLOOKUP($E73,Drivers!$A$26:$F$48,MATCH(J$1,Drivers!$A$25:$F$25,0),0)*$F73) -> 0 | K73: =IF($F73="",0,VLOOKUP($E73,Drivers!$A$26:$F$48,MATCH(K$1,Drivers!$A$25:$F$25,0),0)*$F73) -> 0
A74: CUSTO_ODORIZAÇAO | B74: 5500 | C74: GERÊNCIA COMERCIAL | D74: =VLOOKUP(B74,Centro_Custo!$A$2:$C$36,3) -> Encargos de Gestão | E74: Fixo | F74: =SUMIFS('Classificação OPEX'!$O$4:$O$1666,'Classificação OPEX'!$Q$4:$Q$1666,"N",'Classificação OPEX'!$S$4:$S$1666,"NÃO",'Classificação OPEX'!$V$4:$V$1666,DRIVER_OPEX!A74,'Classificação OPEX'!$W$4:$W$1666,DRIVER_OPEX!B74) -> 0 | G74: =IF($F74="",0,VLOOKUP($E74,Drivers!$A$26:$F$48,MATCH(G$1,Drivers!$A$25:$F$25,0),0)*$F74) -> 0 | H74: =IF($F74="",0,VLOOKUP($E74,Drivers!$A$26:$F$48,MATCH(H$1,Drivers!$A$25:$F$25,0),0)*$F74) -> 0 | I74: =IF($F74="",0,VLOOKUP($E74,Drivers!$A$26:$F$48,MATCH(I$1,Drivers!$A$25:$F$25,0),0)*$F74) -> 0 | J74: =IF($F74="",0,VLOOKUP($E74,Drivers!$A$26:$F$48,MATCH(J$1,Drivers!$A$25:$F$25,0),0)*$F74) -> 0 | K74: =IF($F74="",0,VLOOKUP($E74,Drivers!$A$26:$F$48,MATCH(K$1,Drivers!$A$25:$F$25,0),0)*$F74) -> 0
A75: DESPESAS_GERAIS | B75: TOTAL | C75: TOTAL | F75: =SUM(F76:F110) -> 6233905.24 | G75: =SUM(G76:G110) -> 6449700.975 | H75: 6747501.254 | I75: 6988394.267 | J75: 7148458.875 | K75: 7337000.834
A76: DESPESAS_GERAIS | B76: 1004 | C76: =VLOOKUP(B76,Centro_Custo!$A$2:$B$36,2,0) -> COMITÊ DE AUDITORIA ESTATUTÁRIA | D76: =VLOOKUP(B76,Centro_Custo!$A$2:$C$36,3) -> Encargos de Gestão | E76: Fixo | F76: =SUMIFS('Classificação OPEX'!$O$4:$O$1666,'Classificação OPEX'!$Q$4:$Q$1666,"N",'Classificação OPEX'!$S$4:$S$1666,"NÃO",'Classificação OPEX'!$V$4:$V$1666,DRIVER_OPEX!A76,'Classificação OPEX'!$W$4:$W$1666,DRIVER_OPEX!B76) -> 0 | G76: =IF($F76="",0,VLOOKUP($E76,Drivers!$A$26:$F$48,MATCH(G$1,Drivers!$A$25:$F$25,0),0)*$F76) -> 0 | H76: =IF($F76="",0,VLOOKUP($E76,Drivers!$A$26:$F$48,MATCH(H$1,Drivers!$A$25:$F$25,0),0)*$F76) -> 0 | I76: =IF($F76="",0,VLOOKUP($E76,Drivers!$A$26:$F$48,MATCH(I$1,Drivers!$A$25:$F$25,0),0)*$F76) -> 0 | J76: =IF($F76="",0,VLOOKUP($E76,Drivers!$A$26:$F$48,MATCH(J$1,Drivers!$A$25:$F$25,0),0)*$F76) -> 0 | K76: =IF($F76="",0,VLOOKUP($E76,Drivers!$A$26:$F$48,MATCH(K$1,Drivers!$A$25:$F$25,0),0)*$F76) -> 0
A77: DESPESAS_GERAIS | B77: 1005 | C77: =VLOOKUP(B77,Centro_Custo!$A$2:$B$36,2,0) -> AUDITORIA INTERNA | D77: =VLOOKUP(B77,Centro_Custo!$A$2:$C$36,3) -> Encargos de Gestão | E77: Fixo | F77: =SUMIFS('Classificação OPEX'!$O$4:$O$1666,'Classificação OPEX'!$Q$4:$Q$1666,"N",'Classificação OPEX'!$S$4:$S$1666,"NÃO",'Classificação OPEX'!$V$4:$V$1666,DRIVER_OPEX!A77,'Classificação OPEX'!$W$4:$W$1666,DRIVER_OPEX!B77) -> 4241.190591 | G77: =IF($F77="",0,VLOOKUP($E77,Drivers!$A$26:$F$48,MATCH(G$1,Drivers!$A$25:$F$25,0),0)*$F77) -> 4241.190591 | H77: =IF($F77="",0,VLOOKUP($E77,Drivers!$A$26:$F$48,MATCH(H$1,Drivers!$A$25:$F$25,0),0)*$F77) -> 4241.190591 | I77: =IF($F77="",0,VLOOKUP($E77,Drivers!$A$26:$F$48,MATCH(I$1,Drivers!$A$25:$F$25,0),0)*$F77) -> 4241.190591 | J77: =IF($F77="",0,VLOOKUP($E77,Drivers!$A$26:$F$48,MATCH(J$1,Drivers!$A$25:$F$25,0),0)*$F77) -> 4241.190591 | K77: =IF($F77="",0,VLOOKUP($E77,Drivers!$A$26:$F$48,MATCH(K$1,Drivers!$A$25:$F$25,0),0)*$F77) -> 4241.190591
A78: DESPESAS_GERAIS | B78: 1010 | C78: =VLOOKUP(B78,Centro_Custo!$A$2:$B$36,2,0) -> GOVERNANÇA SOCIETÁRIA | D78: =VLOOKUP(B78,Centro_Custo!$A$2:$C$36,3) -> Encargos de Gestão | E78: Fixo | F78: =SUMIFS('Classificação OPEX'!$O$4:$O$1666,'Classificação OPEX'!$Q$4:$Q$1666,"N",'Classificação OPEX'!$S$4:$S$1666,"NÃO",'Classificação OPEX'!$V$4:$V$1666,DRIVER_OPEX!A78,'Classificação OPEX'!$W$4:$W$1666,DRIVER_OPEX!B78) -> 0 | G78: =IF($F78="",0,VLOOKUP($E78,Drivers!$A$26:$F$48,MATCH(G$1,Drivers!$A$25:$F$25,0),0)*$F78) -> 0 | H78: =IF($F78="",0,VLOOKUP($E78,Drivers!$A$26:$F$48,MATCH(H$1,Drivers!$A$25:$F$25,0),0)*$F78) -> 0 | I78: =IF($F78="",0,VLOOKUP($E78,Drivers!$A$26:$F$48,MATCH(I$1,Drivers!$A$25:$F$25,0),0)*$F78) -> 0 | J78: =IF($F78="",0,VLOOKUP($E78,Drivers!$A$26:$F$48,MATCH(J$1,Drivers!$A$25:$F$25,0),0)*$F78) -> 0 | K78: =IF($F78="",0,VLOOKUP($E78,Drivers!$A$26:$F$48,MATCH(K$1,Drivers!$A$25:$F$25,0),0)*$F78) -> 0
A79: DESPESAS_GERAIS | B79: 2110 | C79: =VLOOKUP(B79,Centro_Custo!$A$2:$B$36,2,0) -> ASSESSORIA DA DIRETORIA EXECUTIVA | D79: =VLOOKUP(B79,Centro_Custo!$A$2:$C$36,3) -> Encargos de Gestão | E79: Fixo | F79: =SUMIFS('Classificação OPEX'!$O$4:$O$1666,'Classificação OPEX'!$Q$4:$Q$1666,"N",'Classificação OPEX'!$S$4:$S$1666,"NÃO",'Classificação OPEX'!$V$4:$V$1666,DRIVER_OPEX!A79,'Classificação OPEX'!$W$4:$W$1666,DRIVER_OPEX!B79) -> 8633.656453 | G79: =IF($F79="",0,VLOOKUP($E79,Drivers!$A$26:$F$48,MATCH(G$1,Drivers!$A$25:$F$25,0),0)*$F79) -> 8633.656453 | H79: =IF($F79="",0,VLOOKUP($E79,Drivers!$A$26:$F$48,MATCH(H$1,Drivers!$A$25:$F$25,0),0)*$F79) -> 8633.656453 | I79: =IF($F79="",0,VLOOKUP($E79,Drivers!$A$26:$F$48,MATCH(I$1,Drivers!$A$25:$F$25,0),0)*$F79) -> 8633.656453 | J79: =IF($F79="",0,VLOOKUP($E79,Drivers!$A$26:$F$48,MATCH(J$1,Drivers!$A$25:$F$25,0),0)*$F79) -> 8633.656453 | K79: =IF($F79="",0,VLOOKUP($E79,Drivers!$A$26:$F$48,MATCH(K$1,Drivers!$A$25:$F$25,0),0)*$F79) -> 8633.656453
A80: DESPESAS_GERAIS | B80: 2120 | C80: =VLOOKUP(B80,Centro_Custo!$A$2:$B$36,2,0) -> ASSESSORIA DA PRESIDÊNCIA | D80: =VLOOKUP(B80,Centro_Custo!$A$2:$C$36,3) -> Encargos de Gestão | E80: Fixo | F80: =SUMIFS('Classificação OPEX'!$O$4:$O$1666,'Classificação OPEX'!$Q$4:$Q$1666,"N",'Classificação OPEX'!$S$4:$S$1666,"NÃO",'Classificação OPEX'!$V$4:$V$1666,DRIVER_OPEX!A80,'Classificação OPEX'!$W$4:$W$1666,DRIVER_OPEX!B80) -> 34763.71911 | G80: =IF($F80="",0,VLOOKUP($E80,Drivers!$A$26:$F$48,MATCH(G$1,Drivers!$A$25:$F$25,0),0)*$F80) -> 34763.71911 | H80: =IF($F80="",0,VLOOKUP($E80,Drivers!$A$26:$F$48,MATCH(H$1,Drivers!$A$25:$F$25,0),0)*$F80) -> 34763.71911 | I80: =IF($F80="",0,VLOOKUP($E80,Drivers!$A$26:$F$48,MATCH(I$1,Drivers!$A$25:$F$25,0),0)*$F80) -> 34763.71911 | J80: =IF($F80="",0,VLOOKUP($E80,Drivers!$A$26:$F$48,MATCH(J$1,Drivers!$A$25:$F$25,0),0)*$F80) -> 34763.71911 | K80: =IF($F80="",0,VLOOKUP($E80,Drivers!$A$26:$F$48,MATCH(K$1,Drivers!$A$25:$F$25,0),0)*$F80) -> 34763.71911
A81: DESPESAS_GERAIS | B81: 2130 | C81: =VLOOKUP(B81,Centro_Custo!$A$2:$B$36,2,0) -> ASSESSORIA DE RELAÇÕES INSTITUCIONAIS E NOVOS NEGÓCIOS | D81: =VLOOKUP(B81,Centro_Custo!$A$2:$C$36,3) -> Encargos de Gestão | E81: Fixo | F81: =SUMIFS('Classificação OPEX'!$O$4:$O$1666,'Classificação OPEX'!$Q$4:$Q$1666,"N",'Classificação OPEX'!$S$4:$S$1666,"NÃO",'Classificação OPEX'!$V$4:$V$1666,DRIVER_OPEX!A81,'Classificação OPEX'!$W$4:$W$1666,DRIVER_OPEX!B81) -> 0 | G81: =IF($F81="",0,VLOOKUP($E81,Drivers!$A$26:$F$48,MATCH(G$1,Drivers!$A$25:$F$25,0),0)*$F81) -> 0 | H81: =IF($F81="",0,VLOOKUP($E81,Drivers!$A$26:$F$48,MATCH(H$1,Drivers!$A$25:$F$25,0),0)*$F81) -> 0 | I81: =IF($F81="",0,VLOOKUP($E81,Drivers!$A$26:$F$48,MATCH(I$1,Drivers!$A$25:$F$25,0),0)*$F81) -> 0 | J81: =IF($F81="",0,VLOOKUP($E81,Drivers!$A$26:$F$48,MATCH(J$1,Drivers!$A$25:$F$25,0),0)*$F81) -> 0 | K81: =IF($F81="",0,VLOOKUP($E81,Drivers!$A$26:$F$48,MATCH(K$1,Drivers!$A$25:$F$25,0),0)*$F81) -> 0
A82: DESPESAS_GERAIS | B82: 2140 | C82: =VLOOKUP(B82,Centro_Custo!$A$2:$B$36,2,0) -> ASSESSORIA DTC | D82: =VLOOKUP(B82,Centro_Custo!$A$2:$C$36,3) -> Encargos de Comercialização | E82: Fixo | F82: =SUMIFS('Classificação OPEX'!$O$4:$O$1666,'Classificação OPEX'!$Q$4:$Q$1666,"N",'Classificação OPEX'!$S$4:$S$1666,"NÃO",'Classificação OPEX'!$V$4:$V$1666,DRIVER_OPEX!A82,'Classificação OPEX'!$W$4:$W$1666,DRIVER_OPEX!B82) -> 0 | G82: =IF($F82="",0,VLOOKUP($E82,Drivers!$A$26:$F$48,MATCH(G$1,Drivers!$A$25:$F$25,0),0)*$F82) -> 0 | H82: =IF($F82="",0,VLOOKUP($E82,Drivers!$A$26:$F$48,MATCH(H$1,Drivers!$A$25:$F$25,0),0)*$F82) -> 0 | I82: =IF($F82="",0,VLOOKUP($E82,Drivers!$A$26:$F$48,MATCH(I$1,Drivers!$A$25:$F$25,0),0)*$F82) -> 0 | J82: =IF($F82="",0,VLOOKUP($E82,Drivers!$A$26:$F$48,MATCH(J$1,Drivers!$A$25:$F$25,0),0)*$F82) -> 0 | K82: =IF($F82="",0,VLOOKUP($E82,Drivers!$A$26:$F$48,MATCH(K$1,Drivers!$A$25:$F$25,0),0)*$F82) -> 0
A83: DESPESAS_GERAIS | B83: 2200 | C83: =VLOOKUP(B83,Centro_Custo!$A$2:$B$36,2,0) -> DIRETORIA COLEGIADA - PRESIDÊNCIA | D83: =VLOOKUP(B83,Centro_Custo!$A$2:$C$36,3) -> Encargos de Gestão | E83: Fixo | F83: =SUMIFS('Classificação OPEX'!$O$4:$O$1666,'Classificação OPEX'!$Q$4:$Q$1666,"N",'Classificação OPEX'!$S$4:$S$1666,"NÃO",'Classificação OPEX'!$V$4:$V$1666,DRIVER_OPEX!A83,'Classificação OPEX'!$W$4:$W$1666,DRIVER_OPEX!B83) -> 11845.63231 | G83: =IF($F83="",0,VLOOKUP($E83,Drivers!$A$26:$F$48,MATCH(G$1,Drivers!$A$25:$F$25,0),0)*$F83) -> 11845.63231 | H83: =IF($F83="",0,VLOOKUP($E83,Drivers!$A$26:$F$48,MATCH(H$1,Drivers!$A$25:$F$25,0),0)*$F83) -> 11845.63231 | I83: =IF($F83="",0,VLOOKUP($E83,Drivers!$A$26:$F$48,MATCH(I$1,Drivers!$A$25:$F$25,0),0)*$F83) -> 11845.63231 | J83: =IF($F83="",0,VLOOKUP($E83,Drivers!$A$26:$F$48,MATCH(J$1,Drivers!$A$25:$F$25,0),0)*$F83) -> 11845.63231 | K83: =IF($F83="",0,VLOOKUP($E83,Drivers!$A$26:$F$48,MATCH(K$1,Drivers!$A$25:$F$25,0),0)*$F83) -> 11845.63231
A84: DESPESAS_GERAIS | B84: 2300 | C84: =VLOOKUP(B84,Centro_Custo!$A$2:$B$36,2,0) -> DIRETORIA COLEGIADA - DAF | D84: =VLOOKUP(B84,Centro_Custo!$A$2:$C$36,3) -> Encargos de Gestão | E84: Fixo | F84: =SUMIFS('Classificação OPEX'!$O$4:$O$1666,'Classificação OPEX'!$Q$4:$Q$1666,"N",'Classificação OPEX'!$S$4:$S$1666,"NÃO",'Classificação OPEX'!$V$4:$V$1666,DRIVER_OPEX!A84,'Classificação OPEX'!$W$4:$W$1666,DRIVER_OPEX!B84) -> 757142.478 | G84: =IF($F84="",0,VLOOKUP($E84,Drivers!$A$26:$F$48,MATCH(G$1,Drivers!$A$25:$F$25,0),0)*$F84) -> 757142.478 | H84: =IF($F84="",0,VLOOKUP($E84,Drivers!$A$26:$F$48,MATCH(H$1,Drivers!$A$25:$F$25,0),0)*$F84) -> 757142.478 | I84: =IF($F84="",0,VLOOKUP($E84,Drivers!$A$26:$F$48,MATCH(I$1,Drivers!$A$25:$F$25,0),0)*$F84) -> 757142.478 | J84: =IF($F84="",0,VLOOKUP($E84,Drivers!$A$26:$F$48,MATCH(J$1,Drivers!$A$25:$F$25,0),0)*$F84) -> 757142.478 | K84: =IF($F84="",0,VLOOKUP($E84,Drivers!$A$26:$F$48,MATCH(K$1,Drivers!$A$25:$F$25,0),0)*$F84) -> 757142.478
A85: DESPESAS_GERAIS | B85: 2310 | C85: =VLOOKUP(B85,Centro_Custo!$A$2:$B$36,2,0) -> ASSESSORIA DAF | D85: =VLOOKUP(B85,Centro_Custo!$A$2:$C$36,3) -> Encargos de Gestão | E85: Fixo | F85: =SUMIFS('Classificação OPEX'!$O$4:$O$1666,'Classificação OPEX'!$Q$4:$Q$1666,"N",'Classificação OPEX'!$S$4:$S$1666,"NÃO",'Classificação OPEX'!$V$4:$V$1666,DRIVER_OPEX!A85,'Classificação OPEX'!$W$4:$W$1666,DRIVER_OPEX!B85) -> 5408.248949 | G85: =IF($F85="",0,VLOOKUP($E85,Drivers!$A$26:$F$48,MATCH(G$1,Drivers!$A$25:$F$25,0),0)*$F85) -> 5408.248949 | H85: =IF($F85="",0,VLOOKUP($E85,Drivers!$A$26:$F$48,MATCH(H$1,Drivers!$A$25:$F$25,0),0)*$F85) -> 5408.248949 | I85: =IF($F85="",0,VLOOKUP($E85,Drivers!$A$26:$F$48,MATCH(I$1,Drivers!$A$25:$F$25,0),0)*$F85) -> 5408.248949 | J85: =IF($F85="",0,VLOOKUP($E85,Drivers!$A$26:$F$48,MATCH(J$1,Drivers!$A$25:$F$25,0),0)*$F85) -> 5408.248949 | K85: =IF($F85="",0,VLOOKUP($E85,Drivers!$A$26:$F$48,MATCH(K$1,Drivers!$A$25:$F$25,0),0)*$F85) -> 5408.248949
A86: DESPESAS_GERAIS | B86: 2400 | C86: =VLOOKUP(B86,Centro_Custo!$A$2:$B$36,2,0) -> DIRETORIA COLEGIADA - DTC | D86: =VLOOKUP(B86,Centro_Custo!$A$2:$C$36,3) -> Encargos de Comercialização | E86: Fixo | F86: =SUMIFS('Classificação OPEX'!$O$4:$O$1666,'Classificação OPEX'!$Q$4:$Q$1666,"N",'Classificação OPEX'!$S$4:$S$1666,"NÃO",'Classificação OPEX'!$V$4:$V$1666,DRIVER_OPEX!A86,'Classificação OPEX'!$W$4:$W$1666,DRIVER_OPEX!B86) -> 675289.7295 | G86: =IF($F86="",0,VLOOKUP($E86,Drivers!$A$26:$F$48,MATCH(G$1,Drivers!$A$25:$F$25,0),0)*$F86) -> 675289.7295 | H86: =IF($F86="",0,VLOOKUP($E86,Drivers!$A$26:$F$48,MATCH(H$1,Drivers!$A$25:$F$25,0),0)*$F86) -> 675289.7295 | I86: =IF($F86="",0,VLOOKUP($E86,Drivers!$A$26:$F$48,MATCH(I$1,Drivers!$A$25:$F$25,0),0)*$F86) -> 675289.7295 | J86: =IF($F86="",0,VLOOKUP($E86,Drivers!$A$26:$F$48,MATCH(J$1,Drivers!$A$25:$F$25,0),0)*$F86) -> 675289.7295 | K86: =IF($F86="",0,VLOOKUP($E86,Drivers!$A$26:$F$48,MATCH(K$1,Drivers!$A$25:$F$25,0),0)*$F86) -> 675289.7295
A87: DESPESAS_GERAIS | B87: 2410 | C87: =VLOOKUP(B87,Centro_Custo!$A$2:$B$36,2,0) -> ASSESSORIA DE SEGURANÇA DO TRABALHO | D87: =VLOOKUP(B87,Centro_Custo!$A$2:$C$36,3) -> OPEX&ODESP | E87: Fixo | F87: =SUMIFS('Classificação OPEX'!$O$4:$O$1666,'Classificação OPEX'!$Q$4:$Q$1666,"N",'Classificação OPEX'!$S$4:$S$1666,"NÃO",'Classificação OPEX'!$V$4:$V$1666,DRIVER_OPEX!A87,'Classificação OPEX'!$W$4:$W$1666,DRIVER_OPEX!B87) -> 1509.433287 | G87: =IF($F87="",0,VLOOKUP($E87,Drivers!$A$26:$F$48,MATCH(G$1,Drivers!$A$25:$F$25,0),0)*$F87) -> 1509.433287 | H87: =IF($F87="",0,VLOOKUP($E87,Drivers!$A$26:$F$48,MATCH(H$1,Drivers!$A$25:$F$25,0),0)*$F87) -> 1509.433287 | I87: =IF($F87="",0,VLOOKUP($E87,Drivers!$A$26:$F$48,MATCH(I$1,Drivers!$A$25:$F$25,0),0)*$F87) -> 1509.433287 | J87: =IF($F87="",0,VLOOKUP($E87,Drivers!$A$26:$F$48,MATCH(J$1,Drivers!$A$25:$F$25,0),0)*$F87) -> 1509.433287 | K87: =IF($F87="",0,VLOOKUP($E87,Drivers!$A$26:$F$48,MATCH(K$1,Drivers!$A$25:$F$25,0),0)*$F87) -> 1509.433287
A88: DESPESAS_GERAIS | B88: 3100 | C88: =VLOOKUP(B88,Centro_Custo!$A$2:$B$36,2,0) -> SMS | D88: =VLOOKUP(B88,Centro_Custo!$A$2:$C$36,3) -> OPEX&ODESP | E88: Fixo | F88: =SUMIFS('Classificação OPEX'!$O$4:$O$1666,'Classificação OPEX'!$Q$4:$Q$1666,"N",'Classificação OPEX'!$S$4:$S$1666,"NÃO",'Classificação OPEX'!$V$4:$V$1666,DRIVER_OPEX!A88,'Classificação OPEX'!$W$4:$W$1666,DRIVER_OPEX!B88) -> 17771.40928 | G88: =IF($F88="",0,VLOOKUP($E88,Drivers!$A$26:$F$48,MATCH(G$1,Drivers!$A$25:$F$25,0),0)*$F88) -> 17771.40928 | H88: =IF($F88="",0,VLOOKUP($E88,Drivers!$A$26:$F$48,MATCH(H$1,Drivers!$A$25:$F$25,0),0)*$F88) -> 17771.40928 | I88: =IF($F88="",0,VLOOKUP($E88,Drivers!$A$26:$F$48,MATCH(I$1,Drivers!$A$25:$F$25,0),0)*$F88) -> 17771.40928 | J88: =IF($F88="",0,VLOOKUP($E88,Drivers!$A$26:$F$48,MATCH(J$1,Drivers!$A$25:$F$25,0),0)*$F88) -> 17771.40928 | K88: =IF($F88="",0,VLOOKUP($E88,Drivers!$A$26:$F$48,MATCH(K$1,Drivers!$A$25:$F$25,0),0)*$F88) -> 17771.40928
A89: DESPESAS_GERAIS | B89: 3200 | C89: =VLOOKUP(B89,Centro_Custo!$A$2:$B$36,2,0) -> GERÊNCIA DE PLANEJAMENTO E MEIO AMBIENTE | D89: =VLOOKUP(B89,Centro_Custo!$A$2:$C$36,3) -> OPEX&ODESP | E89: Fixo | F89: =SUMIFS('Classificação OPEX'!$O$4:$O$1666,'Classificação OPEX'!$Q$4:$Q$1666,"N",'Classificação OPEX'!$S$4:$S$1666,"NÃO",'Classificação OPEX'!$V$4:$V$1666,DRIVER_OPEX!A89,'Classificação OPEX'!$W$4:$W$1666,DRIVER_OPEX!B89) -> 67845.32036 | G89: =IF($F89="",0,VLOOKUP($E89,Drivers!$A$26:$F$48,MATCH(G$1,Drivers!$A$25:$F$25,0),0)*$F89) -> 67845.32036 | H89: =IF($F89="",0,VLOOKUP($E89,Drivers!$A$26:$F$48,MATCH(H$1,Drivers!$A$25:$F$25,0),0)*$F89) -> 67845.32036 | I89: =IF($F89="",0,VLOOKUP($E89,Drivers!$A$26:$F$48,MATCH(I$1,Drivers!$A$25:$F$25,0),0)*$F89) -> 67845.32036 | J89: =IF($F89="",0,VLOOKUP($E89,Drivers!$A$26:$F$48,MATCH(J$1,Drivers!$A$25:$F$25,0),0)*$F89) -> 67845.32036 | K89: =IF($F89="",0,VLOOKUP($E89,Drivers!$A$26:$F$48,MATCH(K$1,Drivers!$A$25:$F$25,0),0)*$F89) -> 67845.32036
A90: DESPESAS_GERAIS | B90: 3300 | C90: =VLOOKUP(B90,Centro_Custo!$A$2:$B$36,2,0) -> GERÊNCIA JURÍDICA | D90: =VLOOKUP(B90,Centro_Custo!$A$2:$C$36,3) -> Encargos de Gestão | E90: Fixo | F90: =SUMIFS('Classificação OPEX'!$O$4:$O$1666,'Classificação OPEX'!$Q$4:$Q$1666,"N",'Classificação OPEX'!$S$4:$S$1666,"NÃO",'Classificação OPEX'!$V$4:$V$1666,DRIVER_OPEX!A90,'Classificação OPEX'!$W$4:$W$1666,DRIVER_OPEX!B90) -> 22244.18074 | G90: =IF($F90="",0,VLOOKUP($E90,Drivers!$A$26:$F$48,MATCH(G$1,Drivers!$A$25:$F$25,0),0)*$F90) -> 22244.18074 | H90: =IF($F90="",0,VLOOKUP($E90,Drivers!$A$26:$F$48,MATCH(H$1,Drivers!$A$25:$F$25,0),0)*$F90) -> 22244.18074 | I90: =IF($F90="",0,VLOOKUP($E90,Drivers!$A$26:$F$48,MATCH(I$1,Drivers!$A$25:$F$25,0),0)*$F90) -> 22244.18074 | J90: =IF($F90="",0,VLOOKUP($E90,Drivers!$A$26:$F$48,MATCH(J$1,Drivers!$A$25:$F$25,0),0)*$F90) -> 22244.18074 | K90: =IF($F90="",0,VLOOKUP($E90,Drivers!$A$26:$F$48,MATCH(K$1,Drivers!$A$25:$F$25,0),0)*$F90) -> 22244.18074
A91: DESPESAS_GERAIS | B91: 3500 | C91: =VLOOKUP(B91,Centro_Custo!$A$2:$B$36,2,0) -> ASSESSORIA DE COMUNICAÇÃO INSTITUCIONAL | D91: =VLOOKUP(B91,Centro_Custo!$A$2:$C$36,3) -> Encargos de Gestão | E91: Fixo | F91: =SUMIFS('Classificação OPEX'!$O$4:$O$1666,'Classificação OPEX'!$Q$4:$Q$1666,"N",'Classificação OPEX'!$S$4:$S$1666,"NÃO",'Classificação OPEX'!$V$4:$V$1666,DRIVER_OPEX!A91,'Classificação OPEX'!$W$4:$W$1666,DRIVER_OPEX!B91) -> 45207.96194 | G91: =IF($F91="",0,VLOOKUP($E91,Drivers!$A$26:$F$48,MATCH(G$1,Drivers!$A$25:$F$25,0),0)*$F91) -> 45207.96194 | H91: =IF($F91="",0,VLOOKUP($E91,Drivers!$A$26:$F$48,MATCH(H$1,Drivers!$A$25:$F$25,0),0)*$F91) -> 45207.96194 | I91: =IF($F91="",0,VLOOKUP($E91,Drivers!$A$26:$F$48,MATCH(I$1,Drivers!$A$25:$F$25,0),0)*$F91) -> 45207.96194 | J91: =IF($F91="",0,VLOOKUP($E91,Drivers!$A$26:$F$48,MATCH(J$1,Drivers!$A$25:$F$25,0),0)*$F91) -> 45207.96194 | K91: =IF($F91="",0,VLOOKUP($E91,Drivers!$A$26:$F$48,MATCH(K$1,Drivers!$A$25:$F$25,0),0)*$F91) -> 45207.96194
A92: DESPESAS_GERAIS | B92: 3600 | C92: =VLOOKUP(B92,Centro_Custo!$A$2:$B$36,2,0) -> GERÊNCIA DE GOVERNANÇA, RISCO E COMPLIANCE | D92: =VLOOKUP(B92,Centro_Custo!$A$2:$C$36,3) -> Encargos de Gestão | E92: Fixo | F92: =SUMIFS('Classificação OPEX'!$O$4:$O$1666,'Classificação OPEX'!$Q$4:$Q$1666,"N",'Classificação OPEX'!$S$4:$S$1666,"NÃO",'Classificação OPEX'!$V$4:$V$1666,DRIVER_OPEX!A92,'Classificação OPEX'!$W$4:$W$1666,DRIVER_OPEX!B92) -> 33755.91098 | G92: =IF($F92="",0,VLOOKUP($E92,Drivers!$A$26:$F$48,MATCH(G$1,Drivers!$A$25:$F$25,0),0)*$F92) -> 33755.91098 | H92: =IF($F92="",0,VLOOKUP($E92,Drivers!$A$26:$F$48,MATCH(H$1,Drivers!$A$25:$F$25,0),0)*$F92) -> 33755.91098 | I92: =IF($F92="",0,VLOOKUP($E92,Drivers!$A$26:$F$48,MATCH(I$1,Drivers!$A$25:$F$25,0),0)*$F92) -> 33755.91098 | J92: =IF($F92="",0,VLOOKUP($E92,Drivers!$A$26:$F$48,MATCH(J$1,Drivers!$A$25:$F$25,0),0)*$F92) -> 33755.91098 | K92: =IF($F92="",0,VLOOKUP($E92,Drivers!$A$26:$F$48,MATCH(K$1,Drivers!$A$25:$F$25,0),0)*$F92) -> 33755.91098
A93: DESPESAS_GERAIS | B93: 3700 | C93: =VLOOKUP(B93,Centro_Custo!$A$2:$B$36,2,0) -> GERÊNCIA DE REGULAÇÃO | D93: =VLOOKUP(B93,Centro_Custo!$A$2:$C$36,3) -> Encargos de Gestão | E93: Fixo | F93: =SUMIFS('Classificação OPEX'!$O$4:$O$1666,'Classificação OPEX'!$Q$4:$Q$1666,"N",'Classificação OPEX'!$S$4:$S$1666,"NÃO",'Classificação OPEX'!$V$4:$V$1666,DRIVER_OPEX!A93,'Classificação OPEX'!$W$4:$W$1666,DRIVER_OPEX!B93) -> 303.1095237 | G93: =IF($F93="",0,VLOOKUP($E93,Drivers!$A$26:$F$48,MATCH(G$1,Drivers!$A$25:$F$25,0),0)*$F93) -> 303.1095237 | H93: =IF($F93="",0,VLOOKUP($E93,Drivers!$A$26:$F$48,MATCH(H$1,Drivers!$A$25:$F$25,0),0)*$F93) -> 303.1095237 | I93: =IF($F93="",0,VLOOKUP($E93,Drivers!$A$26:$F$48,MATCH(I$1,Drivers!$A$25:$F$25,0),0)*$F93) -> 303.1095237 | J93: =IF($F93="",0,VLOOKUP($E93,Drivers!$A$26:$F$48,MATCH(J$1,Drivers!$A$25:$F$25,0),0)*$F93) -> 303.1095237 | K93: =IF($F93="",0,VLOOKUP($E93,Drivers!$A$26:$F$48,MATCH(K$1,Drivers!$A$25:$F$25,0),0)*$F93) -> 303.1095237
A94: DESPESAS_GERAIS | B94: 4100 | C94: =VLOOKUP(B94,Centro_Custo!$A$2:$B$36,2,0) -> GERÊNCIA DE SERVIÇOS CORPORATIVOS | D94: =VLOOKUP(B94,Centro_Custo!$A$2:$C$36,3) -> Encargos de Gestão | E94: Município | F94: =SUMIFS('Classificação OPEX'!$O$4:$O$1666,'Classificação OPEX'!$Q$4:$Q$1666,"N",'Classificação OPEX'!$S$4:$S$1666,"NÃO",'Classificação OPEX'!$V$4:$V$1666,DRIVER_OPEX!A94,'Classificação OPEX'!$W$4:$W$1666,DRIVER_OPEX!B94) -> 639100.1366 | G94: =IF($F94="",0,VLOOKUP($E94,Drivers!$A$26:$F$48,MATCH(G$1,Drivers!$A$25:$F$25,0),0)*$F94) -> 681706.8124 | H94: =IF($F94="",0,VLOOKUP($E94,Drivers!$A$26:$F$48,MATCH(H$1,Drivers!$A$25:$F$25,0),0)*$F94) -> 809526.8397 | I94: =IF($F94="",0,VLOOKUP($E94,Drivers!$A$26:$F$48,MATCH(I$1,Drivers!$A$25:$F$25,0),0)*$F94) -> 852133.5155 | J94: =IF($F94="",0,VLOOKUP($E94,Drivers!$A$26:$F$48,MATCH(J$1,Drivers!$A$25:$F$25,0),0)*$F94) -> 852133.5155 | K94: =IF($F94="",0,VLOOKUP($E94,Drivers!$A$26:$F$48,MATCH(K$1,Drivers!$A$25:$F$25,0),0)*$F94) -> 852133.5155
A95: DESPESAS_GERAIS | B95: 4200 | C95: =VLOOKUP(B95,Centro_Custo!$A$2:$B$36,2,0) -> GERÊNCIA FINANCEIRA | D95: =VLOOKUP(B95,Centro_Custo!$A$2:$C$36,3) -> Encargos de Gestão | E95: Fixo | F95: =SUMIFS('Classificação OPEX'!$O$4:$O$1666,'Classificação OPEX'!$Q$4:$Q$1666,"N",'Classificação OPEX'!$S$4:$S$1666,"NÃO",'Classificação OPEX'!$V$4:$V$1666,DRIVER_OPEX!A95,'Classificação OPEX'!$W$4:$W$1666,DRIVER_OPEX!B95) -> 980399.4129 | G95: =IF($F95="",0,VLOOKUP($E95,Drivers!$A$26:$F$48,MATCH(G$1,Drivers!$A$25:$F$25,0),0)*$F95) -> 980399.4129 | H95: =IF($F95="",0,VLOOKUP($E95,Drivers!$A$26:$F$48,MATCH(H$1,Drivers!$A$25:$F$25,0),0)*$F95) -> 980399.4129 | I95: =IF($F95="",0,VLOOKUP($E95,Drivers!$A$26:$F$48,MATCH(I$1,Drivers!$A$25:$F$25,0),0)*$F95) -> 980399.4129 | J95: =IF($F95="",0,VLOOKUP($E95,Drivers!$A$26:$F$48,MATCH(J$1,Drivers!$A$25:$F$25,0),0)*$F95) -> 980399.4129 | K95: =IF($F95="",0,VLOOKUP($E95,Drivers!$A$26:$F$48,MATCH(K$1,Drivers!$A$25:$F$25,0),0)*$F95) -> 980399.4129
A96: DESPESAS_GERAIS | B96: 4300 | C96: =VLOOKUP(B96,Centro_Custo!$A$2:$B$36,2,0) -> GERÊNCIA DE TECNOLOGIA E SISTEMAS DE INFORMAÇÃO | D96: =VLOOKUP(B96,Centro_Custo!$A$2:$C$36,3) -> Encargos de Gestão | E96: Funcionário | F96: =SUMIFS('Classificação OPEX'!$O$4:$O$1666,'Classificação OPEX'!$Q$4:$Q$1666,"N",'Classificação OPEX'!$S$4:$S$1666,"NÃO",'Classificação OPEX'!$V$4:$V$1666,DRIVER_OPEX!A96,'Classificação OPEX'!$W$4:$W$1666,DRIVER_OPEX!B96) -> 152589.1852 | G96: =IF($F96="",0,VLOOKUP($E96,Drivers!$A$26:$F$48,MATCH(G$1,Drivers!$A$25:$F$25,0),0)*$F96) -> 162627.9474 | H96: =IF($F96="",0,VLOOKUP($E96,Drivers!$A$26:$F$48,MATCH(H$1,Drivers!$A$25:$F$25,0),0)*$F96) -> 166643.4523 | I96: =IF($F96="",0,VLOOKUP($E96,Drivers!$A$26:$F$48,MATCH(I$1,Drivers!$A$25:$F$25,0),0)*$F96) -> 167647.3285 | J96: =IF($F96="",0,VLOOKUP($E96,Drivers!$A$26:$F$48,MATCH(J$1,Drivers!$A$25:$F$25,0),0)*$F96) -> 167647.3285 | K96: =IF($F96="",0,VLOOKUP($E96,Drivers!$A$26:$F$48,MATCH(K$1,Drivers!$A$25:$F$25,0),0)*$F96) -> 167647.3285
A97: DESPESAS_GERAIS | B97: 4500 | C97: =VLOOKUP(B97,Centro_Custo!$A$2:$B$36,2,0) -> GERÊNCIA CONTÁBIL | D97: =VLOOKUP(B97,Centro_Custo!$A$2:$C$36,3) -> Encargos de Gestão | E97: Fixo | F97: =SUMIFS('Classificação OPEX'!$O$4:$O$1666,'Classificação OPEX'!$Q$4:$Q$1666,"N",'Classificação OPEX'!$S$4:$S$1666,"NÃO",'Classificação OPEX'!$V$4:$V$1666,DRIVER_OPEX!A97,'Classificação OPEX'!$W$4:$W$1666,DRIVER_OPEX!B97) -> 40805.19355 | G97: =IF($F97="",0,VLOOKUP($E97,Drivers!$A$26:$F$48,MATCH(G$1,Drivers!$A$25:$F$25,0),0)*$F97) -> 40805.19355 | H97: =IF($F97="",0,VLOOKUP($E97,Drivers!$A$26:$F$48,MATCH(H$1,Drivers!$A$25:$F$25,0),0)*$F97) -> 40805.19355 | I97: =IF($F97="",0,VLOOKUP($E97,Drivers!$A$26:$F$48,MATCH(I$1,Drivers!$A$25:$F$25,0),0)*$F97) -> 40805.19355 | J97: =IF($F97="",0,VLOOKUP($E97,Drivers!$A$26:$F$48,MATCH(J$1,Drivers!$A$25:$F$25,0),0)*$F97) -> 40805.19355 | K97: =IF($F97="",0,VLOOKUP($E97,Drivers!$A$26:$F$48,MATCH(K$1,Drivers!$A$25:$F$25,0),0)*$F97) -> 40805.19355
A98: DESPESAS_GERAIS | B98: 5100 | C98: =VLOOKUP(B98,Centro_Custo!$A$2:$B$36,2,0) -> GERÊNCIA DE ENGENHARIA | D98: =VLOOKUP(B98,Centro_Custo!$A$2:$C$36,3) -> OPEX&ODESP | E98: Extensão de Rede | F98: =SUMIFS('Classificação OPEX'!$O$4:$O$1666,'Classificação OPEX'!$Q$4:$Q$1666,"N",'Classificação OPEX'!$S$4:$S$1666,"NÃO",'Classificação OPEX'!$V$4:$V$1666,DRIVER_OPEX!A98,'Classificação OPEX'!$W$4:$W$1666,DRIVER_OPEX!B98) -> 138423.1928 | G98: =IF($F98="",0,VLOOKUP($E98,Drivers!$A$26:$F$48,MATCH(G$1,Drivers!$A$25:$F$25,0),0)*$F98) -> 148165.6695 | H98: =IF($F98="",0,VLOOKUP($E98,Drivers!$A$26:$F$48,MATCH(H$1,Drivers!$A$25:$F$25,0),0)*$F98) -> 161598.2291 | I98: =IF($F98="",0,VLOOKUP($E98,Drivers!$A$26:$F$48,MATCH(I$1,Drivers!$A$25:$F$25,0),0)*$F98) -> 166379.0696 | J98: =IF($F98="",0,VLOOKUP($E98,Drivers!$A$26:$F$48,MATCH(J$1,Drivers!$A$25:$F$25,0),0)*$F98) -> 173260.4966 | K98: =IF($F98="",0,VLOOKUP($E98,Drivers!$A$26:$F$48,MATCH(K$1,Drivers!$A$25:$F$25,0),0)*$F98) -> 178678.5936
A99: DESPESAS_GERAIS | B99: 5200 | C99: =VLOOKUP(B99,Centro_Custo!$A$2:$B$36,2,0) -> GERÊNCIA DE OPERAÇÕES | D99: =VLOOKUP(B99,Centro_Custo!$A$2:$C$36,3) -> OPEX&ODESP | E99: Extensão de Rede | F99: =SUMIFS('Classificação OPEX'!$O$4:$O$1666,'Classificação OPEX'!$Q$4:$Q$1666,"N",'Classificação OPEX'!$S$4:$S$1666,"NÃO",'Classificação OPEX'!$V$4:$V$1666,DRIVER_OPEX!A99,'Classificação OPEX'!$W$4:$W$1666,DRIVER_OPEX!B99) -> 167233.1012 | G99: =IF($F99="",0,VLOOKUP($E99,Drivers!$A$26:$F$48,MATCH(G$1,Drivers!$A$25:$F$25,0),0)*$F99) -> 179003.2718 | H99: =IF($F99="",0,VLOOKUP($E99,Drivers!$A$26:$F$48,MATCH(H$1,Drivers!$A$25:$F$25,0),0)*$F99) -> 195231.5393 | I99: =IF($F99="",0,VLOOKUP($E99,Drivers!$A$26:$F$48,MATCH(I$1,Drivers!$A$25:$F$25,0),0)*$F99) -> 201007.4123 | J99: =IF($F99="",0,VLOOKUP($E99,Drivers!$A$26:$F$48,MATCH(J$1,Drivers!$A$25:$F$25,0),0)*$F99) -> 209321.0652 | K99: =IF($F99="",0,VLOOKUP($E99,Drivers!$A$26:$F$48,MATCH(K$1,Drivers!$A$25:$F$25,0),0)*$F99) -> 215866.8265
A100: DESPESAS_GERAIS | B100: 5300 | C100: =VLOOKUP(B100,Centro_Custo!$A$2:$B$36,2,0) -> GERÊNCIA COMERCIAL | D100: =VLOOKUP(B100,Centro_Custo!$A$2:$C$36,3) -> Encargos de Comercialização | E100: Usuários total | F100: =SUMIFS('Classificação OPEX'!$O$4:$O$1666,'Classificação OPEX'!$Q$4:$Q$1666,"N",'Classificação OPEX'!$S$4:$S$1666,"NÃO",'Classificação OPEX'!$V$4:$V$1666,DRIVER_OPEX!A100,'Classificação OPEX'!$W$4:$W$1666,DRIVER_OPEX!B100) -> 1238329.359 | G100: =IF($F100="",0,VLOOKUP($E100,Drivers!$A$26:$F$48,MATCH(G$1,Drivers!$A$25:$F$25,0),0)*$F100) -> 1379967.008 | H100: =IF($F100="",0,VLOOKUP($E100,Drivers!$A$26:$F$48,MATCH(H$1,Drivers!$A$25:$F$25,0),0)*$F100) -> 1516270.928 | I100: =IF($F100="",0,VLOOKUP($E100,Drivers!$A$26:$F$48,MATCH(I$1,Drivers!$A$25:$F$25,0),0)*$F100) -> 1702996.676 | J100: =IF($F100="",0,VLOOKUP($E100,Drivers!$A$26:$F$48,MATCH(J$1,Drivers!$A$25:$F$25,0),0)*$F100) -> 1847866.204 | K100: =IF($F100="",0,VLOOKUP($E100,Drivers!$A$26:$F$48,MATCH(K$1,Drivers!$A$25:$F$25,0),0)*$F100) -> 2024444.304
A101: DESPESAS_GERAIS | B101: 9999 | C101: =VLOOKUP(B101,Centro_Custo!$A$2:$B$36,2,0) -> RATEIO | D101: =VLOOKUP(B101,Centro_Custo!$A$2:$C$36,3) -> Encargos de Gestão | E101: Fixo | F101: =SUMIFS('Classificação OPEX'!$O$4:$O$1666,'Classificação OPEX'!$Q$4:$Q$1666,"N",'Classificação OPEX'!$S$4:$S$1666,"NÃO",'Classificação OPEX'!$V$4:$V$1666,DRIVER_OPEX!A101,'Classificação OPEX'!$W$4:$W$1666,DRIVER_OPEX!B101) -> 202.8792267 | G101: =IF($F101="",0,VLOOKUP($E101,Drivers!$A$26:$F$48,MATCH(G$1,Drivers!$A$25:$F$25,0),0)*$F101) -> 202.8792267 | H101: =IF($F101="",0,VLOOKUP($E101,Drivers!$A$26:$F$48,MATCH(H$1,Drivers!$A$25:$F$25,0),0)*$F101) -> 202.8792267 | I101: =IF($F101="",0,VLOOKUP($E101,Drivers!$A$26:$F$48,MATCH(I$1,Drivers!$A$25:$F$25,0),0)*$F101) -> 202.8792267 | J101: =IF($F101="",0,VLOOKUP($E101,Drivers!$A$26:$F$48,MATCH(J$1,Drivers!$A$25:$F$25,0),0)*$F101) -> 202.8792267 | K101: =IF($F101="",0,VLOOKUP($E101,Drivers!$A$26:$F$48,MATCH(K$1,Drivers!$A$25:$F$25,0),0)*$F101) -> 202.8792267
A102: DESPESAS_GERAIS | B102: 1001 | C102: CONSELHO DE ADMINISTRAÇÃO | D102: =VLOOKUP(B102,Centro_Custo!$A$2:$C$36,3) -> Encargos de Gestão | E102: Fixo | F102: =SUMIFS('Classificação OPEX'!$O$4:$O$1666,'Classificação OPEX'!$Q$4:$Q$1666,"N",'Classificação OPEX'!$S$4:$S$1666,"NÃO",'Classificação OPEX'!$V$4:$V$1666,DRIVER_OPEX!A102,'Classificação OPEX'!$W$4:$W$1666,DRIVER_OPEX!B102) -> 15.11532813 | G102: =IF($F102="",0,VLOOKUP($E102,Drivers!$A$26:$F$48,MATCH(G$1,Drivers!$A$25:$F$25,0),0)*$F102) -> 15.11532813 | H102: =IF($F102="",0,VLOOKUP($E102,Drivers!$A$26:$F$48,MATCH(H$1,Drivers!$A$25:$F$25,0),0)*$F102) -> 15.11532813 | I102: =IF($F102="",0,VLOOKUP($E102,Drivers!$A$26:$F$48,MATCH(I$1,Drivers!$A$25:$F$25,0),0)*$F102) -> 15.11532813 | J102: =IF($F102="",0,VLOOKUP($E102,Drivers!$A$26:$F$48,MATCH(J$1,Drivers!$A$25:$F$25,0),0)*$F102) -> 15.11532813 | K102: =IF($F102="",0,VLOOKUP($E102,Drivers!$A$26:$F$48,MATCH(K$1,Drivers!$A$25:$F$25,0),0)*$F102) -> 15.11532813
A103: DESPESAS_GERAIS | B103: 1002 | C103: CONSELHO FISCAL | D103: =VLOOKUP(B103,Centro_Custo!$A$2:$C$36,3) -> Encargos de Gestão | E103: Fixo | F103: =SUMIFS('Classificação OPEX'!$O$4:$O$1666,'Classificação OPEX'!$Q$4:$Q$1666,"N",'Classificação OPEX'!$S$4:$S$1666,"NÃO",'Classificação OPEX'!$V$4:$V$1666,DRIVER_OPEX!A103,'Classificação OPEX'!$W$4:$W$1666,DRIVER_OPEX!B103) -> 114.6724585 | G103: =IF($F103="",0,VLOOKUP($E103,Drivers!$A$26:$F$48,MATCH(G$1,Drivers!$A$25:$F$25,0),0)*$F103) -> 114.6724585 | H103: =IF($F103="",0,VLOOKUP($E103,Drivers!$A$26:$F$48,MATCH(H$1,Drivers!$A$25:$F$25,0),0)*$F103) -> 114.6724585 | I103: =IF($F103="",0,VLOOKUP($E103,Drivers!$A$26:$F$48,MATCH(I$1,Drivers!$A$25:$F$25,0),0)*$F103) -> 114.6724585 | J103: =IF($F103="",0,VLOOKUP($E103,Drivers!$A$26:$F$48,MATCH(J$1,Drivers!$A$25:$F$25,0),0)*$F103) -> 114.6724585 | K103: =IF($F103="",0,VLOOKUP($E103,Drivers!$A$26:$F$48,MATCH(K$1,Drivers!$A$25:$F$25,0),0)*$F103) -> 114.6724585
A104: DESPESAS_GERAIS | B104: 1003 | C104: COMITÊ DE INDICAÇÃO E AVALIAÇÃO | D104: =VLOOKUP(B104,Centro_Custo!$A$2:$C$36,3) -> Encargos de Gestão | E104: Fixo | F104: =SUMIFS('Classificação OPEX'!$O$4:$O$1666,'Classificação OPEX'!$Q$4:$Q$1666,"N",'Classificação OPEX'!$S$4:$S$1666,"NÃO",'Classificação OPEX'!$V$4:$V$1666,DRIVER_OPEX!A104,'Classificação OPEX'!$W$4:$W$1666,DRIVER_OPEX!B104) -> 0 | G104: =IF($F104="",0,VLOOKUP($E104,Drivers!$A$26:$F$48,MATCH(G$1,Drivers!$A$25:$F$25,0),0)*$F104) -> 0 | H104: =IF($F104="",0,VLOOKUP($E104,Drivers!$A$26:$F$48,MATCH(H$1,Drivers!$A$25:$F$25,0),0)*$F104) -> 0 | I104: =IF($F104="",0,VLOOKUP($E104,Drivers!$A$26:$F$48,MATCH(I$1,Drivers!$A$25:$F$25,0),0)*$F104) -> 0 | J104: =IF($F104="",0,VLOOKUP($E104,Drivers!$A$26:$F$48,MATCH(J$1,Drivers!$A$25:$F$25,0),0)*$F104) -> 0 | K104: =IF($F104="",0,VLOOKUP($E104,Drivers!$A$26:$F$48,MATCH(K$1,Drivers!$A$25:$F$25,0),0)*$F104) -> 0
A105: DESPESAS_GERAIS | B105: 2100 | C105: SECRETARIA | D105: =VLOOKUP(B105,Centro_Custo!$A$2:$C$36,3) -> Encargos de Gestão | E105: Fixo | F105: =SUMIFS('Classificação OPEX'!$O$4:$O$1666,'Classificação OPEX'!$Q$4:$Q$1666,"N",'Classificação OPEX'!$S$4:$S$1666,"NÃO",'Classificação OPEX'!$V$4:$V$1666,DRIVER_OPEX!A105,'Classificação OPEX'!$W$4:$W$1666,DRIVER_OPEX!B105) -> 43302.26333 | G105: =IF($F105="",0,VLOOKUP($E105,Drivers!$A$26:$F$48,MATCH(G$1,Drivers!$A$25:$F$25,0),0)*$F105) -> 43302.26333 | H105: =IF($F105="",0,VLOOKUP($E105,Drivers!$A$26:$F$48,MATCH(H$1,Drivers!$A$25:$F$25,0),0)*$F105) -> 43302.26333 | I105: =IF($F105="",0,VLOOKUP($E105,Drivers!$A$26:$F$48,MATCH(I$1,Drivers!$A$25:$F$25,0),0)*$F105) -> 43302.26333 | J105: =IF($F105="",0,VLOOKUP($E105,Drivers!$A$26:$F$48,MATCH(J$1,Drivers!$A$25:$F$25,0),0)*$F105) -> 43302.26333 | K105: =IF($F105="",0,VLOOKUP($E105,Drivers!$A$26:$F$48,MATCH(K$1,Drivers!$A$25:$F$25,0),0)*$F105) -> 43302.26333
A106: DESPESAS_GERAIS | B106: 3400 | C106: MARKETING | D106: =VLOOKUP(B106,Centro_Custo!$A$2:$C$36,3) -> Encargos de Comercialização | E106: Fixo | F106: =SUMIFS('Classificação OPEX'!$O$4:$O$1666,'Classificação OPEX'!$Q$4:$Q$1666,"N",'Classificação OPEX'!$S$4:$S$1666,"NÃO",'Classificação OPEX'!$V$4:$V$1666,DRIVER_OPEX!A106,'Classificação OPEX'!$W$4:$W$1666,DRIVER_OPEX!B106) -> 57132.98226 | G106: =IF($F106="",0,VLOOKUP($E106,Drivers!$A$26:$F$48,MATCH(G$1,Drivers!$A$25:$F$25,0),0)*$F106) -> 57132.98226 | H106: =IF($F106="",0,VLOOKUP($E106,Drivers!$A$26:$F$48,MATCH(H$1,Drivers!$A$25:$F$25,0),0)*$F106) -> 57132.98226 | I106: =IF($F106="",0,VLOOKUP($E106,Drivers!$A$26:$F$48,MATCH(I$1,Drivers!$A$25:$F$25,0),0)*$F106) -> 57132.98226 | J106: =IF($F106="",0,VLOOKUP($E106,Drivers!$A$26:$F$48,MATCH(J$1,Drivers!$A$25:$F$25,0),0)*$F106) -> 57132.98226 | K106: =IF($F106="",0,VLOOKUP($E106,Drivers!$A$26:$F$48,MATCH(K$1,Drivers!$A$25:$F$25,0),0)*$F106) -> 57132.98226
A107: DESPESAS_GERAIS | B107: 4600 | C107: GERÊNCIA DE PESSOAS E CULTURA | D107: =VLOOKUP(B107,Centro_Custo!$A$2:$C$36,3) -> Encargos de Gestão | E107: Fixo | F107: =SUMIFS('Classificação OPEX'!$O$4:$O$1666,'Classificação OPEX'!$Q$4:$Q$1666,"N",'Classificação OPEX'!$S$4:$S$1666,"NÃO",'Classificação OPEX'!$V$4:$V$1666,DRIVER_OPEX!A107,'Classificação OPEX'!$W$4:$W$1666,DRIVER_OPEX!B107) -> 44343.13815 | G107: =IF($F107="",0,VLOOKUP($E107,Drivers!$A$26:$F$48,MATCH(G$1,Drivers!$A$25:$F$25,0),0)*$F107) -> 44343.13815 | H107: =IF($F107="",0,VLOOKUP($E107,Drivers!$A$26:$F$48,MATCH(H$1,Drivers!$A$25:$F$25,0),0)*$F107) -> 44343.13815 | I107: =IF($F107="",0,VLOOKUP($E107,Drivers!$A$26:$F$48,MATCH(I$1,Drivers!$A$25:$F$25,0),0)*$F107) -> 44343.13815 | J107: =IF($F107="",0,VLOOKUP($E107,Drivers!$A$26:$F$48,MATCH(J$1,Drivers!$A$25:$F$25,0),0)*$F107) -> 44343.13815 | K107: =IF($F107="",0,VLOOKUP($E107,Drivers!$A$26:$F$48,MATCH(K$1,Drivers!$A$25:$F$25,0),0)*$F107) -> 44343.13815
A108: DESPESAS_GERAIS | B108: 0000 | C108: RATEIO | D108: =VLOOKUP(B108,Centro_Custo!$A$2:$C$36,3) -> Encargos de Gestão | E108: Fixo | F108: =SUMIFS('Classificação OPEX'!$O$4:$O$1666,'Classificação OPEX'!$Q$4:$Q$1666,"N",'Classificação OPEX'!$S$4:$S$1666,"NÃO",'Classificação OPEX'!$V$4:$V$1666,DRIVER_OPEX!A108,'Classificação OPEX'!$W$4:$W$1666,DRIVER_OPEX!B108) -> 0 | G108: =IF($F108="",0,VLOOKUP($E108,Drivers!$A$26:$F$48,MATCH(G$1,Drivers!$A$25:$F$25,0),0)*$F108) -> 0 | H108: =IF($F108="",0,VLOOKUP($E108,Drivers!$A$26:$F$48,MATCH(H$1,Drivers!$A$25:$F$25,0),0)*$F108) -> 0 | I108: =IF($F108="",0,VLOOKUP($E108,Drivers!$A$26:$F$48,MATCH(I$1,Drivers!$A$25:$F$25,0),0)*$F108) -> 0 | J108: =IF($F108="",0,VLOOKUP($E108,Drivers!$A$26:$F$48,MATCH(J$1,Drivers!$A$25:$F$25,0),0)*$F108) -> 0 | K108: =IF($F108="",0,VLOOKUP($E108,Drivers!$A$26:$F$48,MATCH(K$1,Drivers!$A$25:$F$25,0),0)*$F108) -> 0
A109: DESPESAS_GERAIS | B109: 5400 | C109: GERÊNCIA COMERCIAL | D109: =VLOOKUP(B109,Centro_Custo!$A$2:$C$36,3) -> Encargos de Gestão | E109: Fixo | F109: =SUMIFS('Classificação OPEX'!$O$4:$O$1666,'Classificação OPEX'!$Q$4:$Q$1666,"N",'Classificação OPEX'!$S$4:$S$1666,"NÃO",'Classificação OPEX'!$V$4:$V$1666,DRIVER_OPEX!A109,'Classificação OPEX'!$W$4:$W$1666,DRIVER_OPEX!B109) -> 1029108.249 | G109: =IF($F109="",0,VLOOKUP($E109,Drivers!$A$26:$F$48,MATCH(G$1,Drivers!$A$25:$F$25,0),0)*$F109) -> 1029108.249 | H109: =IF($F109="",0,VLOOKUP($E109,Drivers!$A$26:$F$48,MATCH(H$1,Drivers!$A$25:$F$25,0),0)*$F109) -> 1029108.249 | I109: =IF($F109="",0,VLOOKUP($E109,Drivers!$A$26:$F$48,MATCH(I$1,Drivers!$A$25:$F$25,0),0)*$F109) -> 1029108.249 | J109: =IF($F109="",0,VLOOKUP($E109,Drivers!$A$26:$F$48,MATCH(J$1,Drivers!$A$25:$F$25,0),0)*$F109) -> 1029108.249 | K109: =IF($F109="",0,VLOOKUP($E109,Drivers!$A$26:$F$48,MATCH(K$1,Drivers!$A$25:$F$25,0),0)*$F109) -> 1029108.249
A110: DESPESAS_GERAIS | B110: 5500 | C110: GERÊNCIA COMERCIAL | D110: =VLOOKUP(B110,Centro_Custo!$A$2:$C$36,3) -> Encargos de Gestão | E110: Fixo | F110: =SUMIFS('Classificação OPEX'!$O$4:$O$1666,'Classificação OPEX'!$Q$4:$Q$1666,"N",'Classificação OPEX'!$S$4:$S$1666,"NÃO",'Classificação OPEX'!$V$4:$V$1666,DRIVER_OPEX!A110,'Classificação OPEX'!$W$4:$W$1666,DRIVER_OPEX!B110) -> 16844.37796 | G110: =IF($F110="",0,VLOOKUP($E110,Drivers!$A$26:$F$48,MATCH(G$1,Drivers!$A$25:$F$25,0),0)*$F110) -> 16844.37796 | H110: =IF($F110="",0,VLOOKUP($E110,Drivers!$A$26:$F$48,MATCH(H$1,Drivers!$A$25:$F$25,0),0)*$F110) -> 16844.37796 | I110: =IF($F110="",0,VLOOKUP($E110,Drivers!$A$26:$F$48,MATCH(I$1,Drivers!$A$25:$F$25,0),0)*$F110) -> 16844.37796 | J110: =IF($F110="",0,VLOOKUP($E110,Drivers!$A$26:$F$48,MATCH(J$1,Drivers!$A$25:$F$25,0),0)*$F110) -> 16844.37796 | K110: =IF($F110="",0,VLOOKUP($E110,Drivers!$A$26:$F$48,MATCH(K$1,Drivers!$A$25:$F$25,0),0)*$F110) -> 16844.37796
A111: DESPESAS_INSTITUCIONAIS | B111: TOTAL | C111: TOTAL | F111: =SUM(F112:F146) -> 3124943.299 | G111: =SUM(G112:G146) -> 3243062.15 | H111: 3356732.931 | I111: 3512453.043 | J111: 3633267.122 | K111: 3780524.594
A112: DESPESAS_INSTITUCIONAIS | B112: 3500 | C112: =VLOOKUP(B112,Centro_Custo!$A$2:$B$36,2,0) -> ASSESSORIA DE COMUNICAÇÃO INSTITUCIONAL | D112: =VLOOKUP(B112,Centro_Custo!$A$2:$C$36,3) -> Encargos de Gestão | E112: Usuários total | F112: =SUMIFS('Classificação OPEX'!$O$4:$O$1666,'Classificação OPEX'!$Q$4:$Q$1666,"N",'Classificação OPEX'!$S$4:$S$1666,"NÃO",'Classificação OPEX'!$V$4:$V$1666,DRIVER_OPEX!A112,'Classificação OPEX'!$W$4:$W$1666,DRIVER_OPEX!B112) -> 817513.422 | G112: =IF($F112="",0,VLOOKUP($E112,Drivers!$A$26:$F$48,MATCH(G$1,Drivers!$A$25:$F$25,0),0)*$F112) -> 911018.9815 | H112: =IF($F112="",0,VLOOKUP($E112,Drivers!$A$26:$F$48,MATCH(H$1,Drivers!$A$25:$F$25,0),0)*$F112) -> 1001003.349 | I112: =IF($F112="",0,VLOOKUP($E112,Drivers!$A$26:$F$48,MATCH(I$1,Drivers!$A$25:$F$25,0),0)*$F112) -> 1124274.919 | J112: =IF($F112="",0,VLOOKUP($E112,Drivers!$A$26:$F$48,MATCH(J$1,Drivers!$A$25:$F$25,0),0)*$F112) -> 1219914.083 | K112: =IF($F112="",0,VLOOKUP($E112,Drivers!$A$26:$F$48,MATCH(K$1,Drivers!$A$25:$F$25,0),0)*$F112) -> 1336486.436
A113: DESPESAS_INSTITUCIONAIS | B113: 4100 | C113: =VLOOKUP(B113,Centro_Custo!$A$2:$B$36,2,0) -> GERÊNCIA DE SERVIÇOS CORPORATIVOS | D113: =VLOOKUP(B113,Centro_Custo!$A$2:$C$36,3) -> Encargos de Gestão | E113: Fixo | F113: =SUMIFS('Classificação OPEX'!$O$4:$O$1666,'Classificação OPEX'!$Q$4:$Q$1666,"N",'Classificação OPEX'!$S$4:$S$1666,"NÃO",'Classificação OPEX'!$V$4:$V$1666,DRIVER_OPEX!A113,'Classificação OPEX'!$W$4:$W$1666,DRIVER_OPEX!B113) -> 156990.1766 | G113: =IF($F113="",0,VLOOKUP($E113,Drivers!$A$26:$F$48,MATCH(G$1,Drivers!$A$25:$F$25,0),0)*$F113) -> 156990.1766 | H113: =IF($F113="",0,VLOOKUP($E113,Drivers!$A$26:$F$48,MATCH(H$1,Drivers!$A$25:$F$25,0),0)*$F113) -> 156990.1766 | I113: =IF($F113="",0,VLOOKUP($E113,Drivers!$A$26:$F$48,MATCH(I$1,Drivers!$A$25:$F$25,0),0)*$F113) -> 156990.1766 | J113: =IF($F113="",0,VLOOKUP($E113,Drivers!$A$26:$F$48,MATCH(J$1,Drivers!$A$25:$F$25,0),0)*$F113) -> 156990.1766 | K113: =IF($F113="",0,VLOOKUP($E113,Drivers!$A$26:$F$48,MATCH(K$1,Drivers!$A$25:$F$25,0),0)*$F113) -> 156990.1766
A114: DESPESAS_INSTITUCIONAIS | B114: 5300 | C114: =VLOOKUP(B114,Centro_Custo!$A$2:$B$36,2,0) -> GERÊNCIA COMERCIAL | D114: =VLOOKUP(B114,Centro_Custo!$A$2:$C$36,3) -> Encargos de Comercialização | E114: Usuários total | F114: =SUMIFS('Classificação OPEX'!$O$4:$O$1666,'Classificação OPEX'!$Q$4:$Q$1666,"N",'Classificação OPEX'!$S$4:$S$1666,"NÃO",'Classificação OPEX'!$V$4:$V$1666,DRIVER_OPEX!A114,'Classificação OPEX'!$W$4:$W$1666,DRIVER_OPEX!B114) -> 215192.5056 | G114: =IF($F114="",0,VLOOKUP($E114,Drivers!$A$26:$F$48,MATCH(G$1,Drivers!$A$25:$F$25,0),0)*$F114) -> 239805.7964 | H114: =IF($F114="",0,VLOOKUP($E114,Drivers!$A$26:$F$48,MATCH(H$1,Drivers!$A$25:$F$25,0),0)*$F114) -> 263492.2105 | I114: =IF($F114="",0,VLOOKUP($E114,Drivers!$A$26:$F$48,MATCH(I$1,Drivers!$A$25:$F$25,0),0)*$F114) -> 295940.7519 | J114: =IF($F114="",0,VLOOKUP($E114,Drivers!$A$26:$F$48,MATCH(J$1,Drivers!$A$25:$F$25,0),0)*$F114) -> 321115.6673 | K114: =IF($F114="",0,VLOOKUP($E114,Drivers!$A$26:$F$48,MATCH(K$1,Drivers!$A$25:$F$25,0),0)*$F114) -> 351800.7864
A115: DESPESAS_INSTITUCIONAIS | B115: 0000 | C115: RATEIO | D115: =VLOOKUP(B115,Centro_Custo!$A$2:$C$36,3) -> Encargos de Gestão | E115: Fixo | F115: =SUMIFS('Classificação OPEX'!$O$4:$O$1666,'Classificação OPEX'!$Q$4:$Q$1666,"N",'Classificação OPEX'!$S$4:$S$1666,"NÃO",'Classificação OPEX'!$V$4:$V$1666,DRIVER_OPEX!A115,'Classificação OPEX'!$W$4:$W$1666,DRIVER_OPEX!B115) -> 0 | G115: =IF($F115="",0,VLOOKUP($E115,Drivers!$A$26:$F$48,MATCH(G$1,Drivers!$A$25:$F$25,0),0)*$F115) -> 0 | H115: =IF($F115="",0,VLOOKUP($E115,Drivers!$A$26:$F$48,MATCH(H$1,Drivers!$A$25:$F$25,0),0)*$F115) -> 0 | I115: =IF($F115="",0,VLOOKUP($E115,Drivers!$A$26:$F$48,MATCH(I$1,Drivers!$A$25:$F$25,0),0)*$F115) -> 0 | J115: =IF($F115="",0,VLOOKUP($E115,Drivers!$A$26:$F$48,MATCH(J$1,Drivers!$A$25:$F$25,0),0)*$F115) -> 0 | K115: =IF($F115="",0,VLOOKUP($E115,Drivers!$A$26:$F$48,MATCH(K$1,Drivers!$A$25:$F$25,0),0)*$F115) -> 0
A116: DESPESAS_INSTITUCIONAIS | B116: 1001 | C116: CONSELHO DE ADMINISTRAÇÃO | D116: =VLOOKUP(B116,Centro_Custo!$A$2:$C$36,3) -> Encargos de Gestão | E116: Fixo | F116: =SUMIFS('Classificação OPEX'!$O$4:$O$1666,'Classificação OPEX'!$Q$4:$Q$1666,"N",'Classificação OPEX'!$S$4:$S$1666,"NÃO",'Classificação OPEX'!$V$4:$V$1666,DRIVER_OPEX!A116,'Classificação OPEX'!$W$4:$W$1666,DRIVER_OPEX!B116) -> 835092.325 | G116: =IF($F116="",0,VLOOKUP($E116,Drivers!$A$26:$F$48,MATCH(G$1,Drivers!$A$25:$F$25,0),0)*$F116) -> 835092.325 | H116: =IF($F116="",0,VLOOKUP($E116,Drivers!$A$26:$F$48,MATCH(H$1,Drivers!$A$25:$F$25,0),0)*$F116) -> 835092.325 | I116: =IF($F116="",0,VLOOKUP($E116,Drivers!$A$26:$F$48,MATCH(I$1,Drivers!$A$25:$F$25,0),0)*$F116) -> 835092.325 | J116: =IF($F116="",0,VLOOKUP($E116,Drivers!$A$26:$F$48,MATCH(J$1,Drivers!$A$25:$F$25,0),0)*$F116) -> 835092.325 | K116: =IF($F116="",0,VLOOKUP($E116,Drivers!$A$26:$F$48,MATCH(K$1,Drivers!$A$25:$F$25,0),0)*$F116) -> 835092.325
A117: DESPESAS_INSTITUCIONAIS | B117: 1002 | C117: CONSELHO FISCAL | D117: =VLOOKUP(B117,Centro_Custo!$A$2:$C$36,3) -> Encargos de Gestão | E117: Fixo | F117: =SUMIFS('Classificação OPEX'!$O$4:$O$1666,'Classificação OPEX'!$Q$4:$Q$1666,"N",'Classificação OPEX'!$S$4:$S$1666,"NÃO",'Classificação OPEX'!$V$4:$V$1666,DRIVER_OPEX!A117,'Classificação OPEX'!$W$4:$W$1666,DRIVER_OPEX!B117) -> 199494.3151 | G117: =IF($F117="",0,VLOOKUP($E117,Drivers!$A$26:$F$48,MATCH(G$1,Drivers!$A$25:$F$25,0),0)*$F117) -> 199494.3151 | H117: =IF($F117="",0,VLOOKUP($E117,Drivers!$A$26:$F$48,MATCH(H$1,Drivers!$A$25:$F$25,0),0)*$F117) -> 199494.3151 | I117: =IF($F117="",0,VLOOKUP($E117,Drivers!$A$26:$F$48,MATCH(I$1,Drivers!$A$25:$F$25,0),0)*$F117) -> 199494.3151 | J117: =IF($F117="",0,VLOOKUP($E117,Drivers!$A$26:$F$48,MATCH(J$1,Drivers!$A$25:$F$25,0),0)*$F117) -> 199494.3151 | K117: =IF($F117="",0,VLOOKUP($E117,Drivers!$A$26:$F$48,MATCH(K$1,Drivers!$A$25:$F$25,0),0)*$F117) -> 199494.3151
A118: DESPESAS_INSTITUCIONAIS | B118: 1003 | C118: COMITÊ DE INDICAÇÃO E AVALIAÇÃO | D118: =VLOOKUP(B118,Centro_Custo!$A$2:$C$36,3) -> Encargos de Gestão | E118: Fixo | F118: =SUMIFS('Classificação OPEX'!$O$4:$O$1666,'Classificação OPEX'!$Q$4:$Q$1666,"N",'Classificação OPEX'!$S$4:$S$1666,"NÃO",'Classificação OPEX'!$V$4:$V$1666,DRIVER_OPEX!A118,'Classificação OPEX'!$W$4:$W$1666,DRIVER_OPEX!B118) -> 0 | G118: =IF($F118="",0,VLOOKUP($E118,Drivers!$A$26:$F$48,MATCH(G$1,Drivers!$A$25:$F$25,0),0)*$F118) -> 0 | H118: =IF($F118="",0,VLOOKUP($E118,Drivers!$A$26:$F$48,MATCH(H$1,Drivers!$A$25:$F$25,0),0)*$F118) -> 0 | I118: =IF($F118="",0,VLOOKUP($E118,Drivers!$A$26:$F$48,MATCH(I$1,Drivers!$A$25:$F$25,0),0)*$F118) -> 0 | J118: =IF($F118="",0,VLOOKUP($E118,Drivers!$A$26:$F$48,MATCH(J$1,Drivers!$A$25:$F$25,0),0)*$F118) -> 0 | K118: =IF($F118="",0,VLOOKUP($E118,Drivers!$A$26:$F$48,MATCH(K$1,Drivers!$A$25:$F$25,0),0)*$F118) -> 0
A119: DESPESAS_INSTITUCIONAIS | B119: 1004 | C119: COMITÊ DE AUDITORIA ESTATUTÁRIA | D119: =VLOOKUP(B119,Centro_Custo!$A$2:$C$36,3) -> Encargos de Gestão | E119: Fixo | F119: =SUMIFS('Classificação OPEX'!$O$4:$O$1666,'Classificação OPEX'!$Q$4:$Q$1666,"N",'Classificação OPEX'!$S$4:$S$1666,"NÃO",'Classificação OPEX'!$V$4:$V$1666,DRIVER_OPEX!A119,'Classificação OPEX'!$W$4:$W$1666,DRIVER_OPEX!B119) -> 0 | G119: =IF($F119="",0,VLOOKUP($E119,Drivers!$A$26:$F$48,MATCH(G$1,Drivers!$A$25:$F$25,0),0)*$F119) -> 0 | H119: =IF($F119="",0,VLOOKUP($E119,Drivers!$A$26:$F$48,MATCH(H$1,Drivers!$A$25:$F$25,0),0)*$F119) -> 0 | I119: =IF($F119="",0,VLOOKUP($E119,Drivers!$A$26:$F$48,MATCH(I$1,Drivers!$A$25:$F$25,0),0)*$F119) -> 0 | J119: =IF($F119="",0,VLOOKUP($E119,Drivers!$A$26:$F$48,MATCH(J$1,Drivers!$A$25:$F$25,0),0)*$F119) -> 0 | K119: =IF($F119="",0,VLOOKUP($E119,Drivers!$A$26:$F$48,MATCH(K$1,Drivers!$A$25:$F$25,0),0)*$F119) -> 0
A120: DESPESAS_INSTITUCIONAIS | B120: 1005 | C120: AUDITORIA INTERNA | D120: =VLOOKUP(B120,Centro_Custo!$A$2:$C$36,3) -> Encargos de Gestão | E120: Fixo | F120: =SUMIFS('Classificação OPEX'!$O$4:$O$1666,'Classificação OPEX'!$Q$4:$Q$1666,"N",'Classificação OPEX'!$S$4:$S$1666,"NÃO",'Classificação OPEX'!$V$4:$V$1666,DRIVER_OPEX!A120,'Classificação OPEX'!$W$4:$W$1666,DRIVER_OPEX!B120) -> 0 | G120: =IF($F120="",0,VLOOKUP($E120,Drivers!$A$26:$F$48,MATCH(G$1,Drivers!$A$25:$F$25,0),0)*$F120) -> 0 | H120: =IF($F120="",0,VLOOKUP($E120,Drivers!$A$26:$F$48,MATCH(H$1,Drivers!$A$25:$F$25,0),0)*$F120) -> 0 | I120: =IF($F120="",0,VLOOKUP($E120,Drivers!$A$26:$F$48,MATCH(I$1,Drivers!$A$25:$F$25,0),0)*$F120) -> 0 | J120: =IF($F120="",0,VLOOKUP($E120,Drivers!$A$26:$F$48,MATCH(J$1,Drivers!$A$25:$F$25,0),0)*$F120) -> 0 | K120: =IF($F120="",0,VLOOKUP($E120,Drivers!$A$26:$F$48,MATCH(K$1,Drivers!$A$25:$F$25,0),0)*$F120) -> 0
A121: DESPESAS_INSTITUCIONAIS | B121: 1010 | C121: GOVERNANÇA SOCIETÁRIA | D121: =VLOOKUP(B121,Centro_Custo!$A$2:$C$36,3) -> Encargos de Gestão | E121: Fixo | F121: =SUMIFS('Classificação OPEX'!$O$4:$O$1666,'Classificação OPEX'!$Q$4:$Q$1666,"N",'Classificação OPEX'!$S$4:$S$1666,"NÃO",'Classificação OPEX'!$V$4:$V$1666,DRIVER_OPEX!A121,'Classificação OPEX'!$W$4:$W$1666,DRIVER_OPEX!B121) -> 1092.283957 | G121: =IF($F121="",0,VLOOKUP($E121,Drivers!$A$26:$F$48,MATCH(G$1,Drivers!$A$25:$F$25,0),0)*$F121) -> 1092.283957 | H121: =IF($F121="",0,VLOOKUP($E121,Drivers!$A$26:$F$48,MATCH(H$1,Drivers!$A$25:$F$25,0),0)*$F121) -> 1092.283957 | I121: =IF($F121="",0,VLOOKUP($E121,Drivers!$A$26:$F$48,MATCH(I$1,Drivers!$A$25:$F$25,0),0)*$F121) -> 1092.283957 | J121: =IF($F121="",0,VLOOKUP($E121,Drivers!$A$26:$F$48,MATCH(J$1,Drivers!$A$25:$F$25,0),0)*$F121) -> 1092.283957 | K121: =IF($F121="",0,VLOOKUP($E121,Drivers!$A$26:$F$48,MATCH(K$1,Drivers!$A$25:$F$25,0),0)*$F121) -> 1092.283957
A122: DESPESAS_INSTITUCIONAIS | B122: 2100 | C122: SECRETARIA | D122: =VLOOKUP(B122,Centro_Custo!$A$2:$C$36,3) -> Encargos de Gestão | E122: Fixo | F122: =SUMIFS('Classificação OPEX'!$O$4:$O$1666,'Classificação OPEX'!$Q$4:$Q$1666,"N",'Classificação OPEX'!$S$4:$S$1666,"NÃO",'Classificação OPEX'!$V$4:$V$1666,DRIVER_OPEX!A122,'Classificação OPEX'!$W$4:$W$1666,DRIVER_OPEX!B122) -> 10178.93847 | G122: =IF($F122="",0,VLOOKUP($E122,Drivers!$A$26:$F$48,MATCH(G$1,Drivers!$A$25:$F$25,0),0)*$F122) -> 10178.93847 | H122: =IF($F122="",0,VLOOKUP($E122,Drivers!$A$26:$F$48,MATCH(H$1,Drivers!$A$25:$F$25,0),0)*$F122) -> 10178.93847 | I122: =IF($F122="",0,VLOOKUP($E122,Drivers!$A$26:$F$48,MATCH(I$1,Drivers!$A$25:$F$25,0),0)*$F122) -> 10178.93847 | J122: =IF($F122="",0,VLOOKUP($E122,Drivers!$A$26:$F$48,MATCH(J$1,Drivers!$A$25:$F$25,0),0)*$F122) -> 10178.93847 | K122: =IF($F122="",0,VLOOKUP($E122,Drivers!$A$26:$F$48,MATCH(K$1,Drivers!$A$25:$F$25,0),0)*$F122) -> 10178.93847
A123: DESPESAS_INSTITUCIONAIS | B123: 2110 | C123: ASSESSORIA DA DIRETORIA EXECUTIVA | D123: =VLOOKUP(B123,Centro_Custo!$A$2:$C$36,3) -> Encargos de Gestão | E123: Fixo | F123: =SUMIFS('Classificação OPEX'!$O$4:$O$1666,'Classificação OPEX'!$Q$4:$Q$1666,"N",'Classificação OPEX'!$S$4:$S$1666,"NÃO",'Classificação OPEX'!$V$4:$V$1666,DRIVER_OPEX!A123,'Classificação OPEX'!$W$4:$W$1666,DRIVER_OPEX!B123) -> 6000.004119 | G123: =IF($F123="",0,VLOOKUP($E123,Drivers!$A$26:$F$48,MATCH(G$1,Drivers!$A$25:$F$25,0),0)*$F123) -> 6000.004119 | H123: =IF($F123="",0,VLOOKUP($E123,Drivers!$A$26:$F$48,MATCH(H$1,Drivers!$A$25:$F$25,0),0)*$F123) -> 6000.004119 | I123: =IF($F123="",0,VLOOKUP($E123,Drivers!$A$26:$F$48,MATCH(I$1,Drivers!$A$25:$F$25,0),0)*$F123) -> 6000.004119 | J123: =IF($F123="",0,VLOOKUP($E123,Drivers!$A$26:$F$48,MATCH(J$1,Drivers!$A$25:$F$25,0),0)*$F123) -> 6000.004119 | K123: =IF($F123="",0,VLOOKUP($E123,Drivers!$A$26:$F$48,MATCH(K$1,Drivers!$A$25:$F$25,0),0)*$F123) -> 6000.004119
A124: DESPESAS_INSTITUCIONAIS | B124: 2120 | C124: ASSESSORIA DA PRESIDÊNCIA | D124: =VLOOKUP(B124,Centro_Custo!$A$2:$C$36,3) -> Encargos de Gestão | E124: Fixo | F124: =SUMIFS('Classificação OPEX'!$O$4:$O$1666,'Classificação OPEX'!$Q$4:$Q$1666,"N",'Classificação OPEX'!$S$4:$S$1666,"NÃO",'Classificação OPEX'!$V$4:$V$1666,DRIVER_OPEX!A124,'Classificação OPEX'!$W$4:$W$1666,DRIVER_OPEX!B124) -> 24.92776997 | G124: =IF($F124="",0,VLOOKUP($E124,Drivers!$A$26:$F$48,MATCH(G$1,Drivers!$A$25:$F$25,0),0)*$F124) -> 24.92776997 | H124: =IF($F124="",0,VLOOKUP($E124,Drivers!$A$26:$F$48,MATCH(H$1,Drivers!$A$25:$F$25,0),0)*$F124) -> 24.92776997 | I124: =IF($F124="",0,VLOOKUP($E124,Drivers!$A$26:$F$48,MATCH(I$1,Drivers!$A$25:$F$25,0),0)*$F124) -> 24.92776997 | J124: =IF($F124="",0,VLOOKUP($E124,Drivers!$A$26:$F$48,MATCH(J$1,Drivers!$A$25:$F$25,0),0)*$F124) -> 24.92776997 | K124: =IF($F124="",0,VLOOKUP($E124,Drivers!$A$26:$F$48,MATCH(K$1,Drivers!$A$25:$F$25,0),0)*$F124) -> 24.92776997
A125: DESPESAS_INSTITUCIONAIS | B125: 2130 | C125: ASSESSORIA DE RELAÇÕES INSTITUCIONAIS E NOVOS NEGÓCIOS | D125: =VLOOKUP(B125,Centro_Custo!$A$2:$C$36,3) -> Encargos de Gestão | E125: Fixo | F125: =SUMIFS('Classificação OPEX'!$O$4:$O$1666,'Classificação OPEX'!$Q$4:$Q$1666,"N",'Classificação OPEX'!$S$4:$S$1666,"NÃO",'Classificação OPEX'!$V$4:$V$1666,DRIVER_OPEX!A125,'Classificação OPEX'!$W$4:$W$1666,DRIVER_OPEX!B125) -> 0 | G125: =IF($F125="",0,VLOOKUP($E125,Drivers!$A$26:$F$48,MATCH(G$1,Drivers!$A$25:$F$25,0),0)*$F125) -> 0 | H125: =IF($F125="",0,VLOOKUP($E125,Drivers!$A$26:$F$48,MATCH(H$1,Drivers!$A$25:$F$25,0),0)*$F125) -> 0 | I125: =IF($F125="",0,VLOOKUP($E125,Drivers!$A$26:$F$48,MATCH(I$1,Drivers!$A$25:$F$25,0),0)*$F125) -> 0 | J125: =IF($F125="",0,VLOOKUP($E125,Drivers!$A$26:$F$48,MATCH(J$1,Drivers!$A$25:$F$25,0),0)*$F125) -> 0 | K125: =IF($F125="",0,VLOOKUP($E125,Drivers!$A$26:$F$48,MATCH(K$1,Drivers!$A$25:$F$25,0),0)*$F125) -> 0
A126: DESPESAS_INSTITUCIONAIS | B126: 2140 | C126: ASSESSORIA DTC | D126: =VLOOKUP(B126,Centro_Custo!$A$2:$C$36,3) -> Encargos de Comercialização | E126: Fixo | F126: =SUMIFS('Classificação OPEX'!$O$4:$O$1666,'Classificação OPEX'!$Q$4:$Q$1666,"N",'Classificação OPEX'!$S$4:$S$1666,"NÃO",'Classificação OPEX'!$V$4:$V$1666,DRIVER_OPEX!A126,'Classificação OPEX'!$W$4:$W$1666,DRIVER_OPEX!B126) -> 0 | G126: =IF($F126="",0,VLOOKUP($E126,Drivers!$A$26:$F$48,MATCH(G$1,Drivers!$A$25:$F$25,0),0)*$F126) -> 0 | H126: =IF($F126="",0,VLOOKUP($E126,Drivers!$A$26:$F$48,MATCH(H$1,Drivers!$A$25:$F$25,0),0)*$F126) -> 0 | I126: =IF($F126="",0,VLOOKUP($E126,Drivers!$A$26:$F$48,MATCH(I$1,Drivers!$A$25:$F$25,0),0)*$F126) -> 0 | J126: =IF($F126="",0,VLOOKUP($E126,Drivers!$A$26:$F$48,MATCH(J$1,Drivers!$A$25:$F$25,0),0)*$F126) -> 0 | K126: =IF($F126="",0,VLOOKUP($E126,Drivers!$A$26:$F$48,MATCH(K$1,Drivers!$A$25:$F$25,0),0)*$F126) -> 0
A127: DESPESAS_INSTITUCIONAIS | B127: 2200 | C127: DIRETORIA COLEGIADA - PRESIDÊNCIA | D127: =VLOOKUP(B127,Centro_Custo!$A$2:$C$36,3) -> Encargos de Gestão | E127: Fixo | F127: =SUMIFS('Classificação OPEX'!$O$4:$O$1666,'Classificação OPEX'!$Q$4:$Q$1666,"N",'Classificação OPEX'!$S$4:$S$1666,"NÃO",'Classificação OPEX'!$V$4:$V$1666,DRIVER_OPEX!A127,'Classificação OPEX'!$W$4:$W$1666,DRIVER_OPEX!B127) -> 18375.08411 | G127: =IF($F127="",0,VLOOKUP($E127,Drivers!$A$26:$F$48,MATCH(G$1,Drivers!$A$25:$F$25,0),0)*$F127) -> 18375.08411 | H127: =IF($F127="",0,VLOOKUP($E127,Drivers!$A$26:$F$48,MATCH(H$1,Drivers!$A$25:$F$25,0),0)*$F127) -> 18375.08411 | I127: =IF($F127="",0,VLOOKUP($E127,Drivers!$A$26:$F$48,MATCH(I$1,Drivers!$A$25:$F$25,0),0)*$F127) -> 18375.08411 | J127: =IF($F127="",0,VLOOKUP($E127,Drivers!$A$26:$F$48,MATCH(J$1,Drivers!$A$25:$F$25,0),0)*$F127) -> 18375.08411 | K127: =IF($F127="",0,VLOOKUP($E127,Drivers!$A$26:$F$48,MATCH(K$1,Drivers!$A$25:$F$25,0),0)*$F127) -> 18375.08411
A128: DESPESAS_INSTITUCIONAIS | B128: 2300 | C128: DIRETORIA COLEGIADA - DAF | D128: =VLOOKUP(B128,Centro_Custo!$A$2:$C$36,3) -> Encargos de Gestão | E128: Fixo | F128: =SUMIFS('Classificação OPEX'!$O$4:$O$1666,'Classificação OPEX'!$Q$4:$Q$1666,"N",'Classificação OPEX'!$S$4:$S$1666,"NÃO",'Classificação OPEX'!$V$4:$V$1666,DRIVER_OPEX!A128,'Classificação OPEX'!$W$4:$W$1666,DRIVER_OPEX!B128) -> 264850.2976 | G128: =IF($F128="",0,VLOOKUP($E128,Drivers!$A$26:$F$48,MATCH(G$1,Drivers!$A$25:$F$25,0),0)*$F128) -> 264850.2976 | H128: =IF($F128="",0,VLOOKUP($E128,Drivers!$A$26:$F$48,MATCH(H$1,Drivers!$A$25:$F$25,0),0)*$F128) -> 264850.2976 | I128: =IF($F128="",0,VLOOKUP($E128,Drivers!$A$26:$F$48,MATCH(I$1,Drivers!$A$25:$F$25,0),0)*$F128) -> 264850.2976 | J128: =IF($F128="",0,VLOOKUP($E128,Drivers!$A$26:$F$48,MATCH(J$1,Drivers!$A$25:$F$25,0),0)*$F128) -> 264850.2976 | K128: =IF($F128="",0,VLOOKUP($E128,Drivers!$A$26:$F$48,MATCH(K$1,Drivers!$A$25:$F$25,0),0)*$F128) -> 264850.2976
A129: DESPESAS_INSTITUCIONAIS | B129: 2310 | C129: ASSESSORIA DAF | D129: =VLOOKUP(B129,Centro_Custo!$A$2:$C$36,3) -> Encargos de Gestão | E129: Fixo | F129: =SUMIFS('Classificação OPEX'!$O$4:$O$1666,'Classificação OPEX'!$Q$4:$Q$1666,"N",'Classificação OPEX'!$S$4:$S$1666,"NÃO",'Classificação OPEX'!$V$4:$V$1666,DRIVER_OPEX!A129,'Classificação OPEX'!$W$4:$W$1666,DRIVER_OPEX!B129) -> 18.99831772 | G129: =IF($F129="",0,VLOOKUP($E129,Drivers!$A$26:$F$48,MATCH(G$1,Drivers!$A$25:$F$25,0),0)*$F129) -> 18.99831772 | H129: =IF($F129="",0,VLOOKUP($E129,Drivers!$A$26:$F$48,MATCH(H$1,Drivers!$A$25:$F$25,0),0)*$F129) -> 18.99831772 | I129: =IF($F129="",0,VLOOKUP($E129,Drivers!$A$26:$F$48,MATCH(I$1,Drivers!$A$25:$F$25,0),0)*$F129) -> 18.99831772 | J129: =IF($F129="",0,VLOOKUP($E129,Drivers!$A$26:$F$48,MATCH(J$1,Drivers!$A$25:$F$25,0),0)*$F129) -> 18.99831772 | K129: =IF($F129="",0,VLOOKUP($E129,Drivers!$A$26:$F$48,MATCH(K$1,Drivers!$A$25:$F$25,0),0)*$F129) -> 18.99831772
A130: DESPESAS_INSTITUCIONAIS | B130: 2400 | C130: DIRETORIA COLEGIADA - DTC | D130: =VLOOKUP(B130,Centro_Custo!$A$2:$C$36,3) -> Encargos de Comercialização | E130: Fixo | F130: =SUMIFS('Classificação OPEX'!$O$4:$O$1666,'Classificação OPEX'!$Q$4:$Q$1666,"N",'Classificação OPEX'!$S$4:$S$1666,"NÃO",'Classificação OPEX'!$V$4:$V$1666,DRIVER_OPEX!A130,'Classificação OPEX'!$W$4:$W$1666,DRIVER_OPEX!B130) -> 2661.974004 | G130: =IF($F130="",0,VLOOKUP($E130,Drivers!$A$26:$F$48,MATCH(G$1,Drivers!$A$25:$F$25,0),0)*$F130) -> 2661.974004 | H130: =IF($F130="",0,VLOOKUP($E130,Drivers!$A$26:$F$48,MATCH(H$1,Drivers!$A$25:$F$25,0),0)*$F130) -> 2661.974004 | I130: =IF($F130="",0,VLOOKUP($E130,Drivers!$A$26:$F$48,MATCH(I$1,Drivers!$A$25:$F$25,0),0)*$F130) -> 2661.974004 | J130: =IF($F130="",0,VLOOKUP($E130,Drivers!$A$26:$F$48,MATCH(J$1,Drivers!$A$25:$F$25,0),0)*$F130) -> 2661.974004 | K130: =IF($F130="",0,VLOOKUP($E130,Drivers!$A$26:$F$48,MATCH(K$1,Drivers!$A$25:$F$25,0),0)*$F130) -> 2661.974004
A131: DESPESAS_INSTITUCIONAIS | B131: 2410 | C131: ASSESSORIA DE SEGURANÇA DO TRABALHO | D131: =VLOOKUP(B131,Centro_Custo!$A$2:$C$36,3) -> OPEX&ODESP | E131: Fixo | F131: =SUMIFS('Classificação OPEX'!$O$4:$O$1666,'Classificação OPEX'!$Q$4:$Q$1666,"N",'Classificação OPEX'!$S$4:$S$1666,"NÃO",'Classificação OPEX'!$V$4:$V$1666,DRIVER_OPEX!A131,'Classificação OPEX'!$W$4:$W$1666,DRIVER_OPEX!B131) -> 1522.833828 | G131: =IF($F131="",0,VLOOKUP($E131,Drivers!$A$26:$F$48,MATCH(G$1,Drivers!$A$25:$F$25,0),0)*$F131) -> 1522.833828 | H131: =IF($F131="",0,VLOOKUP($E131,Drivers!$A$26:$F$48,MATCH(H$1,Drivers!$A$25:$F$25,0),0)*$F131) -> 1522.833828 | I131: =IF($F131="",0,VLOOKUP($E131,Drivers!$A$26:$F$48,MATCH(I$1,Drivers!$A$25:$F$25,0),0)*$F131) -> 1522.833828 | J131: =IF($F131="",0,VLOOKUP($E131,Drivers!$A$26:$F$48,MATCH(J$1,Drivers!$A$25:$F$25,0),0)*$F131) -> 1522.833828 | K131: =IF($F131="",0,VLOOKUP($E131,Drivers!$A$26:$F$48,MATCH(K$1,Drivers!$A$25:$F$25,0),0)*$F131) -> 1522.833828
